Workbook

Sheet Contents

Sheet Technical Guide
B12: TOPIC: | C12: Inverse care law
B13: SUBJECT: | C13: All cause mortality
B14: SOURCE: | C14: Numerator: Annual District Death Extract (ADDE), Office for National Statistics (ONS); NISRA & GROS
C15: Denominator: Mid-Year Population Estimates, Office for National Statistics
B16: GEOGRAPHY: | C16: UK local authorities
B17: PERIOD: | C17: 2012
B18: DEMOGRAPHY: | C18: All persons
B19: STATISTICS: | C19: European age-standardised rate per 100,000 with 95% confidence intervals (intervals calculated using a method proposed by Dobson et al (1991));
C20: Crude rates per 100,000 with 95% confidence intervals (intervals calculated using a method proposed by Altman et al (2000));
C21: Excess deaths counts
B22: NOTES: | C22: The ONS area classification was used to group like for like areas. The ONS area classification is based on a cluster analysis utilising 42 Census (2001) variables that groups together areas that have similar combinations of characteristics. Full details of the ONS area classification can be found at:
C23: http://www.ons.gov.uk/ons/guide-method/geography/products/area-classifications/ns-area-classifications/index/index.html
C24: The 'Best 5 in peer group combined' were defined as the 5 local authorities with the lowest all ages all causes European age standardised mortality rate by gender within each area classification in 2012. For each classification 'Best 5 in peer group combined' age-specific rates and EASR were calculated based on the counts of deaths and population of the 5 local authorities identified.
C25: All persons, all ages, all causes European age standardised mortality rates for administrative geographies were downloaded from ONS at:
C26: http://www.ons.gov.uk/ons/rel/vsob1/deaths-registered-area-usual-residence/2012/rft-deaths-area-package-2012.xls
C27: The ONS area classification was downloaded from ONS at:
C28: http://www.ons.gov.uk/ons/guide-method/geography/products/area-classifications/ns-area-classifications/index/datasets/local-authorities/la-data-file.xls
C29: Midyear population estimates were downloaded from ONS at:
C30: http://www.ons.gov.uk/ons/rel/pop-estimate/population-estimates-for-uk--england-and-wales--scotland-and-northern-ireland/mid-2001-to-mid-2010-revised/rft---mid-2001-to-mid-2010-uk-population-estimates.zip
C31: The Vital Statistics tables held by PHWO were used to extract age specific death registrations for the Welsh and 'Best 5 in peer group combined' local authority areas.
C32: The age-specific rates chart confidence intervals are highlighted red when the rate for the chosen local authority is significantly higher than the age-specific rate for the 'Best 5 in peer group combined'. When there is no significant difference in the rates the confidence intervals are highlighted grey.
C33: The age-specific rates calculated for the 'Best 5 in peer group combined' were applied to the Wales local authorities populations to obtain the number of deaths required in each age band to yield the same EASR.
C34: The sum of the differences between the observed and target age-specific numbers of deaths represents the total excess deaths.
C35: This approach has a logical basis, in that it not only ensures the end result, the EASR, is the same in the observed and target populations, but also ensures that the building blocks of the EASR, the age specific rates, are the same in both populations.
C36: However, it is critical to consider the large quantity of age specific death count permutations that could lead to the same EASR within a single population. The excess deaths calculations here are based on the age-specific rates in the chosen local authority becoming the same as in the 'Best 5 in peer group combined'. That "best in class" EASR could also be achieved in a number of ways, including scenarios where deaths actually go up, but the EASR goes down as the deaths are shifted into older age groups. The "best in class" EASR could also be obtained by having exactly the same number of deaths as now but by delaying each death by around 15 years.
C37: Whilst these scenarios may be extreme and unrealistic, the point they illustrate is valid given that, within the limits of current knowledge, all humans must die eventually. Therefore, the very best that can be achieved in terms of mortality would be to delay deaths at the younger ages until the older ages. In such a scenario, and in the long run, the European age standardised mortality rate would most likely decline whilst the actual number of deaths would most likely increase.
C38: There are two further considerations that are important to note:
C39: · The observed EASR may not be statistically significantly different to the 'Best 5 in peer group combined' EASR. Whilst this does not preclude the difference being of public health importance, it is important to consider whether attaining an absolute target or getting within a reasonable range is the most appropriate measure.
C40: · There may not be an excess in all age bands, yielding in such instances a “negative excess” in those bands.
C41: A number of assumptions have been made in deriving these 'Top 5 in peer group combined' comparisons and excess deaths estimates, which have not been tested:
C42: · The 'Best 5 in peer group combined' areas had not experienced particularly unusual patterns of mortality for the comparison year.
C43: · Wales local authorities had not experienced particularly unusual patterns of mortality for the comparison year.
C44: · Area classifications based on Census 2001 will not alter when they are revised to Census 2011.
C45: These EASRs have been produced using the shortly to be superseded European Standard Population (1976). Repeating this work with the new European Standard Population (2013) would produce somewhat different results, highlighting another limitation in the use of age standardised rates in this manner.
B46: REFERENCE: | C46: Dobson A.J. et al (1991) Confidence intervals for weighted sums of Poisson parameters. Stat Med 10(3):457-462.
C47: Altman D.G. Et al (2000) Statistics with confidence. BMJ books: UK

Sheet Copy tables and charts
M2: Figure 1
A7: Copying and pasting charts and tables to use in documents, reports or presentations
A9: Why use this method to copy and paste charts
A10: If the standard {Copy} and {Paste} option is used for inserting Excel charts into documents, reports
A11: or presentations then frequently the chart will lose some of its formatting and/or the axes labels may be
A12: truncated. Similarly, table column sizes are often distorted using the standard {Copy} and {Paste}
A13: method if a table is too wide. The technique descibed below overcomes these issues.
A15: Copying and pasting a chart
A16: 1 | B16: Select the chart you want to copy by left clicking on it once i.e. so that the surronding points are
B17: displayed
A18: 2 | B18: On the 'Home' tab click the paste icon
A19: 3 | B19: Click 'As picture' option and 'Copy as picture' (see figure 1)
A20: 4 | B20: Choose 'As shown on screen' and 'picture'
A21: 5 | B21: Using your mouse click on the point where you want to insert a copy of the chart e.g. in a Word
B22: document / presentation
A23: 6 | B23: On the 'Home' tab click 'paste' then 'paste special' and choose to insert as 'Picture (enhanced metafile)'
M25: Figure 2
A27: Copying and pasting a table as a picture
A28: 1 | B28: Highlight the table you want to copy by left clicking on the top left hand corner
B29: and dragging the mouse to the bottom right corner.
A30: 2 | B30: On the 'Home' tab click the paste icon
A31: 3 | B31: Click 'As picture' option and 'Copy as picture' (see figure 2)
A32: 4 | B32: Choose 'As shown on screen' and 'picture'
A33: 5 | B33: Using your mouse click on the point where you want to insert a copy of the chart e.g. in a Word
B34: document / presentation
A35: 6 | B35: On the 'Home' tab click 'paste' then 'paste special' and choose to insert as 'Picture (enhanced metafile)'

Sheet Interactive
M13: Age specific comparisons below
M41: Further age specific comparison below

Sheet Controls Sheet
B1: LA index | D1: Group | E1: Names | F1: Lookup | G1: Number of LA's | H1: Top 5 males EASR | I1: Top 5 females EASR
A2: Current selection (list number) | B2: 1 | D2: 1.1 | E2: Regional Centres local authorities | F2: 1 | G2: 24 | H2: 603.9 | I2: 434.5
A3: Current selection | D3: 5.7 | E3: Prospering Smaller Towns local authorities | F3: 2 | G3: 108 | H3: 458.3 | I3: 340.9
D4: 6.1 | E4: Coastal and Countryside local authorities | F4: 3 | G4: 54 | H4: 501.9 | I4: 360.3
D5: 7.11 | E5: Industrial Hinterlands local authorities | F5: 4 | G5: 42 | H5: 664.3 | I5: 475.1
A6: Current selection variables | D6: 7.12 | E6: Manufacturing Towns local authorities | F6: 5 | G6: 41 | H6: 583.5 | I6: 422.4
A7: Local Authority | B7: Group
A8: Isle of Anglesey | B8: 6.1 | C8: =INDEX(A8:A29,B2) -> Isle of Anglesey | D8: =INDEX(B8:B29,B2) -> 6.1 | E8: =VLOOKUP($D$8,$D$2:$F$6,2,FALSE) -> Coastal and Countryside local authorities | F8: =VLOOKUP($D$8,$D$2:$G$6,3,FALSE) -> 3 | G8: =VLOOKUP($D$8,$D$2:$I$6,5,FALSE) -> 502 | H8: =VLOOKUP($D$8,$D$2:$I$6,6,FALSE) -> 360
A9: Gwynedd | B9: 6.1
A10: Conwy | B10: 6.1 | E10: Wales
A11: Denbighshire | B11: 6.1
A12: Flintshire | B12: 7.12
A13: Wrexham | B13: 7.12
A14: Powys | B14: 6.1
A15: Ceredigion | B15: 6.1
A16: Pembrokeshire | B16: 6.1
A17: Carmarthenshire | B17: 6.1
A18: Swansea | B18: 7.11
A19: Neath Port Talbot | B19: 7.11
A20: Bridgend | B20: 7.12
A21: Vale of Glamorgan | B21: 5.7
A22: Cardiff | B22: 1.1
A23: Rhondda Cynon Taff | B23: 7.11
A24: Merthyr Tydfil | B24: 7.11
A25: Caerphilly | B25: 7.11
A26: Blaenau Gwent | B26: 7.11
A27: Torfaen | B27: 7.11
A28: Monmouthshire | B28: 5.7
A29: Newport | B29: 7.11
A34: Age-specific rates
A35: Local Authority | B35: Group | Z35: error bars + | AD35: error bars -
A36: =$C$8 -> Isle of Anglesey | B36: =$D$8 -> 6.1 | F36: Excess deaths | J36: Best 5 in peer group combined | O36: Confidence intervals | T36: Confidence intervals | Z36: Confidence intervals | AD36: Confidence intervals | AH36: Excess deaths WALES | AL36: WALES
B37: Males | C37: Females | F37: Males | G37: Females | K37: Males | L37: Females | O37: Males | P37: LCI | Q37: UCI | T37: Females | U37: LCI | V37: UCI | Z37: Males | AA37: LCI | AB37: UCI | AD37: Females | AE37: LCI | AF37: UCI | AH37: Males | AI37: Females | AM37: Males | AN37: Females
A38: 00-01 | B38: =VLOOKUP($A$36,'ASR lookup'!$C$5:$AB$26,D38,FALSE) -> 4.9 | C38: =VLOOKUP($A$36,'ASR lookup'!$C$40:$AB$61,D38,FALSE) -> 0 | D38: 7 | E38: 00-01 | F38: =VLOOKUP($A$36,'ASR lookup'!$C$5:$AV$26,'Controls Sheet'!H38,FALSE) -> -2 | G38: =VLOOKUP($A$36,'ASR lookup'!$C$40:$AV$61,'Controls Sheet'!H38,FALSE) -> -1 | H38: 27 | J38: 00-01 | K38: =VLOOKUP($B$36,'ASR lookup'!$F$31:$AB$35,M38,FALSE) -> 8.8 | L38: =VLOOKUP($B$36,'ASR lookup'!$F$66:$AB$70,M38,FALSE) -> 1.4 | M38: 4 | O38: 00-01 | P38: =VLOOKUP($A$36,'ASR lookup'!$C$5:$CB$26,'Controls Sheet'!R38,FALSE) -> 0.6 | Q38: =VLOOKUP($A$36,'ASR lookup'!$C$5:$CB$26,'Controls Sheet'!S38,FALSE) -> 17.8 | R38: 47 | S38: 63 | T38: 00-01 | U38: =VLOOKUP($A$36,'ASR lookup'!$C$40:$CB$61,'Controls Sheet'!W38,FALSE) -> 0 | V38: =VLOOKUP($A$36,'ASR lookup'!$C$40:$CB$61,'Controls Sheet'!X38,FALSE) -> 9.1 | W38: 47 | X38: 63 | Z38: 00-01 | AA38: =B38-P38 -> 4.3 | AB38: =Q38-B38 -> 12.9 | AD38: 00-01 | AE38: =C38-U38 -> 0 | AF38: =V38-C38 -> 9.1 | AH38: =VLOOKUP($A$36,'ASR lookup'!$C$5:$CV$26,'Controls Sheet'!AJ38,FALSE) -> 0 | AI38: =VLOOKUP($A$36,'ASR lookup'!$C$40:$CV$61,'Controls Sheet'!AJ38,FALSE) -> -1 | AJ38: 79 | AL38: 00-01 | AM38: 4.8 | AN38: 3.4 | AO38: 4
A39: 01-04 | B39: =VLOOKUP($A$36,'ASR lookup'!$C$5:$AB$26,D39,FALSE) -> 0 | C39: =VLOOKUP($A$36,'ASR lookup'!$C$40:$AB$61,D39,FALSE) -> 0 | D39: 8 | E39: 01-04 | F39: =VLOOKUP($A$36,'ASR lookup'!$C$5:$AV$26,'Controls Sheet'!H39,FALSE) -> 0 | G39: =VLOOKUP($A$36,'ASR lookup'!$C$40:$AV$61,'Controls Sheet'!H39,FALSE) -> 0 | H39: 28 | J39: 01-04 | K39: =VLOOKUP($B$36,'ASR lookup'!$F$31:$AB$35,M39,FALSE) -> 0 | L39: =VLOOKUP($B$36,'ASR lookup'!$F$66:$AB$70,M39,FALSE) -> 0.2 | M39: 5 | O39: 01-04 | P39: =VLOOKUP($A$36,'ASR lookup'!$C$5:$CB$26,'Controls Sheet'!R39,FALSE) -> 0 | Q39: =VLOOKUP($A$36,'ASR lookup'!$C$5:$CB$26,'Controls Sheet'!S39,FALSE) -> 2.2 | R39: 48 | S39: 64 | T39: 01-04 | U39: =VLOOKUP($A$36,'ASR lookup'!$C$40:$CB$61,'Controls Sheet'!W39,FALSE) -> 0 | V39: =VLOOKUP($A$36,'ASR lookup'!$C$40:$CB$61,'Controls Sheet'!X39,FALSE) -> 2.4 | W39: 48 | X39: 64 | Z39: 01-04 | AA39: =B39-P39 -> 0 | AB39: =Q39-B39 -> 2.2 | AD39: 01-04 | AE39: =C39-U39 -> 0 | AF39: =V39-C39 -> 2.4 | AH39: =VLOOKUP($A$36,'ASR lookup'!$C$5:$CV$26,'Controls Sheet'!AJ39,FALSE) -> 0 | AI39: =VLOOKUP($A$36,'ASR lookup'!$C$40:$CV$61,'Controls Sheet'!AJ39,FALSE) -> 0 | AJ39: 80 | AL39: 01-04 | AM39: 0.2 | AN39: 0.1 | AO39: 5
A40: 05-09 | B40: =VLOOKUP($A$36,'ASR lookup'!$C$5:$AB$26,D40,FALSE) -> 0 | C40: =VLOOKUP($A$36,'ASR lookup'!$C$40:$AB$61,D40,FALSE) -> 0 | D40: 9 | E40: 05-09 | F40: =VLOOKUP($A$36,'ASR lookup'!$C$5:$AV$26,'Controls Sheet'!H40,FALSE) -> 0 | G40: =VLOOKUP($A$36,'ASR lookup'!$C$40:$AV$61,'Controls Sheet'!H40,FALSE) -> 0 | H40: 29 | J40: 05-09 | K40: =VLOOKUP($B$36,'ASR lookup'!$F$31:$AB$35,M40,FALSE) -> 0.1 | L40: =VLOOKUP($B$36,'ASR lookup'!$F$66:$AB$70,M40,FALSE) -> 0.1 | M40: 6 | O40: 05-09 | P40: =VLOOKUP($A$36,'ASR lookup'!$C$5:$CB$26,'Controls Sheet'!R40,FALSE) -> 0 | Q40: =VLOOKUP($A$36,'ASR lookup'!$C$5:$CB$26,'Controls Sheet'!S40,FALSE) -> 2 | R40: 49 | S40: 65 | T40: 05-09 | U40: =VLOOKUP($A$36,'ASR lookup'!$C$40:$CB$61,'Controls Sheet'!W40,FALSE) -> 0 | V40: =VLOOKUP($A$36,'ASR lookup'!$C$40:$CB$61,'Controls Sheet'!X40,FALSE) -> 2.2 | W40: 49 | X40: 65 | Z40: 05-09 | AA40: 0 | AB40: 2 | AD40: 05-09 | AE40: 0 | AF40: 2.2 | AH40: =VLOOKUP($A$36,'ASR lookup'!$C$5:$CV$26,'Controls Sheet'!AJ40,FALSE) -> 0 | AI40: =VLOOKUP($A$36,'ASR lookup'!$C$40:$CV$61,'Controls Sheet'!AJ40,FALSE) -> 0 | AJ40: 81 | AL40: 05-09 | AM40: 0.1 | AN40: 0.1 | AO40: 6
A41: 10-14 | B41: =VLOOKUP($A$36,'ASR lookup'!$C$5:$AB$26,D41,FALSE) -> 0 | C41: =VLOOKUP($A$36,'ASR lookup'!$C$40:$AB$61,D41,FALSE) -> 1.1 | D41: 10 | E41: 10-14 | F41: =VLOOKUP($A$36,'ASR lookup'!$C$5:$AV$26,'Controls Sheet'!H41,FALSE) -> 0 | G41: =VLOOKUP($A$36,'ASR lookup'!$C$40:$AV$61,'Controls Sheet'!H41,FALSE) -> 2 | H41: 30 | J41: 10-14 | K41: =VLOOKUP($B$36,'ASR lookup'!$F$31:$AB$35,M41,FALSE) -> 0 | L41: =VLOOKUP($B$36,'ASR lookup'!$F$66:$AB$70,M41,FALSE) -> 0 | M41: 7 | O41: 10-14 | P41: =VLOOKUP($A$36,'ASR lookup'!$C$5:$CB$26,'Controls Sheet'!R41,FALSE) -> 0 | Q41: =VLOOKUP($A$36,'ASR lookup'!$C$5:$CB$26,'Controls Sheet'!S41,FALSE) -> 2 | R41: 50 | S41: 66 | T41: 10-14 | U41: =VLOOKUP($A$36,'ASR lookup'!$C$40:$CB$61,'Controls Sheet'!W41,FALSE) -> 0.1 | V41: =VLOOKUP($A$36,'ASR lookup'!$C$40:$CB$61,'Controls Sheet'!X41,FALSE) -> 4 | W41: 50 | X41: 66 | Z41: 10-14 | AA41: 0 | AB41: 2 | AD41: 10-14 | AE41: 1 | AF41: 2.9 | AH41: =VLOOKUP($A$36,'ASR lookup'!$C$5:$CV$26,'Controls Sheet'!AJ41,FALSE) -> 0 | AI41: =VLOOKUP($A$36,'ASR lookup'!$C$40:$CV$61,'Controls Sheet'!AJ41,FALSE) -> 2 | AJ41: 82 | AL41: 10-14 | AM41: 0.1 | AN41: 0.1 | AO41: 7
A42: 15-19 | B42: =VLOOKUP($A$36,'ASR lookup'!$C$5:$AB$26,D42,FALSE) -> 1 | C42: =VLOOKUP($A$36,'ASR lookup'!$C$40:$AB$61,D42,FALSE) -> 0.6 | D42: 11 | E42: 15-19 | F42: =VLOOKUP($A$36,'ASR lookup'!$C$5:$AV$26,'Controls Sheet'!H42,FALSE) -> 2 | G42: =VLOOKUP($A$36,'ASR lookup'!$C$40:$AV$61,'Controls Sheet'!H42,FALSE) -> 1 | H42: 31 | J42: 15-19 | K42: =VLOOKUP($B$36,'ASR lookup'!$F$31:$AB$35,M42,FALSE) -> 0.1 | L42: =VLOOKUP($B$36,'ASR lookup'!$F$66:$AB$70,M42,FALSE) -> 0.1 | M42: 8 | O42: 15-19 | P42: =VLOOKUP($A$36,'ASR lookup'!$C$5:$CB$26,'Controls Sheet'!R42,FALSE) -> 0.1 | Q42: =VLOOKUP($A$36,'ASR lookup'!$C$5:$CB$26,'Controls Sheet'!S42,FALSE) -> 3.6 | R42: 51 | S42: 67 | T42: 15-19 | U42: =VLOOKUP($A$36,'ASR lookup'!$C$40:$CB$61,'Controls Sheet'!W42,FALSE) -> 0 | V42: =VLOOKUP($A$36,'ASR lookup'!$C$40:$CB$61,'Controls Sheet'!X42,FALSE) -> 3.1 | W42: 51 | X42: 67 | Z42: 15-19 | AA42: 0.9 | AB42: 2.6 | AD42: 15-19 | AE42: 0.6 | AF42: 2.5 | AH42: =VLOOKUP($A$36,'ASR lookup'!$C$5:$CV$26,'Controls Sheet'!AJ42,FALSE) -> 1 | AI42: =VLOOKUP($A$36,'ASR lookup'!$C$40:$CV$61,'Controls Sheet'!AJ42,FALSE) -> 1 | AJ42: 83 | AL42: 15-19 | AM42: 0.3 | AN42: 0.2 | AO42: 8
A43: 20-24 | B43: =VLOOKUP($A$36,'ASR lookup'!$C$5:$AB$26,D43,FALSE) -> 2.6 | C43: =VLOOKUP($A$36,'ASR lookup'!$C$40:$AB$61,D43,FALSE) -> 0 | D43: 12 | E43: 20-24 | F43: =VLOOKUP($A$36,'ASR lookup'!$C$5:$AV$26,'Controls Sheet'!H43,FALSE) -> 5 | G43: =VLOOKUP($A$36,'ASR lookup'!$C$40:$AV$61,'Controls Sheet'!H43,FALSE) -> 0 | H43: 32 | J43: 20-24 | K43: =VLOOKUP($B$36,'ASR lookup'!$F$31:$AB$35,M43,FALSE) -> 0.1 | L43: =VLOOKUP($B$36,'ASR lookup'!$F$66:$AB$70,M43,FALSE) -> 0.1 | M43: 9 | O43: 20-24 | P43: =VLOOKUP($A$36,'ASR lookup'!$C$5:$CB$26,'Controls Sheet'!R43,FALSE) -> 0.8 | Q43: =VLOOKUP($A$36,'ASR lookup'!$C$5:$CB$26,'Controls Sheet'!S43,FALSE) -> 6 | R43: 52 | S43: 68 | T43: 20-24 | U43: =VLOOKUP($A$36,'ASR lookup'!$C$40:$CB$61,'Controls Sheet'!W43,FALSE) -> 0 | V43: =VLOOKUP($A$36,'ASR lookup'!$C$40:$CB$61,'Controls Sheet'!X43,FALSE) -> 2 | W43: 52 | X43: 68 | Z43: 20-24 | AA43: 1.8 | AB43: 3.4 | AD43: 20-24 | AE43: 0 | AF43: 2 | AH43: =VLOOKUP($A$36,'ASR lookup'!$C$5:$CV$26,'Controls Sheet'!AJ43,FALSE) -> 4 | AI43: =VLOOKUP($A$36,'ASR lookup'!$C$40:$CV$61,'Controls Sheet'!AJ43,FALSE) -> -1 | AJ43: 84 | AL43: 20-24 | AM43: 0.7 | AN43: 0.3 | AO43: 9
A44: 25-29 | B44: =VLOOKUP($A$36,'ASR lookup'!$C$5:$AB$26,D44,FALSE) -> 1.1 | C44: =VLOOKUP($A$36,'ASR lookup'!$C$40:$AB$61,D44,FALSE) -> 0 | D44: 13 | E44: 25-29 | F44: =VLOOKUP($A$36,'ASR lookup'!$C$5:$AV$26,'Controls Sheet'!H44,FALSE) -> 0 | G44: =VLOOKUP($A$36,'ASR lookup'!$C$40:$AV$61,'Controls Sheet'!H44,FALSE) -> -1 | H44: 33 | J44: 25-29 | K44: =VLOOKUP($B$36,'ASR lookup'!$F$31:$AB$35,M44,FALSE) -> 0.9 | L44: =VLOOKUP($B$36,'ASR lookup'!$F$66:$AB$70,M44,FALSE) -> 0.3 | M44: 10 | O44: 25-29 | P44: =VLOOKUP($A$36,'ASR lookup'!$C$5:$CB$26,'Controls Sheet'!R44,FALSE) -> 0.1 | Q44: =VLOOKUP($A$36,'ASR lookup'!$C$5:$CB$26,'Controls Sheet'!S44,FALSE) -> 3.9 | R44: 53 | S44: 69 | T44: 25-29 | U44: =VLOOKUP($A$36,'ASR lookup'!$C$40:$CB$61,'Controls Sheet'!W44,FALSE) -> 0 | V44: =VLOOKUP($A$36,'ASR lookup'!$C$40:$CB$61,'Controls Sheet'!X44,FALSE) -> 2 | W44: 53 | X44: 69 | Z44: 25-29 | AA44: 1 | AB44: 2.8 | AD44: 25-29 | AE44: 0 | AF44: 2 | AH44: =VLOOKUP($A$36,'ASR lookup'!$C$5:$CV$26,'Controls Sheet'!AJ44,FALSE) -> 1 | AI44: =VLOOKUP($A$36,'ASR lookup'!$C$40:$CV$61,'Controls Sheet'!AJ44,FALSE) -> -1 | AJ44: 85 | AL44: 25-29 | AM44: 0.8 | AN44: 0.4 | AO44: 10
A45: 30-34 | B45: =VLOOKUP($A$36,'ASR lookup'!$C$5:$AB$26,D45,FALSE) -> 2.7 | C45: =VLOOKUP($A$36,'ASR lookup'!$C$40:$AB$61,D45,FALSE) -> 0.6 | D45: 14 | E45: 30-34 | F45: =VLOOKUP($A$36,'ASR lookup'!$C$5:$AV$26,'Controls Sheet'!H45,FALSE) -> 4 | G45: =VLOOKUP($A$36,'ASR lookup'!$C$40:$AV$61,'Controls Sheet'!H45,FALSE) -> 0 | H45: 34 | J45: 30-34 | K45: =VLOOKUP($B$36,'ASR lookup'!$F$31:$AB$35,M45,FALSE) -> 0.8 | L45: =VLOOKUP($B$36,'ASR lookup'!$F$66:$AB$70,M45,FALSE) -> 0.5 | M45: 11 | O45: 30-34 | P45: =VLOOKUP($A$36,'ASR lookup'!$C$5:$CB$26,'Controls Sheet'!R45,FALSE) -> 0.9 | Q45: =VLOOKUP($A$36,'ASR lookup'!$C$5:$CB$26,'Controls Sheet'!S45,FALSE) -> 6.2 | R45: 54 | S45: 70 | T45: 30-34 | U45: =VLOOKUP($A$36,'ASR lookup'!$C$40:$CB$61,'Controls Sheet'!W45,FALSE) -> 0 | V45: =VLOOKUP($A$36,'ASR lookup'!$C$40:$CB$61,'Controls Sheet'!X45,FALSE) -> 3.1 | W45: 54 | X45: 70 | Z45: 30-34 | AA45: =B45-P45 -> 1.8 | AB45: 3.5 | AD45: 30-34 | AE45: 0.6 | AF45: 2.5 | AH45: =VLOOKUP($A$36,'ASR lookup'!$C$5:$CV$26,'Controls Sheet'!AJ45,FALSE) -> 3 | AI45: =VLOOKUP($A$36,'ASR lookup'!$C$40:$CV$61,'Controls Sheet'!AJ45,FALSE) -> 0 | AJ45: 86 | AL45: 30-34 | AM45: 1.2 | AN45: 0.6 | AO45: 11
A46: 35-39 | B46: =VLOOKUP($A$36,'ASR lookup'!$C$5:$AB$26,D46,FALSE) -> 1.7 | C46: =VLOOKUP($A$36,'ASR lookup'!$C$40:$AB$61,D46,FALSE) -> 0.6 | D46: 15 | E46: 35-39 | F46: =VLOOKUP($A$36,'ASR lookup'!$C$5:$AV$26,'Controls Sheet'!H46,FALSE) -> 1 | G46: =VLOOKUP($A$36,'ASR lookup'!$C$40:$AV$61,'Controls Sheet'!H46,FALSE) -> 1 | H46: 35 | J46: 35-39 | K46: =VLOOKUP($B$36,'ASR lookup'!$F$31:$AB$35,M46,FALSE) -> 1 | L46: =VLOOKUP($B$36,'ASR lookup'!$F$66:$AB$70,M46,FALSE) -> 0.2 | M46: 12 | O46: 35-39 | P46: =VLOOKUP($A$36,'ASR lookup'!$C$5:$CB$26,'Controls Sheet'!R46,FALSE) -> 0.3 | Q46: =VLOOKUP($A$36,'ASR lookup'!$C$5:$CB$26,'Controls Sheet'!S46,FALSE) -> 4.8 | R46: 55 | S46: 71 | T46: 35-39 | U46: =VLOOKUP($A$36,'ASR lookup'!$C$40:$CB$61,'Controls Sheet'!W46,FALSE) -> 0 | V46: =VLOOKUP($A$36,'ASR lookup'!$C$40:$CB$61,'Controls Sheet'!X46,FALSE) -> 3.1 | W46: 55 | X46: 71 | Z46: 35-39 | AA46: 1.4 | AB46: 3.1 | AD46: 35-39 | AE46: 0.6 | AF46: 2.5 | AH46: =VLOOKUP($A$36,'ASR lookup'!$C$5:$CV$26,'Controls Sheet'!AJ46,FALSE) -> 0 | AI46: =VLOOKUP($A$36,'ASR lookup'!$C$40:$CV$61,'Controls Sheet'!AJ46,FALSE) -> 0 | AJ46: 87 | AL46: 35-39 | AM46: 1.6 | AN46: 0.8 | AO46: 12
A47: 40-44 | B47: =VLOOKUP($A$36,'ASR lookup'!$C$5:$AB$26,D47,FALSE) -> 1.3 | C47: =VLOOKUP($A$36,'ASR lookup'!$C$40:$AB$61,D47,FALSE) -> 1.7 | D47: 16 | E47: 40-44 | F47: =VLOOKUP($A$36,'ASR lookup'!$C$5:$AV$26,'Controls Sheet'!H47,FALSE) -> 1 | G47: =VLOOKUP($A$36,'ASR lookup'!$C$40:$AV$61,'Controls Sheet'!H47,FALSE) -> 3 | H47: 36 | J47: 40-44 | K47: =VLOOKUP($B$36,'ASR lookup'!$F$31:$AB$35,M47,FALSE) -> 1.1 | L47: =VLOOKUP($B$36,'ASR lookup'!$F$66:$AB$70,M47,FALSE) -> 0.5 | M47: 13 | O47: 40-44 | P47: =VLOOKUP($A$36,'ASR lookup'!$C$5:$CB$26,'Controls Sheet'!R47,FALSE) -> 0.3 | Q47: =VLOOKUP($A$36,'ASR lookup'!$C$5:$CB$26,'Controls Sheet'!S47,FALSE) -> 3.9 | R47: 56 | S47: 72 | T47: 40-44 | U47: =VLOOKUP($A$36,'ASR lookup'!$C$40:$CB$61,'Controls Sheet'!W47,FALSE) -> 0.5 | V47: =VLOOKUP($A$36,'ASR lookup'!$C$40:$CB$61,'Controls Sheet'!X47,FALSE) -> 4.4 | W47: 56 | X47: 72 | Z47: 40-44 | AA47: 1 | AB47: 2.6 | AD47: 40-44 | AE47: 1.2 | AF47: 2.7 | AH47: =VLOOKUP($A$36,'ASR lookup'!$C$5:$CV$26,'Controls Sheet'!AJ47,FALSE) -> -1 | AI47: =VLOOKUP($A$36,'ASR lookup'!$C$40:$CV$61,'Controls Sheet'!AJ47,FALSE) -> 1 | AJ47: 88 | AL47: 40-44 | AM47: 2 | AN47: 1.3 | AO47: 13
A48: 45-49 | B48: =VLOOKUP($A$36,'ASR lookup'!$C$5:$AB$26,D48,FALSE) -> 1.7 | C48: =VLOOKUP($A$36,'ASR lookup'!$C$40:$AB$61,D48,FALSE) -> 2 | D48: 17 | E48: 45-49 | F48: =VLOOKUP($A$36,'ASR lookup'!$C$5:$AV$26,'Controls Sheet'!H48,FALSE) -> 1 | G48: =VLOOKUP($A$36,'ASR lookup'!$C$40:$AV$61,'Controls Sheet'!H48,FALSE) -> 2 | H48: 37 | J48: 45-49 | K48: =VLOOKUP($B$36,'ASR lookup'!$F$31:$AB$35,M48,FALSE) -> 1.2 | L48: =VLOOKUP($B$36,'ASR lookup'!$F$66:$AB$70,M48,FALSE) -> 1.2 | M48: 14 | O48: 45-49 | P48: =VLOOKUP($A$36,'ASR lookup'!$C$5:$CB$26,'Controls Sheet'!R48,FALSE) -> 0.5 | Q48: =VLOOKUP($A$36,'ASR lookup'!$C$5:$CB$26,'Controls Sheet'!S48,FALSE) -> 4.3 | R48: 57 | S48: 73 | T48: 45-49 | U48: =VLOOKUP($A$36,'ASR lookup'!$C$40:$CB$61,'Controls Sheet'!W48,FALSE) -> 0.7 | V48: =VLOOKUP($A$36,'ASR lookup'!$C$40:$CB$61,'Controls Sheet'!X48,FALSE) -> 4.8 | W48: 57 | X48: 73 | Z48: 45-49 | AA48: 1.2 | AB48: 2.6 | AD48: 45-49 | AE48: 1.3 | AF48: 2.8 | AH48: =VLOOKUP($A$36,'ASR lookup'!$C$5:$CV$26,'Controls Sheet'!AJ48,FALSE) -> -3 | AI48: =VLOOKUP($A$36,'ASR lookup'!$C$40:$CV$61,'Controls Sheet'!AJ48,FALSE) -> 0 | AJ48: 89 | AL48: 45-49 | AM48: 2.8 | AN48: 1.9 | AO48: 14
A49: 50-54 | B49: =VLOOKUP($A$36,'ASR lookup'!$C$5:$AB$26,D49,FALSE) -> 2.5 | C49: =VLOOKUP($A$36,'ASR lookup'!$C$40:$AB$61,D49,FALSE) -> 2.1 | D49: 18 | E49: 50-54 | F49: =VLOOKUP($A$36,'ASR lookup'!$C$5:$AV$26,'Controls Sheet'!H49,FALSE) -> 0 | G49: =VLOOKUP($A$36,'ASR lookup'!$C$40:$AV$61,'Controls Sheet'!H49,FALSE) -> 1 | H49: 38 | J49: 50-54 | K49: =VLOOKUP($B$36,'ASR lookup'!$F$31:$AB$35,M49,FALSE) -> 2.6 | L49: =VLOOKUP($B$36,'ASR lookup'!$F$66:$AB$70,M49,FALSE) -> 1.9 | M49: 15 | O49: 50-54 | P49: =VLOOKUP($A$36,'ASR lookup'!$C$5:$CB$26,'Controls Sheet'!R49,FALSE) -> 0.9 | Q49: =VLOOKUP($A$36,'ASR lookup'!$C$5:$CB$26,'Controls Sheet'!S49,FALSE) -> 5.5 | R49: 58 | S49: 74 | T49: 50-54 | U49: =VLOOKUP($A$36,'ASR lookup'!$C$40:$CB$61,'Controls Sheet'!W49,FALSE) -> 0.7 | V49: =VLOOKUP($A$36,'ASR lookup'!$C$40:$CB$61,'Controls Sheet'!X49,FALSE) -> 4.8 | W49: 58 | X49: 74 | Z49: 50-54 | AA49: 1.6 | AB49: 3 | AD49: 50-54 | AE49: 1.4 | AF49: 2.7 | AH49: =VLOOKUP($A$36,'ASR lookup'!$C$5:$CV$26,'Controls Sheet'!AJ49,FALSE) -> -3 | AI49: =VLOOKUP($A$36,'ASR lookup'!$C$40:$CV$61,'Controls Sheet'!AJ49,FALSE) -> -1 | AJ49: 90 | AL49: 50-54 | AM49: 3.8 | AN49: 2.5 | AO49: 15
A50: 55-59 | B50: =VLOOKUP($A$36,'ASR lookup'!$C$5:$AB$26,D50,FALSE) -> 5.9 | C50: =VLOOKUP($A$36,'ASR lookup'!$C$40:$AB$61,D50,FALSE) -> 3.4 | D50: 19 | E50: 55-59 | F50: =VLOOKUP($A$36,'ASR lookup'!$C$5:$AV$26,'Controls Sheet'!H50,FALSE) -> 4 | G50: =VLOOKUP($A$36,'ASR lookup'!$C$40:$AV$61,'Controls Sheet'!H50,FALSE) -> 1 | H50: 39 | J50: 55-59 | K50: =VLOOKUP($B$36,'ASR lookup'!$F$31:$AB$35,M50,FALSE) -> 4.1 | L50: =VLOOKUP($B$36,'ASR lookup'!$F$66:$AB$70,M50,FALSE) -> 3.1 | M50: 16 | O50: 55-59 | P50: =VLOOKUP($A$36,'ASR lookup'!$C$5:$CB$26,'Controls Sheet'!R50,FALSE) -> 3.2 | Q50: =VLOOKUP($A$36,'ASR lookup'!$C$5:$CB$26,'Controls Sheet'!S50,FALSE) -> 9.9 | R50: 59 | S50: 75 | T50: 55-59 | U50: =VLOOKUP($A$36,'ASR lookup'!$C$40:$CB$61,'Controls Sheet'!W50,FALSE) -> 1.5 | V50: =VLOOKUP($A$36,'ASR lookup'!$C$40:$CB$61,'Controls Sheet'!X50,FALSE) -> 6.8 | W50: 59 | X50: 75 | Z50: 55-59 | AA50: 2.7 | AB50: 4 | AD50: 55-59 | AE50: 1.9 | AF50: 3.4 | AH50: =VLOOKUP($A$36,'ASR lookup'!$C$5:$CV$26,'Controls Sheet'!AJ50,FALSE) -> -1 | AI50: =VLOOKUP($A$36,'ASR lookup'!$C$40:$CV$61,'Controls Sheet'!AJ50,FALSE) -> -1 | AJ50: 91 | AL50: 55-59 | AM50: 6.4 | AN50: 4 | AO50: 16
A51: 60-64 | B51: =VLOOKUP($A$36,'ASR lookup'!$C$5:$AB$26,D51,FALSE) -> 11.1 | C51: =VLOOKUP($A$36,'ASR lookup'!$C$40:$AB$61,D51,FALSE) -> 8.3 | D51: 20 | E51: 60-64 | F51: =VLOOKUP($A$36,'ASR lookup'!$C$5:$AV$26,'Controls Sheet'!H51,FALSE) -> 4 | G51: =VLOOKUP($A$36,'ASR lookup'!$C$40:$AV$61,'Controls Sheet'!H51,FALSE) -> 8 | H51: 40 | J51: 60-64 | K51: =VLOOKUP($B$36,'ASR lookup'!$F$31:$AB$35,M51,FALSE) -> 9.3 | L51: =VLOOKUP($B$36,'ASR lookup'!$F$66:$AB$70,M51,FALSE) -> 5.1 | M51: 17 | O51: 60-64 | P51: =VLOOKUP($A$36,'ASR lookup'!$C$5:$CB$26,'Controls Sheet'!R51,FALSE) -> 7.4 | Q51: =VLOOKUP($A$36,'ASR lookup'!$C$5:$CB$26,'Controls Sheet'!S51,FALSE) -> 16 | R51: 60 | S51: 76 | T51: 60-64 | U51: =VLOOKUP($A$36,'ASR lookup'!$C$40:$CB$61,'Controls Sheet'!W51,FALSE) -> 5.2 | V51: =VLOOKUP($A$36,'ASR lookup'!$C$40:$CB$61,'Controls Sheet'!X51,FALSE) -> 12.6 | W51: 60 | X51: 76 | Z51: 60-64 | AA51: 3.7 | AB51: 4.9 | AD51: 60-64 | AE51: 3.1 | AF51: 4.3 | AH51: =VLOOKUP($A$36,'ASR lookup'!$C$5:$CV$26,'Controls Sheet'!AJ51,FALSE) -> 3 | AI51: =VLOOKUP($A$36,'ASR lookup'!$C$40:$CV$61,'Controls Sheet'!AJ51,FALSE) -> 3 | AJ51: 92 | AL51: 60-64 | AM51: 10 | AN51: 7.2 | AO51: 17
A52: 65-69 | B52: =VLOOKUP($A$36,'ASR lookup'!$C$5:$AB$26,D52,FALSE) -> 14 | C52: =VLOOKUP($A$36,'ASR lookup'!$C$40:$AB$61,D52,FALSE) -> 9.8 | D52: 21 | E52: 65-69 | F52: =VLOOKUP($A$36,'ASR lookup'!$C$5:$AV$26,'Controls Sheet'!H52,FALSE) -> 3 | G52: =VLOOKUP($A$36,'ASR lookup'!$C$40:$AV$61,'Controls Sheet'!H52,FALSE) -> 9 | H52: 41 | J52: 65-69 | K52: =VLOOKUP($B$36,'ASR lookup'!$F$31:$AB$35,M52,FALSE) -> 12.7 | L52: =VLOOKUP($B$36,'ASR lookup'!$F$66:$AB$70,M52,FALSE) -> 6.5 | M52: 18 | O52: 65-69 | P52: =VLOOKUP($A$36,'ASR lookup'!$C$5:$CB$26,'Controls Sheet'!R52,FALSE) -> 9.7 | Q52: =VLOOKUP($A$36,'ASR lookup'!$C$5:$CB$26,'Controls Sheet'!S52,FALSE) -> 19.4 | R52: 61 | S52: 77 | T52: 65-69 | U52: =VLOOKUP($A$36,'ASR lookup'!$C$40:$CB$61,'Controls Sheet'!W52,FALSE) -> 6.4 | V52: =VLOOKUP($A$36,'ASR lookup'!$C$40:$CB$61,'Controls Sheet'!X52,FALSE) -> 14.3 | W52: 61 | X52: 77 | Z52: 65-69 | AA52: 4.3 | AB52: 5.4 | AD52: 65-69 | AE52: 3.4 | AF52: 4.5 | AH52: =VLOOKUP($A$36,'ASR lookup'!$C$5:$CV$26,'Controls Sheet'!AJ52,FALSE) -> -3 | AI52: =VLOOKUP($A$36,'ASR lookup'!$C$40:$CV$61,'Controls Sheet'!AJ52,FALSE) -> -2 | AJ52: 93 | AL52: 65-69 | AM52: 15.3 | AN52: 10.6 | AO52: 18
A53: 70-74 | B53: =VLOOKUP($A$36,'ASR lookup'!$C$5:$AB$26,D53,FALSE) -> 19.1 | C53: =VLOOKUP($A$36,'ASR lookup'!$C$40:$AB$61,D53,FALSE) -> 15.7 | D53: 22 | E53: 70-74 | F53: =VLOOKUP($A$36,'ASR lookup'!$C$5:$AV$26,'Controls Sheet'!H53,FALSE) -> 5 | G53: =VLOOKUP($A$36,'ASR lookup'!$C$40:$AV$61,'Controls Sheet'!H53,FALSE) -> 10 | H53: 42 | J53: 70-74 | K53: =VLOOKUP($B$36,'ASR lookup'!$F$31:$AB$35,M53,FALSE) -> 16.3 | L53: =VLOOKUP($B$36,'ASR lookup'!$F$66:$AB$70,M53,FALSE) -> 10.7 | M53: 19 | O53: 70-74 | P53: =VLOOKUP($A$36,'ASR lookup'!$C$5:$CB$26,'Controls Sheet'!R53,FALSE) -> 13.4 | Q53: =VLOOKUP($A$36,'ASR lookup'!$C$5:$CB$26,'Controls Sheet'!S53,FALSE) -> 26.5 | R53: 62 | S53: 78 | T53: 70-74 | U53: =VLOOKUP($A$36,'ASR lookup'!$C$40:$CB$61,'Controls Sheet'!W53,FALSE) -> 10.7 | V53: =VLOOKUP($A$36,'ASR lookup'!$C$40:$CB$61,'Controls Sheet'!X53,FALSE) -> 22.3 | W53: 62 | X53: 78 | Z53: 70-74 | AA53: 5.7 | AB53: 7.4 | AD53: 70-74 | AE53: 5 | AF53: 6.6 | AH53: =VLOOKUP($A$36,'ASR lookup'!$C$5:$CV$26,'Controls Sheet'!AJ53,FALSE) -> -15 | AI53: =VLOOKUP($A$36,'ASR lookup'!$C$40:$CV$61,'Controls Sheet'!AJ53,FALSE) -> -5 | AJ53: 94 | AL53: 70-74 | AM53: 27.3 | AN53: 18.3 | AO53: 19
A54: 75-79 | B54: =VLOOKUP($A$36,'ASR lookup'!$C$5:$AB$26,D54,FALSE) -> 36.4 | C54: =VLOOKUP($A$36,'ASR lookup'!$C$40:$AB$61,D54,FALSE) -> 22.5 | D54: 23 | E54: 75-79 | F54: =VLOOKUP($A$36,'ASR lookup'!$C$5:$AV$26,'Controls Sheet'!H54,FALSE) -> 7 | G54: =VLOOKUP($A$36,'ASR lookup'!$C$40:$AV$61,'Controls Sheet'!H54,FALSE) -> 0 | H54: 43 | J54: 75-79 | K54: =VLOOKUP($B$36,'ASR lookup'!$F$31:$AB$35,M54,FALSE) -> 31.3 | L54: =VLOOKUP($B$36,'ASR lookup'!$F$66:$AB$70,M54,FALSE) -> 22.3 | M54: 20
A55: 80-84 | B55: =VLOOKUP($A$36,'ASR lookup'!$C$5:$AB$26,D55,FALSE) -> 73.3 | C55: =VLOOKUP($A$36,'ASR lookup'!$C$40:$AB$61,D55,FALSE) -> 45.6 | D55: 24 | E55: 80-84 | F55: =VLOOKUP($A$36,'ASR lookup'!$C$5:$AV$26,'Controls Sheet'!H55,FALSE) -> 10 | G55: =VLOOKUP($A$36,'ASR lookup'!$C$40:$AV$61,'Controls Sheet'!H55,FALSE) -> 4 | H55: 44 | J55: 80-84 | K55: =VLOOKUP($B$36,'ASR lookup'!$F$31:$AB$35,M55,FALSE) -> 62.2 | L55: =VLOOKUP($B$36,'ASR lookup'!$F$66:$AB$70,M55,FALSE) -> 42.7 | M55: 21
A56: 85+ | B56: =VLOOKUP($A$36,'ASR lookup'!$C$5:$AB$26,D56,FALSE) -> 176.9 | C56: =VLOOKUP($A$36,'ASR lookup'!$C$40:$AB$61,D56,FALSE) -> 131.3 | D56: 25 | E56: 85+ | F56: =VLOOKUP($A$36,'ASR lookup'!$C$5:$AV$26,'Controls Sheet'!H56,FALSE) -> 26 | G56: =VLOOKUP($A$36,'ASR lookup'!$C$40:$AV$61,'Controls Sheet'!H56,FALSE) -> -2 | H56: 45 | J56: 85+ | K56: =VLOOKUP($B$36,'ASR lookup'!$F$31:$AB$35,M56,FALSE) -> 137.3 | L56: =VLOOKUP($B$36,'ASR lookup'!$F$66:$AB$70,M56,FALSE) -> 132.6 | M56: 22
A57: total | B57: =VLOOKUP($A$36,'ASR lookup'!$C$5:$AB$26,D57,FALSE) -> 11 | C57: =VLOOKUP($A$36,'ASR lookup'!$C$40:$AB$61,D57,FALSE) -> 11 | D57: 26 | E57: total | F57: =VLOOKUP($A$36,'ASR lookup'!$C$5:$AV$26,'Controls Sheet'!H57,FALSE) -> 72 | G57: =VLOOKUP($A$36,'ASR lookup'!$C$40:$AV$61,'Controls Sheet'!H57,FALSE) -> 37 | H57: 46 | J57: total | K57: =VLOOKUP($B$36,'ASR lookup'!$F$31:$AB$35,M57,FALSE) -> 10.7 | L57: =VLOOKUP($B$36,'ASR lookup'!$F$66:$AB$70,M57,FALSE) -> 11.4 | M57: 23
A59: Significant ASR | L59: Significant ASR WALES | V59: Significant ASR WALES
A60: Males | B60: Rate | C60: LCI | D60: UCI | F60: Females | G60: Rate | H60: LCI | I60: UCI | L60: Males | M60: Rate | N60: LCI | O60: UCI | Q60: Females | R60: Rate | S60: LCI | T60: UCI | V60: Males | W60: Rate | X60: LCI | Y60: UCI | AA60: Females | AB60: Rate | AC60: LCI | AD60: UCI | AF60: Males | AG60: Rate | AH60: LCI | AI60: UCI | AK60: Females | AL60: Rate | AM60: LCI | AN60: UCI
A61: 00-01 | B61: =IF(P38>K38,B38,-10) -> -10 | C61: =IF(P38>K38,AA38,"") ->  | D61: =IF(P38>K38,AB38,"") ->  | F61: 00-01 | G61: =IF(U38>L38,C38,-10) -> -10 | H61: =IF(U38>L38,AE38,"") ->  | I61: =IF(U38>L38,AF38,"") ->  | L61: 00-01 | M61: =IF(P38>AM38,B38,-10) -> -10 | N61: =IF(P38>AM38,AA38,"") ->  | O61: =IF(P38>AM38,AB38,"") ->  | Q61: 00-01 | R61: =IF(U38>AN38,C38,-10) -> -10 | S61: =IF(U38>AN38,AE38,"") ->  | T61: =IF(U38>AN38,AF38,"") ->  | V61: 00-01 | W61: =IF(Q38<AM38,B38,-10) -> -10 | X61: =IF(Q38<AM38,AA38,"") ->  | Y61: =IF(Q38<AM38,AB38,"") ->  | AA61: 00-01 | AB61: =IF(V38<AN38,C38,-10) -> -10 | AC61: =IF(V38<AN38,AE38,"") ->  | AD61: =IF(V38<AN38,AF38,"") ->  | AF61: 00-01 | AG61: =IF(Q38<K38,B38,-10) -> -10 | AH61: =IF(Q38<K38,AA38,"") ->  | AI61: =IF(Q38<K38,AB38,"") ->  | AK61: 00-01 | AL61: =IF(V38<L38,C38,-10) -> -10 | AM61: =IF(V38<L38,AE38,"") ->  | AN61: =IF(V38<L38,AF38,"") -> 
A62: 01-04 | B62: =IF(P39>K39,B39,-10) -> -10 | C62: =IF(P39>K39,AA39,"") ->  | D62: =IF(P39>K39,AB39,"") ->  | F62: 01-04 | G62: =IF(U39>L39,C39,-10) -> -10 | H62: =IF(U39>L39,AE39,"") ->  | I62: =IF(U39>L39,AF39,"") ->  | L62: 01-04 | M62: =IF(P39>AM39,B39,-10) -> -10 | N62: =IF(P39>AM39,AA39,"") ->  | O62: =IF(P39>AM39,AB39,"") ->  | Q62: 01-04 | R62: =IF(U39>AN39,C39,-10) -> -10 | S62: =IF(U39>AN39,AE39,"") ->  | T62: =IF(U39>AN39,AF39,"") ->  | V62: 01-04 | W62: =IF(Q39<AM39,B39,-10) -> -10 | X62: =IF(Q39<AM39,AA39,"") ->  | Y62: =IF(Q39<AM39,AB39,"") ->  | AA62: 01-04 | AB62: =IF(V39<AN39,C39,-10) -> -10 | AC62: =IF(V39<AN39,AE39,"") ->  | AD62: =IF(V39<AN39,AF39,"") ->  | AF62: 01-04 | AG62: =IF(Q39<K39,B39,-10) -> -10 | AH62: =IF(Q39<K39,AA39,"") ->  | AI62: =IF(Q39<K39,AB39,"") ->  | AK62: 01-04 | AL62: =IF(V39<L39,C39,-10) -> -10 | AM62: =IF(V39<L39,AE39,"") ->  | AN62: =IF(V39<L39,AF39,"") -> 
A63: 05-09 | B63: -10 | F63: 05-09 | G63: -10 | L63: 05-09 | M63: -10 | Q63: 05-09 | R63: -10 | V63: 05-09 | W63: -10 | AA63: 05-09 | AB63: -10 | AF63: 05-09 | AG63: -10 | AK63: 05-09 | AL63: -10
A64: 10-14 | B64: -10 | F64: 10-14 | G64: 1.1 | H64: 1 | I64: 2.9 | L64: 10-14 | M64: -10 | Q64: 10-14 | R64: -10 | V64: 10-14 | W64: -10 | AA64: 10-14 | AB64: -10 | AF64: 10-14 | AG64: -10 | AK64: 10-14 | AL64: -10
A65: 15-19 | B65: -10 | F65: 15-19 | G65: -10 | L65: 15-19 | M65: -10 | Q65: 15-19 | R65: -10 | V65: 15-19 | W65: -10 | AA65: 15-19 | AB65: -10 | AF65: 15-19 | AG65: -10 | AK65: 15-19 | AL65: -10
A66: 20-24 | B66: 2.6 | C66: 1.8 | D66: 3.4 | F66: 20-24 | G66: -10 | L66: 20-24 | M66: 2.6 | N66: 1.8 | O66: 3.4 | Q66: 20-24 | R66: -10 | V66: 20-24 | W66: -10 | AA66: 20-24 | AB66: -10 | AF66: 20-24 | AG66: -10 | AK66: 20-24 | AL66: -10
A67: 25-29 | B67: -10 | F67: 25-29 | G67: -10 | L67: 25-29 | M67: -10 | Q67: 25-29 | R67: -10 | V67: 25-29 | W67: -10 | AA67: 25-29 | AB67: -10 | AF67: 25-29 | AG67: -10 | AK67: 25-29 | AL67: -10
A68: 30-34 | B68: 2.7 | C68: 1.8 | D68: 3.5 | F68: 30-34 | G68: -10 | L68: 30-34 | M68: -10 | Q68: 30-34 | R68: -10 | V68: 30-34 | W68: -10 | AA68: 30-34 | AB68: -10 | AF68: 30-34 | AG68: -10 | AK68: 30-34 | AL68: -10
A69: 35-39 | B69: -10 | F69: 35-39 | G69: -10 | L69: 35-39 | M69: -10 | Q69: 35-39 | R69: -10 | V69: 35-39 | W69: -10 | AA69: 35-39 | AB69: -10 | AF69: 35-39 | AG69: -10 | AK69: 35-39 | AL69: -10
A70: 40-44 | B70: -10 | F70: 40-44 | G70: -10 | L70: 40-44 | M70: -10 | Q70: 40-44 | R70: -10 | V70: 40-44 | W70: -10 | AA70: 40-44 | AB70: -10 | AF70: 40-44 | AG70: -10 | AK70: 40-44 | AL70: -10
A71: 45-49 | B71: -10 | F71: 45-49 | G71: -10 | L71: 45-49 | M71: -10 | Q71: 45-49 | R71: -10 | V71: 45-49 | W71: -10 | AA71: 45-49 | AB71: -10 | AF71: 45-49 | AG71: -10 | AK71: 45-49 | AL71: -10
A72: 50-54 | B72: -10 | E72: =IF(P49>K49,AA49,"") ->  | F72: 50-54 | G72: =IF(U49>L49,C49,-10) -> -10 | H72: =IF(U49>L49,AE49,"") ->  | I72: =IF(U49>L49,AF49,"") ->  | L72: 50-54 | M72: -10 | P72: =IF(AA49>V49,AL49,"") ->  | Q72: 50-54 | R72: -10 | V72: 50-54 | W72: -10 | Z72: =IF(AK49>AF49,AV49,"") ->  | AA72: 50-54 | AB72: -10 | AF72: 50-54 | AG72: -10 | AJ72: =IF(AU49>AP49,BF49,"") ->  | AK72: 50-54 | AL72: -10
A73: 55-59 | B73: -10 | E73: =IF(P50>K50,AA50,"") ->  | F73: 55-59 | G73: =IF(U50>L50,C50,-10) -> -10 | H73: =IF(U50>L50,AE50,"") ->  | I73: =IF(U50>L50,AF50,"") ->  | L73: 55-59 | M73: -10 | P73: =IF(AA50>V50,AL50,"") ->  | Q73: 55-59 | R73: -10 | V73: 55-59 | W73: -10 | Z73: =IF(AK50>AF50,AV50,"") ->  | AA73: 55-59 | AB73: -10 | AF73: 55-59 | AG73: -10 | AJ73: =IF(AU50>AP50,BF50,"") ->  | AK73: 55-59 | AL73: -10
A74: 60-64 | B74: -10 | F74: 60-64 | G74: 8.3 | H74: 3.1 | I74: 4.3 | L74: 60-64 | M74: -10 | Q74: 60-64 | R74: -10 | V74: 60-64 | W74: -10 | X74: =IF(Q51<AM51,AA51,"") ->  | AA74: 60-64 | AB74: -10 | AF74: 60-64 | AG74: -10 | AK74: 60-64 | AL74: -10
A75: 65-69 | B75: -10 | E75: =IF(P52>K52,AA52,"") ->  | F75: 65-69 | G75: -10 | L75: 65-69 | M75: -10 | P75: =IF(AA52>V52,AL52,"") ->  | Q75: 65-69 | R75: -10 | V75: 65-69 | W75: -10 | Z75: =IF(AK52>AF52,AV52,"") ->  | AA75: 65-69 | AB75: -10 | AF75: 65-69 | AG75: -10 | AJ75: =IF(AU52>AP52,BF52,"") ->  | AK75: 65-69 | AL75: -10
A76: 70-74 | B76: -10 | E76: =IF(P53>K53,AA53,"") ->  | F76: 70-74 | G76: -10 | L76: 70-74 | M76: -10 | P76: =IF(AA53>V53,AL53,"") ->  | Q76: 70-74 | R76: -10 | V76: 70-74 | W76: 19.1 | X76: 5.7 | Y76: 7.4 | Z76: =IF(AK53>AF53,AV53,"") ->  | AA76: 70-74 | AB76: -10 | AF76: 70-74 | AG76: -10 | AJ76: =IF(AU53>AP53,BF53,"") ->  | AK76: 70-74 | AL76: -10
A81: EASR chart titles:
A82: Males | B82: ="All cause mortality, males all ages, "&E8&", 2012" -> All cause mortality, males all ages, Coastal and Countryside local authorities, 2012
A83: Females | B83: ="All cause mortality, females all ages, "&E8&", 2012" -> All cause mortality, females all ages, Coastal and Countryside local authorities, 2012
B84: =IF(D29=D24,"*Note: not all local authorities are labelled on the axis",IF(D29=6.1,"*Note: not all local authorities are labelled on the axis","")) -> *Note: not all local authorities are labelled on the axis
A86: ASR chart titles:
A87: Males | B87: ="All cause mortality & excess deaths, males under 75, "&A36&", "&E8&" group, 2012" -> All cause mortality & excess deaths, males under 75, Isle of Anglesey, Coastal and Countryside local authorities group, 2012
A88: Females | B88: ="All cause mortality & excess deaths, females under 75, "&A36&", "&E8&" group, 2012" -> All cause mortality & excess deaths, females under 75, Isle of Anglesey, Coastal and Countryside local authorities group, 2012
A91: ASR WALES chart titles:
A92: Males | B92: ="All cause mortality & excess deaths, males under 75, "&A36&" and "&E10&" , 2012" -> All cause mortality & excess deaths, males under 75, Isle of Anglesey and Wales , 2012
A93: Females | B93: ="All cause mortality & excess deaths, females under 75, "&A36&" and "&E10&", 2012" -> All cause mortality & excess deaths, females under 75, Isle of Anglesey and Wales, 2012

Sheet EASR Charts Controls (hidden)
A1: LAs ordered from Best in class to worst | O1: =CONCATENATE('Controls Sheet'!A36," (",ROUND(VLOOKUP('Controls Sheet'!A36,'EASR lookup'!C5:I273,6,FALSE),0),")") -> Isle of Anglesey (637) | V1: =CONCATENATE('Controls Sheet'!A36," (",ROUND(VLOOKUP('Controls Sheet'!A36,'EASR lookup'!C5:I273,7,FALSE),0),")") -> Isle of Anglesey (431)
A2: Males | G2: Females | O2: Males | V2: Females
A3: 1.1 | B3: 5.7 | C3: 6.1 | D3: 7.11 | E3: 7.12 | G3: 1.1 | H3: 5.7 | I3: 6.1 | J3: 7.11 | K3: 7.12 | O3: LA | P3: EASR | Q3: ldiff | R3: udiff | S3: Selected LA EASR | T3: ="Best 5 in peer group combined ("&'Controls Sheet'!G8&")" -> Best 5 in peer group combined (502) | U3: Wales (666) | V3: LA | W3: EASR | X3: ldiff | Y3: udiff | Z3: Selected LA EASR | AA3: ="Best 5 in peer group combined ("&'Controls Sheet'!H8&")" -> Best 5 in peer group combined (360) | AB3: Wales (485) | AC3: Number of rows | AD3: =VLOOKUP('Controls Sheet'!D8,'Controls Sheet'!$D$2:$G$6,4,FALSE) -> 54
A4: Southend-on-Sea | B4: East Cambridgeshire | C4: Christchurch | D4: Redcar and Cleveland | E4: Banbridge | G4: Exeter | H4: Cotswold | I4: Purbeck | J4: North Tyneside | K4: Larne | O4: =IF(INDEX($A$4:$E$111,,'Controls Sheet'!$F$8)=0,"",INDEX($A$4:$E$111,,'Controls Sheet'!$F$8)) -> Christchurch | P4: =IF(ISERROR(VLOOKUP($O4,'EASR lookup'!$C$5:$I$273,6,FALSE)),"",VLOOKUP($O4,'EASR lookup'!$C$5:$I$273,6,FALSE)) -> 438.1 | Q4: =IF(O4='Controls Sheet'!$C$8,VLOOKUP(O4,'EASR lookup'!$C$5:$M$273,8,FALSE),"") ->  | R4: =IF(O4='Controls Sheet'!$C$8,VLOOKUP(O4,'EASR lookup'!$C$5:$M$273,9,FALSE),"") ->  | S4: =IF(O4='Controls Sheet'!$C$8,'EASR Charts Controls'!P4,"") ->  | T4: =IF(P4="","",VLOOKUP('Controls Sheet'!$D$8,'Controls Sheet'!$D$2:$I$6,5,FALSE)) -> 501.9 | U4: =IF(P4="","",666.4) -> 666.4 | V4: =IF(INDEX($G$4:$K$111,,'Controls Sheet'!$F$8)=0,"",INDEX($G$4:$K$111,,'Controls Sheet'!$F$8)) -> Purbeck | W4: =IF(ISERROR(VLOOKUP($V4,'EASR lookup'!$C$5:$I$273,7,FALSE)),"",VLOOKUP($V4,'EASR lookup'!$C$5:$I$273,7,FALSE)) -> 304.2 | X4: =IF(V4='Controls Sheet'!$C$8,VLOOKUP(V4,'EASR lookup'!$C$5:$M$273,10,FALSE),"") ->  | Y4: =IF(V4='Controls Sheet'!$C$8,VLOOKUP(V4,'EASR lookup'!$C$5:$M$273,11,FALSE),"") ->  | Z4: =IF(V4='Controls Sheet'!$C$8,'EASR Charts Controls'!W4,"") ->  | AA4: =IF(W4="","",VLOOKUP('Controls Sheet'!$D$8,'Controls Sheet'!$D$2:$I$6,6,FALSE)) -> 360.3 | AB4: =IF(W4="","",484.5) -> 484.5
A5: Eastbourne | B5: South Northamptonshire | C5: Purbeck | D5: Darlington | E5: Carrickfergus | G5: Norwich | H5: East Dorset | I5: Christchurch | J5: Darlington | K5: Erewash | O5: =IF(INDEX($A$4:$E$111,,'Controls Sheet'!$F$8)=0,"",INDEX($A$4:$E$111,,'Controls Sheet'!$F$8)) -> Purbeck | P5: =IF(ISERROR(VLOOKUP($O5,'EASR lookup'!$C$5:$I$273,6,FALSE)),"",VLOOKUP($O5,'EASR lookup'!$C$5:$I$273,6,FALSE)) -> 494.2 | Q5: =IF(O5='Controls Sheet'!$C$8,VLOOKUP(O5,'EASR lookup'!$C$5:$M$273,8,FALSE),"") ->  | R5: =IF(O5='Controls Sheet'!$C$8,VLOOKUP(O5,'EASR lookup'!$C$5:$M$273,9,FALSE),"") ->  | S5: =IF(O5='Controls Sheet'!$C$8,'EASR Charts Controls'!P5,"") ->  | T5: =IF(P5="","",VLOOKUP('Controls Sheet'!$D$8,'Controls Sheet'!$D$2:$I$6,5,FALSE)) -> 501.9 | U5: =IF(P5="","",666.4) -> 666.4 | V5: =IF(INDEX($G$4:$K$111,,'Controls Sheet'!$F$8)=0,"",INDEX($G$4:$K$111,,'Controls Sheet'!$F$8)) -> Christchurch | W5: =IF(ISERROR(VLOOKUP($V5,'EASR lookup'!$C$5:$I$273,7,FALSE)),"",VLOOKUP($V5,'EASR lookup'!$C$5:$I$273,7,FALSE)) -> 330.7 | X5: =IF(V5='Controls Sheet'!$C$8,VLOOKUP(V5,'EASR lookup'!$C$5:$M$273,10,FALSE),"") ->  | Y5: =IF(V5='Controls Sheet'!$C$8,VLOOKUP(V5,'EASR lookup'!$C$5:$M$273,11,FALSE),"") ->  | Z5: =IF(V5='Controls Sheet'!$C$8,'EASR Charts Controls'!W5,"") ->  | AA5: =IF(W5="","",VLOOKUP('Controls Sheet'!$D$8,'Controls Sheet'!$D$2:$I$6,6,FALSE)) -> 360.3 | AB5: =IF(W5="","",484.5) -> 484.5
A6: Exeter | B6: Babergh | C6: South Lakeland | D6: East Lothian | E6: North East Derbyshire | G6: Worthing | H6: East Cambridgeshire | I6: Chichester | J6: Barrow-in-Furness | K6: Havant | O6: =IF(INDEX($A$4:$E$111,,'Controls Sheet'!$F$8)=0,"",INDEX($A$4:$E$111,,'Controls Sheet'!$F$8)) -> South Lakeland | P6: =IF(ISERROR(VLOOKUP($O6,'EASR lookup'!$C$5:$I$273,6,FALSE)),"",VLOOKUP($O6,'EASR lookup'!$C$5:$I$273,6,FALSE)) -> 513.7 | Q6: =IF(O6='Controls Sheet'!$C$8,VLOOKUP(O6,'EASR lookup'!$C$5:$M$273,8,FALSE),"") ->  | R6: =IF(O6='Controls Sheet'!$C$8,VLOOKUP(O6,'EASR lookup'!$C$5:$M$273,9,FALSE),"") ->  | S6: =IF(O6='Controls Sheet'!$C$8,'EASR Charts Controls'!P6,"") ->  | T6: =IF(P6="","",VLOOKUP('Controls Sheet'!$D$8,'Controls Sheet'!$D$2:$I$6,5,FALSE)) -> 501.9 | U6: 666.4 | V6: =IF(INDEX($G$4:$K$111,,'Controls Sheet'!$F$8)=0,"",INDEX($G$4:$K$111,,'Controls Sheet'!$F$8)) -> Chichester | W6: =IF(ISERROR(VLOOKUP($V6,'EASR lookup'!$C$5:$I$273,7,FALSE)),"",VLOOKUP($V6,'EASR lookup'!$C$5:$I$273,7,FALSE)) -> 377.6 | X6: =IF(V6='Controls Sheet'!$C$8,VLOOKUP(V6,'EASR lookup'!$C$5:$M$273,10,FALSE),"") ->  | Y6: =IF(V6='Controls Sheet'!$C$8,VLOOKUP(V6,'EASR lookup'!$C$5:$M$273,11,FALSE),"") ->  | Z6: =IF(V6='Controls Sheet'!$C$8,'EASR Charts Controls'!W6,"") ->  | AA6: =IF(W6="","",VLOOKUP('Controls Sheet'!$D$8,'Controls Sheet'!$D$2:$I$6,6,FALSE)) -> 360.3 | AB6: 484.5
A7: Norwich | B7: Mid Suffolk | C7: Craven | D7: Wirral | E7: Swale | G7: Bristol | H7: Rutland | I7: West Devon | J7: Copeland | K7: Amber Valley | O7: =IF(INDEX($A$4:$E$111,,'Controls Sheet'!$F$8)=0,"",INDEX($A$4:$E$111,,'Controls Sheet'!$F$8)) -> Craven | P7: =IF(ISERROR(VLOOKUP($O7,'EASR lookup'!$C$5:$I$273,6,FALSE)),"",VLOOKUP($O7,'EASR lookup'!$C$5:$I$273,6,FALSE)) -> 514.8 | Q7: =IF(O7='Controls Sheet'!$C$8,VLOOKUP(O7,'EASR lookup'!$C$5:$M$273,8,FALSE),"") ->  | R7: =IF(O7='Controls Sheet'!$C$8,VLOOKUP(O7,'EASR lookup'!$C$5:$M$273,9,FALSE),"") ->  | S7: =IF(O7='Controls Sheet'!$C$8,'EASR Charts Controls'!P7,"") ->  | T7: =IF(P7="","",VLOOKUP('Controls Sheet'!$D$8,'Controls Sheet'!$D$2:$I$6,5,FALSE)) -> 501.9 | U7: 666.4 | V7: =IF(INDEX($G$4:$K$111,,'Controls Sheet'!$F$8)=0,"",INDEX($G$4:$K$111,,'Controls Sheet'!$F$8)) -> West Devon | W7: =IF(ISERROR(VLOOKUP($V7,'EASR lookup'!$C$5:$I$273,7,FALSE)),"",VLOOKUP($V7,'EASR lookup'!$C$5:$I$273,7,FALSE)) -> 377.8 | X7: =IF(V7='Controls Sheet'!$C$8,VLOOKUP(V7,'EASR lookup'!$C$5:$M$273,10,FALSE),"") ->  | Y7: =IF(V7='Controls Sheet'!$C$8,VLOOKUP(V7,'EASR lookup'!$C$5:$M$273,11,FALSE),"") ->  | Z7: =IF(V7='Controls Sheet'!$C$8,'EASR Charts Controls'!W7,"") ->  | AA7: =IF(W7="","",VLOOKUP('Controls Sheet'!$D$8,'Controls Sheet'!$D$2:$I$6,6,FALSE)) -> 360.3 | AB7: 484.5
A8: Bournemouth | B8: East Dorset | C8: Chichester | D8: North Tyneside | E8: Havant | G8: Southend-on-Sea | H8: North Dorset | I8: South Hams | J8: Sefton | K8: Dudley | O8: =IF(INDEX($A$4:$E$111,,'Controls Sheet'!$F$8)=0,"",INDEX($A$4:$E$111,,'Controls Sheet'!$F$8)) -> Chichester | P8: =IF(ISERROR(VLOOKUP($O8,'EASR lookup'!$C$5:$I$273,6,FALSE)),"",VLOOKUP($O8,'EASR lookup'!$C$5:$I$273,6,FALSE)) -> 521.4 | Q8: =IF(O8='Controls Sheet'!$C$8,VLOOKUP(O8,'EASR lookup'!$C$5:$M$273,8,FALSE),"") ->  | R8: =IF(O8='Controls Sheet'!$C$8,VLOOKUP(O8,'EASR lookup'!$C$5:$M$273,9,FALSE),"") ->  | S8: =IF(O8='Controls Sheet'!$C$8,'EASR Charts Controls'!P8,"") ->  | T8: =IF(P8="","",VLOOKUP('Controls Sheet'!$D$8,'Controls Sheet'!$D$2:$I$6,5,FALSE)) -> 501.9 | U8: 666.4 | V8: =IF(INDEX($G$4:$K$111,,'Controls Sheet'!$F$8)=0,"",INDEX($G$4:$K$111,,'Controls Sheet'!$F$8)) -> South Hams | W8: =IF(ISERROR(VLOOKUP($V8,'EASR lookup'!$C$5:$I$273,7,FALSE)),"",VLOOKUP($V8,'EASR lookup'!$C$5:$I$273,7,FALSE)) -> 379.5 | X8: =IF(V8='Controls Sheet'!$C$8,VLOOKUP(V8,'EASR lookup'!$C$5:$M$273,10,FALSE),"") ->  | Y8: =IF(V8='Controls Sheet'!$C$8,VLOOKUP(V8,'EASR lookup'!$C$5:$M$273,11,FALSE),"") ->  | Z8: =IF(V8='Controls Sheet'!$C$8,'EASR Charts Controls'!W8,"") ->  | AA8: =IF(W8="","",VLOOKUP('Controls Sheet'!$D$8,'Controls Sheet'!$D$2:$I$6,6,FALSE)) -> 360.3 | AB8: 484.5
A9: Sheffield | B9: Mid Devon | C9: South Hams | D9: Merthyr Tydfil | E9: Tamworth | G9: Eastbourne | H9: South Norfolk | I9: West Dorset | J9: Swansea | K9: East Staffordshire | O9: =IF(INDEX($A$4:$E$111,,'Controls Sheet'!$F$8)=0,"",INDEX($A$4:$E$111,,'Controls Sheet'!$F$8)) -> South Hams | P9: =IF(ISERROR(VLOOKUP($O9,'EASR lookup'!$C$5:$I$273,6,FALSE)),"",VLOOKUP($O9,'EASR lookup'!$C$5:$I$273,6,FALSE)) -> 538.6 | Q9: =IF(O9='Controls Sheet'!$C$8,VLOOKUP(O9,'EASR lookup'!$C$5:$M$273,8,FALSE),"") ->  | R9: =IF(O9='Controls Sheet'!$C$8,VLOOKUP(O9,'EASR lookup'!$C$5:$M$273,9,FALSE),"") ->  | S9: =IF(O9='Controls Sheet'!$C$8,'EASR Charts Controls'!P9,"") ->  | T9: =IF(P9="","",VLOOKUP('Controls Sheet'!$D$8,'Controls Sheet'!$D$2:$I$6,5,FALSE)) -> 501.9 | U9: 666.4 | V9: =IF(INDEX($G$4:$K$111,,'Controls Sheet'!$F$8)=0,"",INDEX($G$4:$K$111,,'Controls Sheet'!$F$8)) -> West Dorset | W9: =IF(ISERROR(VLOOKUP($V9,'EASR lookup'!$C$5:$I$273,7,FALSE)),"",VLOOKUP($V9,'EASR lookup'!$C$5:$I$273,7,FALSE)) -> 381.5 | X9: =IF(V9='Controls Sheet'!$C$8,VLOOKUP(V9,'EASR lookup'!$C$5:$M$273,10,FALSE),"") ->  | Y9: =IF(V9='Controls Sheet'!$C$8,VLOOKUP(V9,'EASR lookup'!$C$5:$M$273,11,FALSE),"") ->  | Z9: =IF(V9='Controls Sheet'!$C$8,'EASR Charts Controls'!W9,"") ->  | AA9: =IF(W9="","",VLOOKUP('Controls Sheet'!$D$8,'Controls Sheet'!$D$2:$I$6,6,FALSE)) -> 360.3 | AB9: 484.5
A10: Portsmouth | B10: New Forest | C10: West Dorset | D10: South Ayrshire | E10: Amber Valley | G10: Brighton and Hove | H10: Hambleton | I10: North Norfolk | J10: Redcar and Cleveland | K10: Banbridge | O10: =IF(INDEX($A$4:$E$111,,'Controls Sheet'!$F$8)=0,"",INDEX($A$4:$E$111,,'Controls Sheet'!$F$8)) -> West Dorset | P10: =IF(ISERROR(VLOOKUP($O10,'EASR lookup'!$C$5:$I$273,6,FALSE)),"",VLOOKUP($O10,'EASR lookup'!$C$5:$I$273,6,FALSE)) -> 540.7 | Q10: =IF(O10='Controls Sheet'!$C$8,VLOOKUP(O10,'EASR lookup'!$C$5:$M$273,8,FALSE),"") ->  | R10: =IF(O10='Controls Sheet'!$C$8,VLOOKUP(O10,'EASR lookup'!$C$5:$M$273,9,FALSE),"") ->  | S10: =IF(O10='Controls Sheet'!$C$8,'EASR Charts Controls'!P10,"") ->  | T10: =IF(P10="","",VLOOKUP('Controls Sheet'!$D$8,'Controls Sheet'!$D$2:$I$6,5,FALSE)) -> 501.9 | U10: 666.4 | V10: =IF(INDEX($G$4:$K$111,,'Controls Sheet'!$F$8)=0,"",INDEX($G$4:$K$111,,'Controls Sheet'!$F$8)) -> North Norfolk | W10: =IF(ISERROR(VLOOKUP($V10,'EASR lookup'!$C$5:$I$273,7,FALSE)),"",VLOOKUP($V10,'EASR lookup'!$C$5:$I$273,7,FALSE)) -> 383.7 | X10: =IF(V10='Controls Sheet'!$C$8,VLOOKUP(V10,'EASR lookup'!$C$5:$M$273,10,FALSE),"") ->  | Y10: =IF(V10='Controls Sheet'!$C$8,VLOOKUP(V10,'EASR lookup'!$C$5:$M$273,11,FALSE),"") ->  | Z10: =IF(V10='Controls Sheet'!$C$8,'EASR Charts Controls'!W10,"") ->  | AA10: =IF(W10="","",VLOOKUP('Controls Sheet'!$D$8,'Controls Sheet'!$D$2:$I$6,6,FALSE)) -> 360.3 | AB10: 484.5
A11: Lincoln | B11: South Norfolk | C11: Eden | D11: Sefton | E11: Erewash | G11: Cardiff | H11: New Forest | I11: Ceredigion | J11: Wirral | K11: Lisburn | O11: =IF(INDEX($A$4:$E$111,,'Controls Sheet'!$F$8)=0,"",INDEX($A$4:$E$111,,'Controls Sheet'!$F$8)) -> Eden | P11: =IF(ISERROR(VLOOKUP($O11,'EASR lookup'!$C$5:$I$273,6,FALSE)),"",VLOOKUP($O11,'EASR lookup'!$C$5:$I$273,6,FALSE)) -> 543.3 | Q11: =IF(O11='Controls Sheet'!$C$8,VLOOKUP(O11,'EASR lookup'!$C$5:$M$273,8,FALSE),"") ->  | R11: =IF(O11='Controls Sheet'!$C$8,VLOOKUP(O11,'EASR lookup'!$C$5:$M$273,9,FALSE),"") ->  | S11: =IF(O11='Controls Sheet'!$C$8,'EASR Charts Controls'!P11,"") ->  | T11: =IF(P11="","",VLOOKUP('Controls Sheet'!$D$8,'Controls Sheet'!$D$2:$I$6,5,FALSE)) -> 501.9 | U11: 666.4 | V11: =IF(INDEX($G$4:$K$111,,'Controls Sheet'!$F$8)=0,"",INDEX($G$4:$K$111,,'Controls Sheet'!$F$8)) -> Ceredigion | W11: =IF(ISERROR(VLOOKUP($V11,'EASR lookup'!$C$5:$I$273,7,FALSE)),"",VLOOKUP($V11,'EASR lookup'!$C$5:$I$273,7,FALSE)) -> 389 | X11: =IF(V11='Controls Sheet'!$C$8,VLOOKUP(V11,'EASR lookup'!$C$5:$M$273,10,FALSE),"") ->  | Y11: =IF(V11='Controls Sheet'!$C$8,VLOOKUP(V11,'EASR lookup'!$C$5:$M$273,11,FALSE),"") ->  | Z11: =IF(V11='Controls Sheet'!$C$8,'EASR Charts Controls'!W11,"") ->  | AA11: =IF(W11="","",VLOOKUP('Controls Sheet'!$D$8,'Controls Sheet'!$D$2:$I$6,6,FALSE)) -> 360.3 | AB11: 484.5
A12: Bristol | B12: Bath and North East Somerset | C12: Ceredigion | D12: Barrow-in-Furness | E12: East Staffordshire | G12: Bournemouth | H12: Eastleigh | I12: Eden | J12: Newport | K12: Swale | O12: =IF(INDEX($A$4:$E$111,,'Controls Sheet'!$F$8)=0,"",INDEX($A$4:$E$111,,'Controls Sheet'!$F$8)) -> Ceredigion | P12: =IF(ISERROR(VLOOKUP($O12,'EASR lookup'!$C$5:$I$273,6,FALSE)),"",VLOOKUP($O12,'EASR lookup'!$C$5:$I$273,6,FALSE)) -> 547.7 | Q12: =IF(O12='Controls Sheet'!$C$8,VLOOKUP(O12,'EASR lookup'!$C$5:$M$273,8,FALSE),"") ->  | R12: =IF(O12='Controls Sheet'!$C$8,VLOOKUP(O12,'EASR lookup'!$C$5:$M$273,9,FALSE),"") ->  | S12: =IF(O12='Controls Sheet'!$C$8,'EASR Charts Controls'!P12,"") ->  | T12: =IF(P12="","",VLOOKUP('Controls Sheet'!$D$8,'Controls Sheet'!$D$2:$I$6,5,FALSE)) -> 501.9 | U12: 666.4 | V12: =IF(INDEX($G$4:$K$111,,'Controls Sheet'!$F$8)=0,"",INDEX($G$4:$K$111,,'Controls Sheet'!$F$8)) -> Eden | W12: =IF(ISERROR(VLOOKUP($V12,'EASR lookup'!$C$5:$I$273,7,FALSE)),"",VLOOKUP($V12,'EASR lookup'!$C$5:$I$273,7,FALSE)) -> 393.2 | X12: =IF(V12='Controls Sheet'!$C$8,VLOOKUP(V12,'EASR lookup'!$C$5:$M$273,10,FALSE),"") ->  | Y12: =IF(V12='Controls Sheet'!$C$8,VLOOKUP(V12,'EASR lookup'!$C$5:$M$273,11,FALSE),"") ->  | Z12: =IF(V12='Controls Sheet'!$C$8,'EASR Charts Controls'!W12,"") ->  | AA12: =IF(W12="","",VLOOKUP('Controls Sheet'!$D$8,'Controls Sheet'!$D$2:$I$6,6,FALSE)) -> 360.3 | AB12: 484.5
A13: Southampton | B13: Eastleigh | C13: East Devon | D13: County Durham | E13: Bassetlaw | G13: Sheffield | H13: Mid Suffolk | I13: Rother | J13: St. Helens | K13: North Lincolnshire | O13: =IF(INDEX($A$4:$E$111,,'Controls Sheet'!$F$8)=0,"",INDEX($A$4:$E$111,,'Controls Sheet'!$F$8)) -> East Devon | P13: =IF(ISERROR(VLOOKUP($O13,'EASR lookup'!$C$5:$I$273,6,FALSE)),"",VLOOKUP($O13,'EASR lookup'!$C$5:$I$273,6,FALSE)) -> 558 | Q13: =IF(O13='Controls Sheet'!$C$8,VLOOKUP(O13,'EASR lookup'!$C$5:$M$273,8,FALSE),"") ->  | R13: =IF(O13='Controls Sheet'!$C$8,VLOOKUP(O13,'EASR lookup'!$C$5:$M$273,9,FALSE),"") ->  | S13: =IF(O13='Controls Sheet'!$C$8,'EASR Charts Controls'!P13,"") ->  | T13: =IF(P13="","",VLOOKUP('Controls Sheet'!$D$8,'Controls Sheet'!$D$2:$I$6,5,FALSE)) -> 501.9 | U13: 666.4 | V13: =IF(INDEX($G$4:$K$111,,'Controls Sheet'!$F$8)=0,"",INDEX($G$4:$K$111,,'Controls Sheet'!$F$8)) -> Rother | W13: =IF(ISERROR(VLOOKUP($V13,'EASR lookup'!$C$5:$I$273,7,FALSE)),"",VLOOKUP($V13,'EASR lookup'!$C$5:$I$273,7,FALSE)) -> 393.4 | X13: =IF(V13='Controls Sheet'!$C$8,VLOOKUP(V13,'EASR lookup'!$C$5:$M$273,10,FALSE),"") ->  | Y13: =IF(V13='Controls Sheet'!$C$8,VLOOKUP(V13,'EASR lookup'!$C$5:$M$273,11,FALSE),"") ->  | Z13: =IF(V13='Controls Sheet'!$C$8,'EASR Charts Controls'!W13,"") ->  | AA13: =IF(W13="","",VLOOKUP('Controls Sheet'!$D$8,'Controls Sheet'!$D$2:$I$6,6,FALSE)) -> 360.3 | AB13: 484.5
A14: Brighton and Hove | B14: Ashford | C14: Powys | D14: Hartlepool | E14: Ballymena | G14: Lancaster | H14: Stratford-on-Avon | I14: Craven | J14: Hartlepool | K14: Redditch | O14: =IF(INDEX($A$4:$E$111,,'Controls Sheet'!$F$8)=0,"",INDEX($A$4:$E$111,,'Controls Sheet'!$F$8)) -> Powys | P14: =IF(ISERROR(VLOOKUP($O14,'EASR lookup'!$C$5:$I$273,6,FALSE)),"",VLOOKUP($O14,'EASR lookup'!$C$5:$I$273,6,FALSE)) -> 559 | Q14: =IF(O14='Controls Sheet'!$C$8,VLOOKUP(O14,'EASR lookup'!$C$5:$M$273,8,FALSE),"") ->  | R14: =IF(O14='Controls Sheet'!$C$8,VLOOKUP(O14,'EASR lookup'!$C$5:$M$273,9,FALSE),"") ->  | S14: =IF(O14='Controls Sheet'!$C$8,'EASR Charts Controls'!P14,"") ->  | T14: =IF(P14="","",VLOOKUP('Controls Sheet'!$D$8,'Controls Sheet'!$D$2:$I$6,5,FALSE)) -> 501.9 | U14: 666.4 | V14: =IF(INDEX($G$4:$K$111,,'Controls Sheet'!$F$8)=0,"",INDEX($G$4:$K$111,,'Controls Sheet'!$F$8)) -> Craven | W14: =IF(ISERROR(VLOOKUP($V14,'EASR lookup'!$C$5:$I$273,7,FALSE)),"",VLOOKUP($V14,'EASR lookup'!$C$5:$I$273,7,FALSE)) -> 398.5 | X14: =IF(V14='Controls Sheet'!$C$8,VLOOKUP(V14,'EASR lookup'!$C$5:$M$273,10,FALSE),"") ->  | Y14: =IF(V14='Controls Sheet'!$C$8,VLOOKUP(V14,'EASR lookup'!$C$5:$M$273,11,FALSE),"") ->  | Z14: =IF(V14='Controls Sheet'!$C$8,'EASR Charts Controls'!W14,"") ->  | AA14: =IF(W14="","",VLOOKUP('Controls Sheet'!$D$8,'Controls Sheet'!$D$2:$I$6,6,FALSE)) -> 360.3 | AB14: 484.5
A15: Worthing | B15: Wealden | C15: Orkney Islands | D15: Caerphilly | E15: Redditch | G15: Southampton | H15: Lewes | I15: East Devon | J15: County Durham | K15: Ballymena | O15: =IF(INDEX($A$4:$E$111,,'Controls Sheet'!$F$8)=0,"",INDEX($A$4:$E$111,,'Controls Sheet'!$F$8)) -> Orkney Islands | P15: =IF(ISERROR(VLOOKUP($O15,'EASR lookup'!$C$5:$I$273,6,FALSE)),"",VLOOKUP($O15,'EASR lookup'!$C$5:$I$273,6,FALSE)) -> 562.2 | Q15: =IF(O15='Controls Sheet'!$C$8,VLOOKUP(O15,'EASR lookup'!$C$5:$M$273,8,FALSE),"") ->  | R15: =IF(O15='Controls Sheet'!$C$8,VLOOKUP(O15,'EASR lookup'!$C$5:$M$273,9,FALSE),"") ->  | S15: =IF(O15='Controls Sheet'!$C$8,'EASR Charts Controls'!P15,"") ->  | T15: =IF(P15="","",VLOOKUP('Controls Sheet'!$D$8,'Controls Sheet'!$D$2:$I$6,5,FALSE)) -> 501.9 | U15: 666.4 | V15: =IF(INDEX($G$4:$K$111,,'Controls Sheet'!$F$8)=0,"",INDEX($G$4:$K$111,,'Controls Sheet'!$F$8)) -> East Devon | W15: =IF(ISERROR(VLOOKUP($V15,'EASR lookup'!$C$5:$I$273,7,FALSE)),"",VLOOKUP($V15,'EASR lookup'!$C$5:$I$273,7,FALSE)) -> 404 | X15: =IF(V15='Controls Sheet'!$C$8,VLOOKUP(V15,'EASR lookup'!$C$5:$M$273,10,FALSE),"") ->  | Y15: =IF(V15='Controls Sheet'!$C$8,VLOOKUP(V15,'EASR lookup'!$C$5:$M$273,11,FALSE),"") ->  | Z15: =IF(V15='Controls Sheet'!$C$8,'EASR Charts Controls'!W15,"") ->  | AA15: =IF(W15="","",VLOOKUP('Controls Sheet'!$D$8,'Controls Sheet'!$D$2:$I$6,6,FALSE)) -> 360.3 | AB15: 484.5
A16: Hastings | B16: Suffolk Coastal | C16: Torridge | D16: Copeland | E16: Dudley | G16: Leeds | H16: Rushcliffe | I16: West Somerset | J16: Caerphilly | K16: Tamworth | O16: =IF(INDEX($A$4:$E$111,,'Controls Sheet'!$F$8)=0,"",INDEX($A$4:$E$111,,'Controls Sheet'!$F$8)) -> Torridge | P16: =IF(ISERROR(VLOOKUP($O16,'EASR lookup'!$C$5:$I$273,6,FALSE)),"",VLOOKUP($O16,'EASR lookup'!$C$5:$I$273,6,FALSE)) -> 573.2 | Q16: =IF(O16='Controls Sheet'!$C$8,VLOOKUP(O16,'EASR lookup'!$C$5:$M$273,8,FALSE),"") ->  | R16: =IF(O16='Controls Sheet'!$C$8,VLOOKUP(O16,'EASR lookup'!$C$5:$M$273,9,FALSE),"") ->  | S16: =IF(O16='Controls Sheet'!$C$8,'EASR Charts Controls'!P16,"") ->  | T16: =IF(P16="","",VLOOKUP('Controls Sheet'!$D$8,'Controls Sheet'!$D$2:$I$6,5,FALSE)) -> 501.9 | U16: 666.4 | V16: =IF(INDEX($G$4:$K$111,,'Controls Sheet'!$F$8)=0,"",INDEX($G$4:$K$111,,'Controls Sheet'!$F$8)) -> West Somerset | W16: =IF(ISERROR(VLOOKUP($V16,'EASR lookup'!$C$5:$I$273,7,FALSE)),"",VLOOKUP($V16,'EASR lookup'!$C$5:$I$273,7,FALSE)) -> 405.2 | X16: =IF(V16='Controls Sheet'!$C$8,VLOOKUP(V16,'EASR lookup'!$C$5:$M$273,10,FALSE),"") ->  | Y16: =IF(V16='Controls Sheet'!$C$8,VLOOKUP(V16,'EASR lookup'!$C$5:$M$273,11,FALSE),"") ->  | Z16: =IF(V16='Controls Sheet'!$C$8,'EASR Charts Controls'!W16,"") ->  | AA16: =IF(W16="","",VLOOKUP('Controls Sheet'!$D$8,'Controls Sheet'!$D$2:$I$6,6,FALSE)) -> 360.3 | AB16: 484.5
A17: Cardiff | B17: South Gloucestershire | C17: Rother | D17: Gateshead | E17: Ards | G17: Portsmouth | H17: Mendip | I17: South Lakeland | J17: East Lothian | K17: Cannock Chase | O17: =IF(INDEX($A$4:$E$111,,'Controls Sheet'!$F$8)=0,"",INDEX($A$4:$E$111,,'Controls Sheet'!$F$8)) -> Rother | P17: =IF(ISERROR(VLOOKUP($O17,'EASR lookup'!$C$5:$I$273,6,FALSE)),"",VLOOKUP($O17,'EASR lookup'!$C$5:$I$273,6,FALSE)) -> 579.1 | Q17: =IF(O17='Controls Sheet'!$C$8,VLOOKUP(O17,'EASR lookup'!$C$5:$M$273,8,FALSE),"") ->  | R17: =IF(O17='Controls Sheet'!$C$8,VLOOKUP(O17,'EASR lookup'!$C$5:$M$273,9,FALSE),"") ->  | S17: =IF(O17='Controls Sheet'!$C$8,'EASR Charts Controls'!P17,"") ->  | T17: =IF(P17="","",VLOOKUP('Controls Sheet'!$D$8,'Controls Sheet'!$D$2:$I$6,5,FALSE)) -> 501.9 | U17: 666.4 | V17: =IF(INDEX($G$4:$K$111,,'Controls Sheet'!$F$8)=0,"",INDEX($G$4:$K$111,,'Controls Sheet'!$F$8)) -> South Lakeland | W17: =IF(ISERROR(VLOOKUP($V17,'EASR lookup'!$C$5:$I$273,7,FALSE)),"",VLOOKUP($V17,'EASR lookup'!$C$5:$I$273,7,FALSE)) -> 409.2 | X17: =IF(V17='Controls Sheet'!$C$8,VLOOKUP(V17,'EASR lookup'!$C$5:$M$273,10,FALSE),"") ->  | Y17: =IF(V17='Controls Sheet'!$C$8,VLOOKUP(V17,'EASR lookup'!$C$5:$M$273,11,FALSE),"") ->  | Z17: =IF(V17='Controls Sheet'!$C$8,'EASR Charts Controls'!W17,"") ->  | AA17: =IF(W17="","",VLOOKUP('Controls Sheet'!$D$8,'Controls Sheet'!$D$2:$I$6,6,FALSE)) -> 360.3 | AB17: 484.5
A18: Plymouth | B18: South Somerset | C18: Isle of Wight | D18: Newport | E18: Flintshire | G18: Plymouth | H18: Wealden | I18: Shetland Islands | J18: Midlothian | K18: Newcastle-under-Lyme | O18: =IF(INDEX($A$4:$E$111,,'Controls Sheet'!$F$8)=0,"",INDEX($A$4:$E$111,,'Controls Sheet'!$F$8)) -> Isle of Wight | P18: =IF(ISERROR(VLOOKUP($O18,'EASR lookup'!$C$5:$I$273,6,FALSE)),"",VLOOKUP($O18,'EASR lookup'!$C$5:$I$273,6,FALSE)) -> 587.1 | Q18: =IF(O18='Controls Sheet'!$C$8,VLOOKUP(O18,'EASR lookup'!$C$5:$M$273,8,FALSE),"") ->  | R18: =IF(O18='Controls Sheet'!$C$8,VLOOKUP(O18,'EASR lookup'!$C$5:$M$273,9,FALSE),"") ->  | S18: =IF(O18='Controls Sheet'!$C$8,'EASR Charts Controls'!P18,"") ->  | T18: =IF(P18="","",VLOOKUP('Controls Sheet'!$D$8,'Controls Sheet'!$D$2:$I$6,5,FALSE)) -> 501.9 | U18: 666.4 | V18: =IF(INDEX($G$4:$K$111,,'Controls Sheet'!$F$8)=0,"",INDEX($G$4:$K$111,,'Controls Sheet'!$F$8)) -> Shetland Islands | W18: =IF(ISERROR(VLOOKUP($V18,'EASR lookup'!$C$5:$I$273,7,FALSE)),"",VLOOKUP($V18,'EASR lookup'!$C$5:$I$273,7,FALSE)) -> 413 | X18: =IF(V18='Controls Sheet'!$C$8,VLOOKUP(V18,'EASR lookup'!$C$5:$M$273,10,FALSE),"") ->  | Y18: =IF(V18='Controls Sheet'!$C$8,VLOOKUP(V18,'EASR lookup'!$C$5:$M$273,11,FALSE),"") ->  | Z18: =IF(V18='Controls Sheet'!$C$8,'EASR Charts Controls'!W18,"") ->  | AA18: =IF(W18="","",VLOOKUP('Controls Sheet'!$D$8,'Controls Sheet'!$D$2:$I$6,6,FALSE)) -> 360.3 | AB18: 484.5
A19: Leeds | B19: Richmondshire | C19: Pembrokeshire | D19: St. Helens | E19: Newcastle-under-Lyme | G19: Edinburgh, City of | H19: Blaby | I19: Teignbridge | J19: Torfaen | K19: North East Derbyshire | O19: =IF(INDEX($A$4:$E$111,,'Controls Sheet'!$F$8)=0,"",INDEX($A$4:$E$111,,'Controls Sheet'!$F$8)) -> Pembrokeshire | P19: =IF(ISERROR(VLOOKUP($O19,'EASR lookup'!$C$5:$I$273,6,FALSE)),"",VLOOKUP($O19,'EASR lookup'!$C$5:$I$273,6,FALSE)) -> 588.5 | Q19: =IF(O19='Controls Sheet'!$C$8,VLOOKUP(O19,'EASR lookup'!$C$5:$M$273,8,FALSE),"") ->  | R19: =IF(O19='Controls Sheet'!$C$8,VLOOKUP(O19,'EASR lookup'!$C$5:$M$273,9,FALSE),"") ->  | S19: =IF(O19='Controls Sheet'!$C$8,'EASR Charts Controls'!P19,"") ->  | T19: =IF(P19="","",VLOOKUP('Controls Sheet'!$D$8,'Controls Sheet'!$D$2:$I$6,5,FALSE)) -> 501.9 | U19: 666.4 | V19: =IF(INDEX($G$4:$K$111,,'Controls Sheet'!$F$8)=0,"",INDEX($G$4:$K$111,,'Controls Sheet'!$F$8)) -> Teignbridge | W19: =IF(ISERROR(VLOOKUP($V19,'EASR lookup'!$C$5:$I$273,7,FALSE)),"",VLOOKUP($V19,'EASR lookup'!$C$5:$I$273,7,FALSE)) -> 417.1 | X19: =IF(V19='Controls Sheet'!$C$8,VLOOKUP(V19,'EASR lookup'!$C$5:$M$273,10,FALSE),"") ->  | Y19: =IF(V19='Controls Sheet'!$C$8,VLOOKUP(V19,'EASR lookup'!$C$5:$M$273,11,FALSE),"") ->  | Z19: =IF(V19='Controls Sheet'!$C$8,'EASR Charts Controls'!W19,"") ->  | AA19: =IF(W19="","",VLOOKUP('Controls Sheet'!$D$8,'Controls Sheet'!$D$2:$I$6,6,FALSE)) -> 360.3 | AB19: 484.5
A20: Edinburgh, City of | B20: Derbyshire Dales | C20: North Norfolk | D20: Swansea | E20: Craigavon | G20: Lincoln | H20: Mid Devon | I20: Powys | J20: Neath Port Talbot | K20: Coleraine | O20: =IF(INDEX($A$4:$E$111,,'Controls Sheet'!$F$8)=0,"",INDEX($A$4:$E$111,,'Controls Sheet'!$F$8)) -> North Norfolk | P20: =IF(ISERROR(VLOOKUP($O20,'EASR lookup'!$C$5:$I$273,6,FALSE)),"",VLOOKUP($O20,'EASR lookup'!$C$5:$I$273,6,FALSE)) -> 591.2 | Q20: =IF(O20='Controls Sheet'!$C$8,VLOOKUP(O20,'EASR lookup'!$C$5:$M$273,8,FALSE),"") ->  | R20: =IF(O20='Controls Sheet'!$C$8,VLOOKUP(O20,'EASR lookup'!$C$5:$M$273,9,FALSE),"") ->  | S20: =IF(O20='Controls Sheet'!$C$8,'EASR Charts Controls'!P20,"") ->  | T20: =IF(P20="","",VLOOKUP('Controls Sheet'!$D$8,'Controls Sheet'!$D$2:$I$6,5,FALSE)) -> 501.9 | U20: 666.4 | V20: =IF(INDEX($G$4:$K$111,,'Controls Sheet'!$F$8)=0,"",INDEX($G$4:$K$111,,'Controls Sheet'!$F$8)) -> Powys | W20: =IF(ISERROR(VLOOKUP($V20,'EASR lookup'!$C$5:$I$273,7,FALSE)),"",VLOOKUP($V20,'EASR lookup'!$C$5:$I$273,7,FALSE)) -> 422 | X20: =IF(V20='Controls Sheet'!$C$8,VLOOKUP(V20,'EASR lookup'!$C$5:$M$273,10,FALSE),"") ->  | Y20: =IF(V20='Controls Sheet'!$C$8,VLOOKUP(V20,'EASR lookup'!$C$5:$M$273,11,FALSE),"") ->  | Z20: =IF(V20='Controls Sheet'!$C$8,'EASR Charts Controls'!W20,"") ->  | AA20: =IF(W20="","",VLOOKUP('Controls Sheet'!$D$8,'Controls Sheet'!$D$2:$I$6,6,FALSE)) -> 360.3 | AB20: 484.5
A21: Newcastle upon Tyne | B21: Hambleton | C21: West Somerset | D21: Sunderland | E21: Rossendale | G21: Newcastle upon Tyne | H21: Wychavon | I21: Cornwall, Isles of Scilly | J21: South Tyneside | K21: Nuneaton and Bedworth | O21: =IF(INDEX($A$4:$E$111,,'Controls Sheet'!$F$8)=0,"",INDEX($A$4:$E$111,,'Controls Sheet'!$F$8)) -> West Somerset | P21: =IF(ISERROR(VLOOKUP($O21,'EASR lookup'!$C$5:$I$273,6,FALSE)),"",VLOOKUP($O21,'EASR lookup'!$C$5:$I$273,6,FALSE)) -> 601.1 | Q21: =IF(O21='Controls Sheet'!$C$8,VLOOKUP(O21,'EASR lookup'!$C$5:$M$273,8,FALSE),"") ->  | R21: =IF(O21='Controls Sheet'!$C$8,VLOOKUP(O21,'EASR lookup'!$C$5:$M$273,9,FALSE),"") ->  | S21: =IF(O21='Controls Sheet'!$C$8,'EASR Charts Controls'!P21,"") ->  | T21: =IF(P21="","",VLOOKUP('Controls Sheet'!$D$8,'Controls Sheet'!$D$2:$I$6,5,FALSE)) -> 501.9 | U21: 666.4 | V21: =IF(INDEX($G$4:$K$111,,'Controls Sheet'!$F$8)=0,"",INDEX($G$4:$K$111,,'Controls Sheet'!$F$8)) -> Cornwall, Isles of Scilly | W21: =IF(ISERROR(VLOOKUP($V21,'EASR lookup'!$C$5:$I$273,7,FALSE)),"",VLOOKUP($V21,'EASR lookup'!$C$5:$I$273,7,FALSE)) -> 427.9 | X21: =IF(V21='Controls Sheet'!$C$8,VLOOKUP(V21,'EASR lookup'!$C$5:$M$273,10,FALSE),"") ->  | Y21: =IF(V21='Controls Sheet'!$C$8,VLOOKUP(V21,'EASR lookup'!$C$5:$M$273,11,FALSE),"") ->  | Z21: =IF(V21='Controls Sheet'!$C$8,'EASR Charts Controls'!W21,"") ->  | AA21: =IF(W21="","",VLOOKUP('Controls Sheet'!$D$8,'Controls Sheet'!$D$2:$I$6,6,FALSE)) -> 360.3 | AB21: 484.5
A22: Lancaster | B22: Blaby | C22: Arun | D22: Fife | E22: Telford and Wrekin | G22: Hastings | H22: South Gloucestershire | I22: Arun | J22: South Ayrshire | K22: Stockton-on-Tees | O22: =IF(INDEX($A$4:$E$111,,'Controls Sheet'!$F$8)=0,"",INDEX($A$4:$E$111,,'Controls Sheet'!$F$8)) -> Arun | P22: =IF(ISERROR(VLOOKUP($O22,'EASR lookup'!$C$5:$I$273,6,FALSE)),"",VLOOKUP($O22,'EASR lookup'!$C$5:$I$273,6,FALSE)) -> 601.3 | Q22: =IF(O22='Controls Sheet'!$C$8,VLOOKUP(O22,'EASR lookup'!$C$5:$M$273,8,FALSE),"") ->  | R22: =IF(O22='Controls Sheet'!$C$8,VLOOKUP(O22,'EASR lookup'!$C$5:$M$273,9,FALSE),"") ->  | S22: =IF(O22='Controls Sheet'!$C$8,'EASR Charts Controls'!P22,"") ->  | T22: =IF(P22="","",VLOOKUP('Controls Sheet'!$D$8,'Controls Sheet'!$D$2:$I$6,5,FALSE)) -> 501.9 | U22: 666.4 | V22: =IF(INDEX($G$4:$K$111,,'Controls Sheet'!$F$8)=0,"",INDEX($G$4:$K$111,,'Controls Sheet'!$F$8)) -> Arun | W22: =IF(ISERROR(VLOOKUP($V22,'EASR lookup'!$C$5:$I$273,7,FALSE)),"",VLOOKUP($V22,'EASR lookup'!$C$5:$I$273,7,FALSE)) -> 430.5 | X22: =IF(V22='Controls Sheet'!$C$8,VLOOKUP(V22,'EASR lookup'!$C$5:$M$273,10,FALSE),"") ->  | Y22: =IF(V22='Controls Sheet'!$C$8,VLOOKUP(V22,'EASR lookup'!$C$5:$M$273,11,FALSE),"") ->  | Z22: =IF(V22='Controls Sheet'!$C$8,'EASR Charts Controls'!W22,"") ->  | AA22: =IF(W22="","",VLOOKUP('Controls Sheet'!$D$8,'Controls Sheet'!$D$2:$I$6,6,FALSE)) -> 360.3 | AB22: 484.5
A23: Aberdeen City | B23: Lewes | C23: Shepway | D23: Midlothian | E23: Coleraine | G23: Aberdeen City | H23: Babergh | I23: Isle of Anglesey | J23: Rhondda Cynon Taff | K23: Wrexham | O23: =IF(INDEX($A$4:$E$111,,'Controls Sheet'!$F$8)=0,"",INDEX($A$4:$E$111,,'Controls Sheet'!$F$8)) -> Shepway | P23: =IF(ISERROR(VLOOKUP($O23,'EASR lookup'!$C$5:$I$273,6,FALSE)),"",VLOOKUP($O23,'EASR lookup'!$C$5:$I$273,6,FALSE)) -> 601.3 | Q23: =IF(O23='Controls Sheet'!$C$8,VLOOKUP(O23,'EASR lookup'!$C$5:$M$273,8,FALSE),"") ->  | R23: =IF(O23='Controls Sheet'!$C$8,VLOOKUP(O23,'EASR lookup'!$C$5:$M$273,9,FALSE),"") ->  | S23: =IF(O23='Controls Sheet'!$C$8,'EASR Charts Controls'!P23,"") ->  | T23: =IF(P23="","",VLOOKUP('Controls Sheet'!$D$8,'Controls Sheet'!$D$2:$I$6,5,FALSE)) -> 501.9 | U23: 666.4 | V23: =IF(INDEX($G$4:$K$111,,'Controls Sheet'!$F$8)=0,"",INDEX($G$4:$K$111,,'Controls Sheet'!$F$8)) -> Isle of Anglesey | W23: =IF(ISERROR(VLOOKUP($V23,'EASR lookup'!$C$5:$I$273,7,FALSE)),"",VLOOKUP($V23,'EASR lookup'!$C$5:$I$273,7,FALSE)) -> 430.5 | X23: =IF(V23='Controls Sheet'!$C$8,VLOOKUP(V23,'EASR lookup'!$C$5:$M$273,10,FALSE),"") -> 48.4 | Y23: =IF(V23='Controls Sheet'!$C$8,VLOOKUP(V23,'EASR lookup'!$C$5:$M$273,11,FALSE),"") -> 52.1 | Z23: =IF(V23='Controls Sheet'!$C$8,'EASR Charts Controls'!W23,"") -> 430.5 | AA23: =IF(W23="","",VLOOKUP('Controls Sheet'!$D$8,'Controls Sheet'!$D$2:$I$6,6,FALSE)) -> 360.3 | AB23: 484.5
A24: Salford | B24: Ribble Valley | C24: Fylde | D24: Knowsley | E24: Lisburn | G24: Liverpool | H24: Bath and North East Somerset | I24: Waveney | J24: Fife | K24: Chesterfield | O24: =IF(INDEX($A$4:$E$111,,'Controls Sheet'!$F$8)=0,"",INDEX($A$4:$E$111,,'Controls Sheet'!$F$8)) -> Fylde | P24: =IF(ISERROR(VLOOKUP($O24,'EASR lookup'!$C$5:$I$273,6,FALSE)),"",VLOOKUP($O24,'EASR lookup'!$C$5:$I$273,6,FALSE)) -> 601.7 | Q24: =IF(O24='Controls Sheet'!$C$8,VLOOKUP(O24,'EASR lookup'!$C$5:$M$273,8,FALSE),"") ->  | R24: =IF(O24='Controls Sheet'!$C$8,VLOOKUP(O24,'EASR lookup'!$C$5:$M$273,9,FALSE),"") ->  | S24: =IF(O24='Controls Sheet'!$C$8,'EASR Charts Controls'!P24,"") ->  | T24: =IF(P24="","",VLOOKUP('Controls Sheet'!$D$8,'Controls Sheet'!$D$2:$I$6,5,FALSE)) -> 501.9 | U24: 666.4 | V24: =IF(INDEX($G$4:$K$111,,'Controls Sheet'!$F$8)=0,"",INDEX($G$4:$K$111,,'Controls Sheet'!$F$8)) -> Waveney | W24: =IF(ISERROR(VLOOKUP($V24,'EASR lookup'!$C$5:$I$273,7,FALSE)),"",VLOOKUP($V24,'EASR lookup'!$C$5:$I$273,7,FALSE)) -> 437.7 | X24: =IF(V24='Controls Sheet'!$C$8,VLOOKUP(V24,'EASR lookup'!$C$5:$M$273,10,FALSE),"") ->  | Y24: =IF(V24='Controls Sheet'!$C$8,VLOOKUP(V24,'EASR lookup'!$C$5:$M$273,11,FALSE),"") ->  | Z24: =IF(V24='Controls Sheet'!$C$8,'EASR Charts Controls'!W24,"") ->  | AA24: =IF(W24="","",VLOOKUP('Controls Sheet'!$D$8,'Controls Sheet'!$D$2:$I$6,6,FALSE)) -> 360.3 | AB24: 484.5
A25: Liverpool | B25: Melton | C25: Cornwall, Isles of Scilly | D25: Rhondda Cynon Taff | E25: Cannock Chase | G25: Salford | H25: Oadby and Wigston | I25: Isle of Wight | J25: Falkirk | K25: Newtownabbey | O25: =IF(INDEX($A$4:$E$111,,'Controls Sheet'!$F$8)=0,"",INDEX($A$4:$E$111,,'Controls Sheet'!$F$8)) -> Cornwall, Isles of Scilly | P25: =IF(ISERROR(VLOOKUP($O25,'EASR lookup'!$C$5:$I$273,6,FALSE)),"",VLOOKUP($O25,'EASR lookup'!$C$5:$I$273,6,FALSE)) -> 603.4 | Q25: =IF(O25='Controls Sheet'!$C$8,VLOOKUP(O25,'EASR lookup'!$C$5:$M$273,8,FALSE),"") ->  | R25: =IF(O25='Controls Sheet'!$C$8,VLOOKUP(O25,'EASR lookup'!$C$5:$M$273,9,FALSE),"") ->  | S25: =IF(O25='Controls Sheet'!$C$8,'EASR Charts Controls'!P25,"") ->  | T25: =IF(P25="","",VLOOKUP('Controls Sheet'!$D$8,'Controls Sheet'!$D$2:$I$6,5,FALSE)) -> 501.9 | U25: 666.4 | V25: =IF(INDEX($G$4:$K$111,,'Controls Sheet'!$F$8)=0,"",INDEX($G$4:$K$111,,'Controls Sheet'!$F$8)) -> Isle of Wight | W25: =IF(ISERROR(VLOOKUP($V25,'EASR lookup'!$C$5:$I$273,7,FALSE)),"",VLOOKUP($V25,'EASR lookup'!$C$5:$I$273,7,FALSE)) -> 443.6 | X25: =IF(V25='Controls Sheet'!$C$8,VLOOKUP(V25,'EASR lookup'!$C$5:$M$273,10,FALSE),"") ->  | Y25: =IF(V25='Controls Sheet'!$C$8,VLOOKUP(V25,'EASR lookup'!$C$5:$M$273,11,FALSE),"") ->  | Z25: =IF(V25='Controls Sheet'!$C$8,'EASR Charts Controls'!W25,"") ->  | AA25: =IF(W25="","",VLOOKUP('Controls Sheet'!$D$8,'Controls Sheet'!$D$2:$I$6,6,FALSE)) -> 360.3 | AB25: 484.5
A26: Dundee City | B26: North Dorset | C26: Aberdeenshire | D26: Halton | E26: Wrexham | G26: Dundee City | H26: Warwick | I26: Weymouth and Portland | J26: Gateshead | K26: Flintshire | O26: =IF(INDEX($A$4:$E$111,,'Controls Sheet'!$F$8)=0,"",INDEX($A$4:$E$111,,'Controls Sheet'!$F$8)) -> Aberdeenshire | P26: =IF(ISERROR(VLOOKUP($O26,'EASR lookup'!$C$5:$I$273,6,FALSE)),"",VLOOKUP($O26,'EASR lookup'!$C$5:$I$273,6,FALSE)) -> 604.4 | Q26: =IF(O26='Controls Sheet'!$C$8,VLOOKUP(O26,'EASR lookup'!$C$5:$M$273,8,FALSE),"") ->  | R26: =IF(O26='Controls Sheet'!$C$8,VLOOKUP(O26,'EASR lookup'!$C$5:$M$273,9,FALSE),"") ->  | S26: =IF(O26='Controls Sheet'!$C$8,'EASR Charts Controls'!P26,"") ->  | T26: =IF(P26="","",VLOOKUP('Controls Sheet'!$D$8,'Controls Sheet'!$D$2:$I$6,5,FALSE)) -> 501.9 | U26: 666.4 | V26: =IF(INDEX($G$4:$K$111,,'Controls Sheet'!$F$8)=0,"",INDEX($G$4:$K$111,,'Controls Sheet'!$F$8)) -> Weymouth and Portland | W26: =IF(ISERROR(VLOOKUP($V26,'EASR lookup'!$C$5:$I$273,7,FALSE)),"",VLOOKUP($V26,'EASR lookup'!$C$5:$I$273,7,FALSE)) -> 446.6 | X26: =IF(V26='Controls Sheet'!$C$8,VLOOKUP(V26,'EASR lookup'!$C$5:$M$273,10,FALSE),"") ->  | Y26: =IF(V26='Controls Sheet'!$C$8,VLOOKUP(V26,'EASR lookup'!$C$5:$M$273,11,FALSE),"") ->  | Z26: =IF(V26='Controls Sheet'!$C$8,'EASR Charts Controls'!W26,"") ->  | AA26: =IF(W26="","",VLOOKUP('Controls Sheet'!$D$8,'Controls Sheet'!$D$2:$I$6,6,FALSE)) -> 360.3 | AB26: 484.5
A27: Glasgow City | B27: St. Edmundsbury | C27: Gwynedd | D27: West Lothian | E27: Stockton-on-Tees | G27: Glasgow City | H27: Broadland | I27: Shepway | J27: North Ayrshire | K27: Barnsley | O27: =IF(INDEX($A$4:$E$111,,'Controls Sheet'!$F$8)=0,"",INDEX($A$4:$E$111,,'Controls Sheet'!$F$8)) -> Gwynedd | P27: =IF(ISERROR(VLOOKUP($O27,'EASR lookup'!$C$5:$I$273,6,FALSE)),"",VLOOKUP($O27,'EASR lookup'!$C$5:$I$273,6,FALSE)) -> 605 | Q27: =IF(O27='Controls Sheet'!$C$8,VLOOKUP(O27,'EASR lookup'!$C$5:$M$273,8,FALSE),"") ->  | R27: =IF(O27='Controls Sheet'!$C$8,VLOOKUP(O27,'EASR lookup'!$C$5:$M$273,9,FALSE),"") ->  | S27: =IF(O27='Controls Sheet'!$C$8,'EASR Charts Controls'!P27,"") ->  | T27: =IF(P27="","",VLOOKUP('Controls Sheet'!$D$8,'Controls Sheet'!$D$2:$I$6,5,FALSE)) -> 501.9 | U27: 666.4 | V27: =IF(INDEX($G$4:$K$111,,'Controls Sheet'!$F$8)=0,"",INDEX($G$4:$K$111,,'Controls Sheet'!$F$8)) -> Shepway | W27: =IF(ISERROR(VLOOKUP($V27,'EASR lookup'!$C$5:$I$273,7,FALSE)),"",VLOOKUP($V27,'EASR lookup'!$C$5:$I$273,7,FALSE)) -> 447.1 | X27: =IF(V27='Controls Sheet'!$C$8,VLOOKUP(V27,'EASR lookup'!$C$5:$M$273,10,FALSE),"") ->  | Y27: =IF(V27='Controls Sheet'!$C$8,VLOOKUP(V27,'EASR lookup'!$C$5:$M$273,11,FALSE),"") ->  | Z27: =IF(V27='Controls Sheet'!$C$8,'EASR Charts Controls'!W27,"") ->  | AA27: =IF(W27="","",VLOOKUP('Controls Sheet'!$D$8,'Controls Sheet'!$D$2:$I$6,6,FALSE)) -> 360.3 | AB27: 484.5
B28: Oadby and Wigston | C28: Ryedale | D28: Clackmannanshire | E28: Barnsley | H28: Suffolk Coastal | I28: Conwy | J28: East Ayrshire | K28: Bassetlaw | O28: =IF(INDEX($A$4:$E$111,,'Controls Sheet'!$F$8)=0,"",INDEX($A$4:$E$111,,'Controls Sheet'!$F$8)) -> Ryedale | P28: =IF(ISERROR(VLOOKUP($O28,'EASR lookup'!$C$5:$I$273,6,FALSE)),"",VLOOKUP($O28,'EASR lookup'!$C$5:$I$273,6,FALSE)) -> 606.5 | Q28: =IF(O28='Controls Sheet'!$C$8,VLOOKUP(O28,'EASR lookup'!$C$5:$M$273,8,FALSE),"") ->  | R28: =IF(O28='Controls Sheet'!$C$8,VLOOKUP(O28,'EASR lookup'!$C$5:$M$273,9,FALSE),"") ->  | S28: =IF(O28='Controls Sheet'!$C$8,'EASR Charts Controls'!P28,"") ->  | T28: =IF(P28="","",VLOOKUP('Controls Sheet'!$D$8,'Controls Sheet'!$D$2:$I$6,5,FALSE)) -> 501.9 | U28: 666.4 | V28: =IF(INDEX($G$4:$K$111,,'Controls Sheet'!$F$8)=0,"",INDEX($G$4:$K$111,,'Controls Sheet'!$F$8)) -> Conwy | W28: =IF(ISERROR(VLOOKUP($V28,'EASR lookup'!$C$5:$I$273,7,FALSE)),"",VLOOKUP($V28,'EASR lookup'!$C$5:$I$273,7,FALSE)) -> 448.4 | X28: =IF(V28='Controls Sheet'!$C$8,VLOOKUP(V28,'EASR lookup'!$C$5:$M$273,10,FALSE),"") ->  | Y28: =IF(V28='Controls Sheet'!$C$8,VLOOKUP(V28,'EASR lookup'!$C$5:$M$273,11,FALSE),"") ->  | Z28: =IF(V28='Controls Sheet'!$C$8,'EASR Charts Controls'!W28,"") ->  | AA28: =IF(W28="","",VLOOKUP('Controls Sheet'!$D$8,'Controls Sheet'!$D$2:$I$6,6,FALSE)) -> 360.3 | AB28: 484.5
B29: Stratford-on-Avon | C29: Conwy | D29: Tameside | E29: Newtownabbey | H29: Solihull | I29: North Devon | J29: Kingston upon Hull | K29: Rossendale | O29: =IF(INDEX($A$4:$E$111,,'Controls Sheet'!$F$8)=0,"",INDEX($A$4:$E$111,,'Controls Sheet'!$F$8)) -> Conwy | P29: =IF(ISERROR(VLOOKUP($O29,'EASR lookup'!$C$5:$I$273,6,FALSE)),"",VLOOKUP($O29,'EASR lookup'!$C$5:$I$273,6,FALSE)) -> 607.5 | Q29: =IF(O29='Controls Sheet'!$C$8,VLOOKUP(O29,'EASR lookup'!$C$5:$M$273,8,FALSE),"") ->  | R29: =IF(O29='Controls Sheet'!$C$8,VLOOKUP(O29,'EASR lookup'!$C$5:$M$273,9,FALSE),"") ->  | S29: =IF(O29='Controls Sheet'!$C$8,'EASR Charts Controls'!P29,"") ->  | T29: =IF(P29="","",VLOOKUP('Controls Sheet'!$D$8,'Controls Sheet'!$D$2:$I$6,5,FALSE)) -> 501.9 | U29: 666.4 | V29: =IF(INDEX($G$4:$K$111,,'Controls Sheet'!$F$8)=0,"",INDEX($G$4:$K$111,,'Controls Sheet'!$F$8)) -> North Devon | W29: =IF(ISERROR(VLOOKUP($V29,'EASR lookup'!$C$5:$I$273,7,FALSE)),"",VLOOKUP($V29,'EASR lookup'!$C$5:$I$273,7,FALSE)) -> 451.4 | X29: =IF(V29='Controls Sheet'!$C$8,VLOOKUP(V29,'EASR lookup'!$C$5:$M$273,10,FALSE),"") ->  | Y29: =IF(V29='Controls Sheet'!$C$8,VLOOKUP(V29,'EASR lookup'!$C$5:$M$273,11,FALSE),"") ->  | Z29: =IF(V29='Controls Sheet'!$C$8,'EASR Charts Controls'!W29,"") ->  | AA29: =IF(W29="","",VLOOKUP('Controls Sheet'!$D$8,'Controls Sheet'!$D$2:$I$6,6,FALSE)) -> 360.3 | AB29: 484.5
B30: West Oxfordshire | C30: Waveney | D30: North Ayrshire | E30: Antrim | H30: Derbyshire Dales | I30: Scarborough | J30: Stoke-on-Trent | K30: Ards | O30: =IF(INDEX($A$4:$E$111,,'Controls Sheet'!$F$8)=0,"",INDEX($A$4:$E$111,,'Controls Sheet'!$F$8)) -> Waveney | P30: =IF(ISERROR(VLOOKUP($O30,'EASR lookup'!$C$5:$I$273,6,FALSE)),"",VLOOKUP($O30,'EASR lookup'!$C$5:$I$273,6,FALSE)) -> 609.8 | Q30: =IF(O30='Controls Sheet'!$C$8,VLOOKUP(O30,'EASR lookup'!$C$5:$M$273,8,FALSE),"") ->  | R30: =IF(O30='Controls Sheet'!$C$8,VLOOKUP(O30,'EASR lookup'!$C$5:$M$273,9,FALSE),"") ->  | S30: =IF(O30='Controls Sheet'!$C$8,'EASR Charts Controls'!P30,"") ->  | T30: =IF(P30="","",VLOOKUP('Controls Sheet'!$D$8,'Controls Sheet'!$D$2:$I$6,5,FALSE)) -> 501.9 | U30: 666.4 | V30: =IF(INDEX($G$4:$K$111,,'Controls Sheet'!$F$8)=0,"",INDEX($G$4:$K$111,,'Controls Sheet'!$F$8)) -> Scarborough | W30: =IF(ISERROR(VLOOKUP($V30,'EASR lookup'!$C$5:$I$273,7,FALSE)),"",VLOOKUP($V30,'EASR lookup'!$C$5:$I$273,7,FALSE)) -> 453.1 | X30: =IF(V30='Controls Sheet'!$C$8,VLOOKUP(V30,'EASR lookup'!$C$5:$M$273,10,FALSE),"") ->  | Y30: =IF(V30='Controls Sheet'!$C$8,VLOOKUP(V30,'EASR lookup'!$C$5:$M$273,11,FALSE),"") ->  | Z30: =IF(V30='Controls Sheet'!$C$8,'EASR Charts Controls'!W30,"") ->  | AA30: =IF(W30="","",VLOOKUP('Controls Sheet'!$D$8,'Controls Sheet'!$D$2:$I$6,6,FALSE)) -> 360.3 | AB30: 484.5
B31: Cotswold | C31: North Devon | D31: Falkirk | E31: Chesterfield | H31: South Somerset | I31: Torbay | J31: Inverclyde | K31: Craigavon | O31: =IF(INDEX($A$4:$E$111,,'Controls Sheet'!$F$8)=0,"",INDEX($A$4:$E$111,,'Controls Sheet'!$F$8)) -> North Devon | P31: =IF(ISERROR(VLOOKUP($O31,'EASR lookup'!$C$5:$I$273,6,FALSE)),"",VLOOKUP($O31,'EASR lookup'!$C$5:$I$273,6,FALSE)) -> 610.4 | Q31: =IF(O31='Controls Sheet'!$C$8,VLOOKUP(O31,'EASR lookup'!$C$5:$M$273,8,FALSE),"") ->  | R31: =IF(O31='Controls Sheet'!$C$8,VLOOKUP(O31,'EASR lookup'!$C$5:$M$273,9,FALSE),"") ->  | S31: =IF(O31='Controls Sheet'!$C$8,'EASR Charts Controls'!P31,"") ->  | T31: =IF(P31="","",VLOOKUP('Controls Sheet'!$D$8,'Controls Sheet'!$D$2:$I$6,5,FALSE)) -> 501.9 | U31: 666.4 | V31: =IF(INDEX($G$4:$K$111,,'Controls Sheet'!$F$8)=0,"",INDEX($G$4:$K$111,,'Controls Sheet'!$F$8)) -> Torbay | W31: =IF(ISERROR(VLOOKUP($V31,'EASR lookup'!$C$5:$I$273,7,FALSE)),"",VLOOKUP($V31,'EASR lookup'!$C$5:$I$273,7,FALSE)) -> 455.2 | X31: =IF(V31='Controls Sheet'!$C$8,VLOOKUP(V31,'EASR lookup'!$C$5:$M$273,10,FALSE),"") ->  | Y31: =IF(V31='Controls Sheet'!$C$8,VLOOKUP(V31,'EASR lookup'!$C$5:$M$273,11,FALSE),"") ->  | Z31: =IF(V31='Controls Sheet'!$C$8,'EASR Charts Controls'!W31,"") ->  | AA31: =IF(W31="","",VLOOKUP('Controls Sheet'!$D$8,'Controls Sheet'!$D$2:$I$6,6,FALSE)) -> 360.3 | AB31: 484.5
B32: East Renfrewshire | C32: Teignbridge | D32: Kingston upon Hull | E32: Mansfield | H32: Fareham | I32: Torridge | J32: South Lanarkshire | K32: Mansfield | O32: =IF(INDEX($A$4:$E$111,,'Controls Sheet'!$F$8)=0,"",INDEX($A$4:$E$111,,'Controls Sheet'!$F$8)) -> Teignbridge | P32: =IF(ISERROR(VLOOKUP($O32,'EASR lookup'!$C$5:$I$273,6,FALSE)),"",VLOOKUP($O32,'EASR lookup'!$C$5:$I$273,6,FALSE)) -> 614.9 | Q32: =IF(O32='Controls Sheet'!$C$8,VLOOKUP(O32,'EASR lookup'!$C$5:$M$273,8,FALSE),"") ->  | R32: =IF(O32='Controls Sheet'!$C$8,VLOOKUP(O32,'EASR lookup'!$C$5:$M$273,9,FALSE),"") ->  | S32: =IF(O32='Controls Sheet'!$C$8,'EASR Charts Controls'!P32,"") ->  | T32: =IF(P32="","",VLOOKUP('Controls Sheet'!$D$8,'Controls Sheet'!$D$2:$I$6,5,FALSE)) -> 501.9 | U32: 666.4 | V32: =IF(INDEX($G$4:$K$111,,'Controls Sheet'!$F$8)=0,"",INDEX($G$4:$K$111,,'Controls Sheet'!$F$8)) -> Torridge | W32: =IF(ISERROR(VLOOKUP($V32,'EASR lookup'!$C$5:$I$273,7,FALSE)),"",VLOOKUP($V32,'EASR lookup'!$C$5:$I$273,7,FALSE)) -> 457 | X32: =IF(V32='Controls Sheet'!$C$8,VLOOKUP(V32,'EASR lookup'!$C$5:$M$273,10,FALSE),"") ->  | Y32: =IF(V32='Controls Sheet'!$C$8,VLOOKUP(V32,'EASR lookup'!$C$5:$M$273,11,FALSE),"") ->  | Z32: =IF(V32='Controls Sheet'!$C$8,'EASR Charts Controls'!W32,"") ->  | AA32: =IF(W32="","",VLOOKUP('Controls Sheet'!$D$8,'Controls Sheet'!$D$2:$I$6,6,FALSE)) -> 360.3 | AB32: 484.5
B33: Rushcliffe | C33: Torbay | D33: Middlesbrough | E33: Nuneaton and Bedworth | H33: County of Herefordshire | I33: Ryedale | J33: Sunderland | K33: Ashfield | O33: =IF(INDEX($A$4:$E$111,,'Controls Sheet'!$F$8)=0,"",INDEX($A$4:$E$111,,'Controls Sheet'!$F$8)) -> Torbay | P33: =IF(ISERROR(VLOOKUP($O33,'EASR lookup'!$C$5:$I$273,6,FALSE)),"",VLOOKUP($O33,'EASR lookup'!$C$5:$I$273,6,FALSE)) -> 615.1 | Q33: =IF(O33='Controls Sheet'!$C$8,VLOOKUP(O33,'EASR lookup'!$C$5:$M$273,8,FALSE),"") ->  | R33: =IF(O33='Controls Sheet'!$C$8,VLOOKUP(O33,'EASR lookup'!$C$5:$M$273,9,FALSE),"") ->  | S33: =IF(O33='Controls Sheet'!$C$8,'EASR Charts Controls'!P33,"") ->  | T33: =IF(P33="","",VLOOKUP('Controls Sheet'!$D$8,'Controls Sheet'!$D$2:$I$6,5,FALSE)) -> 501.9 | U33: 666.4 | V33: =IF(INDEX($G$4:$K$111,,'Controls Sheet'!$F$8)=0,"",INDEX($G$4:$K$111,,'Controls Sheet'!$F$8)) -> Ryedale | W33: =IF(ISERROR(VLOOKUP($V33,'EASR lookup'!$C$5:$I$273,7,FALSE)),"",VLOOKUP($V33,'EASR lookup'!$C$5:$I$273,7,FALSE)) -> 457.1 | X33: =IF(V33='Controls Sheet'!$C$8,VLOOKUP(V33,'EASR lookup'!$C$5:$M$273,10,FALSE),"") ->  | Y33: =IF(V33='Controls Sheet'!$C$8,VLOOKUP(V33,'EASR lookup'!$C$5:$M$273,11,FALSE),"") ->  | Z33: =IF(V33='Controls Sheet'!$C$8,'EASR Charts Controls'!W33,"") ->  | AA33: =IF(W33="","",VLOOKUP('Controls Sheet'!$D$8,'Controls Sheet'!$D$2:$I$6,6,FALSE)) -> 360.3 | AB33: 484.5
B34: Fareham | C34: Dover | D34: Torfaen | E34: Wakefield | H34: Ashford | I34: Highland | J34: Tameside | K34: Rotherham | O34: =IF(INDEX($A$4:$E$111,,'Controls Sheet'!$F$8)=0,"",INDEX($A$4:$E$111,,'Controls Sheet'!$F$8)) -> Dover | P34: =IF(ISERROR(VLOOKUP($O34,'EASR lookup'!$C$5:$I$273,6,FALSE)),"",VLOOKUP($O34,'EASR lookup'!$C$5:$I$273,6,FALSE)) -> 615.8 | Q34: =IF(O34='Controls Sheet'!$C$8,VLOOKUP(O34,'EASR lookup'!$C$5:$M$273,8,FALSE),"") ->  | R34: =IF(O34='Controls Sheet'!$C$8,VLOOKUP(O34,'EASR lookup'!$C$5:$M$273,9,FALSE),"") ->  | S34: =IF(O34='Controls Sheet'!$C$8,'EASR Charts Controls'!P34,"") ->  | T34: =IF(P34="","",VLOOKUP('Controls Sheet'!$D$8,'Controls Sheet'!$D$2:$I$6,5,FALSE)) -> 501.9 | U34: 666.4 | V34: =IF(INDEX($G$4:$K$111,,'Controls Sheet'!$F$8)=0,"",INDEX($G$4:$K$111,,'Controls Sheet'!$F$8)) -> Highland | W34: =IF(ISERROR(VLOOKUP($V34,'EASR lookup'!$C$5:$I$273,7,FALSE)),"",VLOOKUP($V34,'EASR lookup'!$C$5:$I$273,7,FALSE)) -> 460.9 | X34: =IF(V34='Controls Sheet'!$C$8,VLOOKUP(V34,'EASR lookup'!$C$5:$M$273,10,FALSE),"") ->  | Y34: =IF(V34='Controls Sheet'!$C$8,VLOOKUP(V34,'EASR lookup'!$C$5:$M$273,11,FALSE),"") ->  | Z34: =IF(V34='Controls Sheet'!$C$8,'EASR Charts Controls'!W34,"") ->  | AA34: =IF(W34="","",VLOOKUP('Controls Sheet'!$D$8,'Controls Sheet'!$D$2:$I$6,6,FALSE)) -> 360.3 | AB34: 484.5
B35: Huntingdonshire | C35: Scottish Borders | D35: Neath Port Talbot | E35: Ashfield | H35: Harborough | I35: Dover | J35: Belfast | K35: Wakefield | O35: =IF(INDEX($A$4:$E$111,,'Controls Sheet'!$F$8)=0,"",INDEX($A$4:$E$111,,'Controls Sheet'!$F$8)) -> Scottish Borders | P35: =IF(ISERROR(VLOOKUP($O35,'EASR lookup'!$C$5:$I$273,6,FALSE)),"",VLOOKUP($O35,'EASR lookup'!$C$5:$I$273,6,FALSE)) -> 625.2 | Q35: =IF(O35='Controls Sheet'!$C$8,VLOOKUP(O35,'EASR lookup'!$C$5:$M$273,8,FALSE),"") ->  | R35: =IF(O35='Controls Sheet'!$C$8,VLOOKUP(O35,'EASR lookup'!$C$5:$M$273,9,FALSE),"") ->  | S35: =IF(O35='Controls Sheet'!$C$8,'EASR Charts Controls'!P35,"") ->  | T35: =IF(P35="","",VLOOKUP('Controls Sheet'!$D$8,'Controls Sheet'!$D$2:$I$6,5,FALSE)) -> 501.9 | U35: 666.4 | V35: =IF(INDEX($G$4:$K$111,,'Controls Sheet'!$F$8)=0,"",INDEX($G$4:$K$111,,'Controls Sheet'!$F$8)) -> Dover | W35: =IF(ISERROR(VLOOKUP($V35,'EASR lookup'!$C$5:$I$273,7,FALSE)),"",VLOOKUP($V35,'EASR lookup'!$C$5:$I$273,7,FALSE)) -> 466.8 | X35: =IF(V35='Controls Sheet'!$C$8,VLOOKUP(V35,'EASR lookup'!$C$5:$M$273,10,FALSE),"") ->  | Y35: =IF(V35='Controls Sheet'!$C$8,VLOOKUP(V35,'EASR lookup'!$C$5:$M$273,11,FALSE),"") ->  | Z35: =IF(V35='Controls Sheet'!$C$8,'EASR Charts Controls'!W35,"") ->  | AA35: =IF(W35="","",VLOOKUP('Controls Sheet'!$D$8,'Controls Sheet'!$D$2:$I$6,6,FALSE)) -> 360.3 | AB35: 484.5
B36: Sedgemoor | C36: West Devon | D36: South Tyneside | E36: Larne | H36: Forest of Dean | I36: East Lindsey | J36: West Lothian | K36: North East Lincolnshire | O36: =IF(INDEX($A$4:$E$111,,'Controls Sheet'!$F$8)=0,"",INDEX($A$4:$E$111,,'Controls Sheet'!$F$8)) -> West Devon | P36: =IF(ISERROR(VLOOKUP($O36,'EASR lookup'!$C$5:$I$273,6,FALSE)),"",VLOOKUP($O36,'EASR lookup'!$C$5:$I$273,6,FALSE)) -> 635 | Q36: =IF(O36='Controls Sheet'!$C$8,VLOOKUP(O36,'EASR lookup'!$C$5:$M$273,8,FALSE),"") ->  | R36: =IF(O36='Controls Sheet'!$C$8,VLOOKUP(O36,'EASR lookup'!$C$5:$M$273,9,FALSE),"") ->  | S36: =IF(O36='Controls Sheet'!$C$8,'EASR Charts Controls'!P36,"") ->  | T36: =IF(P36="","",VLOOKUP('Controls Sheet'!$D$8,'Controls Sheet'!$D$2:$I$6,5,FALSE)) -> 501.9 | U36: 666.4 | V36: =IF(INDEX($G$4:$K$111,,'Controls Sheet'!$F$8)=0,"",INDEX($G$4:$K$111,,'Controls Sheet'!$F$8)) -> East Lindsey | W36: =IF(ISERROR(VLOOKUP($V36,'EASR lookup'!$C$5:$I$273,7,FALSE)),"",VLOOKUP($V36,'EASR lookup'!$C$5:$I$273,7,FALSE)) -> 468 | X36: =IF(V36='Controls Sheet'!$C$8,VLOOKUP(V36,'EASR lookup'!$C$5:$M$273,10,FALSE),"") ->  | Y36: =IF(V36='Controls Sheet'!$C$8,VLOOKUP(V36,'EASR lookup'!$C$5:$M$273,11,FALSE),"") ->  | Z36: =IF(V36='Controls Sheet'!$C$8,'EASR Charts Controls'!W36,"") ->  | AA36: =IF(W36="","",VLOOKUP('Controls Sheet'!$D$8,'Controls Sheet'!$D$2:$I$6,6,FALSE)) -> 360.3 | AB36: 484.5
B37: Wychavon | C37: Isle of Anglesey | D37: Stoke-on-Trent | E37: Rotherham | H37: South Northamptonshire | I37: Perth & Kinross | J37: Merthyr Tydfil | K37: Doncaster | O37: =IF(INDEX($A$4:$E$111,,'Controls Sheet'!$F$8)=0,"",INDEX($A$4:$E$111,,'Controls Sheet'!$F$8)) -> Isle of Anglesey | P37: =IF(ISERROR(VLOOKUP($O37,'EASR lookup'!$C$5:$I$273,6,FALSE)),"",VLOOKUP($O37,'EASR lookup'!$C$5:$I$273,6,FALSE)) -> 636.6 | Q37: =IF(O37='Controls Sheet'!$C$8,VLOOKUP(O37,'EASR lookup'!$C$5:$M$273,8,FALSE),"") -> 66.6 | R37: =IF(O37='Controls Sheet'!$C$8,VLOOKUP(O37,'EASR lookup'!$C$5:$M$273,9,FALSE),"") -> 71.8 | S37: =IF(O37='Controls Sheet'!$C$8,'EASR Charts Controls'!P37,"") -> 636.6 | T37: =IF(P37="","",VLOOKUP('Controls Sheet'!$D$8,'Controls Sheet'!$D$2:$I$6,5,FALSE)) -> 501.9 | U37: 666.4 | V37: =IF(INDEX($G$4:$K$111,,'Controls Sheet'!$F$8)=0,"",INDEX($G$4:$K$111,,'Controls Sheet'!$F$8)) -> Perth & Kinross | W37: =IF(ISERROR(VLOOKUP($V37,'EASR lookup'!$C$5:$I$273,7,FALSE)),"",VLOOKUP($V37,'EASR lookup'!$C$5:$I$273,7,FALSE)) -> 468.7 | X37: =IF(V37='Controls Sheet'!$C$8,VLOOKUP(V37,'EASR lookup'!$C$5:$M$273,10,FALSE),"") ->  | Y37: =IF(V37='Controls Sheet'!$C$8,VLOOKUP(V37,'EASR lookup'!$C$5:$M$273,11,FALSE),"") ->  | Z37: =IF(V37='Controls Sheet'!$C$8,'EASR Charts Controls'!W37,"") ->  | AA37: =IF(W37="","",VLOOKUP('Controls Sheet'!$D$8,'Controls Sheet'!$D$2:$I$6,6,FALSE)) -> 360.3 | AB37: 484.5
B38: North Kesteven | C38: Carmarthenshire | D38: East Ayrshire | E38: North Lincolnshire | H38: Shropshire | I38: Fylde | J38: Knowsley | K38: Carrickfergus | O38: =IF(INDEX($A$4:$E$111,,'Controls Sheet'!$F$8)=0,"",INDEX($A$4:$E$111,,'Controls Sheet'!$F$8)) -> Carmarthenshire | P38: =IF(ISERROR(VLOOKUP($O38,'EASR lookup'!$C$5:$I$273,6,FALSE)),"",VLOOKUP($O38,'EASR lookup'!$C$5:$I$273,6,FALSE)) -> 639.2 | Q38: =IF(O38='Controls Sheet'!$C$8,VLOOKUP(O38,'EASR lookup'!$C$5:$M$273,8,FALSE),"") ->  | R38: =IF(O38='Controls Sheet'!$C$8,VLOOKUP(O38,'EASR lookup'!$C$5:$M$273,9,FALSE),"") ->  | S38: =IF(O38='Controls Sheet'!$C$8,'EASR Charts Controls'!P38,"") ->  | T38: =IF(P38="","",VLOOKUP('Controls Sheet'!$D$8,'Controls Sheet'!$D$2:$I$6,5,FALSE)) -> 501.9 | U38: 666.4 | V38: =IF(INDEX($G$4:$K$111,,'Controls Sheet'!$F$8)=0,"",INDEX($G$4:$K$111,,'Controls Sheet'!$F$8)) -> Fylde | W38: =IF(ISERROR(VLOOKUP($V38,'EASR lookup'!$C$5:$I$273,7,FALSE)),"",VLOOKUP($V38,'EASR lookup'!$C$5:$I$273,7,FALSE)) -> 469.1 | X38: =IF(V38='Controls Sheet'!$C$8,VLOOKUP(V38,'EASR lookup'!$C$5:$M$273,10,FALSE),"") ->  | Y38: =IF(V38='Controls Sheet'!$C$8,VLOOKUP(V38,'EASR lookup'!$C$5:$M$273,11,FALSE),"") ->  | Z38: =IF(V38='Controls Sheet'!$C$8,'EASR Charts Controls'!W38,"") ->  | AA38: =IF(W38="","",VLOOKUP('Controls Sheet'!$D$8,'Controls Sheet'!$D$2:$I$6,6,FALSE)) -> 360.3 | AB38: 484.5
B39: Mendip | C39: Allerdale | D39: South Lanarkshire | E39: North East Lincolnshire | H39: Trafford | I39: Pembrokeshire | J39: Renfrewshire | K39: Telford and Wrekin | O39: =IF(INDEX($A$4:$E$111,,'Controls Sheet'!$F$8)=0,"",INDEX($A$4:$E$111,,'Controls Sheet'!$F$8)) -> Allerdale | P39: =IF(ISERROR(VLOOKUP($O39,'EASR lookup'!$C$5:$I$273,6,FALSE)),"",VLOOKUP($O39,'EASR lookup'!$C$5:$I$273,6,FALSE)) -> 639.3 | Q39: =IF(O39='Controls Sheet'!$C$8,VLOOKUP(O39,'EASR lookup'!$C$5:$M$273,8,FALSE),"") ->  | R39: =IF(O39='Controls Sheet'!$C$8,VLOOKUP(O39,'EASR lookup'!$C$5:$M$273,9,FALSE),"") ->  | S39: =IF(O39='Controls Sheet'!$C$8,'EASR Charts Controls'!P39,"") ->  | T39: =IF(P39="","",VLOOKUP('Controls Sheet'!$D$8,'Controls Sheet'!$D$2:$I$6,5,FALSE)) -> 501.9 | U39: 666.4 | V39: =IF(INDEX($G$4:$K$111,,'Controls Sheet'!$F$8)=0,"",INDEX($G$4:$K$111,,'Controls Sheet'!$F$8)) -> Pembrokeshire | W39: =IF(ISERROR(VLOOKUP($V39,'EASR lookup'!$C$5:$I$273,7,FALSE)),"",VLOOKUP($V39,'EASR lookup'!$C$5:$I$273,7,FALSE)) -> 472 | X39: =IF(V39='Controls Sheet'!$C$8,VLOOKUP(V39,'EASR lookup'!$C$5:$M$273,10,FALSE),"") ->  | Y39: =IF(V39='Controls Sheet'!$C$8,VLOOKUP(V39,'EASR lookup'!$C$5:$M$273,11,FALSE),"") ->  | Z39: =IF(V39='Controls Sheet'!$C$8,'EASR Charts Controls'!W39,"") ->  | AA39: =IF(W39="","",VLOOKUP('Controls Sheet'!$D$8,'Controls Sheet'!$D$2:$I$6,6,FALSE)) -> 360.3 | AB39: 484.5
B40: Wiltshire | C40: Tendring | D40: Renfrewshire | E40: Corby | H40: Ribble Valley | I40: Great Yarmouth | J40: Halton | K40: Bolsover | O40: =IF(INDEX($A$4:$E$111,,'Controls Sheet'!$F$8)=0,"",INDEX($A$4:$E$111,,'Controls Sheet'!$F$8)) -> Tendring | P40: =IF(ISERROR(VLOOKUP($O40,'EASR lookup'!$C$5:$I$273,6,FALSE)),"",VLOOKUP($O40,'EASR lookup'!$C$5:$I$273,6,FALSE)) -> 640.1 | Q40: =IF(O40='Controls Sheet'!$C$8,VLOOKUP(O40,'EASR lookup'!$C$5:$M$273,8,FALSE),"") ->  | R40: =IF(O40='Controls Sheet'!$C$8,VLOOKUP(O40,'EASR lookup'!$C$5:$M$273,9,FALSE),"") ->  | S40: =IF(O40='Controls Sheet'!$C$8,'EASR Charts Controls'!P40,"") ->  | T40: =IF(P40="","",VLOOKUP('Controls Sheet'!$D$8,'Controls Sheet'!$D$2:$I$6,5,FALSE)) -> 501.9 | U40: 666.4 | V40: =IF(INDEX($G$4:$K$111,,'Controls Sheet'!$F$8)=0,"",INDEX($G$4:$K$111,,'Controls Sheet'!$F$8)) -> Great Yarmouth | W40: =IF(ISERROR(VLOOKUP($V40,'EASR lookup'!$C$5:$I$273,7,FALSE)),"",VLOOKUP($V40,'EASR lookup'!$C$5:$I$273,7,FALSE)) -> 474.2 | X40: =IF(V40='Controls Sheet'!$C$8,VLOOKUP(V40,'EASR lookup'!$C$5:$M$273,10,FALSE),"") ->  | Y40: =IF(V40='Controls Sheet'!$C$8,VLOOKUP(V40,'EASR lookup'!$C$5:$M$273,11,FALSE),"") ->  | Z40: =IF(V40='Controls Sheet'!$C$8,'EASR Charts Controls'!W40,"") ->  | AA40: =IF(W40="","",VLOOKUP('Controls Sheet'!$D$8,'Controls Sheet'!$D$2:$I$6,6,FALSE)) -> 360.3 | AB40: 484.5
B41: Broadland | C41: Scarborough | D41: Blaenau Gwent | E41: Bolsover | H41: North Somerset | I41: Thanet | J41: Clackmannanshire | K41: Bridgend | O41: =IF(INDEX($A$4:$E$111,,'Controls Sheet'!$F$8)=0,"",INDEX($A$4:$E$111,,'Controls Sheet'!$F$8)) -> Scarborough | P41: =IF(ISERROR(VLOOKUP($O41,'EASR lookup'!$C$5:$I$273,6,FALSE)),"",VLOOKUP($O41,'EASR lookup'!$C$5:$I$273,6,FALSE)) -> 650.2 | Q41: =IF(O41='Controls Sheet'!$C$8,VLOOKUP(O41,'EASR lookup'!$C$5:$M$273,8,FALSE),"") ->  | R41: =IF(O41='Controls Sheet'!$C$8,VLOOKUP(O41,'EASR lookup'!$C$5:$M$273,9,FALSE),"") ->  | S41: =IF(O41='Controls Sheet'!$C$8,'EASR Charts Controls'!P41,"") ->  | T41: =IF(P41="","",VLOOKUP('Controls Sheet'!$D$8,'Controls Sheet'!$D$2:$I$6,5,FALSE)) -> 501.9 | U41: 666.4 | V41: =IF(INDEX($G$4:$K$111,,'Controls Sheet'!$F$8)=0,"",INDEX($G$4:$K$111,,'Controls Sheet'!$F$8)) -> Thanet | W41: =IF(ISERROR(VLOOKUP($V41,'EASR lookup'!$C$5:$I$273,7,FALSE)),"",VLOOKUP($V41,'EASR lookup'!$C$5:$I$273,7,FALSE)) -> 479.1 | X41: =IF(V41='Controls Sheet'!$C$8,VLOOKUP(V41,'EASR lookup'!$C$5:$M$273,10,FALSE),"") ->  | Y41: =IF(V41='Controls Sheet'!$C$8,VLOOKUP(V41,'EASR lookup'!$C$5:$M$273,11,FALSE),"") ->  | Z41: =IF(V41='Controls Sheet'!$C$8,'EASR Charts Controls'!W41,"") ->  | AA41: =IF(W41="","",VLOOKUP('Controls Sheet'!$D$8,'Controls Sheet'!$D$2:$I$6,6,FALSE)) -> 360.3 | AB41: 484.5
B42: Cherwell | C42: Carlisle | D42: Inverclyde | E42: Wigan | H42: Kings Lynn and West Norfolk | I42: Carmarthenshire | J42: Blaenau Gwent | K42: Wigan | O42: =IF(INDEX($A$4:$E$111,,'Controls Sheet'!$F$8)=0,"",INDEX($A$4:$E$111,,'Controls Sheet'!$F$8)) -> Carlisle | P42: =IF(ISERROR(VLOOKUP($O42,'EASR lookup'!$C$5:$I$273,6,FALSE)),"",VLOOKUP($O42,'EASR lookup'!$C$5:$I$273,6,FALSE)) -> 652.4 | Q42: =IF(O42='Controls Sheet'!$C$8,VLOOKUP(O42,'EASR lookup'!$C$5:$M$273,8,FALSE),"") ->  | R42: =IF(O42='Controls Sheet'!$C$8,VLOOKUP(O42,'EASR lookup'!$C$5:$M$273,9,FALSE),"") ->  | S42: =IF(O42='Controls Sheet'!$C$8,'EASR Charts Controls'!P42,"") ->  | T42: =IF(P42="","",VLOOKUP('Controls Sheet'!$D$8,'Controls Sheet'!$D$2:$I$6,5,FALSE)) -> 501.9 | U42: 666.4 | V42: =IF(INDEX($G$4:$K$111,,'Controls Sheet'!$F$8)=0,"",INDEX($G$4:$K$111,,'Controls Sheet'!$F$8)) -> Carmarthenshire | W42: =IF(ISERROR(VLOOKUP($V42,'EASR lookup'!$C$5:$I$273,7,FALSE)),"",VLOOKUP($V42,'EASR lookup'!$C$5:$I$273,7,FALSE)) -> 481.3 | X42: =IF(V42='Controls Sheet'!$C$8,VLOOKUP(V42,'EASR lookup'!$C$5:$M$273,10,FALSE),"") ->  | Y42: =IF(V42='Controls Sheet'!$C$8,VLOOKUP(V42,'EASR lookup'!$C$5:$M$273,11,FALSE),"") ->  | Z42: =IF(V42='Controls Sheet'!$C$8,'EASR Charts Controls'!W42,"") ->  | AA42: =IF(W42="","",VLOOKUP('Controls Sheet'!$D$8,'Controls Sheet'!$D$2:$I$6,6,FALSE)) -> 360.3 | AB42: 484.5
B43: Taunton Deane | C43: Perth & Kinross | D43: North Lanarkshire | E43: Bridgend | H43: Sedgemoor | I43: Gwynedd | J43: Middlesbrough | K43: Antrim | O43: =IF(INDEX($A$4:$E$111,,'Controls Sheet'!$F$8)=0,"",INDEX($A$4:$E$111,,'Controls Sheet'!$F$8)) -> Perth & Kinross | P43: =IF(ISERROR(VLOOKUP($O43,'EASR lookup'!$C$5:$I$273,6,FALSE)),"",VLOOKUP($O43,'EASR lookup'!$C$5:$I$273,6,FALSE)) -> 652.4 | Q43: =IF(O43='Controls Sheet'!$C$8,VLOOKUP(O43,'EASR lookup'!$C$5:$M$273,8,FALSE),"") ->  | R43: =IF(O43='Controls Sheet'!$C$8,VLOOKUP(O43,'EASR lookup'!$C$5:$M$273,9,FALSE),"") ->  | S43: =IF(O43='Controls Sheet'!$C$8,'EASR Charts Controls'!P43,"") ->  | T43: =IF(P43="","",VLOOKUP('Controls Sheet'!$D$8,'Controls Sheet'!$D$2:$I$6,5,FALSE)) -> 501.9 | U43: 666.4 | V43: =IF(INDEX($G$4:$K$111,,'Controls Sheet'!$F$8)=0,"",INDEX($G$4:$K$111,,'Controls Sheet'!$F$8)) -> Gwynedd | W43: =IF(ISERROR(VLOOKUP($V43,'EASR lookup'!$C$5:$I$273,7,FALSE)),"",VLOOKUP($V43,'EASR lookup'!$C$5:$I$273,7,FALSE)) -> 488 | X43: =IF(V43='Controls Sheet'!$C$8,VLOOKUP(V43,'EASR lookup'!$C$5:$M$273,10,FALSE),"") ->  | Y43: =IF(V43='Controls Sheet'!$C$8,VLOOKUP(V43,'EASR lookup'!$C$5:$M$273,11,FALSE),"") ->  | Z43: =IF(V43='Controls Sheet'!$C$8,'EASR Charts Controls'!W43,"") ->  | AA43: =IF(W43="","",VLOOKUP('Controls Sheet'!$D$8,'Controls Sheet'!$D$2:$I$6,6,FALSE)) -> 360.3 | AB43: 484.5
B44: Cheltenham | C44: Highland | D44: Belfast | E44: Doncaster | H44: Stafford | I44: Aberdeenshire | J44: North Lanarkshire | K44: Corby | O44: =IF(INDEX($A$4:$E$111,,'Controls Sheet'!$F$8)=0,"",INDEX($A$4:$E$111,,'Controls Sheet'!$F$8)) -> Highland | P44: =IF(ISERROR(VLOOKUP($O44,'EASR lookup'!$C$5:$I$273,6,FALSE)),"",VLOOKUP($O44,'EASR lookup'!$C$5:$I$273,6,FALSE)) -> 657.3 | Q44: =IF(O44='Controls Sheet'!$C$8,VLOOKUP(O44,'EASR lookup'!$C$5:$M$273,8,FALSE),"") ->  | R44: =IF(O44='Controls Sheet'!$C$8,VLOOKUP(O44,'EASR lookup'!$C$5:$M$273,9,FALSE),"") ->  | S44: =IF(O44='Controls Sheet'!$C$8,'EASR Charts Controls'!P44,"") ->  | T44: =IF(P44="","",VLOOKUP('Controls Sheet'!$D$8,'Controls Sheet'!$D$2:$I$6,5,FALSE)) -> 501.9 | U44: 666.4 | V44: =IF(INDEX($G$4:$K$111,,'Controls Sheet'!$F$8)=0,"",INDEX($G$4:$K$111,,'Controls Sheet'!$F$8)) -> Aberdeenshire | W44: =IF(ISERROR(VLOOKUP($V44,'EASR lookup'!$C$5:$I$273,7,FALSE)),"",VLOOKUP($V44,'EASR lookup'!$C$5:$I$273,7,FALSE)) -> 495.6 | X44: =IF(V44='Controls Sheet'!$C$8,VLOOKUP(V44,'EASR lookup'!$C$5:$M$273,10,FALSE),"") ->  | Y44: =IF(V44='Controls Sheet'!$C$8,VLOOKUP(V44,'EASR lookup'!$C$5:$M$273,11,FALSE),"") ->  | Z44: =IF(V44='Controls Sheet'!$C$8,'EASR Charts Controls'!W44,"") ->  | AA44: =IF(W44="","",VLOOKUP('Controls Sheet'!$D$8,'Controls Sheet'!$D$2:$I$6,6,FALSE)) -> 360.3 | AB44: 484.5
B45: Maidstone | C45: Weymouth and Portland | D45: West Dunbartonshire | H45: Poole | I45: Wyre | J45: West Dunbartonshire | O45: =IF(INDEX($A$4:$E$111,,'Controls Sheet'!$F$8)=0,"",INDEX($A$4:$E$111,,'Controls Sheet'!$F$8)) -> Weymouth and Portland | P45: =IF(ISERROR(VLOOKUP($O45,'EASR lookup'!$C$5:$I$273,6,FALSE)),"",VLOOKUP($O45,'EASR lookup'!$C$5:$I$273,6,FALSE)) -> 659.6 | Q45: =IF(O45='Controls Sheet'!$C$8,VLOOKUP(O45,'EASR lookup'!$C$5:$M$273,8,FALSE),"") ->  | R45: =IF(O45='Controls Sheet'!$C$8,VLOOKUP(O45,'EASR lookup'!$C$5:$M$273,9,FALSE),"") ->  | S45: =IF(O45='Controls Sheet'!$C$8,'EASR Charts Controls'!P45,"") ->  | T45: =IF(P45="","",VLOOKUP('Controls Sheet'!$D$8,'Controls Sheet'!$D$2:$I$6,5,FALSE)) -> 501.9 | U45: 666.4 | V45: =IF(INDEX($G$4:$K$111,,'Controls Sheet'!$F$8)=0,"",INDEX($G$4:$K$111,,'Controls Sheet'!$F$8)) -> Wyre | W45: =IF(ISERROR(VLOOKUP($V45,'EASR lookup'!$C$5:$I$273,7,FALSE)),"",VLOOKUP($V45,'EASR lookup'!$C$5:$I$273,7,FALSE)) -> 498.4 | X45: =IF(V45='Controls Sheet'!$C$8,VLOOKUP(V45,'EASR lookup'!$C$5:$M$273,10,FALSE),"") ->  | Y45: =IF(V45='Controls Sheet'!$C$8,VLOOKUP(V45,'EASR lookup'!$C$5:$M$273,11,FALSE),"") ->  | Z45: =IF(V45='Controls Sheet'!$C$8,'EASR Charts Controls'!W45,"") ->  | AA45: =IF(W45="","",VLOOKUP('Controls Sheet'!$D$8,'Controls Sheet'!$D$2:$I$6,6,FALSE)) -> 360.3 | AB45: 484.5
B46: Charnwood | C46: Angus | H46: Rugby | I46: Tendring | O46: =IF(INDEX($A$4:$E$111,,'Controls Sheet'!$F$8)=0,"",INDEX($A$4:$E$111,,'Controls Sheet'!$F$8)) -> Angus | P46: =IF(ISERROR(VLOOKUP($O46,'EASR lookup'!$C$5:$I$273,6,FALSE)),"",VLOOKUP($O46,'EASR lookup'!$C$5:$I$273,6,FALSE)) -> 661.4 | Q46: =IF(O46='Controls Sheet'!$C$8,VLOOKUP(O46,'EASR lookup'!$C$5:$M$273,8,FALSE),"") ->  | R46: =IF(O46='Controls Sheet'!$C$8,VLOOKUP(O46,'EASR lookup'!$C$5:$M$273,9,FALSE),"") ->  | S46: =IF(O46='Controls Sheet'!$C$8,'EASR Charts Controls'!P46,"") ->  | T46: =IF(P46="","",VLOOKUP('Controls Sheet'!$D$8,'Controls Sheet'!$D$2:$I$6,5,FALSE)) -> 501.9 | U46: 666.4 | V46: =IF(INDEX($G$4:$K$111,,'Controls Sheet'!$F$8)=0,"",INDEX($G$4:$K$111,,'Controls Sheet'!$F$8)) -> Tendring | W46: =IF(ISERROR(VLOOKUP($V46,'EASR lookup'!$C$5:$I$273,7,FALSE)),"",VLOOKUP($V46,'EASR lookup'!$C$5:$I$273,7,FALSE)) -> 500.9 | X46: =IF(V46='Controls Sheet'!$C$8,VLOOKUP(V46,'EASR lookup'!$C$5:$M$273,10,FALSE),"") ->  | Y46: =IF(V46='Controls Sheet'!$C$8,VLOOKUP(V46,'EASR lookup'!$C$5:$M$273,11,FALSE),"") ->  | Z46: =IF(V46='Controls Sheet'!$C$8,'EASR Charts Controls'!W46,"") ->  | AA46: =IF(W46="","",VLOOKUP('Controls Sheet'!$D$8,'Controls Sheet'!$D$2:$I$6,6,FALSE)) -> 360.3 | AB46: 484.5
B47: Tewkesbury | C47: Thanet | H47: Taunton Deane | I47: Angus | O47: =IF(INDEX($A$4:$E$111,,'Controls Sheet'!$F$8)=0,"",INDEX($A$4:$E$111,,'Controls Sheet'!$F$8)) -> Thanet | P47: =IF(ISERROR(VLOOKUP($O47,'EASR lookup'!$C$5:$I$273,6,FALSE)),"",VLOOKUP($O47,'EASR lookup'!$C$5:$I$273,6,FALSE)) -> 661.5 | Q47: =IF(O47='Controls Sheet'!$C$8,VLOOKUP(O47,'EASR lookup'!$C$5:$M$273,8,FALSE),"") ->  | R47: =IF(O47='Controls Sheet'!$C$8,VLOOKUP(O47,'EASR lookup'!$C$5:$M$273,9,FALSE),"") ->  | S47: =IF(O47='Controls Sheet'!$C$8,'EASR Charts Controls'!P47,"") ->  | T47: =IF(P47="","",VLOOKUP('Controls Sheet'!$D$8,'Controls Sheet'!$D$2:$I$6,5,FALSE)) -> 501.9 | U47: 666.4 | V47: =IF(INDEX($G$4:$K$111,,'Controls Sheet'!$F$8)=0,"",INDEX($G$4:$K$111,,'Controls Sheet'!$F$8)) -> Angus | W47: =IF(ISERROR(VLOOKUP($V47,'EASR lookup'!$C$5:$I$273,7,FALSE)),"",VLOOKUP($V47,'EASR lookup'!$C$5:$I$273,7,FALSE)) -> 502.6 | X47: =IF(V47='Controls Sheet'!$C$8,VLOOKUP(V47,'EASR lookup'!$C$5:$M$273,10,FALSE),"") ->  | Y47: =IF(V47='Controls Sheet'!$C$8,VLOOKUP(V47,'EASR lookup'!$C$5:$M$273,11,FALSE),"") ->  | Z47: =IF(V47='Controls Sheet'!$C$8,'EASR Charts Controls'!W47,"") ->  | AA47: =IF(W47="","",VLOOKUP('Controls Sheet'!$D$8,'Controls Sheet'!$D$2:$I$6,6,FALSE)) -> 360.3 | AB47: 484.5
B48: Malvern Hills | C48: Great Yarmouth | H48: Welwyn Hatfield | I48: Carlisle | O48: =IF(INDEX($A$4:$E$111,,'Controls Sheet'!$F$8)=0,"",INDEX($A$4:$E$111,,'Controls Sheet'!$F$8)) -> Great Yarmouth | P48: =IF(ISERROR(VLOOKUP($O48,'EASR lookup'!$C$5:$I$273,6,FALSE)),"",VLOOKUP($O48,'EASR lookup'!$C$5:$I$273,6,FALSE)) -> 670.7 | Q48: =IF(O48='Controls Sheet'!$C$8,VLOOKUP(O48,'EASR lookup'!$C$5:$M$273,8,FALSE),"") ->  | R48: =IF(O48='Controls Sheet'!$C$8,VLOOKUP(O48,'EASR lookup'!$C$5:$M$273,9,FALSE),"") ->  | S48: =IF(O48='Controls Sheet'!$C$8,'EASR Charts Controls'!P48,"") ->  | T48: =IF(P48="","",VLOOKUP('Controls Sheet'!$D$8,'Controls Sheet'!$D$2:$I$6,5,FALSE)) -> 501.9 | U48: 666.4 | V48: =IF(INDEX($G$4:$K$111,,'Controls Sheet'!$F$8)=0,"",INDEX($G$4:$K$111,,'Controls Sheet'!$F$8)) -> Carlisle | W48: =IF(ISERROR(VLOOKUP($V48,'EASR lookup'!$C$5:$I$273,7,FALSE)),"",VLOOKUP($V48,'EASR lookup'!$C$5:$I$273,7,FALSE)) -> 502.7 | X48: =IF(V48='Controls Sheet'!$C$8,VLOOKUP(V48,'EASR lookup'!$C$5:$M$273,10,FALSE),"") ->  | Y48: =IF(V48='Controls Sheet'!$C$8,VLOOKUP(V48,'EASR lookup'!$C$5:$M$273,11,FALSE),"") ->  | Z48: =IF(V48='Controls Sheet'!$C$8,'EASR Charts Controls'!W48,"") ->  | AA48: =IF(W48="","",VLOOKUP('Controls Sheet'!$D$8,'Controls Sheet'!$D$2:$I$6,6,FALSE)) -> 360.3 | AB48: 484.5
B49: Gedling | C49: Wyre | H49: Central Bedfordshire | I49: Orkney Islands | O49: =IF(INDEX($A$4:$E$111,,'Controls Sheet'!$F$8)=0,"",INDEX($A$4:$E$111,,'Controls Sheet'!$F$8)) -> Wyre | P49: =IF(ISERROR(VLOOKUP($O49,'EASR lookup'!$C$5:$I$273,6,FALSE)),"",VLOOKUP($O49,'EASR lookup'!$C$5:$I$273,6,FALSE)) -> 680 | Q49: =IF(O49='Controls Sheet'!$C$8,VLOOKUP(O49,'EASR lookup'!$C$5:$M$273,8,FALSE),"") ->  | R49: =IF(O49='Controls Sheet'!$C$8,VLOOKUP(O49,'EASR lookup'!$C$5:$M$273,9,FALSE),"") ->  | S49: =IF(O49='Controls Sheet'!$C$8,'EASR Charts Controls'!P49,"") ->  | T49: =IF(P49="","",VLOOKUP('Controls Sheet'!$D$8,'Controls Sheet'!$D$2:$I$6,5,FALSE)) -> 501.9 | U49: 666.4 | V49: =IF(INDEX($G$4:$K$111,,'Controls Sheet'!$F$8)=0,"",INDEX($G$4:$K$111,,'Controls Sheet'!$F$8)) -> Orkney Islands | W49: =IF(ISERROR(VLOOKUP($V49,'EASR lookup'!$C$5:$I$273,7,FALSE)),"",VLOOKUP($V49,'EASR lookup'!$C$5:$I$273,7,FALSE)) -> 505.2 | X49: =IF(V49='Controls Sheet'!$C$8,VLOOKUP(V49,'EASR lookup'!$C$5:$M$273,10,FALSE),"") ->  | Y49: =IF(V49='Controls Sheet'!$C$8,VLOOKUP(V49,'EASR lookup'!$C$5:$M$273,11,FALSE),"") ->  | Z49: =IF(V49='Controls Sheet'!$C$8,'EASR Charts Controls'!W49,"") ->  | AA49: =IF(W49="","",VLOOKUP('Controls Sheet'!$D$8,'Controls Sheet'!$D$2:$I$6,6,FALSE)) -> 360.3 | AB49: 484.5
B50: Broxtowe | C50: Denbighshire | H50: Monmouthshire | I50: Dumfries & Galloway | O50: =IF(INDEX($A$4:$E$111,,'Controls Sheet'!$F$8)=0,"",INDEX($A$4:$E$111,,'Controls Sheet'!$F$8)) -> Denbighshire | P50: =IF(ISERROR(VLOOKUP($O50,'EASR lookup'!$C$5:$I$273,6,FALSE)),"",VLOOKUP($O50,'EASR lookup'!$C$5:$I$273,6,FALSE)) -> 681.1 | Q50: =IF(O50='Controls Sheet'!$C$8,VLOOKUP(O50,'EASR lookup'!$C$5:$M$273,8,FALSE),"") ->  | R50: =IF(O50='Controls Sheet'!$C$8,VLOOKUP(O50,'EASR lookup'!$C$5:$M$273,9,FALSE),"") ->  | S50: =IF(O50='Controls Sheet'!$C$8,'EASR Charts Controls'!P50,"") ->  | T50: =IF(P50="","",VLOOKUP('Controls Sheet'!$D$8,'Controls Sheet'!$D$2:$I$6,5,FALSE)) -> 501.9 | U50: 666.4 | V50: =IF(INDEX($G$4:$K$111,,'Controls Sheet'!$F$8)=0,"",INDEX($G$4:$K$111,,'Controls Sheet'!$F$8)) -> Dumfries & Galloway | W50: =IF(ISERROR(VLOOKUP($V50,'EASR lookup'!$C$5:$I$273,7,FALSE)),"",VLOOKUP($V50,'EASR lookup'!$C$5:$I$273,7,FALSE)) -> 505.9 | X50: =IF(V50='Controls Sheet'!$C$8,VLOOKUP(V50,'EASR lookup'!$C$5:$M$273,10,FALSE),"") ->  | Y50: =IF(V50='Controls Sheet'!$C$8,VLOOKUP(V50,'EASR lookup'!$C$5:$M$273,11,FALSE),"") ->  | Z50: =IF(V50='Controls Sheet'!$C$8,'EASR Charts Controls'!W50,"") ->  | AA50: =IF(W50="","",VLOOKUP('Controls Sheet'!$D$8,'Controls Sheet'!$D$2:$I$6,6,FALSE)) -> 360.3 | AB50: 484.5
B51: Stafford | C51: Dumfries & Galloway | H51: Wiltshire | I51: Scottish Borders | O51: =IF(INDEX($A$4:$E$111,,'Controls Sheet'!$F$8)=0,"",INDEX($A$4:$E$111,,'Controls Sheet'!$F$8)) -> Dumfries & Galloway | P51: =IF(ISERROR(VLOOKUP($O51,'EASR lookup'!$C$5:$I$273,6,FALSE)),"",VLOOKUP($O51,'EASR lookup'!$C$5:$I$273,6,FALSE)) -> 687.7 | Q51: =IF(O51='Controls Sheet'!$C$8,VLOOKUP(O51,'EASR lookup'!$C$5:$M$273,8,FALSE),"") ->  | R51: =IF(O51='Controls Sheet'!$C$8,VLOOKUP(O51,'EASR lookup'!$C$5:$M$273,9,FALSE),"") ->  | S51: =IF(O51='Controls Sheet'!$C$8,'EASR Charts Controls'!P51,"") ->  | T51: =IF(P51="","",VLOOKUP('Controls Sheet'!$D$8,'Controls Sheet'!$D$2:$I$6,5,FALSE)) -> 501.9 | U51: 666.4 | V51: =IF(INDEX($G$4:$K$111,,'Controls Sheet'!$F$8)=0,"",INDEX($G$4:$K$111,,'Controls Sheet'!$F$8)) -> Scottish Borders | W51: =IF(ISERROR(VLOOKUP($V51,'EASR lookup'!$C$5:$I$273,7,FALSE)),"",VLOOKUP($V51,'EASR lookup'!$C$5:$I$273,7,FALSE)) -> 507.4 | X51: =IF(V51='Controls Sheet'!$C$8,VLOOKUP(V51,'EASR lookup'!$C$5:$M$273,10,FALSE),"") ->  | Y51: =IF(V51='Controls Sheet'!$C$8,VLOOKUP(V51,'EASR lookup'!$C$5:$M$273,11,FALSE),"") ->  | Z51: =IF(V51='Controls Sheet'!$C$8,'EASR Charts Controls'!W51,"") ->  | AA51: =IF(W51="","",VLOOKUP('Controls Sheet'!$D$8,'Controls Sheet'!$D$2:$I$6,6,FALSE)) -> 360.3 | AB51: 484.5
B52: Poole | C52: East Lindsey | H52: Castlereagh | I52: Allerdale | O52: =IF(INDEX($A$4:$E$111,,'Controls Sheet'!$F$8)=0,"",INDEX($A$4:$E$111,,'Controls Sheet'!$F$8)) -> East Lindsey | P52: =IF(ISERROR(VLOOKUP($O52,'EASR lookup'!$C$5:$I$273,6,FALSE)),"",VLOOKUP($O52,'EASR lookup'!$C$5:$I$273,6,FALSE)) -> 691.5 | Q52: =IF(O52='Controls Sheet'!$C$8,VLOOKUP(O52,'EASR lookup'!$C$5:$M$273,8,FALSE),"") ->  | R52: =IF(O52='Controls Sheet'!$C$8,VLOOKUP(O52,'EASR lookup'!$C$5:$M$273,9,FALSE),"") ->  | S52: =IF(O52='Controls Sheet'!$C$8,'EASR Charts Controls'!P52,"") ->  | T52: =IF(P52="","",VLOOKUP('Controls Sheet'!$D$8,'Controls Sheet'!$D$2:$I$6,5,FALSE)) -> 501.9 | U52: 666.4 | V52: =IF(INDEX($G$4:$K$111,,'Controls Sheet'!$F$8)=0,"",INDEX($G$4:$K$111,,'Controls Sheet'!$F$8)) -> Allerdale | W52: =IF(ISERROR(VLOOKUP($V52,'EASR lookup'!$C$5:$I$273,7,FALSE)),"",VLOOKUP($V52,'EASR lookup'!$C$5:$I$273,7,FALSE)) -> 507.7 | X52: =IF(V52='Controls Sheet'!$C$8,VLOOKUP(V52,'EASR lookup'!$C$5:$M$273,10,FALSE),"") ->  | Y52: =IF(V52='Controls Sheet'!$C$8,VLOOKUP(V52,'EASR lookup'!$C$5:$M$273,11,FALSE),"") ->  | Z52: =IF(V52='Controls Sheet'!$C$8,'EASR Charts Controls'!W52,"") ->  | AA52: =IF(W52="","",VLOOKUP('Controls Sheet'!$D$8,'Controls Sheet'!$D$2:$I$6,6,FALSE)) -> 360.3 | AB52: 484.5
B53: Cheshire East | C53: Moray | H53: Maldon | I53: Moray | O53: =IF(INDEX($A$4:$E$111,,'Controls Sheet'!$F$8)=0,"",INDEX($A$4:$E$111,,'Controls Sheet'!$F$8)) -> Moray | P53: =IF(ISERROR(VLOOKUP($O53,'EASR lookup'!$C$5:$I$273,6,FALSE)),"",VLOOKUP($O53,'EASR lookup'!$C$5:$I$273,6,FALSE)) -> 709 | Q53: =IF(O53='Controls Sheet'!$C$8,VLOOKUP(O53,'EASR lookup'!$C$5:$M$273,8,FALSE),"") ->  | R53: =IF(O53='Controls Sheet'!$C$8,VLOOKUP(O53,'EASR lookup'!$C$5:$M$273,9,FALSE),"") ->  | S53: =IF(O53='Controls Sheet'!$C$8,'EASR Charts Controls'!P53,"") ->  | T53: =IF(P53="","",VLOOKUP('Controls Sheet'!$D$8,'Controls Sheet'!$D$2:$I$6,5,FALSE)) -> 501.9 | U53: 666.4 | V53: =IF(INDEX($G$4:$K$111,,'Controls Sheet'!$F$8)=0,"",INDEX($G$4:$K$111,,'Controls Sheet'!$F$8)) -> Moray | W53: =IF(ISERROR(VLOOKUP($V53,'EASR lookup'!$C$5:$I$273,7,FALSE)),"",VLOOKUP($V53,'EASR lookup'!$C$5:$I$273,7,FALSE)) -> 531.2 | X53: =IF(V53='Controls Sheet'!$C$8,VLOOKUP(V53,'EASR lookup'!$C$5:$M$273,10,FALSE),"") ->  | Y53: =IF(V53='Controls Sheet'!$C$8,VLOOKUP(V53,'EASR lookup'!$C$5:$M$273,11,FALSE),"") ->  | Z53: =IF(V53='Controls Sheet'!$C$8,'EASR Charts Controls'!W53,"") ->  | AA53: =IF(W53="","",VLOOKUP('Controls Sheet'!$D$8,'Controls Sheet'!$D$2:$I$6,6,FALSE)) -> 360.3 | AB53: 484.5
B54: Maldon | C54: Shetland Islands | H54: East Dunbartonshire | I54: Eilean Siar | O54: =IF(INDEX($A$4:$E$111,,'Controls Sheet'!$F$8)=0,"",INDEX($A$4:$E$111,,'Controls Sheet'!$F$8)) -> Shetland Islands | P54: =IF(ISERROR(VLOOKUP($O54,'EASR lookup'!$C$5:$I$273,6,FALSE)),"",VLOOKUP($O54,'EASR lookup'!$C$5:$I$273,6,FALSE)) -> 714.8 | Q54: =IF(O54='Controls Sheet'!$C$8,VLOOKUP(O54,'EASR lookup'!$C$5:$M$273,8,FALSE),"") ->  | R54: =IF(O54='Controls Sheet'!$C$8,VLOOKUP(O54,'EASR lookup'!$C$5:$M$273,9,FALSE),"") ->  | S54: =IF(O54='Controls Sheet'!$C$8,'EASR Charts Controls'!P54,"") ->  | T54: =IF(P54="","",VLOOKUP('Controls Sheet'!$D$8,'Controls Sheet'!$D$2:$I$6,5,FALSE)) -> 501.9 | U54: 666.4 | V54: =IF(INDEX($G$4:$K$111,,'Controls Sheet'!$F$8)=0,"",INDEX($G$4:$K$111,,'Controls Sheet'!$F$8)) -> Eilean Siar | W54: =IF(ISERROR(VLOOKUP($V54,'EASR lookup'!$C$5:$I$273,7,FALSE)),"",VLOOKUP($V54,'EASR lookup'!$C$5:$I$273,7,FALSE)) -> 532.7 | X54: =IF(V54='Controls Sheet'!$C$8,VLOOKUP(V54,'EASR lookup'!$C$5:$M$273,10,FALSE),"") ->  | Y54: =IF(V54='Controls Sheet'!$C$8,VLOOKUP(V54,'EASR lookup'!$C$5:$M$273,11,FALSE),"") ->  | Z54: =IF(V54='Controls Sheet'!$C$8,'EASR Charts Controls'!W54,"") ->  | AA54: =IF(W54="","",VLOOKUP('Controls Sheet'!$D$8,'Controls Sheet'!$D$2:$I$6,6,FALSE)) -> 360.3 | AB54: 484.5
B55: Central Bedfordshire | C55: Argyll & Bute | H55: Harrogate | I55: Argyll & Bute | O55: =IF(INDEX($A$4:$E$111,,'Controls Sheet'!$F$8)=0,"",INDEX($A$4:$E$111,,'Controls Sheet'!$F$8)) -> Argyll & Bute | P55: =IF(ISERROR(VLOOKUP($O55,'EASR lookup'!$C$5:$I$273,6,FALSE)),"",VLOOKUP($O55,'EASR lookup'!$C$5:$I$273,6,FALSE)) -> 717.8 | Q55: =IF(O55='Controls Sheet'!$C$8,VLOOKUP(O55,'EASR lookup'!$C$5:$M$273,8,FALSE),"") ->  | R55: =IF(O55='Controls Sheet'!$C$8,VLOOKUP(O55,'EASR lookup'!$C$5:$M$273,9,FALSE),"") ->  | S55: =IF(O55='Controls Sheet'!$C$8,'EASR Charts Controls'!P55,"") ->  | T55: =IF(P55="","",VLOOKUP('Controls Sheet'!$D$8,'Controls Sheet'!$D$2:$I$6,5,FALSE)) -> 501.9 | U55: 666.4 | V55: =IF(INDEX($G$4:$K$111,,'Controls Sheet'!$F$8)=0,"",INDEX($G$4:$K$111,,'Controls Sheet'!$F$8)) -> Argyll & Bute | W55: =IF(ISERROR(VLOOKUP($V55,'EASR lookup'!$C$5:$I$273,7,FALSE)),"",VLOOKUP($V55,'EASR lookup'!$C$5:$I$273,7,FALSE)) -> 533.3 | X55: =IF(V55='Controls Sheet'!$C$8,VLOOKUP(V55,'EASR lookup'!$C$5:$M$273,10,FALSE),"") ->  | Y55: =IF(V55='Controls Sheet'!$C$8,VLOOKUP(V55,'EASR lookup'!$C$5:$M$273,11,FALSE),"") ->  | Z55: =IF(V55='Controls Sheet'!$C$8,'EASR Charts Controls'!W55,"") ->  | AA55: =IF(W55="","",VLOOKUP('Controls Sheet'!$D$8,'Controls Sheet'!$D$2:$I$6,6,FALSE)) -> 360.3 | AB55: 484.5
B56: Breckland | C56: Eilean Siar | H56: Cheltenham | I56: Denbighshire | O56: =IF(INDEX($A$4:$E$111,,'Controls Sheet'!$F$8)=0,"",INDEX($A$4:$E$111,,'Controls Sheet'!$F$8)) -> Eilean Siar | P56: =IF(ISERROR(VLOOKUP($O56,'EASR lookup'!$C$5:$I$273,6,FALSE)),"",VLOOKUP($O56,'EASR lookup'!$C$5:$I$273,6,FALSE)) -> 817.3 | Q56: =IF(O56='Controls Sheet'!$C$8,VLOOKUP(O56,'EASR lookup'!$C$5:$M$273,8,FALSE),"") ->  | R56: =IF(O56='Controls Sheet'!$C$8,VLOOKUP(O56,'EASR lookup'!$C$5:$M$273,9,FALSE),"") ->  | S56: =IF(O56='Controls Sheet'!$C$8,'EASR Charts Controls'!P56,"") ->  | T56: =IF(P56="","",VLOOKUP('Controls Sheet'!$D$8,'Controls Sheet'!$D$2:$I$6,5,FALSE)) -> 501.9 | U56: 666.4 | V56: =IF(INDEX($G$4:$K$111,,'Controls Sheet'!$F$8)=0,"",INDEX($G$4:$K$111,,'Controls Sheet'!$F$8)) -> Denbighshire | W56: =IF(ISERROR(VLOOKUP($V56,'EASR lookup'!$C$5:$I$273,7,FALSE)),"",VLOOKUP($V56,'EASR lookup'!$C$5:$I$273,7,FALSE)) -> 547.7 | X56: =IF(V56='Controls Sheet'!$C$8,VLOOKUP(V56,'EASR lookup'!$C$5:$M$273,10,FALSE),"") ->  | Y56: =IF(V56='Controls Sheet'!$C$8,VLOOKUP(V56,'EASR lookup'!$C$5:$M$273,11,FALSE),"") ->  | Z56: =IF(V56='Controls Sheet'!$C$8,'EASR Charts Controls'!W56,"") ->  | AA56: =IF(W56="","",VLOOKUP('Controls Sheet'!$D$8,'Controls Sheet'!$D$2:$I$6,6,FALSE)) -> 360.3 | AB56: 484.5
B57: East Dunbartonshire | C57: Blackpool | H57: North Down | I57: Blackpool | O57: =IF(INDEX($A$4:$E$111,,'Controls Sheet'!$F$8)=0,"",INDEX($A$4:$E$111,,'Controls Sheet'!$F$8)) -> Blackpool | P57: =IF(ISERROR(VLOOKUP($O57,'EASR lookup'!$C$5:$I$273,6,FALSE)),"",VLOOKUP($O57,'EASR lookup'!$C$5:$I$273,6,FALSE)) -> 879.3 | Q57: =IF(O57='Controls Sheet'!$C$8,VLOOKUP(O57,'EASR lookup'!$C$5:$M$273,8,FALSE),"") ->  | R57: =IF(O57='Controls Sheet'!$C$8,VLOOKUP(O57,'EASR lookup'!$C$5:$M$273,9,FALSE),"") ->  | S57: =IF(O57='Controls Sheet'!$C$8,'EASR Charts Controls'!P57,"") ->  | T57: =IF(P57="","",VLOOKUP('Controls Sheet'!$D$8,'Controls Sheet'!$D$2:$I$6,5,FALSE)) -> 501.9 | U57: 666.4 | V57: =IF(INDEX($G$4:$K$111,,'Controls Sheet'!$F$8)=0,"",INDEX($G$4:$K$111,,'Controls Sheet'!$F$8)) -> Blackpool | W57: =IF(ISERROR(VLOOKUP($V57,'EASR lookup'!$C$5:$I$273,7,FALSE)),"",VLOOKUP($V57,'EASR lookup'!$C$5:$I$273,7,FALSE)) -> 576.6 | X57: =IF(V57='Controls Sheet'!$C$8,VLOOKUP(V57,'EASR lookup'!$C$5:$M$273,10,FALSE),"") ->  | Y57: =IF(V57='Controls Sheet'!$C$8,VLOOKUP(V57,'EASR lookup'!$C$5:$M$273,11,FALSE),"") ->  | Z57: =IF(V57='Controls Sheet'!$C$8,'EASR Charts Controls'!W57,"") ->  | AA57: =IF(W57="","",VLOOKUP('Controls Sheet'!$D$8,'Controls Sheet'!$D$2:$I$6,6,FALSE)) -> 360.3 | AB57: 484.5
B58: Solihull | H58: South Kesteven | O58: =IF(INDEX($A$4:$E$111,,'Controls Sheet'!$F$8)=0,"",INDEX($A$4:$E$111,,'Controls Sheet'!$F$8)) ->  | P58: =IF(ISERROR(VLOOKUP($O58,'EASR lookup'!$C$5:$I$273,6,FALSE)),"",VLOOKUP($O58,'EASR lookup'!$C$5:$I$273,6,FALSE)) ->  | Q58: =IF(O58='Controls Sheet'!$C$8,VLOOKUP(O58,'EASR lookup'!$C$5:$M$273,8,FALSE),"") ->  | R58: =IF(O58='Controls Sheet'!$C$8,VLOOKUP(O58,'EASR lookup'!$C$5:$M$273,9,FALSE),"") ->  | S58: =IF(O58='Controls Sheet'!$C$8,'EASR Charts Controls'!P58,"") ->  | T58: =IF(P58="","",VLOOKUP('Controls Sheet'!$D$8,'Controls Sheet'!$D$2:$I$6,5,FALSE)) ->  | V58: =IF(INDEX($G$4:$K$111,,'Controls Sheet'!$F$8)=0,"",INDEX($G$4:$K$111,,'Controls Sheet'!$F$8)) ->  | W58: =IF(ISERROR(VLOOKUP($V58,'EASR lookup'!$C$5:$I$273,7,FALSE)),"",VLOOKUP($V58,'EASR lookup'!$C$5:$I$273,7,FALSE)) ->  | X58: =IF(V58='Controls Sheet'!$C$8,VLOOKUP(V58,'EASR lookup'!$C$5:$M$273,10,FALSE),"") ->  | Y58: =IF(V58='Controls Sheet'!$C$8,VLOOKUP(V58,'EASR lookup'!$C$5:$M$273,11,FALSE),"") ->  | Z58: =IF(V58='Controls Sheet'!$C$8,'EASR Charts Controls'!W58,"") ->  | AA58: =IF(W58="","",VLOOKUP('Controls Sheet'!$D$8,'Controls Sheet'!$D$2:$I$6,6,FALSE)) -> 
B59: Harrogate | H59: Colchester | O59: =IF(INDEX($A$4:$E$111,,'Controls Sheet'!$F$8)=0,"",INDEX($A$4:$E$111,,'Controls Sheet'!$F$8)) ->  | P59: =IF(ISERROR(VLOOKUP($O59,'EASR lookup'!$C$5:$I$273,6,FALSE)),"",VLOOKUP($O59,'EASR lookup'!$C$5:$I$273,6,FALSE)) ->  | Q59: =IF(O59='Controls Sheet'!$C$8,VLOOKUP(O59,'EASR lookup'!$C$5:$M$273,8,FALSE),"") ->  | R59: =IF(O59='Controls Sheet'!$C$8,VLOOKUP(O59,'EASR lookup'!$C$5:$M$273,9,FALSE),"") ->  | S59: =IF(O59='Controls Sheet'!$C$8,'EASR Charts Controls'!P59,"") ->  | T59: =IF(P59="","",VLOOKUP('Controls Sheet'!$D$8,'Controls Sheet'!$D$2:$I$6,5,FALSE)) ->  | V59: =IF(INDEX($G$4:$K$111,,'Controls Sheet'!$F$8)=0,"",INDEX($G$4:$K$111,,'Controls Sheet'!$F$8)) ->  | W59: =IF(ISERROR(VLOOKUP($V59,'EASR lookup'!$C$5:$I$273,7,FALSE)),"",VLOOKUP($V59,'EASR lookup'!$C$5:$I$273,7,FALSE)) ->  | X59: =IF(V59='Controls Sheet'!$C$8,VLOOKUP(V59,'EASR lookup'!$C$5:$M$273,10,FALSE),"") ->  | Y59: =IF(V59='Controls Sheet'!$C$8,VLOOKUP(V59,'EASR lookup'!$C$5:$M$273,11,FALSE),"") ->  | Z59: =IF(V59='Controls Sheet'!$C$8,'EASR Charts Controls'!W59,"") ->  | AA59: =IF(W59="","",VLOOKUP('Controls Sheet'!$D$8,'Controls Sheet'!$D$2:$I$6,6,FALSE)) -> 
B60: Harborough | H60: East Northamptonshire | O60: =IF(INDEX($A$4:$E$111,,'Controls Sheet'!$F$8)=0,"",INDEX($A$4:$E$111,,'Controls Sheet'!$F$8)) ->  | P60: =IF(ISERROR(VLOOKUP($O60,'EASR lookup'!$C$5:$I$273,6,FALSE)),"",VLOOKUP($O60,'EASR lookup'!$C$5:$I$273,6,FALSE)) ->  | Q60: =IF(O60='Controls Sheet'!$C$8,VLOOKUP(O60,'EASR lookup'!$C$5:$M$273,8,FALSE),"") ->  | R60: =IF(O60='Controls Sheet'!$C$8,VLOOKUP(O60,'EASR lookup'!$C$5:$M$273,9,FALSE),"") ->  | S60: =IF(O60='Controls Sheet'!$C$8,'EASR Charts Controls'!P60,"") ->  | T60: =IF(P60="","",VLOOKUP('Controls Sheet'!$D$8,'Controls Sheet'!$D$2:$I$6,5,FALSE)) ->  | V60: =IF(INDEX($G$4:$K$111,,'Controls Sheet'!$F$8)=0,"",INDEX($G$4:$K$111,,'Controls Sheet'!$F$8)) ->  | W60: =IF(ISERROR(VLOOKUP($V60,'EASR lookup'!$C$5:$I$273,7,FALSE)),"",VLOOKUP($V60,'EASR lookup'!$C$5:$I$273,7,FALSE)) ->  | X60: =IF(V60='Controls Sheet'!$C$8,VLOOKUP(V60,'EASR lookup'!$C$5:$M$273,10,FALSE),"") ->  | Y60: =IF(V60='Controls Sheet'!$C$8,VLOOKUP(V60,'EASR lookup'!$C$5:$M$273,11,FALSE),"") ->  | Z60: =IF(V60='Controls Sheet'!$C$8,'EASR Charts Controls'!W60,"") ->  | AA60: =IF(W60="","",VLOOKUP('Controls Sheet'!$D$8,'Controls Sheet'!$D$2:$I$6,6,FALSE)) -> 
B61: Rutland | H61: West Oxfordshire | O61: =IF(INDEX($A$4:$E$111,,'Controls Sheet'!$F$8)=0,"",INDEX($A$4:$E$111,,'Controls Sheet'!$F$8)) ->  | P61: =IF(ISERROR(VLOOKUP($O61,'EASR lookup'!$C$5:$I$273,6,FALSE)),"",VLOOKUP($O61,'EASR lookup'!$C$5:$I$273,6,FALSE)) ->  | Q61: =IF(O61='Controls Sheet'!$C$8,VLOOKUP(O61,'EASR lookup'!$C$5:$M$273,8,FALSE),"") ->  | R61: =IF(O61='Controls Sheet'!$C$8,VLOOKUP(O61,'EASR lookup'!$C$5:$M$273,9,FALSE),"") ->  | S61: =IF(O61='Controls Sheet'!$C$8,'EASR Charts Controls'!P61,"") ->  | T61: =IF(P61="","",VLOOKUP('Controls Sheet'!$D$8,'Controls Sheet'!$D$2:$I$6,5,FALSE)) ->  | V61: =IF(INDEX($G$4:$K$111,,'Controls Sheet'!$F$8)=0,"",INDEX($G$4:$K$111,,'Controls Sheet'!$F$8)) ->  | W61: =IF(ISERROR(VLOOKUP($V61,'EASR lookup'!$C$5:$I$273,7,FALSE)),"",VLOOKUP($V61,'EASR lookup'!$C$5:$I$273,7,FALSE)) ->  | X61: =IF(V61='Controls Sheet'!$C$8,VLOOKUP(V61,'EASR lookup'!$C$5:$M$273,10,FALSE),"") ->  | Y61: =IF(V61='Controls Sheet'!$C$8,VLOOKUP(V61,'EASR lookup'!$C$5:$M$273,11,FALSE),"") ->  | Z61: =IF(V61='Controls Sheet'!$C$8,'EASR Charts Controls'!W61,"") ->  | AA61: =IF(W61="","",VLOOKUP('Controls Sheet'!$D$8,'Controls Sheet'!$D$2:$I$6,6,FALSE)) -> 
B62: Canterbury | H62: Lichfield | O62: =IF(INDEX($A$4:$E$111,,'Controls Sheet'!$F$8)=0,"",INDEX($A$4:$E$111,,'Controls Sheet'!$F$8)) ->  | P62: =IF(ISERROR(VLOOKUP($O62,'EASR lookup'!$C$5:$I$273,6,FALSE)),"",VLOOKUP($O62,'EASR lookup'!$C$5:$I$273,6,FALSE)) ->  | Q62: =IF(O62='Controls Sheet'!$C$8,VLOOKUP(O62,'EASR lookup'!$C$5:$M$273,8,FALSE),"") ->  | R62: =IF(O62='Controls Sheet'!$C$8,VLOOKUP(O62,'EASR lookup'!$C$5:$M$273,9,FALSE),"") ->  | S62: =IF(O62='Controls Sheet'!$C$8,'EASR Charts Controls'!P62,"") ->  | T62: =IF(P62="","",VLOOKUP('Controls Sheet'!$D$8,'Controls Sheet'!$D$2:$I$6,5,FALSE)) ->  | V62: =IF(INDEX($G$4:$K$111,,'Controls Sheet'!$F$8)=0,"",INDEX($G$4:$K$111,,'Controls Sheet'!$F$8)) ->  | W62: =IF(ISERROR(VLOOKUP($V62,'EASR lookup'!$C$5:$I$273,7,FALSE)),"",VLOOKUP($V62,'EASR lookup'!$C$5:$I$273,7,FALSE)) ->  | X62: =IF(V62='Controls Sheet'!$C$8,VLOOKUP(V62,'EASR lookup'!$C$5:$M$273,10,FALSE),"") ->  | Y62: =IF(V62='Controls Sheet'!$C$8,VLOOKUP(V62,'EASR lookup'!$C$5:$M$273,11,FALSE),"") ->  | Z62: =IF(V62='Controls Sheet'!$C$8,'EASR Charts Controls'!W62,"") ->  | AA62: =IF(W62="","",VLOOKUP('Controls Sheet'!$D$8,'Controls Sheet'!$D$2:$I$6,6,FALSE)) -> 
B63: Hinckley and Bosworth | H63: Huntingdonshire | O63: =IF(INDEX($A$4:$E$111,,'Controls Sheet'!$F$8)=0,"",INDEX($A$4:$E$111,,'Controls Sheet'!$F$8)) ->  | P63: =IF(ISERROR(VLOOKUP($O63,'EASR lookup'!$C$5:$I$273,6,FALSE)),"",VLOOKUP($O63,'EASR lookup'!$C$5:$I$273,6,FALSE)) ->  | Q63: =IF(O63='Controls Sheet'!$C$8,VLOOKUP(O63,'EASR lookup'!$C$5:$M$273,8,FALSE),"") ->  | R63: =IF(O63='Controls Sheet'!$C$8,VLOOKUP(O63,'EASR lookup'!$C$5:$M$273,9,FALSE),"") ->  | S63: =IF(O63='Controls Sheet'!$C$8,'EASR Charts Controls'!P63,"") ->  | T63: =IF(P63="","",VLOOKUP('Controls Sheet'!$D$8,'Controls Sheet'!$D$2:$I$6,5,FALSE)) ->  | V63: =IF(INDEX($G$4:$K$111,,'Controls Sheet'!$F$8)=0,"",INDEX($G$4:$K$111,,'Controls Sheet'!$F$8)) ->  | W63: =IF(ISERROR(VLOOKUP($V63,'EASR lookup'!$C$5:$I$273,7,FALSE)),"",VLOOKUP($V63,'EASR lookup'!$C$5:$I$273,7,FALSE)) ->  | X63: =IF(V63='Controls Sheet'!$C$8,VLOOKUP(V63,'EASR lookup'!$C$5:$M$273,10,FALSE),"") ->  | Y63: =IF(V63='Controls Sheet'!$C$8,VLOOKUP(V63,'EASR lookup'!$C$5:$M$273,11,FALSE),"") ->  | Z63: =IF(V63='Controls Sheet'!$C$8,'EASR Charts Controls'!W63,"") ->  | AA63: =IF(W63="","",VLOOKUP('Controls Sheet'!$D$8,'Controls Sheet'!$D$2:$I$6,6,FALSE)) -> 
B64: South Ribble | H64: Hinckley and Bosworth | O64: =IF(INDEX($A$4:$E$111,,'Controls Sheet'!$F$8)=0,"",INDEX($A$4:$E$111,,'Controls Sheet'!$F$8)) ->  | P64: =IF(ISERROR(VLOOKUP($O64,'EASR lookup'!$C$5:$I$273,6,FALSE)),"",VLOOKUP($O64,'EASR lookup'!$C$5:$I$273,6,FALSE)) ->  | Q64: =IF(O64='Controls Sheet'!$C$8,VLOOKUP(O64,'EASR lookup'!$C$5:$M$273,8,FALSE),"") ->  | R64: =IF(O64='Controls Sheet'!$C$8,VLOOKUP(O64,'EASR lookup'!$C$5:$M$273,9,FALSE),"") ->  | S64: =IF(O64='Controls Sheet'!$C$8,'EASR Charts Controls'!P64,"") ->  | T64: =IF(P64="","",VLOOKUP('Controls Sheet'!$D$8,'Controls Sheet'!$D$2:$I$6,5,FALSE)) ->  | V64: =IF(INDEX($G$4:$K$111,,'Controls Sheet'!$F$8)=0,"",INDEX($G$4:$K$111,,'Controls Sheet'!$F$8)) ->  | W64: =IF(ISERROR(VLOOKUP($V64,'EASR lookup'!$C$5:$I$273,7,FALSE)),"",VLOOKUP($V64,'EASR lookup'!$C$5:$I$273,7,FALSE)) ->  | X64: =IF(V64='Controls Sheet'!$C$8,VLOOKUP(V64,'EASR lookup'!$C$5:$M$273,10,FALSE),"") ->  | Y64: =IF(V64='Controls Sheet'!$C$8,VLOOKUP(V64,'EASR lookup'!$C$5:$M$273,11,FALSE),"") ->  | Z64: =IF(V64='Controls Sheet'!$C$8,'EASR Charts Controls'!W64,"") ->  | AA64: =IF(W64="","",VLOOKUP('Controls Sheet'!$D$8,'Controls Sheet'!$D$2:$I$6,6,FALSE)) -> 
B65: Lichfield | H65: Broxtowe | O65: =IF(INDEX($A$4:$E$111,,'Controls Sheet'!$F$8)=0,"",INDEX($A$4:$E$111,,'Controls Sheet'!$F$8)) ->  | P65: =IF(ISERROR(VLOOKUP($O65,'EASR lookup'!$C$5:$I$273,6,FALSE)),"",VLOOKUP($O65,'EASR lookup'!$C$5:$I$273,6,FALSE)) ->  | Q65: =IF(O65='Controls Sheet'!$C$8,VLOOKUP(O65,'EASR lookup'!$C$5:$M$273,8,FALSE),"") ->  | R65: =IF(O65='Controls Sheet'!$C$8,VLOOKUP(O65,'EASR lookup'!$C$5:$M$273,9,FALSE),"") ->  | S65: =IF(O65='Controls Sheet'!$C$8,'EASR Charts Controls'!P65,"") ->  | T65: =IF(P65="","",VLOOKUP('Controls Sheet'!$D$8,'Controls Sheet'!$D$2:$I$6,5,FALSE)) ->  | V65: =IF(INDEX($G$4:$K$111,,'Controls Sheet'!$F$8)=0,"",INDEX($G$4:$K$111,,'Controls Sheet'!$F$8)) ->  | W65: =IF(ISERROR(VLOOKUP($V65,'EASR lookup'!$C$5:$I$273,7,FALSE)),"",VLOOKUP($V65,'EASR lookup'!$C$5:$I$273,7,FALSE)) ->  | X65: =IF(V65='Controls Sheet'!$C$8,VLOOKUP(V65,'EASR lookup'!$C$5:$M$273,10,FALSE),"") ->  | Y65: =IF(V65='Controls Sheet'!$C$8,VLOOKUP(V65,'EASR lookup'!$C$5:$M$273,11,FALSE),"") ->  | Z65: =IF(V65='Controls Sheet'!$C$8,'EASR Charts Controls'!W65,"") ->  | AA65: =IF(W65="","",VLOOKUP('Controls Sheet'!$D$8,'Controls Sheet'!$D$2:$I$6,6,FALSE)) -> 
B66: North Somerset | H66: Bromsgrove | O66: =IF(INDEX($A$4:$E$111,,'Controls Sheet'!$F$8)=0,"",INDEX($A$4:$E$111,,'Controls Sheet'!$F$8)) ->  | P66: =IF(ISERROR(VLOOKUP($O66,'EASR lookup'!$C$5:$I$273,6,FALSE)),"",VLOOKUP($O66,'EASR lookup'!$C$5:$I$273,6,FALSE)) ->  | Q66: =IF(O66='Controls Sheet'!$C$8,VLOOKUP(O66,'EASR lookup'!$C$5:$M$273,8,FALSE),"") ->  | R66: =IF(O66='Controls Sheet'!$C$8,VLOOKUP(O66,'EASR lookup'!$C$5:$M$273,9,FALSE),"") ->  | S66: =IF(O66='Controls Sheet'!$C$8,'EASR Charts Controls'!P66,"") ->  | T66: =IF(P66="","",VLOOKUP('Controls Sheet'!$D$8,'Controls Sheet'!$D$2:$I$6,5,FALSE)) ->  | V66: =IF(INDEX($G$4:$K$111,,'Controls Sheet'!$F$8)=0,"",INDEX($G$4:$K$111,,'Controls Sheet'!$F$8)) ->  | W66: =IF(ISERROR(VLOOKUP($V66,'EASR lookup'!$C$5:$I$273,7,FALSE)),"",VLOOKUP($V66,'EASR lookup'!$C$5:$I$273,7,FALSE)) ->  | X66: =IF(V66='Controls Sheet'!$C$8,VLOOKUP(V66,'EASR lookup'!$C$5:$M$273,10,FALSE),"") ->  | Y66: =IF(V66='Controls Sheet'!$C$8,VLOOKUP(V66,'EASR lookup'!$C$5:$M$273,11,FALSE),"") ->  | Z66: =IF(V66='Controls Sheet'!$C$8,'EASR Charts Controls'!W66,"") ->  | AA66: =IF(W66="","",VLOOKUP('Controls Sheet'!$D$8,'Controls Sheet'!$D$2:$I$6,6,FALSE)) -> 
B67: Kings Lynn and West Norfolk | H67: Tewkesbury | O67: =IF(INDEX($A$4:$E$111,,'Controls Sheet'!$F$8)=0,"",INDEX($A$4:$E$111,,'Controls Sheet'!$F$8)) ->  | P67: =IF(ISERROR(VLOOKUP($O67,'EASR lookup'!$C$5:$I$273,6,FALSE)),"",VLOOKUP($O67,'EASR lookup'!$C$5:$I$273,6,FALSE)) ->  | Q67: =IF(O67='Controls Sheet'!$C$8,VLOOKUP(O67,'EASR lookup'!$C$5:$M$273,8,FALSE),"") ->  | R67: =IF(O67='Controls Sheet'!$C$8,VLOOKUP(O67,'EASR lookup'!$C$5:$M$273,9,FALSE),"") ->  | S67: =IF(O67='Controls Sheet'!$C$8,'EASR Charts Controls'!P67,"") ->  | T67: =IF(P67="","",VLOOKUP('Controls Sheet'!$D$8,'Controls Sheet'!$D$2:$I$6,5,FALSE)) ->  | V67: =IF(INDEX($G$4:$K$111,,'Controls Sheet'!$F$8)=0,"",INDEX($G$4:$K$111,,'Controls Sheet'!$F$8)) ->  | W67: =IF(ISERROR(VLOOKUP($V67,'EASR lookup'!$C$5:$I$273,7,FALSE)),"",VLOOKUP($V67,'EASR lookup'!$C$5:$I$273,7,FALSE)) ->  | X67: =IF(V67='Controls Sheet'!$C$8,VLOOKUP(V67,'EASR lookup'!$C$5:$M$273,10,FALSE),"") ->  | Y67: =IF(V67='Controls Sheet'!$C$8,VLOOKUP(V67,'EASR lookup'!$C$5:$M$273,11,FALSE),"") ->  | Z67: =IF(V67='Controls Sheet'!$C$8,'EASR Charts Controls'!W67,"") ->  | AA67: =IF(W67="","",VLOOKUP('Controls Sheet'!$D$8,'Controls Sheet'!$D$2:$I$6,6,FALSE)) -> 
B68: County of Herefordshire | H68: York | O68: =IF(INDEX($A$4:$E$111,,'Controls Sheet'!$F$8)=0,"",INDEX($A$4:$E$111,,'Controls Sheet'!$F$8)) ->  | P68: =IF(ISERROR(VLOOKUP($O68,'EASR lookup'!$C$5:$I$273,6,FALSE)),"",VLOOKUP($O68,'EASR lookup'!$C$5:$I$273,6,FALSE)) ->  | Q68: =IF(O68='Controls Sheet'!$C$8,VLOOKUP(O68,'EASR lookup'!$C$5:$M$273,8,FALSE),"") ->  | R68: =IF(O68='Controls Sheet'!$C$8,VLOOKUP(O68,'EASR lookup'!$C$5:$M$273,9,FALSE),"") ->  | S68: =IF(O68='Controls Sheet'!$C$8,'EASR Charts Controls'!P68,"") ->  | T68: =IF(P68="","",VLOOKUP('Controls Sheet'!$D$8,'Controls Sheet'!$D$2:$I$6,5,FALSE)) ->  | V68: =IF(INDEX($G$4:$K$111,,'Controls Sheet'!$F$8)=0,"",INDEX($G$4:$K$111,,'Controls Sheet'!$F$8)) ->  | W68: =IF(ISERROR(VLOOKUP($V68,'EASR lookup'!$C$5:$I$273,7,FALSE)),"",VLOOKUP($V68,'EASR lookup'!$C$5:$I$273,7,FALSE)) ->  | X68: =IF(V68='Controls Sheet'!$C$8,VLOOKUP(V68,'EASR lookup'!$C$5:$M$273,10,FALSE),"") ->  | Y68: =IF(V68='Controls Sheet'!$C$8,VLOOKUP(V68,'EASR lookup'!$C$5:$M$273,11,FALSE),"") ->  | Z68: =IF(V68='Controls Sheet'!$C$8,'EASR Charts Controls'!W68,"") ->  | AA68: =IF(W68="","",VLOOKUP('Controls Sheet'!$D$8,'Controls Sheet'!$D$2:$I$6,6,FALSE)) -> 
B69: Warwick | H69: Breckland | O69: =IF(INDEX($A$4:$E$111,,'Controls Sheet'!$F$8)=0,"",INDEX($A$4:$E$111,,'Controls Sheet'!$F$8)) ->  | P69: =IF(ISERROR(VLOOKUP($O69,'EASR lookup'!$C$5:$I$273,6,FALSE)),"",VLOOKUP($O69,'EASR lookup'!$C$5:$I$273,6,FALSE)) ->  | Q69: =IF(O69='Controls Sheet'!$C$8,VLOOKUP(O69,'EASR lookup'!$C$5:$M$273,8,FALSE),"") ->  | R69: =IF(O69='Controls Sheet'!$C$8,VLOOKUP(O69,'EASR lookup'!$C$5:$M$273,9,FALSE),"") ->  | S69: =IF(O69='Controls Sheet'!$C$8,'EASR Charts Controls'!P69,"") ->  | T69: =IF(P69="","",VLOOKUP('Controls Sheet'!$D$8,'Controls Sheet'!$D$2:$I$6,5,FALSE)) ->  | U69: =IF(P69="","",666.4) ->  | V69: =IF(INDEX($G$4:$K$111,,'Controls Sheet'!$F$8)=0,"",INDEX($G$4:$K$111,,'Controls Sheet'!$F$8)) ->  | W69: =IF(ISERROR(VLOOKUP($V69,'EASR lookup'!$C$5:$I$273,7,FALSE)),"",VLOOKUP($V69,'EASR lookup'!$C$5:$I$273,7,FALSE)) ->  | X69: =IF(V69='Controls Sheet'!$C$8,VLOOKUP(V69,'EASR lookup'!$C$5:$M$273,10,FALSE),"") ->  | Y69: =IF(V69='Controls Sheet'!$C$8,VLOOKUP(V69,'EASR lookup'!$C$5:$M$273,11,FALSE),"") ->  | Z69: =IF(V69='Controls Sheet'!$C$8,'EASR Charts Controls'!W69,"") ->  | AA69: =IF(W69="","",VLOOKUP('Controls Sheet'!$D$8,'Controls Sheet'!$D$2:$I$6,6,FALSE)) ->  | AB69: =IF(W69="","",484.5) -> 
B70: Adur | H70: Maidstone | O70: =IF(INDEX($A$4:$E$111,,'Controls Sheet'!$F$8)=0,"",INDEX($A$4:$E$111,,'Controls Sheet'!$F$8)) ->  | P70: =IF(ISERROR(VLOOKUP($O70,'EASR lookup'!$C$5:$I$273,6,FALSE)),"",VLOOKUP($O70,'EASR lookup'!$C$5:$I$273,6,FALSE)) ->  | Q70: =IF(O70='Controls Sheet'!$C$8,VLOOKUP(O70,'EASR lookup'!$C$5:$M$273,8,FALSE),"") ->  | R70: =IF(O70='Controls Sheet'!$C$8,VLOOKUP(O70,'EASR lookup'!$C$5:$M$273,9,FALSE),"") ->  | S70: =IF(O70='Controls Sheet'!$C$8,'EASR Charts Controls'!P70,"") ->  | T70: =IF(P70="","",VLOOKUP('Controls Sheet'!$D$8,'Controls Sheet'!$D$2:$I$6,5,FALSE)) ->  | V70: =IF(INDEX($G$4:$K$111,,'Controls Sheet'!$F$8)=0,"",INDEX($G$4:$K$111,,'Controls Sheet'!$F$8)) ->  | W70: =IF(ISERROR(VLOOKUP($V70,'EASR lookup'!$C$5:$I$273,7,FALSE)),"",VLOOKUP($V70,'EASR lookup'!$C$5:$I$273,7,FALSE)) ->  | X70: =IF(V70='Controls Sheet'!$C$8,VLOOKUP(V70,'EASR lookup'!$C$5:$M$273,10,FALSE),"") ->  | Y70: =IF(V70='Controls Sheet'!$C$8,VLOOKUP(V70,'EASR lookup'!$C$5:$M$273,11,FALSE),"") ->  | Z70: =IF(V70='Controls Sheet'!$C$8,'EASR Charts Controls'!W70,"") ->  | AA70: =IF(W70="","",VLOOKUP('Controls Sheet'!$D$8,'Controls Sheet'!$D$2:$I$6,6,FALSE)) -> 
B71: Castle Point | H71: Wyre Forest | O71: =IF(INDEX($A$4:$E$111,,'Controls Sheet'!$F$8)=0,"",INDEX($A$4:$E$111,,'Controls Sheet'!$F$8)) ->  | P71: =IF(ISERROR(VLOOKUP($O71,'EASR lookup'!$C$5:$I$273,6,FALSE)),"",VLOOKUP($O71,'EASR lookup'!$C$5:$I$273,6,FALSE)) ->  | Q71: =IF(O71='Controls Sheet'!$C$8,VLOOKUP(O71,'EASR lookup'!$C$5:$M$273,8,FALSE),"") ->  | R71: =IF(O71='Controls Sheet'!$C$8,VLOOKUP(O71,'EASR lookup'!$C$5:$M$273,9,FALSE),"") ->  | S71: =IF(O71='Controls Sheet'!$C$8,'EASR Charts Controls'!P71,"") ->  | T71: =IF(P71="","",VLOOKUP('Controls Sheet'!$D$8,'Controls Sheet'!$D$2:$I$6,5,FALSE)) ->  | V71: =IF(INDEX($G$4:$K$111,,'Controls Sheet'!$F$8)=0,"",INDEX($G$4:$K$111,,'Controls Sheet'!$F$8)) ->  | W71: =IF(ISERROR(VLOOKUP($V71,'EASR lookup'!$C$5:$I$273,7,FALSE)),"",VLOOKUP($V71,'EASR lookup'!$C$5:$I$273,7,FALSE)) ->  | X71: =IF(V71='Controls Sheet'!$C$8,VLOOKUP(V71,'EASR lookup'!$C$5:$M$273,10,FALSE),"") ->  | Y71: =IF(V71='Controls Sheet'!$C$8,VLOOKUP(V71,'EASR lookup'!$C$5:$M$273,11,FALSE),"") ->  | Z71: =IF(V71='Controls Sheet'!$C$8,'EASR Charts Controls'!W71,"") ->  | AA71: =IF(W71="","",VLOOKUP('Controls Sheet'!$D$8,'Controls Sheet'!$D$2:$I$6,6,FALSE)) -> 
B72: East Northamptonshire | H72: St. Edmundsbury | O72: =IF(INDEX($A$4:$E$111,,'Controls Sheet'!$F$8)=0,"",INDEX($A$4:$E$111,,'Controls Sheet'!$F$8)) ->  | P72: =IF(ISERROR(VLOOKUP($O72,'EASR lookup'!$C$5:$I$273,6,FALSE)),"",VLOOKUP($O72,'EASR lookup'!$C$5:$I$273,6,FALSE)) ->  | Q72: =IF(O72='Controls Sheet'!$C$8,VLOOKUP(O72,'EASR lookup'!$C$5:$M$273,8,FALSE),"") ->  | R72: =IF(O72='Controls Sheet'!$C$8,VLOOKUP(O72,'EASR lookup'!$C$5:$M$273,9,FALSE),"") ->  | S72: =IF(O72='Controls Sheet'!$C$8,'EASR Charts Controls'!P72,"") ->  | T72: =IF(P72="","",VLOOKUP('Controls Sheet'!$D$8,'Controls Sheet'!$D$2:$I$6,5,FALSE)) ->  | V72: =IF(INDEX($G$4:$K$111,,'Controls Sheet'!$F$8)=0,"",INDEX($G$4:$K$111,,'Controls Sheet'!$F$8)) ->  | W72: =IF(ISERROR(VLOOKUP($V72,'EASR lookup'!$C$5:$I$273,7,FALSE)),"",VLOOKUP($V72,'EASR lookup'!$C$5:$I$273,7,FALSE)) ->  | X72: =IF(V72='Controls Sheet'!$C$8,VLOOKUP(V72,'EASR lookup'!$C$5:$M$273,10,FALSE),"") ->  | Y72: =IF(V72='Controls Sheet'!$C$8,VLOOKUP(V72,'EASR lookup'!$C$5:$M$273,11,FALSE),"") ->  | Z72: =IF(V72='Controls Sheet'!$C$8,'EASR Charts Controls'!W72,"") ->  | AA72: =IF(W72="","",VLOOKUP('Controls Sheet'!$D$8,'Controls Sheet'!$D$2:$I$6,6,FALSE)) -> 
B73: Stroud | H73: Malvern Hills | O73: =IF(INDEX($A$4:$E$111,,'Controls Sheet'!$F$8)=0,"",INDEX($A$4:$E$111,,'Controls Sheet'!$F$8)) ->  | P73: =IF(ISERROR(VLOOKUP($O73,'EASR lookup'!$C$5:$I$273,6,FALSE)),"",VLOOKUP($O73,'EASR lookup'!$C$5:$I$273,6,FALSE)) ->  | Q73: =IF(O73='Controls Sheet'!$C$8,VLOOKUP(O73,'EASR lookup'!$C$5:$M$273,8,FALSE),"") ->  | R73: =IF(O73='Controls Sheet'!$C$8,VLOOKUP(O73,'EASR lookup'!$C$5:$M$273,9,FALSE),"") ->  | S73: =IF(O73='Controls Sheet'!$C$8,'EASR Charts Controls'!P73,"") ->  | T73: =IF(P73="","",VLOOKUP('Controls Sheet'!$D$8,'Controls Sheet'!$D$2:$I$6,5,FALSE)) ->  | V73: =IF(INDEX($G$4:$K$111,,'Controls Sheet'!$F$8)=0,"",INDEX($G$4:$K$111,,'Controls Sheet'!$F$8)) ->  | W73: =IF(ISERROR(VLOOKUP($V73,'EASR lookup'!$C$5:$I$273,7,FALSE)),"",VLOOKUP($V73,'EASR lookup'!$C$5:$I$273,7,FALSE)) ->  | X73: =IF(V73='Controls Sheet'!$C$8,VLOOKUP(V73,'EASR lookup'!$C$5:$M$273,10,FALSE),"") ->  | Y73: =IF(V73='Controls Sheet'!$C$8,VLOOKUP(V73,'EASR lookup'!$C$5:$M$273,11,FALSE),"") ->  | Z73: =IF(V73='Controls Sheet'!$C$8,'EASR Charts Controls'!W73,"") ->  | AA73: =IF(W73="","",VLOOKUP('Controls Sheet'!$D$8,'Controls Sheet'!$D$2:$I$6,6,FALSE)) -> 
B74: Shropshire | H74: West Lancashire | O74: =IF(INDEX($A$4:$E$111,,'Controls Sheet'!$F$8)=0,"",INDEX($A$4:$E$111,,'Controls Sheet'!$F$8)) ->  | P74: =IF(ISERROR(VLOOKUP($O74,'EASR lookup'!$C$5:$I$273,6,FALSE)),"",VLOOKUP($O74,'EASR lookup'!$C$5:$I$273,6,FALSE)) ->  | Q74: =IF(O74='Controls Sheet'!$C$8,VLOOKUP(O74,'EASR lookup'!$C$5:$M$273,8,FALSE),"") ->  | R74: =IF(O74='Controls Sheet'!$C$8,VLOOKUP(O74,'EASR lookup'!$C$5:$M$273,9,FALSE),"") ->  | S74: =IF(O74='Controls Sheet'!$C$8,'EASR Charts Controls'!P74,"") ->  | T74: =IF(P74="","",VLOOKUP('Controls Sheet'!$D$8,'Controls Sheet'!$D$2:$I$6,5,FALSE)) ->  | V74: =IF(INDEX($G$4:$K$111,,'Controls Sheet'!$F$8)=0,"",INDEX($G$4:$K$111,,'Controls Sheet'!$F$8)) ->  | W74: =IF(ISERROR(VLOOKUP($V74,'EASR lookup'!$C$5:$I$273,7,FALSE)),"",VLOOKUP($V74,'EASR lookup'!$C$5:$I$273,7,FALSE)) ->  | X74: =IF(V74='Controls Sheet'!$C$8,VLOOKUP(V74,'EASR lookup'!$C$5:$M$273,10,FALSE),"") ->  | Y74: =IF(V74='Controls Sheet'!$C$8,VLOOKUP(V74,'EASR lookup'!$C$5:$M$273,11,FALSE),"") ->  | Z74: =IF(V74='Controls Sheet'!$C$8,'EASR Charts Controls'!W74,"") ->  | AA74: =IF(W74="","",VLOOKUP('Controls Sheet'!$D$8,'Controls Sheet'!$D$2:$I$6,6,FALSE)) -> 
B75: High Peak | H75: Cherwell | O75: =IF(INDEX($A$4:$E$111,,'Controls Sheet'!$F$8)=0,"",INDEX($A$4:$E$111,,'Controls Sheet'!$F$8)) ->  | P75: =IF(ISERROR(VLOOKUP($O75,'EASR lookup'!$C$5:$I$273,6,FALSE)),"",VLOOKUP($O75,'EASR lookup'!$C$5:$I$273,6,FALSE)) ->  | Q75: =IF(O75='Controls Sheet'!$C$8,VLOOKUP(O75,'EASR lookup'!$C$5:$M$273,8,FALSE),"") ->  | R75: =IF(O75='Controls Sheet'!$C$8,VLOOKUP(O75,'EASR lookup'!$C$5:$M$273,9,FALSE),"") ->  | S75: =IF(O75='Controls Sheet'!$C$8,'EASR Charts Controls'!P75,"") ->  | T75: =IF(P75="","",VLOOKUP('Controls Sheet'!$D$8,'Controls Sheet'!$D$2:$I$6,5,FALSE)) ->  | V75: =IF(INDEX($G$4:$K$111,,'Controls Sheet'!$F$8)=0,"",INDEX($G$4:$K$111,,'Controls Sheet'!$F$8)) ->  | W75: =IF(ISERROR(VLOOKUP($V75,'EASR lookup'!$C$5:$I$273,7,FALSE)),"",VLOOKUP($V75,'EASR lookup'!$C$5:$I$273,7,FALSE)) ->  | X75: =IF(V75='Controls Sheet'!$C$8,VLOOKUP(V75,'EASR lookup'!$C$5:$M$273,10,FALSE),"") ->  | Y75: =IF(V75='Controls Sheet'!$C$8,VLOOKUP(V75,'EASR lookup'!$C$5:$M$273,11,FALSE),"") ->  | Z75: =IF(V75='Controls Sheet'!$C$8,'EASR Charts Controls'!W75,"") ->  | AA75: =IF(W75="","",VLOOKUP('Controls Sheet'!$D$8,'Controls Sheet'!$D$2:$I$6,6,FALSE)) -> 
B76: East Riding of Yorks | H76: Staffordshire Moorlands | O76: =IF(INDEX($A$4:$E$111,,'Controls Sheet'!$F$8)=0,"",INDEX($A$4:$E$111,,'Controls Sheet'!$F$8)) ->  | P76: =IF(ISERROR(VLOOKUP($O76,'EASR lookup'!$C$5:$I$273,6,FALSE)),"",VLOOKUP($O76,'EASR lookup'!$C$5:$I$273,6,FALSE)) ->  | Q76: =IF(O76='Controls Sheet'!$C$8,VLOOKUP(O76,'EASR lookup'!$C$5:$M$273,8,FALSE),"") ->  | R76: =IF(O76='Controls Sheet'!$C$8,VLOOKUP(O76,'EASR lookup'!$C$5:$M$273,9,FALSE),"") ->  | S76: =IF(O76='Controls Sheet'!$C$8,'EASR Charts Controls'!P76,"") ->  | T76: =IF(P76="","",VLOOKUP('Controls Sheet'!$D$8,'Controls Sheet'!$D$2:$I$6,5,FALSE)) ->  | V76: =IF(INDEX($G$4:$K$111,,'Controls Sheet'!$F$8)=0,"",INDEX($G$4:$K$111,,'Controls Sheet'!$F$8)) ->  | W76: =IF(ISERROR(VLOOKUP($V76,'EASR lookup'!$C$5:$I$273,7,FALSE)),"",VLOOKUP($V76,'EASR lookup'!$C$5:$I$273,7,FALSE)) ->  | X76: =IF(V76='Controls Sheet'!$C$8,VLOOKUP(V76,'EASR lookup'!$C$5:$M$273,10,FALSE),"") ->  | Y76: =IF(V76='Controls Sheet'!$C$8,VLOOKUP(V76,'EASR lookup'!$C$5:$M$273,11,FALSE),"") ->  | Z76: =IF(V76='Controls Sheet'!$C$8,'EASR Charts Controls'!W76,"") ->  | AA76: =IF(W76="","",VLOOKUP('Controls Sheet'!$D$8,'Controls Sheet'!$D$2:$I$6,6,FALSE)) -> 
B77: Fenland | H77: Richmondshire | O77: =IF(INDEX($A$4:$E$111,,'Controls Sheet'!$F$8)=0,"",INDEX($A$4:$E$111,,'Controls Sheet'!$F$8)) ->  | P77: =IF(ISERROR(VLOOKUP($O77,'EASR lookup'!$C$5:$I$273,6,FALSE)),"",VLOOKUP($O77,'EASR lookup'!$C$5:$I$273,6,FALSE)) ->  | Q77: =IF(O77='Controls Sheet'!$C$8,VLOOKUP(O77,'EASR lookup'!$C$5:$M$273,8,FALSE),"") ->  | R77: =IF(O77='Controls Sheet'!$C$8,VLOOKUP(O77,'EASR lookup'!$C$5:$M$273,9,FALSE),"") ->  | S77: =IF(O77='Controls Sheet'!$C$8,'EASR Charts Controls'!P77,"") ->  | T77: =IF(P77="","",VLOOKUP('Controls Sheet'!$D$8,'Controls Sheet'!$D$2:$I$6,5,FALSE)) ->  | V77: =IF(INDEX($G$4:$K$111,,'Controls Sheet'!$F$8)=0,"",INDEX($G$4:$K$111,,'Controls Sheet'!$F$8)) ->  | W77: =IF(ISERROR(VLOOKUP($V77,'EASR lookup'!$C$5:$I$273,7,FALSE)),"",VLOOKUP($V77,'EASR lookup'!$C$5:$I$273,7,FALSE)) ->  | X77: =IF(V77='Controls Sheet'!$C$8,VLOOKUP(V77,'EASR lookup'!$C$5:$M$273,10,FALSE),"") ->  | Y77: =IF(V77='Controls Sheet'!$C$8,VLOOKUP(V77,'EASR lookup'!$C$5:$M$273,11,FALSE),"") ->  | Z77: =IF(V77='Controls Sheet'!$C$8,'EASR Charts Controls'!W77,"") ->  | AA77: =IF(W77="","",VLOOKUP('Controls Sheet'!$D$8,'Controls Sheet'!$D$2:$I$6,6,FALSE)) -> 
B78: South Holland | H78: Kettering | O78: =IF(INDEX($A$4:$E$111,,'Controls Sheet'!$F$8)=0,"",INDEX($A$4:$E$111,,'Controls Sheet'!$F$8)) ->  | P78: =IF(ISERROR(VLOOKUP($O78,'EASR lookup'!$C$5:$I$273,6,FALSE)),"",VLOOKUP($O78,'EASR lookup'!$C$5:$I$273,6,FALSE)) ->  | Q78: =IF(O78='Controls Sheet'!$C$8,VLOOKUP(O78,'EASR lookup'!$C$5:$M$273,8,FALSE),"") ->  | R78: =IF(O78='Controls Sheet'!$C$8,VLOOKUP(O78,'EASR lookup'!$C$5:$M$273,9,FALSE),"") ->  | S78: =IF(O78='Controls Sheet'!$C$8,'EASR Charts Controls'!P78,"") ->  | T78: =IF(P78="","",VLOOKUP('Controls Sheet'!$D$8,'Controls Sheet'!$D$2:$I$6,5,FALSE)) ->  | V78: =IF(INDEX($G$4:$K$111,,'Controls Sheet'!$F$8)=0,"",INDEX($G$4:$K$111,,'Controls Sheet'!$F$8)) ->  | W78: =IF(ISERROR(VLOOKUP($V78,'EASR lookup'!$C$5:$I$273,7,FALSE)),"",VLOOKUP($V78,'EASR lookup'!$C$5:$I$273,7,FALSE)) ->  | X78: =IF(V78='Controls Sheet'!$C$8,VLOOKUP(V78,'EASR lookup'!$C$5:$M$273,10,FALSE),"") ->  | Y78: =IF(V78='Controls Sheet'!$C$8,VLOOKUP(V78,'EASR lookup'!$C$5:$M$273,11,FALSE),"") ->  | Z78: =IF(V78='Controls Sheet'!$C$8,'EASR Charts Controls'!W78,"") ->  | AA78: =IF(W78="","",VLOOKUP('Controls Sheet'!$D$8,'Controls Sheet'!$D$2:$I$6,6,FALSE)) -> 
B79: Staffordshire Moorlands | H79: Cheshire East | O79: =IF(INDEX($A$4:$E$111,,'Controls Sheet'!$F$8)=0,"",INDEX($A$4:$E$111,,'Controls Sheet'!$F$8)) ->  | P79: =IF(ISERROR(VLOOKUP($O79,'EASR lookup'!$C$5:$I$273,6,FALSE)),"",VLOOKUP($O79,'EASR lookup'!$C$5:$I$273,6,FALSE)) ->  | Q79: =IF(O79='Controls Sheet'!$C$8,VLOOKUP(O79,'EASR lookup'!$C$5:$M$273,8,FALSE),"") ->  | R79: =IF(O79='Controls Sheet'!$C$8,VLOOKUP(O79,'EASR lookup'!$C$5:$M$273,9,FALSE),"") ->  | S79: =IF(O79='Controls Sheet'!$C$8,'EASR Charts Controls'!P79,"") ->  | T79: =IF(P79="","",VLOOKUP('Controls Sheet'!$D$8,'Controls Sheet'!$D$2:$I$6,5,FALSE)) ->  | V79: =IF(INDEX($G$4:$K$111,,'Controls Sheet'!$F$8)=0,"",INDEX($G$4:$K$111,,'Controls Sheet'!$F$8)) ->  | W79: =IF(ISERROR(VLOOKUP($V79,'EASR lookup'!$C$5:$I$273,7,FALSE)),"",VLOOKUP($V79,'EASR lookup'!$C$5:$I$273,7,FALSE)) ->  | X79: =IF(V79='Controls Sheet'!$C$8,VLOOKUP(V79,'EASR lookup'!$C$5:$M$273,10,FALSE),"") ->  | Y79: =IF(V79='Controls Sheet'!$C$8,VLOOKUP(V79,'EASR lookup'!$C$5:$M$273,11,FALSE),"") ->  | Z79: =IF(V79='Controls Sheet'!$C$8,'EASR Charts Controls'!W79,"") ->  | AA79: =IF(W79="","",VLOOKUP('Controls Sheet'!$D$8,'Controls Sheet'!$D$2:$I$6,6,FALSE)) -> 
B80: Stockport | H80: North Warwickshire | O80: =IF(INDEX($A$4:$E$111,,'Controls Sheet'!$F$8)=0,"",INDEX($A$4:$E$111,,'Controls Sheet'!$F$8)) ->  | P80: =IF(ISERROR(VLOOKUP($O80,'EASR lookup'!$C$5:$I$273,6,FALSE)),"",VLOOKUP($O80,'EASR lookup'!$C$5:$I$273,6,FALSE)) ->  | Q80: =IF(O80='Controls Sheet'!$C$8,VLOOKUP(O80,'EASR lookup'!$C$5:$M$273,8,FALSE),"") ->  | R80: =IF(O80='Controls Sheet'!$C$8,VLOOKUP(O80,'EASR lookup'!$C$5:$M$273,9,FALSE),"") ->  | S80: =IF(O80='Controls Sheet'!$C$8,'EASR Charts Controls'!P80,"") ->  | T80: =IF(P80="","",VLOOKUP('Controls Sheet'!$D$8,'Controls Sheet'!$D$2:$I$6,5,FALSE)) ->  | V80: =IF(INDEX($G$4:$K$111,,'Controls Sheet'!$F$8)=0,"",INDEX($G$4:$K$111,,'Controls Sheet'!$F$8)) ->  | W80: =IF(ISERROR(VLOOKUP($V80,'EASR lookup'!$C$5:$I$273,7,FALSE)),"",VLOOKUP($V80,'EASR lookup'!$C$5:$I$273,7,FALSE)) ->  | X80: =IF(V80='Controls Sheet'!$C$8,VLOOKUP(V80,'EASR lookup'!$C$5:$M$273,10,FALSE),"") ->  | Y80: =IF(V80='Controls Sheet'!$C$8,VLOOKUP(V80,'EASR lookup'!$C$5:$M$273,11,FALSE),"") ->  | Z80: =IF(V80='Controls Sheet'!$C$8,'EASR Charts Controls'!W80,"") ->  | AA80: =IF(W80="","",VLOOKUP('Controls Sheet'!$D$8,'Controls Sheet'!$D$2:$I$6,6,FALSE)) -> 
B81: South Kesteven | H81: Adur | O81: =IF(INDEX($A$4:$E$111,,'Controls Sheet'!$F$8)=0,"",INDEX($A$4:$E$111,,'Controls Sheet'!$F$8)) ->  | P81: =IF(ISERROR(VLOOKUP($O81,'EASR lookup'!$C$5:$I$273,6,FALSE)),"",VLOOKUP($O81,'EASR lookup'!$C$5:$I$273,6,FALSE)) ->  | Q81: =IF(O81='Controls Sheet'!$C$8,VLOOKUP(O81,'EASR lookup'!$C$5:$M$273,8,FALSE),"") ->  | R81: =IF(O81='Controls Sheet'!$C$8,VLOOKUP(O81,'EASR lookup'!$C$5:$M$273,9,FALSE),"") ->  | S81: =IF(O81='Controls Sheet'!$C$8,'EASR Charts Controls'!P81,"") ->  | T81: =IF(P81="","",VLOOKUP('Controls Sheet'!$D$8,'Controls Sheet'!$D$2:$I$6,5,FALSE)) ->  | V81: =IF(INDEX($G$4:$K$111,,'Controls Sheet'!$F$8)=0,"",INDEX($G$4:$K$111,,'Controls Sheet'!$F$8)) ->  | W81: =IF(ISERROR(VLOOKUP($V81,'EASR lookup'!$C$5:$I$273,7,FALSE)),"",VLOOKUP($V81,'EASR lookup'!$C$5:$I$273,7,FALSE)) ->  | X81: =IF(V81='Controls Sheet'!$C$8,VLOOKUP(V81,'EASR lookup'!$C$5:$M$273,10,FALSE),"") ->  | Y81: =IF(V81='Controls Sheet'!$C$8,VLOOKUP(V81,'EASR lookup'!$C$5:$M$273,11,FALSE),"") ->  | Z81: =IF(V81='Controls Sheet'!$C$8,'EASR Charts Controls'!W81,"") ->  | AA81: =IF(W81="","",VLOOKUP('Controls Sheet'!$D$8,'Controls Sheet'!$D$2:$I$6,6,FALSE)) -> 
B82: Monmouthshire | H82: Canterbury | O82: =IF(INDEX($A$4:$E$111,,'Controls Sheet'!$F$8)=0,"",INDEX($A$4:$E$111,,'Controls Sheet'!$F$8)) ->  | P82: =IF(ISERROR(VLOOKUP($O82,'EASR lookup'!$C$5:$I$273,6,FALSE)),"",VLOOKUP($O82,'EASR lookup'!$C$5:$I$273,6,FALSE)) ->  | Q82: =IF(O82='Controls Sheet'!$C$8,VLOOKUP(O82,'EASR lookup'!$C$5:$M$273,8,FALSE),"") ->  | R82: =IF(O82='Controls Sheet'!$C$8,VLOOKUP(O82,'EASR lookup'!$C$5:$M$273,9,FALSE),"") ->  | S82: =IF(O82='Controls Sheet'!$C$8,'EASR Charts Controls'!P82,"") ->  | T82: =IF(P82="","",VLOOKUP('Controls Sheet'!$D$8,'Controls Sheet'!$D$2:$I$6,5,FALSE)) ->  | V82: =IF(INDEX($G$4:$K$111,,'Controls Sheet'!$F$8)=0,"",INDEX($G$4:$K$111,,'Controls Sheet'!$F$8)) ->  | W82: =IF(ISERROR(VLOOKUP($V82,'EASR lookup'!$C$5:$I$273,7,FALSE)),"",VLOOKUP($V82,'EASR lookup'!$C$5:$I$273,7,FALSE)) ->  | X82: =IF(V82='Controls Sheet'!$C$8,VLOOKUP(V82,'EASR lookup'!$C$5:$M$273,10,FALSE),"") ->  | Y82: =IF(V82='Controls Sheet'!$C$8,VLOOKUP(V82,'EASR lookup'!$C$5:$M$273,11,FALSE),"") ->  | Z82: =IF(V82='Controls Sheet'!$C$8,'EASR Charts Controls'!W82,"") ->  | AA82: =IF(W82="","",VLOOKUP('Controls Sheet'!$D$8,'Controls Sheet'!$D$2:$I$6,6,FALSE)) -> 
B83: West Lindsey | H83: Vale of Glamorgan | O83: =IF(INDEX($A$4:$E$111,,'Controls Sheet'!$F$8)=0,"",INDEX($A$4:$E$111,,'Controls Sheet'!$F$8)) ->  | P83: =IF(ISERROR(VLOOKUP($O83,'EASR lookup'!$C$5:$I$273,6,FALSE)),"",VLOOKUP($O83,'EASR lookup'!$C$5:$I$273,6,FALSE)) ->  | Q83: =IF(O83='Controls Sheet'!$C$8,VLOOKUP(O83,'EASR lookup'!$C$5:$M$273,8,FALSE),"") ->  | R83: =IF(O83='Controls Sheet'!$C$8,VLOOKUP(O83,'EASR lookup'!$C$5:$M$273,9,FALSE),"") ->  | S83: =IF(O83='Controls Sheet'!$C$8,'EASR Charts Controls'!P83,"") ->  | T83: =IF(P83="","",VLOOKUP('Controls Sheet'!$D$8,'Controls Sheet'!$D$2:$I$6,5,FALSE)) ->  | V83: =IF(INDEX($G$4:$K$111,,'Controls Sheet'!$F$8)=0,"",INDEX($G$4:$K$111,,'Controls Sheet'!$F$8)) ->  | W83: =IF(ISERROR(VLOOKUP($V83,'EASR lookup'!$C$5:$I$273,7,FALSE)),"",VLOOKUP($V83,'EASR lookup'!$C$5:$I$273,7,FALSE)) ->  | X83: =IF(V83='Controls Sheet'!$C$8,VLOOKUP(V83,'EASR lookup'!$C$5:$M$273,10,FALSE),"") ->  | Y83: =IF(V83='Controls Sheet'!$C$8,VLOOKUP(V83,'EASR lookup'!$C$5:$M$273,11,FALSE),"") ->  | Z83: =IF(V83='Controls Sheet'!$C$8,'EASR Charts Controls'!W83,"") ->  | AA83: =IF(W83="","",VLOOKUP('Controls Sheet'!$D$8,'Controls Sheet'!$D$2:$I$6,6,FALSE)) -> 
B84: Colchester | H84: Boston | O84: =IF(INDEX($A$4:$E$111,,'Controls Sheet'!$F$8)=0,"",INDEX($A$4:$E$111,,'Controls Sheet'!$F$8)) ->  | P84: =IF(ISERROR(VLOOKUP($O84,'EASR lookup'!$C$5:$I$273,6,FALSE)),"",VLOOKUP($O84,'EASR lookup'!$C$5:$I$273,6,FALSE)) ->  | Q84: =IF(O84='Controls Sheet'!$C$8,VLOOKUP(O84,'EASR lookup'!$C$5:$M$273,8,FALSE),"") ->  | R84: =IF(O84='Controls Sheet'!$C$8,VLOOKUP(O84,'EASR lookup'!$C$5:$M$273,9,FALSE),"") ->  | S84: =IF(O84='Controls Sheet'!$C$8,'EASR Charts Controls'!P84,"") ->  | T84: =IF(P84="","",VLOOKUP('Controls Sheet'!$D$8,'Controls Sheet'!$D$2:$I$6,5,FALSE)) ->  | V84: =IF(INDEX($G$4:$K$111,,'Controls Sheet'!$F$8)=0,"",INDEX($G$4:$K$111,,'Controls Sheet'!$F$8)) ->  | W84: =IF(ISERROR(VLOOKUP($V84,'EASR lookup'!$C$5:$I$273,7,FALSE)),"",VLOOKUP($V84,'EASR lookup'!$C$5:$I$273,7,FALSE)) ->  | X84: =IF(V84='Controls Sheet'!$C$8,VLOOKUP(V84,'EASR lookup'!$C$5:$M$273,10,FALSE),"") ->  | Y84: =IF(V84='Controls Sheet'!$C$8,VLOOKUP(V84,'EASR lookup'!$C$5:$M$273,11,FALSE),"") ->  | Z84: =IF(V84='Controls Sheet'!$C$8,'EASR Charts Controls'!W84,"") ->  | AA84: =IF(W84="","",VLOOKUP('Controls Sheet'!$D$8,'Controls Sheet'!$D$2:$I$6,6,FALSE)) -> 
B85: Chorley | H85: Stroud | O85: =IF(INDEX($A$4:$E$111,,'Controls Sheet'!$F$8)=0,"",INDEX($A$4:$E$111,,'Controls Sheet'!$F$8)) ->  | P85: =IF(ISERROR(VLOOKUP($O85,'EASR lookup'!$C$5:$I$273,6,FALSE)),"",VLOOKUP($O85,'EASR lookup'!$C$5:$I$273,6,FALSE)) ->  | Q85: =IF(O85='Controls Sheet'!$C$8,VLOOKUP(O85,'EASR lookup'!$C$5:$M$273,8,FALSE),"") ->  | R85: =IF(O85='Controls Sheet'!$C$8,VLOOKUP(O85,'EASR lookup'!$C$5:$M$273,9,FALSE),"") ->  | S85: =IF(O85='Controls Sheet'!$C$8,'EASR Charts Controls'!P85,"") ->  | T85: =IF(P85="","",VLOOKUP('Controls Sheet'!$D$8,'Controls Sheet'!$D$2:$I$6,5,FALSE)) ->  | V85: =IF(INDEX($G$4:$K$111,,'Controls Sheet'!$F$8)=0,"",INDEX($G$4:$K$111,,'Controls Sheet'!$F$8)) ->  | W85: =IF(ISERROR(VLOOKUP($V85,'EASR lookup'!$C$5:$I$273,7,FALSE)),"",VLOOKUP($V85,'EASR lookup'!$C$5:$I$273,7,FALSE)) ->  | X85: =IF(V85='Controls Sheet'!$C$8,VLOOKUP(V85,'EASR lookup'!$C$5:$M$273,10,FALSE),"") ->  | Y85: =IF(V85='Controls Sheet'!$C$8,VLOOKUP(V85,'EASR lookup'!$C$5:$M$273,11,FALSE),"") ->  | Z85: =IF(V85='Controls Sheet'!$C$8,'EASR Charts Controls'!W85,"") ->  | AA85: =IF(W85="","",VLOOKUP('Controls Sheet'!$D$8,'Controls Sheet'!$D$2:$I$6,6,FALSE)) -> 
B86: West Lancashire | H86: West Lindsey | O86: =IF(INDEX($A$4:$E$111,,'Controls Sheet'!$F$8)=0,"",INDEX($A$4:$E$111,,'Controls Sheet'!$F$8)) ->  | P86: =IF(ISERROR(VLOOKUP($O86,'EASR lookup'!$C$5:$I$273,6,FALSE)),"",VLOOKUP($O86,'EASR lookup'!$C$5:$I$273,6,FALSE)) ->  | Q86: =IF(O86='Controls Sheet'!$C$8,VLOOKUP(O86,'EASR lookup'!$C$5:$M$273,8,FALSE),"") ->  | R86: =IF(O86='Controls Sheet'!$C$8,VLOOKUP(O86,'EASR lookup'!$C$5:$M$273,9,FALSE),"") ->  | S86: =IF(O86='Controls Sheet'!$C$8,'EASR Charts Controls'!P86,"") ->  | T86: =IF(P86="","",VLOOKUP('Controls Sheet'!$D$8,'Controls Sheet'!$D$2:$I$6,5,FALSE)) ->  | V86: =IF(INDEX($G$4:$K$111,,'Controls Sheet'!$F$8)=0,"",INDEX($G$4:$K$111,,'Controls Sheet'!$F$8)) ->  | W86: =IF(ISERROR(VLOOKUP($V86,'EASR lookup'!$C$5:$I$273,7,FALSE)),"",VLOOKUP($V86,'EASR lookup'!$C$5:$I$273,7,FALSE)) ->  | X86: =IF(V86='Controls Sheet'!$C$8,VLOOKUP(V86,'EASR lookup'!$C$5:$M$273,10,FALSE),"") ->  | Y86: =IF(V86='Controls Sheet'!$C$8,VLOOKUP(V86,'EASR lookup'!$C$5:$M$273,11,FALSE),"") ->  | Z86: =IF(V86='Controls Sheet'!$C$8,'EASR Charts Controls'!W86,"") ->  | AA86: =IF(W86="","",VLOOKUP('Controls Sheet'!$D$8,'Controls Sheet'!$D$2:$I$6,6,FALSE)) -> 
B87: North Down | H87: Charnwood | O87: =IF(INDEX($A$4:$E$111,,'Controls Sheet'!$F$8)=0,"",INDEX($A$4:$E$111,,'Controls Sheet'!$F$8)) ->  | P87: =IF(ISERROR(VLOOKUP($O87,'EASR lookup'!$C$5:$I$273,6,FALSE)),"",VLOOKUP($O87,'EASR lookup'!$C$5:$I$273,6,FALSE)) ->  | Q87: =IF(O87='Controls Sheet'!$C$8,VLOOKUP(O87,'EASR lookup'!$C$5:$M$273,8,FALSE),"") ->  | R87: =IF(O87='Controls Sheet'!$C$8,VLOOKUP(O87,'EASR lookup'!$C$5:$M$273,9,FALSE),"") ->  | S87: =IF(O87='Controls Sheet'!$C$8,'EASR Charts Controls'!P87,"") ->  | T87: =IF(P87="","",VLOOKUP('Controls Sheet'!$D$8,'Controls Sheet'!$D$2:$I$6,5,FALSE)) ->  | V87: =IF(INDEX($G$4:$K$111,,'Controls Sheet'!$F$8)=0,"",INDEX($G$4:$K$111,,'Controls Sheet'!$F$8)) ->  | W87: =IF(ISERROR(VLOOKUP($V87,'EASR lookup'!$C$5:$I$273,7,FALSE)),"",VLOOKUP($V87,'EASR lookup'!$C$5:$I$273,7,FALSE)) ->  | X87: =IF(V87='Controls Sheet'!$C$8,VLOOKUP(V87,'EASR lookup'!$C$5:$M$273,10,FALSE),"") ->  | Y87: =IF(V87='Controls Sheet'!$C$8,VLOOKUP(V87,'EASR lookup'!$C$5:$M$273,11,FALSE),"") ->  | Z87: =IF(V87='Controls Sheet'!$C$8,'EASR Charts Controls'!W87,"") ->  | AA87: =IF(W87="","",VLOOKUP('Controls Sheet'!$D$8,'Controls Sheet'!$D$2:$I$6,6,FALSE)) -> 
B88: Welwyn Hatfield | H88: Melton | O88: =IF(INDEX($A$4:$E$111,,'Controls Sheet'!$F$8)=0,"",INDEX($A$4:$E$111,,'Controls Sheet'!$F$8)) ->  | P88: =IF(ISERROR(VLOOKUP($O88,'EASR lookup'!$C$5:$I$273,6,FALSE)),"",VLOOKUP($O88,'EASR lookup'!$C$5:$I$273,6,FALSE)) ->  | Q88: =IF(O88='Controls Sheet'!$C$8,VLOOKUP(O88,'EASR lookup'!$C$5:$M$273,8,FALSE),"") ->  | R88: =IF(O88='Controls Sheet'!$C$8,VLOOKUP(O88,'EASR lookup'!$C$5:$M$273,9,FALSE),"") ->  | S88: =IF(O88='Controls Sheet'!$C$8,'EASR Charts Controls'!P88,"") ->  | T88: =IF(P88="","",VLOOKUP('Controls Sheet'!$D$8,'Controls Sheet'!$D$2:$I$6,5,FALSE)) ->  | V88: =IF(INDEX($G$4:$K$111,,'Controls Sheet'!$F$8)=0,"",INDEX($G$4:$K$111,,'Controls Sheet'!$F$8)) ->  | W88: =IF(ISERROR(VLOOKUP($V88,'EASR lookup'!$C$5:$I$273,7,FALSE)),"",VLOOKUP($V88,'EASR lookup'!$C$5:$I$273,7,FALSE)) ->  | X88: =IF(V88='Controls Sheet'!$C$8,VLOOKUP(V88,'EASR lookup'!$C$5:$M$273,10,FALSE),"") ->  | Y88: =IF(V88='Controls Sheet'!$C$8,VLOOKUP(V88,'EASR lookup'!$C$5:$M$273,11,FALSE),"") ->  | Z88: =IF(V88='Controls Sheet'!$C$8,'EASR Charts Controls'!W88,"") ->  | AA88: =IF(W88="","",VLOOKUP('Controls Sheet'!$D$8,'Controls Sheet'!$D$2:$I$6,6,FALSE)) -> 
B89: Rugby | H89: South Holland | O89: =IF(INDEX($A$4:$E$111,,'Controls Sheet'!$F$8)=0,"",INDEX($A$4:$E$111,,'Controls Sheet'!$F$8)) ->  | P89: =IF(ISERROR(VLOOKUP($O89,'EASR lookup'!$C$5:$I$273,6,FALSE)),"",VLOOKUP($O89,'EASR lookup'!$C$5:$I$273,6,FALSE)) ->  | Q89: =IF(O89='Controls Sheet'!$C$8,VLOOKUP(O89,'EASR lookup'!$C$5:$M$273,8,FALSE),"") ->  | R89: =IF(O89='Controls Sheet'!$C$8,VLOOKUP(O89,'EASR lookup'!$C$5:$M$273,9,FALSE),"") ->  | S89: =IF(O89='Controls Sheet'!$C$8,'EASR Charts Controls'!P89,"") ->  | T89: =IF(P89="","",VLOOKUP('Controls Sheet'!$D$8,'Controls Sheet'!$D$2:$I$6,5,FALSE)) ->  | V89: =IF(INDEX($G$4:$K$111,,'Controls Sheet'!$F$8)=0,"",INDEX($G$4:$K$111,,'Controls Sheet'!$F$8)) ->  | W89: =IF(ISERROR(VLOOKUP($V89,'EASR lookup'!$C$5:$I$273,7,FALSE)),"",VLOOKUP($V89,'EASR lookup'!$C$5:$I$273,7,FALSE)) ->  | X89: =IF(V89='Controls Sheet'!$C$8,VLOOKUP(V89,'EASR lookup'!$C$5:$M$273,10,FALSE),"") ->  | Y89: =IF(V89='Controls Sheet'!$C$8,VLOOKUP(V89,'EASR lookup'!$C$5:$M$273,11,FALSE),"") ->  | Z89: =IF(V89='Controls Sheet'!$C$8,'EASR Charts Controls'!W89,"") ->  | AA89: =IF(W89="","",VLOOKUP('Controls Sheet'!$D$8,'Controls Sheet'!$D$2:$I$6,6,FALSE)) -> 
B90: Vale of Glamorgan | H90: North West Leicestershire | O90: =IF(INDEX($A$4:$E$111,,'Controls Sheet'!$F$8)=0,"",INDEX($A$4:$E$111,,'Controls Sheet'!$F$8)) ->  | P90: =IF(ISERROR(VLOOKUP($O90,'EASR lookup'!$C$5:$I$273,6,FALSE)),"",VLOOKUP($O90,'EASR lookup'!$C$5:$I$273,6,FALSE)) ->  | Q90: =IF(O90='Controls Sheet'!$C$8,VLOOKUP(O90,'EASR lookup'!$C$5:$M$273,8,FALSE),"") ->  | R90: =IF(O90='Controls Sheet'!$C$8,VLOOKUP(O90,'EASR lookup'!$C$5:$M$273,9,FALSE),"") ->  | S90: =IF(O90='Controls Sheet'!$C$8,'EASR Charts Controls'!P90,"") ->  | T90: =IF(P90="","",VLOOKUP('Controls Sheet'!$D$8,'Controls Sheet'!$D$2:$I$6,5,FALSE)) ->  | V90: =IF(INDEX($G$4:$K$111,,'Controls Sheet'!$F$8)=0,"",INDEX($G$4:$K$111,,'Controls Sheet'!$F$8)) ->  | W90: =IF(ISERROR(VLOOKUP($V90,'EASR lookup'!$C$5:$I$273,7,FALSE)),"",VLOOKUP($V90,'EASR lookup'!$C$5:$I$273,7,FALSE)) ->  | X90: =IF(V90='Controls Sheet'!$C$8,VLOOKUP(V90,'EASR lookup'!$C$5:$M$273,10,FALSE),"") ->  | Y90: =IF(V90='Controls Sheet'!$C$8,VLOOKUP(V90,'EASR lookup'!$C$5:$M$273,11,FALSE),"") ->  | Z90: =IF(V90='Controls Sheet'!$C$8,'EASR Charts Controls'!W90,"") ->  | AA90: =IF(W90="","",VLOOKUP('Controls Sheet'!$D$8,'Controls Sheet'!$D$2:$I$6,6,FALSE)) -> 
B91: Trafford | H91: High Peak | O91: =IF(INDEX($A$4:$E$111,,'Controls Sheet'!$F$8)=0,"",INDEX($A$4:$E$111,,'Controls Sheet'!$F$8)) ->  | P91: =IF(ISERROR(VLOOKUP($O91,'EASR lookup'!$C$5:$I$273,6,FALSE)),"",VLOOKUP($O91,'EASR lookup'!$C$5:$I$273,6,FALSE)) ->  | Q91: =IF(O91='Controls Sheet'!$C$8,VLOOKUP(O91,'EASR lookup'!$C$5:$M$273,8,FALSE),"") ->  | R91: =IF(O91='Controls Sheet'!$C$8,VLOOKUP(O91,'EASR lookup'!$C$5:$M$273,9,FALSE),"") ->  | S91: =IF(O91='Controls Sheet'!$C$8,'EASR Charts Controls'!P91,"") ->  | T91: =IF(P91="","",VLOOKUP('Controls Sheet'!$D$8,'Controls Sheet'!$D$2:$I$6,5,FALSE)) ->  | V91: =IF(INDEX($G$4:$K$111,,'Controls Sheet'!$F$8)=0,"",INDEX($G$4:$K$111,,'Controls Sheet'!$F$8)) ->  | W91: =IF(ISERROR(VLOOKUP($V91,'EASR lookup'!$C$5:$I$273,7,FALSE)),"",VLOOKUP($V91,'EASR lookup'!$C$5:$I$273,7,FALSE)) ->  | X91: =IF(V91='Controls Sheet'!$C$8,VLOOKUP(V91,'EASR lookup'!$C$5:$M$273,10,FALSE),"") ->  | Y91: =IF(V91='Controls Sheet'!$C$8,VLOOKUP(V91,'EASR lookup'!$C$5:$M$273,11,FALSE),"") ->  | Z91: =IF(V91='Controls Sheet'!$C$8,'EASR Charts Controls'!W91,"") ->  | AA91: =IF(W91="","",VLOOKUP('Controls Sheet'!$D$8,'Controls Sheet'!$D$2:$I$6,6,FALSE)) -> 
B92: Forest of Dean | H92: Stockport | O92: =IF(INDEX($A$4:$E$111,,'Controls Sheet'!$F$8)=0,"",INDEX($A$4:$E$111,,'Controls Sheet'!$F$8)) ->  | P92: =IF(ISERROR(VLOOKUP($O92,'EASR lookup'!$C$5:$I$273,6,FALSE)),"",VLOOKUP($O92,'EASR lookup'!$C$5:$I$273,6,FALSE)) ->  | Q92: =IF(O92='Controls Sheet'!$C$8,VLOOKUP(O92,'EASR lookup'!$C$5:$M$273,8,FALSE),"") ->  | R92: =IF(O92='Controls Sheet'!$C$8,VLOOKUP(O92,'EASR lookup'!$C$5:$M$273,9,FALSE),"") ->  | S92: =IF(O92='Controls Sheet'!$C$8,'EASR Charts Controls'!P92,"") ->  | T92: =IF(P92="","",VLOOKUP('Controls Sheet'!$D$8,'Controls Sheet'!$D$2:$I$6,5,FALSE)) ->  | V92: =IF(INDEX($G$4:$K$111,,'Controls Sheet'!$F$8)=0,"",INDEX($G$4:$K$111,,'Controls Sheet'!$F$8)) ->  | W92: =IF(ISERROR(VLOOKUP($V92,'EASR lookup'!$C$5:$I$273,7,FALSE)),"",VLOOKUP($V92,'EASR lookup'!$C$5:$I$273,7,FALSE)) ->  | X92: =IF(V92='Controls Sheet'!$C$8,VLOOKUP(V92,'EASR lookup'!$C$5:$M$273,10,FALSE),"") ->  | Y92: =IF(V92='Controls Sheet'!$C$8,VLOOKUP(V92,'EASR lookup'!$C$5:$M$273,11,FALSE),"") ->  | Z92: =IF(V92='Controls Sheet'!$C$8,'EASR Charts Controls'!W92,"") ->  | AA92: =IF(W92="","",VLOOKUP('Controls Sheet'!$D$8,'Controls Sheet'!$D$2:$I$6,6,FALSE)) -> 
B93: South Staffordshire | H93: North Kesteven | O93: =IF(INDEX($A$4:$E$111,,'Controls Sheet'!$F$8)=0,"",INDEX($A$4:$E$111,,'Controls Sheet'!$F$8)) ->  | P93: =IF(ISERROR(VLOOKUP($O93,'EASR lookup'!$C$5:$I$273,6,FALSE)),"",VLOOKUP($O93,'EASR lookup'!$C$5:$I$273,6,FALSE)) ->  | Q93: =IF(O93='Controls Sheet'!$C$8,VLOOKUP(O93,'EASR lookup'!$C$5:$M$273,8,FALSE),"") ->  | R93: =IF(O93='Controls Sheet'!$C$8,VLOOKUP(O93,'EASR lookup'!$C$5:$M$273,9,FALSE),"") ->  | S93: =IF(O93='Controls Sheet'!$C$8,'EASR Charts Controls'!P93,"") ->  | T93: =IF(P93="","",VLOOKUP('Controls Sheet'!$D$8,'Controls Sheet'!$D$2:$I$6,5,FALSE)) ->  | V93: =IF(INDEX($G$4:$K$111,,'Controls Sheet'!$F$8)=0,"",INDEX($G$4:$K$111,,'Controls Sheet'!$F$8)) ->  | W93: =IF(ISERROR(VLOOKUP($V93,'EASR lookup'!$C$5:$I$273,7,FALSE)),"",VLOOKUP($V93,'EASR lookup'!$C$5:$I$273,7,FALSE)) ->  | X93: =IF(V93='Controls Sheet'!$C$8,VLOOKUP(V93,'EASR lookup'!$C$5:$M$273,10,FALSE),"") ->  | Y93: =IF(V93='Controls Sheet'!$C$8,VLOOKUP(V93,'EASR lookup'!$C$5:$M$273,11,FALSE),"") ->  | Z93: =IF(V93='Controls Sheet'!$C$8,'EASR Charts Controls'!W93,"") ->  | AA93: =IF(W93="","",VLOOKUP('Controls Sheet'!$D$8,'Controls Sheet'!$D$2:$I$6,6,FALSE)) -> 
B94: Wyre Forest | H94: Braintree | O94: =IF(INDEX($A$4:$E$111,,'Controls Sheet'!$F$8)=0,"",INDEX($A$4:$E$111,,'Controls Sheet'!$F$8)) ->  | P94: =IF(ISERROR(VLOOKUP($O94,'EASR lookup'!$C$5:$I$273,6,FALSE)),"",VLOOKUP($O94,'EASR lookup'!$C$5:$I$273,6,FALSE)) ->  | Q94: =IF(O94='Controls Sheet'!$C$8,VLOOKUP(O94,'EASR lookup'!$C$5:$M$273,8,FALSE),"") ->  | R94: =IF(O94='Controls Sheet'!$C$8,VLOOKUP(O94,'EASR lookup'!$C$5:$M$273,9,FALSE),"") ->  | S94: =IF(O94='Controls Sheet'!$C$8,'EASR Charts Controls'!P94,"") ->  | T94: =IF(P94="","",VLOOKUP('Controls Sheet'!$D$8,'Controls Sheet'!$D$2:$I$6,5,FALSE)) ->  | V94: =IF(INDEX($G$4:$K$111,,'Controls Sheet'!$F$8)=0,"",INDEX($G$4:$K$111,,'Controls Sheet'!$F$8)) ->  | W94: =IF(ISERROR(VLOOKUP($V94,'EASR lookup'!$C$5:$I$273,7,FALSE)),"",VLOOKUP($V94,'EASR lookup'!$C$5:$I$273,7,FALSE)) ->  | X94: =IF(V94='Controls Sheet'!$C$8,VLOOKUP(V94,'EASR lookup'!$C$5:$M$273,10,FALSE),"") ->  | Y94: =IF(V94='Controls Sheet'!$C$8,VLOOKUP(V94,'EASR lookup'!$C$5:$M$273,11,FALSE),"") ->  | Z94: =IF(V94='Controls Sheet'!$C$8,'EASR Charts Controls'!W94,"") ->  | AA94: =IF(W94="","",VLOOKUP('Controls Sheet'!$D$8,'Controls Sheet'!$D$2:$I$6,6,FALSE)) -> 
B95: Newark and Sherwood | H95: East Riding of Yorks | O95: =IF(INDEX($A$4:$E$111,,'Controls Sheet'!$F$8)=0,"",INDEX($A$4:$E$111,,'Controls Sheet'!$F$8)) ->  | P95: =IF(ISERROR(VLOOKUP($O95,'EASR lookup'!$C$5:$I$273,6,FALSE)),"",VLOOKUP($O95,'EASR lookup'!$C$5:$I$273,6,FALSE)) ->  | Q95: =IF(O95='Controls Sheet'!$C$8,VLOOKUP(O95,'EASR lookup'!$C$5:$M$273,8,FALSE),"") ->  | R95: =IF(O95='Controls Sheet'!$C$8,VLOOKUP(O95,'EASR lookup'!$C$5:$M$273,9,FALSE),"") ->  | S95: =IF(O95='Controls Sheet'!$C$8,'EASR Charts Controls'!P95,"") ->  | T95: =IF(P95="","",VLOOKUP('Controls Sheet'!$D$8,'Controls Sheet'!$D$2:$I$6,5,FALSE)) ->  | V95: =IF(INDEX($G$4:$K$111,,'Controls Sheet'!$F$8)=0,"",INDEX($G$4:$K$111,,'Controls Sheet'!$F$8)) ->  | W95: =IF(ISERROR(VLOOKUP($V95,'EASR lookup'!$C$5:$I$273,7,FALSE)),"",VLOOKUP($V95,'EASR lookup'!$C$5:$I$273,7,FALSE)) ->  | X95: =IF(V95='Controls Sheet'!$C$8,VLOOKUP(V95,'EASR lookup'!$C$5:$M$273,10,FALSE),"") ->  | Y95: =IF(V95='Controls Sheet'!$C$8,VLOOKUP(V95,'EASR lookup'!$C$5:$M$273,11,FALSE),"") ->  | Z95: =IF(V95='Controls Sheet'!$C$8,'EASR Charts Controls'!W95,"") ->  | AA95: =IF(W95="","",VLOOKUP('Controls Sheet'!$D$8,'Controls Sheet'!$D$2:$I$6,6,FALSE)) -> 
B96: York | H96: Fenland | O96: =IF(INDEX($A$4:$E$111,,'Controls Sheet'!$F$8)=0,"",INDEX($A$4:$E$111,,'Controls Sheet'!$F$8)) ->  | P96: =IF(ISERROR(VLOOKUP($O96,'EASR lookup'!$C$5:$I$273,6,FALSE)),"",VLOOKUP($O96,'EASR lookup'!$C$5:$I$273,6,FALSE)) ->  | Q96: =IF(O96='Controls Sheet'!$C$8,VLOOKUP(O96,'EASR lookup'!$C$5:$M$273,8,FALSE),"") ->  | R96: =IF(O96='Controls Sheet'!$C$8,VLOOKUP(O96,'EASR lookup'!$C$5:$M$273,9,FALSE),"") ->  | S96: =IF(O96='Controls Sheet'!$C$8,'EASR Charts Controls'!P96,"") ->  | T96: =IF(P96="","",VLOOKUP('Controls Sheet'!$D$8,'Controls Sheet'!$D$2:$I$6,5,FALSE)) ->  | V96: =IF(INDEX($G$4:$K$111,,'Controls Sheet'!$F$8)=0,"",INDEX($G$4:$K$111,,'Controls Sheet'!$F$8)) ->  | W96: =IF(ISERROR(VLOOKUP($V96,'EASR lookup'!$C$5:$I$273,7,FALSE)),"",VLOOKUP($V96,'EASR lookup'!$C$5:$I$273,7,FALSE)) ->  | X96: =IF(V96='Controls Sheet'!$C$8,VLOOKUP(V96,'EASR lookup'!$C$5:$M$273,10,FALSE),"") ->  | Y96: =IF(V96='Controls Sheet'!$C$8,VLOOKUP(V96,'EASR lookup'!$C$5:$M$273,11,FALSE),"") ->  | Z96: =IF(V96='Controls Sheet'!$C$8,'EASR Charts Controls'!W96,"") ->  | AA96: =IF(W96="","",VLOOKUP('Controls Sheet'!$D$8,'Controls Sheet'!$D$2:$I$6,6,FALSE)) -> 
B97: Northumberland | H97: South Ribble | O97: =IF(INDEX($A$4:$E$111,,'Controls Sheet'!$F$8)=0,"",INDEX($A$4:$E$111,,'Controls Sheet'!$F$8)) ->  | P97: =IF(ISERROR(VLOOKUP($O97,'EASR lookup'!$C$5:$I$273,6,FALSE)),"",VLOOKUP($O97,'EASR lookup'!$C$5:$I$273,6,FALSE)) ->  | Q97: =IF(O97='Controls Sheet'!$C$8,VLOOKUP(O97,'EASR lookup'!$C$5:$M$273,8,FALSE),"") ->  | R97: =IF(O97='Controls Sheet'!$C$8,VLOOKUP(O97,'EASR lookup'!$C$5:$M$273,9,FALSE),"") ->  | S97: =IF(O97='Controls Sheet'!$C$8,'EASR Charts Controls'!P97,"") ->  | T97: =IF(P97="","",VLOOKUP('Controls Sheet'!$D$8,'Controls Sheet'!$D$2:$I$6,5,FALSE)) ->  | V97: =IF(INDEX($G$4:$K$111,,'Controls Sheet'!$F$8)=0,"",INDEX($G$4:$K$111,,'Controls Sheet'!$F$8)) ->  | W97: =IF(ISERROR(VLOOKUP($V97,'EASR lookup'!$C$5:$I$273,7,FALSE)),"",VLOOKUP($V97,'EASR lookup'!$C$5:$I$273,7,FALSE)) ->  | X97: =IF(V97='Controls Sheet'!$C$8,VLOOKUP(V97,'EASR lookup'!$C$5:$M$273,10,FALSE),"") ->  | Y97: =IF(V97='Controls Sheet'!$C$8,VLOOKUP(V97,'EASR lookup'!$C$5:$M$273,11,FALSE),"") ->  | Z97: =IF(V97='Controls Sheet'!$C$8,'EASR Charts Controls'!W97,"") ->  | AA97: =IF(W97="","",VLOOKUP('Controls Sheet'!$D$8,'Controls Sheet'!$D$2:$I$6,6,FALSE)) -> 
B98: Braintree | H98: Cheshire West and Chester | O98: =IF(INDEX($A$4:$E$111,,'Controls Sheet'!$F$8)=0,"",INDEX($A$4:$E$111,,'Controls Sheet'!$F$8)) ->  | P98: =IF(ISERROR(VLOOKUP($O98,'EASR lookup'!$C$5:$I$273,6,FALSE)),"",VLOOKUP($O98,'EASR lookup'!$C$5:$I$273,6,FALSE)) ->  | Q98: =IF(O98='Controls Sheet'!$C$8,VLOOKUP(O98,'EASR lookup'!$C$5:$M$273,8,FALSE),"") ->  | R98: =IF(O98='Controls Sheet'!$C$8,VLOOKUP(O98,'EASR lookup'!$C$5:$M$273,9,FALSE),"") ->  | S98: =IF(O98='Controls Sheet'!$C$8,'EASR Charts Controls'!P98,"") ->  | T98: =IF(P98="","",VLOOKUP('Controls Sheet'!$D$8,'Controls Sheet'!$D$2:$I$6,5,FALSE)) ->  | V98: =IF(INDEX($G$4:$K$111,,'Controls Sheet'!$F$8)=0,"",INDEX($G$4:$K$111,,'Controls Sheet'!$F$8)) ->  | W98: =IF(ISERROR(VLOOKUP($V98,'EASR lookup'!$C$5:$I$273,7,FALSE)),"",VLOOKUP($V98,'EASR lookup'!$C$5:$I$273,7,FALSE)) ->  | X98: =IF(V98='Controls Sheet'!$C$8,VLOOKUP(V98,'EASR lookup'!$C$5:$M$273,10,FALSE),"") ->  | Y98: =IF(V98='Controls Sheet'!$C$8,VLOOKUP(V98,'EASR lookup'!$C$5:$M$273,11,FALSE),"") ->  | Z98: =IF(V98='Controls Sheet'!$C$8,'EASR Charts Controls'!W98,"") ->  | AA98: =IF(W98="","",VLOOKUP('Controls Sheet'!$D$8,'Controls Sheet'!$D$2:$I$6,6,FALSE)) -> 
B99: South Derbyshire | H99: South Staffordshire | O99: =IF(INDEX($A$4:$E$111,,'Controls Sheet'!$F$8)=0,"",INDEX($A$4:$E$111,,'Controls Sheet'!$F$8)) ->  | P99: =IF(ISERROR(VLOOKUP($O99,'EASR lookup'!$C$5:$I$273,6,FALSE)),"",VLOOKUP($O99,'EASR lookup'!$C$5:$I$273,6,FALSE)) ->  | Q99: =IF(O99='Controls Sheet'!$C$8,VLOOKUP(O99,'EASR lookup'!$C$5:$M$273,8,FALSE),"") ->  | R99: =IF(O99='Controls Sheet'!$C$8,VLOOKUP(O99,'EASR lookup'!$C$5:$M$273,9,FALSE),"") ->  | S99: =IF(O99='Controls Sheet'!$C$8,'EASR Charts Controls'!P99,"") ->  | T99: =IF(P99="","",VLOOKUP('Controls Sheet'!$D$8,'Controls Sheet'!$D$2:$I$6,5,FALSE)) ->  | V99: =IF(INDEX($G$4:$K$111,,'Controls Sheet'!$F$8)=0,"",INDEX($G$4:$K$111,,'Controls Sheet'!$F$8)) ->  | W99: =IF(ISERROR(VLOOKUP($V99,'EASR lookup'!$C$5:$I$273,7,FALSE)),"",VLOOKUP($V99,'EASR lookup'!$C$5:$I$273,7,FALSE)) ->  | X99: =IF(V99='Controls Sheet'!$C$8,VLOOKUP(V99,'EASR lookup'!$C$5:$M$273,10,FALSE),"") ->  | Y99: =IF(V99='Controls Sheet'!$C$8,VLOOKUP(V99,'EASR lookup'!$C$5:$M$273,11,FALSE),"") ->  | Z99: =IF(V99='Controls Sheet'!$C$8,'EASR Charts Controls'!W99,"") ->  | AA99: =IF(W99="","",VLOOKUP('Controls Sheet'!$D$8,'Controls Sheet'!$D$2:$I$6,6,FALSE)) -> 
B100: Castlereagh | H100: Newark and Sherwood | O100: =IF(INDEX($A$4:$E$111,,'Controls Sheet'!$F$8)=0,"",INDEX($A$4:$E$111,,'Controls Sheet'!$F$8)) ->  | P100: =IF(ISERROR(VLOOKUP($O100,'EASR lookup'!$C$5:$I$273,6,FALSE)),"",VLOOKUP($O100,'EASR lookup'!$C$5:$I$273,6,FALSE)) ->  | Q100: =IF(O100='Controls Sheet'!$C$8,VLOOKUP(O100,'EASR lookup'!$C$5:$M$273,8,FALSE),"") ->  | R100: =IF(O100='Controls Sheet'!$C$8,VLOOKUP(O100,'EASR lookup'!$C$5:$M$273,9,FALSE),"") ->  | S100: =IF(O100='Controls Sheet'!$C$8,'EASR Charts Controls'!P100,"") ->  | T100: =IF(P100="","",VLOOKUP('Controls Sheet'!$D$8,'Controls Sheet'!$D$2:$I$6,5,FALSE)) ->  | V100: =IF(INDEX($G$4:$K$111,,'Controls Sheet'!$F$8)=0,"",INDEX($G$4:$K$111,,'Controls Sheet'!$F$8)) ->  | W100: =IF(ISERROR(VLOOKUP($V100,'EASR lookup'!$C$5:$I$273,7,FALSE)),"",VLOOKUP($V100,'EASR lookup'!$C$5:$I$273,7,FALSE)) ->  | X100: =IF(V100='Controls Sheet'!$C$8,VLOOKUP(V100,'EASR lookup'!$C$5:$M$273,10,FALSE),"") ->  | Y100: =IF(V100='Controls Sheet'!$C$8,VLOOKUP(V100,'EASR lookup'!$C$5:$M$273,11,FALSE),"") ->  | Z100: =IF(V100='Controls Sheet'!$C$8,'EASR Charts Controls'!W100,"") ->  | AA100: =IF(W100="","",VLOOKUP('Controls Sheet'!$D$8,'Controls Sheet'!$D$2:$I$6,6,FALSE)) -> 
B101: Kettering | H101: Selby | O101: =IF(INDEX($A$4:$E$111,,'Controls Sheet'!$F$8)=0,"",INDEX($A$4:$E$111,,'Controls Sheet'!$F$8)) ->  | P101: =IF(ISERROR(VLOOKUP($O101,'EASR lookup'!$C$5:$I$273,6,FALSE)),"",VLOOKUP($O101,'EASR lookup'!$C$5:$I$273,6,FALSE)) ->  | Q101: =IF(O101='Controls Sheet'!$C$8,VLOOKUP(O101,'EASR lookup'!$C$5:$M$273,8,FALSE),"") ->  | R101: =IF(O101='Controls Sheet'!$C$8,VLOOKUP(O101,'EASR lookup'!$C$5:$M$273,9,FALSE),"") ->  | S101: =IF(O101='Controls Sheet'!$C$8,'EASR Charts Controls'!P101,"") ->  | T101: =IF(P101="","",VLOOKUP('Controls Sheet'!$D$8,'Controls Sheet'!$D$2:$I$6,5,FALSE)) ->  | V101: =IF(INDEX($G$4:$K$111,,'Controls Sheet'!$F$8)=0,"",INDEX($G$4:$K$111,,'Controls Sheet'!$F$8)) ->  | W101: =IF(ISERROR(VLOOKUP($V101,'EASR lookup'!$C$5:$I$273,7,FALSE)),"",VLOOKUP($V101,'EASR lookup'!$C$5:$I$273,7,FALSE)) ->  | X101: =IF(V101='Controls Sheet'!$C$8,VLOOKUP(V101,'EASR lookup'!$C$5:$M$273,10,FALSE),"") ->  | Y101: =IF(V101='Controls Sheet'!$C$8,VLOOKUP(V101,'EASR lookup'!$C$5:$M$273,11,FALSE),"") ->  | Z101: =IF(V101='Controls Sheet'!$C$8,'EASR Charts Controls'!W101,"") ->  | AA101: =IF(W101="","",VLOOKUP('Controls Sheet'!$D$8,'Controls Sheet'!$D$2:$I$6,6,FALSE)) -> 
B102: North West Leicestershire | H102: South Derbyshire | O102: =IF(INDEX($A$4:$E$111,,'Controls Sheet'!$F$8)=0,"",INDEX($A$4:$E$111,,'Controls Sheet'!$F$8)) ->  | P102: =IF(ISERROR(VLOOKUP($O102,'EASR lookup'!$C$5:$I$273,6,FALSE)),"",VLOOKUP($O102,'EASR lookup'!$C$5:$I$273,6,FALSE)) ->  | Q102: =IF(O102='Controls Sheet'!$C$8,VLOOKUP(O102,'EASR lookup'!$C$5:$M$273,8,FALSE),"") ->  | R102: =IF(O102='Controls Sheet'!$C$8,VLOOKUP(O102,'EASR lookup'!$C$5:$M$273,9,FALSE),"") ->  | S102: =IF(O102='Controls Sheet'!$C$8,'EASR Charts Controls'!P102,"") ->  | T102: =IF(P102="","",VLOOKUP('Controls Sheet'!$D$8,'Controls Sheet'!$D$2:$I$6,5,FALSE)) ->  | V102: =IF(INDEX($G$4:$K$111,,'Controls Sheet'!$F$8)=0,"",INDEX($G$4:$K$111,,'Controls Sheet'!$F$8)) ->  | W102: =IF(ISERROR(VLOOKUP($V102,'EASR lookup'!$C$5:$I$273,7,FALSE)),"",VLOOKUP($V102,'EASR lookup'!$C$5:$I$273,7,FALSE)) ->  | X102: =IF(V102='Controls Sheet'!$C$8,VLOOKUP(V102,'EASR lookup'!$C$5:$M$273,10,FALSE),"") ->  | Y102: =IF(V102='Controls Sheet'!$C$8,VLOOKUP(V102,'EASR lookup'!$C$5:$M$273,11,FALSE),"") ->  | Z102: =IF(V102='Controls Sheet'!$C$8,'EASR Charts Controls'!W102,"") ->  | AA102: =IF(W102="","",VLOOKUP('Controls Sheet'!$D$8,'Controls Sheet'!$D$2:$I$6,6,FALSE)) -> 
B103: Daventry | H103: Daventry | O103: =IF(INDEX($A$4:$E$111,,'Controls Sheet'!$F$8)=0,"",INDEX($A$4:$E$111,,'Controls Sheet'!$F$8)) ->  | P103: =IF(ISERROR(VLOOKUP($O103,'EASR lookup'!$C$5:$I$273,6,FALSE)),"",VLOOKUP($O103,'EASR lookup'!$C$5:$I$273,6,FALSE)) ->  | Q103: =IF(O103='Controls Sheet'!$C$8,VLOOKUP(O103,'EASR lookup'!$C$5:$M$273,8,FALSE),"") ->  | R103: =IF(O103='Controls Sheet'!$C$8,VLOOKUP(O103,'EASR lookup'!$C$5:$M$273,9,FALSE),"") ->  | S103: =IF(O103='Controls Sheet'!$C$8,'EASR Charts Controls'!P103,"") ->  | T103: =IF(P103="","",VLOOKUP('Controls Sheet'!$D$8,'Controls Sheet'!$D$2:$I$6,5,FALSE)) ->  | V103: =IF(INDEX($G$4:$K$111,,'Controls Sheet'!$F$8)=0,"",INDEX($G$4:$K$111,,'Controls Sheet'!$F$8)) ->  | W103: =IF(ISERROR(VLOOKUP($V103,'EASR lookup'!$C$5:$I$273,7,FALSE)),"",VLOOKUP($V103,'EASR lookup'!$C$5:$I$273,7,FALSE)) ->  | X103: =IF(V103='Controls Sheet'!$C$8,VLOOKUP(V103,'EASR lookup'!$C$5:$M$273,10,FALSE),"") ->  | Y103: =IF(V103='Controls Sheet'!$C$8,VLOOKUP(V103,'EASR lookup'!$C$5:$M$273,11,FALSE),"") ->  | Z103: =IF(V103='Controls Sheet'!$C$8,'EASR Charts Controls'!W103,"") ->  | AA103: =IF(W103="","",VLOOKUP('Controls Sheet'!$D$8,'Controls Sheet'!$D$2:$I$6,6,FALSE)) -> 
B104: Cheshire West and Chester | H104: East Renfrewshire | O104: =IF(INDEX($A$4:$E$111,,'Controls Sheet'!$F$8)=0,"",INDEX($A$4:$E$111,,'Controls Sheet'!$F$8)) ->  | P104: =IF(ISERROR(VLOOKUP($O104,'EASR lookup'!$C$5:$I$273,6,FALSE)),"",VLOOKUP($O104,'EASR lookup'!$C$5:$I$273,6,FALSE)) ->  | Q104: =IF(O104='Controls Sheet'!$C$8,VLOOKUP(O104,'EASR lookup'!$C$5:$M$273,8,FALSE),"") ->  | R104: =IF(O104='Controls Sheet'!$C$8,VLOOKUP(O104,'EASR lookup'!$C$5:$M$273,9,FALSE),"") ->  | S104: =IF(O104='Controls Sheet'!$C$8,'EASR Charts Controls'!P104,"") ->  | T104: =IF(P104="","",VLOOKUP('Controls Sheet'!$D$8,'Controls Sheet'!$D$2:$I$6,5,FALSE)) ->  | V104: =IF(INDEX($G$4:$K$111,,'Controls Sheet'!$F$8)=0,"",INDEX($G$4:$K$111,,'Controls Sheet'!$F$8)) ->  | W104: =IF(ISERROR(VLOOKUP($V104,'EASR lookup'!$C$5:$I$273,7,FALSE)),"",VLOOKUP($V104,'EASR lookup'!$C$5:$I$273,7,FALSE)) ->  | X104: =IF(V104='Controls Sheet'!$C$8,VLOOKUP(V104,'EASR lookup'!$C$5:$M$273,10,FALSE),"") ->  | Y104: =IF(V104='Controls Sheet'!$C$8,VLOOKUP(V104,'EASR lookup'!$C$5:$M$273,11,FALSE),"") ->  | Z104: =IF(V104='Controls Sheet'!$C$8,'EASR Charts Controls'!W104,"") ->  | AA104: =IF(W104="","",VLOOKUP('Controls Sheet'!$D$8,'Controls Sheet'!$D$2:$I$6,6,FALSE)) -> 
B105: Selby | H105: Northumberland | O105: =IF(INDEX($A$4:$E$111,,'Controls Sheet'!$F$8)=0,"",INDEX($A$4:$E$111,,'Controls Sheet'!$F$8)) ->  | P105: =IF(ISERROR(VLOOKUP($O105,'EASR lookup'!$C$5:$I$273,6,FALSE)),"",VLOOKUP($O105,'EASR lookup'!$C$5:$I$273,6,FALSE)) ->  | Q105: =IF(O105='Controls Sheet'!$C$8,VLOOKUP(O105,'EASR lookup'!$C$5:$M$273,8,FALSE),"") ->  | R105: =IF(O105='Controls Sheet'!$C$8,VLOOKUP(O105,'EASR lookup'!$C$5:$M$273,9,FALSE),"") ->  | S105: =IF(O105='Controls Sheet'!$C$8,'EASR Charts Controls'!P105,"") ->  | T105: =IF(P105="","",VLOOKUP('Controls Sheet'!$D$8,'Controls Sheet'!$D$2:$I$6,5,FALSE)) ->  | V105: =IF(INDEX($G$4:$K$111,,'Controls Sheet'!$F$8)=0,"",INDEX($G$4:$K$111,,'Controls Sheet'!$F$8)) ->  | W105: =IF(ISERROR(VLOOKUP($V105,'EASR lookup'!$C$5:$I$273,7,FALSE)),"",VLOOKUP($V105,'EASR lookup'!$C$5:$I$273,7,FALSE)) ->  | X105: =IF(V105='Controls Sheet'!$C$8,VLOOKUP(V105,'EASR lookup'!$C$5:$M$273,10,FALSE),"") ->  | Y105: =IF(V105='Controls Sheet'!$C$8,VLOOKUP(V105,'EASR lookup'!$C$5:$M$273,11,FALSE),"") ->  | Z105: =IF(V105='Controls Sheet'!$C$8,'EASR Charts Controls'!W105,"") ->  | AA105: =IF(W105="","",VLOOKUP('Controls Sheet'!$D$8,'Controls Sheet'!$D$2:$I$6,6,FALSE)) -> 
B106: North Warwickshire | H106: Warrington | O106: =IF(INDEX($A$4:$E$111,,'Controls Sheet'!$F$8)=0,"",INDEX($A$4:$E$111,,'Controls Sheet'!$F$8)) ->  | P106: =IF(ISERROR(VLOOKUP($O106,'EASR lookup'!$C$5:$I$273,6,FALSE)),"",VLOOKUP($O106,'EASR lookup'!$C$5:$I$273,6,FALSE)) ->  | Q106: =IF(O106='Controls Sheet'!$C$8,VLOOKUP(O106,'EASR lookup'!$C$5:$M$273,8,FALSE),"") ->  | R106: =IF(O106='Controls Sheet'!$C$8,VLOOKUP(O106,'EASR lookup'!$C$5:$M$273,9,FALSE),"") ->  | S106: =IF(O106='Controls Sheet'!$C$8,'EASR Charts Controls'!P106,"") ->  | T106: =IF(P106="","",VLOOKUP('Controls Sheet'!$D$8,'Controls Sheet'!$D$2:$I$6,5,FALSE)) ->  | V106: =IF(INDEX($G$4:$K$111,,'Controls Sheet'!$F$8)=0,"",INDEX($G$4:$K$111,,'Controls Sheet'!$F$8)) ->  | W106: =IF(ISERROR(VLOOKUP($V106,'EASR lookup'!$C$5:$I$273,7,FALSE)),"",VLOOKUP($V106,'EASR lookup'!$C$5:$I$273,7,FALSE)) ->  | X106: =IF(V106='Controls Sheet'!$C$8,VLOOKUP(V106,'EASR lookup'!$C$5:$M$273,10,FALSE),"") ->  | Y106: =IF(V106='Controls Sheet'!$C$8,VLOOKUP(V106,'EASR lookup'!$C$5:$M$273,11,FALSE),"") ->  | Z106: =IF(V106='Controls Sheet'!$C$8,'EASR Charts Controls'!W106,"") ->  | AA106: =IF(W106="","",VLOOKUP('Controls Sheet'!$D$8,'Controls Sheet'!$D$2:$I$6,6,FALSE)) -> 
B107: Bromsgrove | H107: Castle Point | O107: =IF(INDEX($A$4:$E$111,,'Controls Sheet'!$F$8)=0,"",INDEX($A$4:$E$111,,'Controls Sheet'!$F$8)) ->  | P107: =IF(ISERROR(VLOOKUP($O107,'EASR lookup'!$C$5:$I$273,6,FALSE)),"",VLOOKUP($O107,'EASR lookup'!$C$5:$I$273,6,FALSE)) ->  | Q107: =IF(O107='Controls Sheet'!$C$8,VLOOKUP(O107,'EASR lookup'!$C$5:$M$273,8,FALSE),"") ->  | R107: =IF(O107='Controls Sheet'!$C$8,VLOOKUP(O107,'EASR lookup'!$C$5:$M$273,9,FALSE),"") ->  | S107: =IF(O107='Controls Sheet'!$C$8,'EASR Charts Controls'!P107,"") ->  | T107: =IF(P107="","",VLOOKUP('Controls Sheet'!$D$8,'Controls Sheet'!$D$2:$I$6,5,FALSE)) ->  | V107: =IF(INDEX($G$4:$K$111,,'Controls Sheet'!$F$8)=0,"",INDEX($G$4:$K$111,,'Controls Sheet'!$F$8)) ->  | W107: =IF(ISERROR(VLOOKUP($V107,'EASR lookup'!$C$5:$I$273,7,FALSE)),"",VLOOKUP($V107,'EASR lookup'!$C$5:$I$273,7,FALSE)) ->  | X107: =IF(V107='Controls Sheet'!$C$8,VLOOKUP(V107,'EASR lookup'!$C$5:$M$273,10,FALSE),"") ->  | Y107: =IF(V107='Controls Sheet'!$C$8,VLOOKUP(V107,'EASR lookup'!$C$5:$M$273,11,FALSE),"") ->  | Z107: =IF(V107='Controls Sheet'!$C$8,'EASR Charts Controls'!W107,"") ->  | AA107: =IF(W107="","",VLOOKUP('Controls Sheet'!$D$8,'Controls Sheet'!$D$2:$I$6,6,FALSE)) -> 
B108: Warrington | H108: Gedling | O108: =IF(INDEX($A$4:$E$111,,'Controls Sheet'!$F$8)=0,"",INDEX($A$4:$E$111,,'Controls Sheet'!$F$8)) ->  | P108: =IF(ISERROR(VLOOKUP($O108,'EASR lookup'!$C$5:$I$273,6,FALSE)),"",VLOOKUP($O108,'EASR lookup'!$C$5:$I$273,6,FALSE)) ->  | Q108: =IF(O108='Controls Sheet'!$C$8,VLOOKUP(O108,'EASR lookup'!$C$5:$M$273,8,FALSE),"") ->  | R108: =IF(O108='Controls Sheet'!$C$8,VLOOKUP(O108,'EASR lookup'!$C$5:$M$273,9,FALSE),"") ->  | S108: =IF(O108='Controls Sheet'!$C$8,'EASR Charts Controls'!P108,"") ->  | T108: =IF(P108="","",VLOOKUP('Controls Sheet'!$D$8,'Controls Sheet'!$D$2:$I$6,5,FALSE)) ->  | V108: =IF(INDEX($G$4:$K$111,,'Controls Sheet'!$F$8)=0,"",INDEX($G$4:$K$111,,'Controls Sheet'!$F$8)) ->  | W108: =IF(ISERROR(VLOOKUP($V108,'EASR lookup'!$C$5:$I$273,7,FALSE)),"",VLOOKUP($V108,'EASR lookup'!$C$5:$I$273,7,FALSE)) ->  | X108: =IF(V108='Controls Sheet'!$C$8,VLOOKUP(V108,'EASR lookup'!$C$5:$M$273,10,FALSE),"") ->  | Y108: =IF(V108='Controls Sheet'!$C$8,VLOOKUP(V108,'EASR lookup'!$C$5:$M$273,11,FALSE),"") ->  | Z108: =IF(V108='Controls Sheet'!$C$8,'EASR Charts Controls'!W108,"") ->  | AA108: =IF(W108="","",VLOOKUP('Controls Sheet'!$D$8,'Controls Sheet'!$D$2:$I$6,6,FALSE)) -> 
B109: Boston | H109: Stirling | O109: =IF(INDEX($A$4:$E$111,,'Controls Sheet'!$F$8)=0,"",INDEX($A$4:$E$111,,'Controls Sheet'!$F$8)) ->  | P109: =IF(ISERROR(VLOOKUP($O109,'EASR lookup'!$C$5:$I$273,6,FALSE)),"",VLOOKUP($O109,'EASR lookup'!$C$5:$I$273,6,FALSE)) ->  | Q109: =IF(O109='Controls Sheet'!$C$8,VLOOKUP(O109,'EASR lookup'!$C$5:$M$273,8,FALSE),"") ->  | R109: =IF(O109='Controls Sheet'!$C$8,VLOOKUP(O109,'EASR lookup'!$C$5:$M$273,9,FALSE),"") ->  | S109: =IF(O109='Controls Sheet'!$C$8,'EASR Charts Controls'!P109,"") ->  | T109: =IF(P109="","",VLOOKUP('Controls Sheet'!$D$8,'Controls Sheet'!$D$2:$I$6,5,FALSE)) ->  | V109: =IF(INDEX($G$4:$K$111,,'Controls Sheet'!$F$8)=0,"",INDEX($G$4:$K$111,,'Controls Sheet'!$F$8)) ->  | W109: =IF(ISERROR(VLOOKUP($V109,'EASR lookup'!$C$5:$I$273,7,FALSE)),"",VLOOKUP($V109,'EASR lookup'!$C$5:$I$273,7,FALSE)) ->  | X109: =IF(V109='Controls Sheet'!$C$8,VLOOKUP(V109,'EASR lookup'!$C$5:$M$273,10,FALSE),"") ->  | Y109: =IF(V109='Controls Sheet'!$C$8,VLOOKUP(V109,'EASR lookup'!$C$5:$M$273,11,FALSE),"") ->  | Z109: =IF(V109='Controls Sheet'!$C$8,'EASR Charts Controls'!W109,"") ->  | AA109: =IF(W109="","",VLOOKUP('Controls Sheet'!$D$8,'Controls Sheet'!$D$2:$I$6,6,FALSE)) -> 
B110: Bury | H110: Chorley | O110: =IF(INDEX($A$4:$E$111,,'Controls Sheet'!$F$8)=0,"",INDEX($A$4:$E$111,,'Controls Sheet'!$F$8)) ->  | P110: =IF(ISERROR(VLOOKUP($O110,'EASR lookup'!$C$5:$I$273,6,FALSE)),"",VLOOKUP($O110,'EASR lookup'!$C$5:$I$273,6,FALSE)) ->  | Q110: =IF(O110='Controls Sheet'!$C$8,VLOOKUP(O110,'EASR lookup'!$C$5:$M$273,8,FALSE),"") ->  | R110: =IF(O110='Controls Sheet'!$C$8,VLOOKUP(O110,'EASR lookup'!$C$5:$M$273,9,FALSE),"") ->  | S110: =IF(O110='Controls Sheet'!$C$8,'EASR Charts Controls'!P110,"") ->  | T110: =IF(P110="","",VLOOKUP('Controls Sheet'!$D$8,'Controls Sheet'!$D$2:$I$6,5,FALSE)) ->  | V110: =IF(INDEX($G$4:$K$111,,'Controls Sheet'!$F$8)=0,"",INDEX($G$4:$K$111,,'Controls Sheet'!$F$8)) ->  | W110: =IF(ISERROR(VLOOKUP($V110,'EASR lookup'!$C$5:$I$273,7,FALSE)),"",VLOOKUP($V110,'EASR lookup'!$C$5:$I$273,7,FALSE)) ->  | X110: =IF(V110='Controls Sheet'!$C$8,VLOOKUP(V110,'EASR lookup'!$C$5:$M$273,10,FALSE),"") ->  | Y110: =IF(V110='Controls Sheet'!$C$8,VLOOKUP(V110,'EASR lookup'!$C$5:$M$273,11,FALSE),"") ->  | Z110: =IF(V110='Controls Sheet'!$C$8,'EASR Charts Controls'!W110,"") ->  | AA110: =IF(W110="","",VLOOKUP('Controls Sheet'!$D$8,'Controls Sheet'!$D$2:$I$6,6,FALSE)) -> 
B111: Stirling | H111: Bury | O111: =IF(INDEX($A$4:$E$111,,'Controls Sheet'!$F$8)=0,"",INDEX($A$4:$E$111,,'Controls Sheet'!$F$8)) ->  | P111: =IF(ISERROR(VLOOKUP($O111,'EASR lookup'!$C$5:$I$273,6,FALSE)),"",VLOOKUP($O111,'EASR lookup'!$C$5:$I$273,6,FALSE)) ->  | Q111: =IF(O111='Controls Sheet'!$C$8,VLOOKUP(O111,'EASR lookup'!$C$5:$M$273,8,FALSE),"") ->  | R111: =IF(O111='Controls Sheet'!$C$8,VLOOKUP(O111,'EASR lookup'!$C$5:$M$273,9,FALSE),"") ->  | S111: =IF(O111='Controls Sheet'!$C$8,'EASR Charts Controls'!P111,"") ->  | T111: =IF(P111="","",VLOOKUP('Controls Sheet'!$D$8,'Controls Sheet'!$D$2:$I$6,5,FALSE)) ->  | V111: =IF(INDEX($G$4:$K$111,,'Controls Sheet'!$F$8)=0,"",INDEX($G$4:$K$111,,'Controls Sheet'!$F$8)) ->  | W111: =IF(ISERROR(VLOOKUP($V111,'EASR lookup'!$C$5:$I$273,7,FALSE)),"",VLOOKUP($V111,'EASR lookup'!$C$5:$I$273,7,FALSE)) ->  | X111: =IF(V111='Controls Sheet'!$C$8,VLOOKUP(V111,'EASR lookup'!$C$5:$M$273,10,FALSE),"") ->  | Y111: =IF(V111='Controls Sheet'!$C$8,VLOOKUP(V111,'EASR lookup'!$C$5:$M$273,11,FALSE),"") ->  | Z111: =IF(V111='Controls Sheet'!$C$8,'EASR Charts Controls'!W111,"") ->  | AA111: =IF(W111="","",VLOOKUP('Controls Sheet'!$D$8,'Controls Sheet'!$D$2:$I$6,6,FALSE)) -> 

Sheet ASR lookup (hidden)
A1: Age-specific rates lookup | AC1: Excess deaths - based on Top 5 | AW1: Lower confidence intervals | BM1: Upper confidence intervals | CC1: Excess deaths - based on Wales
I2: 7 | J2: 8 | K2: 9 | L2: 10 | M2: 11 | N2: 12 | O2: 13 | P2: 14 | Q2: 15 | R2: 16 | S2: 17 | T2: 18 | U2: 19 | V2: 20 | W2: 21 | X2: 22 | Y2: 23 | Z2: 24 | AA2: 25 | AB2: 26 | AC2: 27 | AD2: 28 | AE2: 29 | AF2: 30 | AG2: 31 | AH2: 32 | AI2: 33 | AJ2: 34 | AK2: 35 | AL2: 36 | AM2: 37 | AN2: 38 | AO2: 39 | AP2: 40 | AQ2: 41 | AR2: 42 | AS2: 43 | AT2: 44 | AU2: 45 | AV2: 46 | AW2: 47 | AX2: 48 | AY2: 49 | AZ2: 50 | BA2: 51 | BB2: 52 | BC2: 53 | BD2: 54 | BE2: 55 | BF2: 56 | BG2: 57 | BH2: 58 | BI2: 59 | BJ2: 60 | BK2: 61 | BL2: 62 | BM2: 63 | BN2: 64 | BO2: 65 | BP2: 66 | BQ2: 67 | BR2: 68 | BS2: 69 | BT2: 70 | BU2: 71 | BV2: 72 | BW2: 73 | BX2: 74 | BY2: 75 | BZ2: 76 | CA2: 77 | CB2: 78 | CC2: 79 | CD2: 80 | CE2: 81 | CF2: 82 | CG2: 83 | CH2: 84 | CI2: 85 | CJ2: 86 | CK2: 87 | CL2: 88 | CM2: 89 | CN2: 90 | CO2: 91 | CP2: 92 | CQ2: 93 | CR2: 94 | CS2: 95 | CT2: 96 | CU2: 97 | CV2: 98
A3: Males | H3: Age­standardised mortality rate | I3: Age-specific rates
A4: Code | B4: LAD | C4: LAD2 | D4: Subgroups | E4: Subgroups2 | F4: Groups | G4: Supergroups | H4: Males | I4: 00-01 | J4: 01-04 | K4: 05-09 | L4: 10-14 | M4: 15-19 | N4: 20-24 | O4: 25-29 | P4: 30-34 | Q4: 35-39 | R4: 40-44 | S4: 45-49 | T4: 50-54 | U4: 55-59 | V4: 60-64 | W4: 65-69 | X4: 70-74 | Y4: 75-79 | Z4: 80-84 | AA4: 85+ | AB4: total | AC4: 00-01 | AD4: 01-04 | AE4: 05-09 | AF4: 10-14 | AG4: 15-19 | AH4: 20-24 | AI4: 25-29 | AJ4: 30-34 | AK4: 35-39 | AL4: 40-44 | AM4: 45-49 | AN4: 50-54 | AO4: 55-59 | AP4: 60-64 | AQ4: 65-69 | AR4: 70-74 | AS4: 75-79 | AT4: 80-84 | AU4: 85+ | AV4: total | AW4: 00-01 | AX4: 01-04 | AY4: 05-09 | AZ4: 10-14 | BA4: 15-19 | BB4: 20-24 | BC4: 25-29 | BD4: 30-34 | BE4: 35-39 | BF4: 40-44 | BG4: 45-49 | BH4: 50-54 | BI4: 55-59 | BJ4: 60-64 | BK4: 65-69 | BL4: 70-74 | BM4: 00-01 | BN4: 01-04 | BO4: 05-09 | BP4: 10-14 | BQ4: 15-19 | BR4: 20-24 | BS4: 25-29 | BT4: 30-34 | BU4: 35-39 | BV4: 40-44 | BW4: 45-49 | BX4: 50-54 | BY4: 55-59 | BZ4: 60-64 | CA4: 65-69 | CB4: 70-74 | CC4: 00-01 | CD4: 01-04 | CE4: 05-09 | CF4: 10-14 | CG4: 15-19 | CH4: 20-24 | CI4: 25-29 | CJ4: 30-34 | CK4: 35-39 | CL4: 40-44 | CM4: 45-49 | CN4: 50-54 | CO4: 55-59 | CP4: 60-64 | CQ4: 65-69 | CR4: 70-74 | CS4: 75-79 | CT4: 80-84 | CU4: 85+ | CV4: total
A5: 00PT | B5: Cardiff | C5: Cardiff | D5: 1.1.1 | E5: 1.1.1 | F5: 1.1 | G5: 1 | H5: 690.4 | I5: 5.3 | J5: 0.2 | K5: 0.1 | L5: 0 | M5: 0.3 | N5: 0.3 | O5: 0.6 | P5: 0.8 | Q5: 1.2 | R5: 1.4 | S5: 2.4 | T5: 3.9 | U5: 6.2 | V5: 10.2 | W5: 16.2 | X5: 29.2 | Y5: 50.5 | Z5: 82.7 | AA5: 179.8 | AB5: 7.9 | AC5: 2.15 | AD5: 1.44 | AE5: 0.52 | AF5: -1.02 | AG5: 0.8 | AH5: -1.71 | AI5: -0.13 | AJ5: -2.04 | AK5: 2.96 | AL5: -1.03 | AM5: -2.9 | AN5: -0.4 | AO5: -10.27 | AP5: 4.07 | AQ5: 9.75 | AR5: 37.37 | AS5: 44.47 | AT5: 29.29 | AU5: 63.52 | AV5: 176.84 | AW5: 2.8 | AX5: 0 | AY5: 0 | AZ5: 0 | BA5: 0.1 | BB5: 0.1 | BC5: 0.3 | BD5: 0.4 | BE5: 0.7 | BF5: 0.8 | BG5: 1.6 | BH5: 2.7 | BI5: 4.7 | BJ5: 8.1 | BK5: 13.2 | BL5: 24.5 | BM5: 9 | BN5: 0.8 | BO5: 0.6 | BP5: 0.4 | BQ5: 0.7 | BR5: 0.6 | BS5: 1.1 | BT5: 1.5 | BU5: 2.1 | BV5: 2.3 | BW5: 3.5 | BX5: 5.3 | BY5: 8.1 | BZ5: 12.6 | CA5: 19.6 | CB5: 34.5 | CC5: 1.2 | CD5: 0.12 | CE5: 0.44 | CF5: -0.84 | CG5: -0.76 | CH5: -9.27 | CI5: -2.81 | CJ5: -4.47 | CK5: -4.32 | CL5: -6.57 | CM5: -4.21 | CN5: 0.44 | CO5: -1.75 | CP5: 1.36 | CQ5: 5.93 | CR5: 9.04 | CS5: 26.37 | CT5: 11.34 | CU5: 30.2 | CV5: 0
A6: 00PD | B6: Vale of Glamorgan | C6: Vale of Glamorgan | D6: 5.7.12 | E6: 5.7.12 | F6: 5.7 | G6: 5 | H6: 602.2 | I6: 4.2 | J6: 0.3 | K6: 0 | L6: 0 | M6: 0.2 | N6: 0 | O6: 0 | P6: 1.4 | Q6: 1.3 | R6: 2.6 | S6: 3.1 | T6: 3 | U6: 5.8 | V6: 6.7 | W6: 13 | X6: 27.6 | Y6: 29.5 | Z6: 88.3 | AA6: 161.7 | AB6: 9.2 | AC6: 1.06 | AD6: 0.69 | AE6: -0.58 | AF6: -0.31 | AG6: -0.27 | AH6: -1.38 | AI6: 0 | AJ6: 4.35 | AK6: 2.6 | AL6: 7 | AM6: 10.06 | AN6: 2.95 | AO6: 8.25 | AP6: 1.11 | AQ6: 5.38 | AR6: 27.52 | AS6: -4.55 | AT6: 38.97 | AU6: 25.37 | AV6: 128 | AW6: 0.9 | AX6: 0 | AY6: 0 | AZ6: 0 | BA6: 0 | BB6: 0 | BC6: 0 | BD6: 0.4 | BE6: 0.4 | BF6: 1.3 | BG6: 1.7 | BH6: 1.6 | BI6: 3.7 | BJ6: 4.4 | BK6: 9.6 | BL6: 21.6 | BM6: 12.2 | BN6: 1.8 | BO6: 1 | BP6: 0.9 | BQ6: 1.4 | BR6: 1 | BS6: 1 | BT6: 3.2 | BU6: 3.1 | BV6: 4.7 | BW6: 5.2 | BX6: 5 | BY6: 8.7 | BZ6: 9.8 | CA6: 17.3 | CB6: 34.7 | CC6: -0.45 | CD6: 0.38 | CE6: -0.21 | CF6: -0.35 | CG6: -0.26 | CH6: -2.63 | CI6: -2.85 | CJ6: 0.69 | CK6: -1.09 | CL6: 2.73 | CM6: 1.5 | CN6: -3.83 | CO6: -2.44 | CP6: -12.95 | CQ6: -8.21 | CR6: 0.81 | CS6: -28.37 | CT6: 13.18 | CU6: -5.08 | CV6: 0
A7: 00PP | B7: Monmouth | C7: Monmouthshire | D7: 5.7.13 | E7: 5.7.13 | F7: 5.7 | G7: 5 | H7: 594.8 | I7: 4.9 | J7: 0 | K7: 0 | L7: 0 | M7: 0 | N7: 0 | O7: 1.5 | P7: 1 | Q7: 2.3 | R7: 1.6 | S7: 2.7 | T7: 3.2 | U7: 5.6 | V7: 8.5 | W7: 16.4 | X7: 22.3 | Y7: 36.4 | Z7: 60.2 | AA7: 159.8 | AB7: 10.3 | AC7: 0.89 | AD7: -0.19 | AE7: -0.4 | AF7: -0.22 | AG7: -0.98 | AH7: -0.9 | AI7: 3 | AJ7: 1.65 | AK7: 3.58 | AL7: 2 | AM7: 6.7 | AN7: 3.24 | AO7: 5.71 | AP7: 6.89 | AQ7: 15.24 | AR7: 10.92 | AS7: 8.34 | AT7: 0.43 | AU7: 20.46 | AV7: 86 | AW7: 0.6 | AX7: 0 | AY7: 0 | AZ7: 0 | BA7: 0 | BB7: 0 | BC7: 0.3 | BD7: 0.1 | BE7: 0.7 | BF7: 0.5 | BG7: 1.3 | BH7: 1.6 | BI7: 3.2 | BJ7: 5.6 | BK7: 12.2 | BL7: 16.4 | BM7: 17.6 | BN7: 2 | BO7: 1.5 | BP7: 1.4 | BQ7: 1.2 | BR7: 1.6 | BS7: 4.5 | BT7: 3.7 | BU7: 5.3 | BV7: 3.7 | BW7: 4.9 | BX7: 5.8 | BY7: 8.9 | BZ7: 12.3 | CA7: 21.6 | CB7: 29.5 | CC7: 0.03 | CD7: -0.38 | CE7: -0.15 | CF7: -0.25 | CG7: -0.97 | CH7: -1.71 | CI7: 1.48 | CJ7: -0.33 | CK7: 1.4 | CL7: -1.21 | CM7: -0.47 | CN7: -1.99 | CO7: -2.47 | CP7: -5.03 | CQ7: 3.57 | CR7: -10.86 | CS7: -12.9 | CT7: -22.4 | CU7: -6.09 | CV7: 0
A8: 00NN | B8: Powys | C8: Powys | D8: 6.10.17 | E8: 6.10.17 | F8: 6.10 | G8: 6 | H8: 559 | I8: 3.3 | J8: 0.4 | K8: 0.3 | L8: 0.5 | M8: 0.2 | N8: 0.3 | O8: 0.6 | P8: 0.7 | Q8: 1 | R8: 1.7 | S8: 1.8 | T8: 3.9 | U8: 5.2 | V8: 6.8 | W8: 9.4 | X8: 24.5 | Y8: 37.3 | Z8: 67.1 | AA8: 156.1 | AB8: 10.7 | AC8: -3.31 | AD8: 1 | AE8: 0.63 | AF8: 2 | AG8: 0.63 | AH8: 0.62 | AI8: -0.78 | AJ8: -0.18 | AK8: -0.17 | AL8: 2.27 | AM8: 2.91 | AN8: 6.06 | AO8: 5.38 | AP8: -12.71 | AQ8: -16.37 | AR8: 29.56 | AS8: 16.9 | AT8: 9.34 | AU8: 27.11 | AV8: 71 | AW8: 0.4 | AX8: 0 | AY8: 0 | AZ8: 0.1 | BA8: 0 | BB8: 0 | BC8: 0.1 | BD8: 0.1 | BE8: 0.2 | BF8: 0.7 | BG8: 0.8 | BH8: 2.3 | BI8: 3.4 | BJ8: 4.8 | BK8: 6.9 | BL8: 19.6 | BM8: 11.9 | BN8: 2 | BO8: 1.7 | BP8: 1.8 | BQ8: 1.3 | BR8: 1.6 | BS8: 2.3 | BT8: 2.5 | BU8: 2.8 | BV8: 3.4 | BW8: 3.4 | BX8: 6.2 | BY8: 7.8 | BZ8: 9.5 | CA8: 12.5 | CB8: 30.1 | CC8: -0.9 | CD8: 0.45 | CE8: 0.8 | CF8: 1.64 | CG8: -0.28 | CH8: -1.53 | CI8: -0.43 | CJ8: -1.44 | CK8: -2.05 | CL8: -1.3 | CM8: -4.92 | CN8: 0.55 | CO8: -5.27 | CP8: -16.38 | CQ8: -29.31 | CR8: -10.18 | CS8: -17.78 | CT8: -22.14 | CU8: -15.04 | CV8: 0
A9: 00NQ | B9: Ceredigion | C9: Ceredigion | D9: 6.10.17 | E9: 6.10.17 | F9: 6.10 | G9: 6 | H9: 547.7 | I9: 6.1 | J9: 0 | K9: 0 | L9: 0 | M9: 0.6 | N9: 0.8 | O9: 0.6 | P9: 0.6 | Q9: 1.2 | R9: 1 | S9: 3.1 | T9: 3.9 | U9: 7.6 | V9: 7.2 | W9: 8.6 | X9: 21.7 | Y9: 34.7 | Z9: 67.2 | AA9: 139.3 | AB9: 9.2 | AC9: -0.88 | AD9: 0 | AE9: -0.2 | AF9: 0 | AG9: 1.7 | AH9: 3.45 | AI9: -0.56 | AJ9: -0.21 | AK9: 0.26 | AL9: -0.34 | AM9: 4.2 | AN9: 2.94 | AO9: 8.41 | AP9: -5.69 | AQ9: -10.41 | AR9: 9.99 | AS9: 4.88 | AT9: 4.89 | AU9: 1.45 | AV9: 24 | AW9: 0.7 | AX9: 0 | AY9: 0 | AZ9: 0 | BA9: 0.1 | BB9: 0.2 | BC9: 0 | BD9: 0 | BE9: 0.1 | BF9: 0.1 | BG9: 1.2 | BH9: 1.8 | BI9: 4.5 | BJ9: 4.3 | BK9: 5.4 | BL9: 15.5 | BM9: 22 | BN9: 2.7 | BO9: 2 | BP9: 2 | BQ9: 2.2 | BR9: 2 | BS9: 3.2 | BT9: 3.5 | BU9: 4.2 | BV9: 3.5 | BW9: 6.3 | BX9: 7.4 | BY9: 12 | BZ9: 11.2 | CA9: 13 | CB9: 29.5 | CC9: 0.42 | CD9: -0.28 | CE9: -0.1 | CF9: -0.17 | CG9: 0.99 | CH9: 0.39 | CI9: -0.36 | CJ9: -0.92 | CK9: -0.77 | CL9: -2.11 | CM9: 0.59 | CN9: 0.13 | CO9: 2.93 | CP9: -7.59 | CQ9: -17.02 | CR9: -10.43 | CS9: -12.88 | CT9: -11.05 | CU9: -20.6 | CV9: 0
A10: 00NA | B10: Isle of Anglesey | C10: Isle of Anglesey | D10: 6.10.18 | E10: 6.10.18 | F10: 6.10 | G10: 6 | H10: 636.6 | I10: 4.9 | J10: 0 | K10: 0 | L10: 0 | M10: 1 | N10: 2.6 | O10: 1.1 | P10: 2.7 | Q10: 1.7 | R10: 1.3 | S10: 1.7 | T10: 2.5 | U10: 5.9 | V10: 11.1 | W10: 14 | X10: 19.1 | Y10: 36.4 | Z10: 73.3 | AA10: 176.9 | AB10: 11 | AC10: -1.56 | AD10: 0 | AE10: -0.2 | AF10: 0 | AG10: 1.82 | AH10: 4.79 | AI10: 0.34 | AJ10: 3.59 | AK10: 1.15 | AL10: 0.5 | AM10: 1.12 | AN10: -0.22 | AO10: 4.4 | AP10: 4.48 | AQ10: 3.22 | AR10: 5.43 | AS10: 6.98 | AT10: 9.73 | AU10: 26.4 | AV10: 72 | AW10: 0.6 | AX10: 0 | AY10: 0 | AZ10: 0 | BA10: 0.1 | BB10: 0.8 | BC10: 0.1 | BD10: 0.9 | BE10: 0.3 | BF10: 0.3 | BG10: 0.5 | BH10: 0.9 | BI10: 3.2 | BJ10: 7.4 | BK10: 9.7 | BL10: 13.4 | BM10: 17.8 | BN10: 2.2 | BO10: 2 | BP10: 2 | BQ10: 3.6 | BR10: 6 | BS10: 3.9 | BT10: 6.2 | BU10: 4.8 | BV10: 3.9 | BW10: 4.3 | BX10: 5.5 | BY10: 9.9 | BZ10: 16 | CA10: 19.4 | CB10: 26.5 | CC10: 0.05 | CD10: -0.34 | CE10: -0.11 | CF10: -0.17 | CG10: 1.39 | CH10: 3.59 | CI10: 0.56 | CJ10: 2.77 | CK10: 0.05 | CL10: -1.39 | CM10: -2.59 | CN10: -3.09 | CO10: -1.09 | CP10: 2.67 | CQ10: -3.26 | CR10: -15.35 | CS10: -9.95 | CT10: -4.66 | CU10: 6.89 | CV10: 0
A11: 00NC | B11: Gwynedd | C11: Gwynedd | D11: 6.10.18 | E11: 6.10.18 | F11: 6.10 | G11: 6 | H11: 605 | I11: 2.9 | J11: 0.7 | K11: 0 | L11: 0 | M11: 0 | N11: 1.5 | O11: 0 | P11: 1 | Q11: 1.9 | R11: 2.4 | S11: 3 | T11: 3.8 | U11: 5.7 | V11: 6.2 | W11: 12.9 | X11: 23.3 | Y11: 35.5 | Z11: 84.4 | AA11: 158.3 | AB11: 10.1 | AC11: -4.04 | AD11: 2 | AE11: -0.36 | AF11: 0 | AG11: -0.36 | AH11: 7.42 | AI11: -3.07 | AJ11: 0.62 | AK11: 2.77 | AL11: 4.84 | AM11: 7.06 | AN11: 4.74 | AO11: 6.16 | AP11: -12.33 | AQ11: 0.92 | AR11: 19.9 | AS11: 9.23 | AT11: 33.7 | AU11: 24.07 | AV11: 103 | AW11: 0.4 | AX11: 0.1 | AY11: 0 | AZ11: 0 | BA11: 0 | BB11: 0.7 | BC11: 0 | BD11: 0.2 | BE11: 0.7 | BF11: 1.1 | BG11: 1.5 | BH11: 2.1 | BI11: 3.6 | BJ11: 4 | BK11: 9.6 | BL11: 18 | BM11: 10.5 | BN11: 2.6 | BO11: 1.1 | BP11: 1.1 | BQ11: 0.9 | BR11: 3 | BS11: 1.1 | BT11: 2.8 | BU11: 4.1 | BV11: 4.6 | BW11: 5.2 | BX11: 6.3 | BY11: 8.8 | BZ11: 9.2 | CA11: 16.9 | CB11: 29.6 | CC11: -1.31 | CD11: 1.44 | CE11: -0.19 | CF11: -0.3 | CG11: -1.22 | CH11: 4.2 | CI11: -2.67 | CJ11: -0.76 | CK11: 0.86 | CL11: 1.71 | CM11: 0.7 | CN11: 0 | CO11: -2.33 | CP11: -15.2 | CQ11: -9.5 | CR11: -11.46 | CS11: -18.24 | CT11: 8.69 | CU11: -9.57 | CV11: 0
A12: 00NE | B12: Conwy | C12: Conwy | D12: 6.10.18 | E12: 6.10.18 | F12: 6.10 | G12: 6 | H12: 607.5 | I12: 3.4 | J12: 0 | K12: 0 | L12: 0.6 | M12: 0.3 | N12: 0.3 | O12: 1.1 | P12: 1.1 | Q12: 1.1 | R12: 1.6 | S12: 1.8 | T12: 3.1 | U12: 5.9 | V12: 10.1 | W12: 14.1 | X12: 27.2 | Y12: 34.1 | Z12: 71.2 | AA12: 162.3 | AB12: 12.4 | AC12: -3.23 | AD12: 0 | AE12: -0.33 | AF12: 2 | AG12: 0.69 | AH12: 0.67 | AI12: 0.52 | AJ12: 0.98 | AK12: 0.27 | AL12: 1.86 | AM12: 2.12 | AN12: 1.76 | AO12: 6.43 | AP12: 3.24 | AQ12: 5.71 | AR12: 33.8 | AS12: 7.17 | AT12: 15.91 | AU12: 36.5 | AV12: 116 | AW12: 0.4 | AX12: 0 | AY12: 0 | AZ12: 0.1 | BA12: 0 | BB12: 0 | BC12: 0.2 | BD12: 0.2 | BE12: 0.2 | BF12: 0.6 | BG12: 0.7 | BH12: 1.6 | BI12: 3.6 | BJ12: 7.2 | BK12: 10.7 | BL12: 21.7 | BM12: 12.1 | BN12: 1.6 | BO12: 1.2 | BP12: 2.3 | BQ12: 1.6 | BR12: 1.9 | BS12: 3.1 | BT12: 3.3 | BU12: 3.3 | BV12: 3.5 | BW12: 3.6 | BX12: 5.3 | BY12: 8.9 | BZ12: 13.7 | CA12: 18.3 | CB12: 33.7 | CC12: -0.86 | CD12: -0.48 | CE12: -0.17 | CF12: 1.72 | CG12: -0.07 | CH12: -1.14 | CI12: 0.84 | CJ12: -0.19 | CK12: -1.36 | CL12: -1.26 | CM12: -4.17 | CN12: -2.97 | CO12: -1.9 | CP12: 0.34 | CQ12: -4.76 | CR12: -0.34 | CS12: -24.65 | CT12: -13.28 | CU12: -6.21 | CV12: 0
A13: 00NG | B13: Denbighshire | C13: Denbighshire | D13: 6.10.18 | E13: 6.10.18 | F13: 6.10 | G13: 6 | H13: 681.1 | I13: 5.7 | J13: 0.9 | K13: 0 | L13: 0.4 | M13: 0.3 | N13: 0.4 | O13: 0.4 | P13: 1 | Q13: 2.1 | R13: 3.3 | S13: 3.5 | T13: 3.4 | U13: 7.5 | V13: 10.4 | W13: 13.8 | X13: 23.6 | Y13: 52 | Z13: 57.8 | AA13: 178.4 | AB13: 11.5 | AC13: -1.64 | AD13: 2 | AE13: -0.29 | AF13: 1 | AG13: 0.73 | AH13: 0.7 | AI13: -1.14 | AJ13: 0.43 | AK13: 2.58 | AL13: 6.63 | AM13: 7.82 | AN13: 2.62 | AO13: 10.15 | AP13: 3.62 | AQ13: 3.38 | AR13: 17.37 | AS13: 37.36 | AT13: -5.51 | AU13: 37.3 | AV13: 125 | AW13: 1.2 | AX13: 0.1 | AY13: 0 | AZ13: 0 | BA13: 0 | BB13: 0 | BC13: 0 | BD13: 0.1 | BE13: 0.7 | BF13: 1.6 | BG13: 1.8 | BH13: 1.7 | BI13: 4.7 | BJ13: 7.2 | BK13: 10 | BL13: 17.8 | BM13: 16.5 | BN13: 3.2 | BO13: 1.4 | BP13: 2 | BQ13: 1.8 | BR13: 2.1 | BS13: 2.3 | BT13: 3.5 | BU13: 4.9 | BV13: 6.1 | BW13: 6.1 | BX13: 6.1 | BY13: 11.4 | BZ13: 14.4 | CA13: 18.6 | CB13: 30.6 | CC13: 0.46 | CD13: 1.54 | CE13: -0.15 | CF13: 0.74 | CG13: 0.07 | CH13: -0.96 | CI13: -0.87 | CJ13: -0.48 | CK13: 1.14 | CL13: 4.09 | CM13: 2.44 | CN13: -1.25 | CO13: 3.38 | CP13: 1.21 | CQ13: -4.7 | CR13: -8.9 | CS13: 15.06 | CT13: -26.33 | CU13: 10.75 | CV13: 0
A14: 00NS | B14: Pembrokeshire | C14: Pembrokeshire | D14: 6.10.18 | E14: 6.10.18 | F14: 6.10 | G14: 6 | H14: 588.5 | I14: 6.3 | J14: 0.4 | K14: 0 | L14: 0 | M14: 0.3 | N14: 0.3 | O14: 0.3 | P14: 1.3 | Q14: 1.8 | R14: 0.5 | S14: 3 | T14: 4.5 | U14: 5.3 | V14: 9.6 | W14: 12.2 | X14: 25.1 | Y14: 37.5 | Z14: 76.2 | AA14: 136.7 | AB14: 10.4 | AC14: -1.61 | AD14: 1 | AE14: -0.37 | AF14: 0 | AG14: 0.66 | AH14: 0.61 | AI14: -1.8 | AJ14: 1.77 | AK14: 2.14 | AL14: -2.22 | AM14: 7.74 | AN14: 8.01 | AO14: 4.89 | AP14: 1.41 | AQ14: -2.12 | AR14: 28.96 | AS14: 15.55 | AT14: 22.23 | AU14: -0.76 | AV14: 86 | AW14: 1.7 | AX14: 0 | AY14: 0 | AZ14: 0 | BA14: 0 | BB14: 0 | BC14: 0 | BD14: 0.4 | BE14: 0.6 | BF14: 0.1 | BG14: 1.6 | BH14: 2.7 | BI14: 3.3 | BJ14: 6.9 | BK14: 9.1 | BL14: 20 | BM14: 16 | BN14: 2 | BO14: 1.1 | BP14: 1 | BQ14: 1.5 | BR14: 1.6 | BS14: 1.8 | BT14: 3.4 | BU14: 4.2 | BV14: 1.9 | BW14: 5.2 | BX14: 7 | BY14: 8.1 | BZ14: 13 | CA14: 16 | CB14: 31.2 | CC14: 0.93 | CD14: 0.44 | CE14: -0.2 | CF14: -0.34 | CG14: -0.18 | CH14: -1.54 | CI14: -1.44 | CJ14: 0.47 | CK14: 0.45 | CL14: -5.39 | CM14: 0.96 | CN14: 2.93 | CO14: -4.31 | CP14: -1.71 | CQ14: -12.96 | CR14: -7.11 | CS14: -15.73 | CT14: -3.97 | CU14: -36.06 | CV14: 0
A15: 00NU | B15: Carmarthenshire | C15: Carmarthenshire | D15: 6.10.18 | E15: 6.10.18 | F15: 6.10 | G15: 6 | H15: 639.2 | I15: 3.9 | J15: 0 | K15: 0 | L15: 0.2 | M15: 0.3 | N15: 0.4 | O15: 0.4 | P15: 0.9 | Q15: 2.1 | R15: 1.7 | S15: 3.1 | T15: 3.8 | U15: 5.7 | V15: 7.9 | W15: 14 | X15: 28.8 | Y15: 44.5 | Z15: 76.5 | AA15: 161.5 | AB15: 11 | AC15: -5.04 | AD15: 0 | AE15: -0.57 | AF15: 1 | AG15: 1.48 | AH15: 1.41 | AI15: -2.36 | AJ15: 0.62 | AK15: 5.21 | AL15: 3.49 | AM15: 12.01 | AN15: 6.99 | AO15: 9.68 | AP15: -8.53 | AQ15: 7.84 | AR15: 57.53 | AS15: 46.41 | AT15: 33.22 | AU15: 41.87 | AV15: 212 | AW15: 1.1 | AX15: 0 | AY15: 0 | AZ15: 0 | BA15: 0 | BB15: 0 | BC15: 0 | BD15: 0.2 | BE15: 1 | BF15: 0.8 | BG15: 1.9 | BH15: 2.4 | BI15: 3.9 | BJ15: 5.9 | BK15: 11.2 | BL15: 24.1 | BM15: 9.9 | BN15: 0.9 | BO15: 0.7 | BP15: 1 | BQ15: 1.2 | BR15: 1.4 | BS15: 1.5 | BT15: 2.3 | BU15: 3.9 | BV15: 3.2 | BW15: 4.7 | BX15: 5.6 | BY15: 7.9 | BZ15: 10.5 | CA15: 17.3 | CB15: 34.2 | CC15: -0.95 | CD15: -0.86 | CE15: -0.3 | CF15: 0.51 | CG15: 0.22 | CH15: -1.85 | CI15: -1.8 | CJ15: -1.35 | CK15: 2.36 | CL15: -1.42 | CM15: 1.72 | CN15: -0.41 | CO15: -4.22 | CP15: -13.04 | CQ15: -7.9 | CR15: 6.88 | CS15: 2.87 | CT15: -4.91 | CU15: -8.85 | CV15: 0
A16: 00NX | B16: Swansea | C16: Swansea | D16: 7.11.20 | E16: 7.11.20 | F16: 7.11 | G16: 7 | H16: 713 | I16: 4.2 | J16: 0 | K16: 0 | L16: 0 | M16: 0.1 | N16: 0.5 | O16: 1.9 | P16: 1.4 | Q16: 2.7 | R16: 3.1 | S16: 3.2 | T16: 4.1 | U16: 6.6 | V16: 12.8 | W16: 17.1 | X16: 30.2 | Y16: 49.7 | Z16: 76.8 | AA16: 149.4 | AB16: 10.2 | AC16: 0.56 | AD16: -0.27 | AE16: -0.26 | AF16: -0.27 | AG16: -2.03 | AH16: -0.3 | AI16: 9.65 | AJ16: 2.29 | AK16: 5.96 | AL16: 10.54 | AM16: 1.38 | AN16: 1.29 | AO16: 1.99 | AP16: 26.39 | AQ16: 4.01 | AR16: 10.59 | AS16: 8.94 | AT16: -3.46 | AU16: -22.6 | AV16: 54 | AW16: 1.5 | AX16: 0 | AY16: 0 | AZ16: 0 | BA16: 0 | BB16: 0.2 | BC16: 1.1 | BD16: 0.6 | BE16: 1.6 | BF16: 2 | BG16: 2.1 | BH16: 2.8 | BI16: 4.8 | BJ16: 10.2 | BK16: 14 | BL16: 25.4 | BM16: 9.1 | BN16: 0.7 | BO16: 0.6 | BP16: 0.6 | BQ16: 0.7 | BR16: 1.1 | BS16: 3.1 | BT16: 2.5 | BU16: 4.2 | BV16: 4.6 | BW16: 4.7 | BX16: 5.8 | BY16: 8.8 | BZ16: 15.7 | CA16: 20.7 | CB16: 35.6 | CC16: -0.9 | CD16: -1.11 | CE16: -0.38 | CF16: -0.6 | CG16: -1.52 | CH16: -2.28 | CI16: 8.8 | CJ16: 1.21 | CK16: 7.6 | CL16: 8.62 | CM16: 3.4 | CN16: 2.22 | CO16: 1.11 | CP16: 18.71 | CQ16: 11.33 | CR16: 13.47 | CS16: 23.19 | CT16: -4.81 | CU16: -34.33 | CV16: 0
A17: 00NZ | B17: Neath Port Talbot | C17: Neath Port Talbot | D17: 7.11.20 | E17: 7.11.20 | F17: 7.11 | G17: 7 | H17: 769.6 | I17: 9.5 | J17: 0 | K17: 0.3 | L17: 0 | M17: 0.5 | N17: 1.8 | O17: 0 | P17: 1.8 | Q17: 1.5 | R17: 3 | S17: 4.8 | T17: 3.9 | U17: 6.4 | V17: 10.4 | W17: 18.1 | X17: 25.4 | Y17: 45.9 | Z17: 93 | AA17: 207.7 | AB17: 11.5 | AC17: 4.82 | AD17: -0.16 | AE17: 0.85 | AF17: -0.16 | AG17: 0.37 | AH17: 4.8 | AI17: -2.92 | AJ17: 3.41 | AK17: -1.58 | AL17: 5.87 | AM17: 8.89 | AN17: -0.14 | AO17: 0.81 | AP17: 6.72 | AQ17: 6.67 | AR17: -7.56 | AS17: -3.38 | AT17: 22.82 | AU17: 51.14 | AV17: 101 | AW17: 4.1 | AX17: 0 | AY17: 0 | AZ17: 0 | BA17: 0.1 | BB17: 0.7 | BC17: 0 | BD17: 0.8 | BE17: 0.5 | BF17: 1.6 | BG17: 3.1 | BH17: 2.4 | BI17: 4.3 | BJ17: 7.6 | BK17: 14.2 | BL17: 20 | BM17: 18.7 | BN17: 1.2 | BO17: 1.5 | BP17: 0.9 | BQ17: 1.6 | BR17: 3.6 | BS17: 0.8 | BT17: 3.6 | BU17: 3.2 | BV17: 5 | BW17: 7.2 | BX17: 6.1 | BY17: 9.2 | BZ17: 13.8 | CA17: 22.8 | CB17: 31.8 | CC17: 3.96 | CD17: -0.64 | CE17: 0.78 | CF17: -0.36 | CG17: 0.64 | CH17: 4.11 | CI17: -3.38 | CJ17: 2.76 | CK17: -0.63 | CL17: 4.72 | CM17: 10.13 | CN17: 0.46 | CO17: 0.22 | CP17: 1.62 | CQ17: 11.39 | CR17: -5.71 | CS17: 5.05 | CT17: 22.04 | CU17: 44.76 | CV17: 0
A18: 00PF | B18: Rhondda Cynon Taff | C18: Rhondda Cynon Taff | D18: 7.11.20 | E18: 7.11.20 | F18: 7.11 | G18: 7 | H18: 730.7 | I18: 3.4 | J18: 0.3 | K18: 0 | L18: 0 | M18: 0.4 | N18: 1 | O18: 1 | P18: 1.4 | Q18: 2.7 | R18: 1.8 | S18: 3.1 | T18: 4.7 | U18: 6 | V18: 13.3 | W18: 16.6 | X18: 27.2 | Y18: 51 | Z18: 82.7 | AA18: 175.4 | AB18: 10 | AC18: -0.53 | AD18: 1.7 | AE18: -0.28 | AF18: -0.27 | AG18: 0.15 | AH18: 3.36 | AI18: 2.07 | AJ18: 2.65 | AK18: 5.52 | AL18: 0.92 | AM18: 0.84 | AN18: 5.65 | AO18: -1.94 | AP18: 32.24 | AQ18: 1.22 | AR18: -3.37 | AS18: 12.87 | AT18: 10.28 | AU18: 23.53 | AV18: 97 | AW18: 1.1 | AX18: 0 | AY18: 0 | AZ18: 0 | BA18: 0.1 | BB18: 0.4 | BC18: 0.4 | BD18: 0.7 | BE18: 1.6 | BF18: 1 | BG18: 2.1 | BH18: 3.3 | BI18: 4.3 | BJ18: 10.8 | BK18: 13.7 | BL18: 22.7 | BM18: 8 | BN18: 1.2 | BO18: 0.5 | BP18: 0.6 | BQ18: 1.1 | BR18: 1.9 | BS18: 2 | BT18: 2.6 | BU18: 4.2 | BV18: 3 | BW18: 4.6 | BX18: 6.5 | BY18: 8.1 | BZ18: 16.2 | CA18: 20.1 | CB18: 32.3 | CC18: -2.01 | CD18: 0.79 | CE18: -0.4 | CF18: -0.61 | CG18: 0.64 | CH18: 1.9 | CI18: 1.29 | CJ18: 1.61 | CK18: 7.09 | CL18: -1.08 | CM18: 2.91 | CN18: 6.6 | CO18: -2.84 | CP18: 24.04 | CQ18: 8.89 | CR18: -0.42 | CS18: 26.03 | CT18: 9.15 | CU18: 14.14 | CV18: 0
A19: 00PH | B19: Merthyr Tydfil | C19: Merthyr Tydfil | D19: 7.11.20 | E19: 7.11.20 | F19: 7.11 | G19: 7 | H19: 673 | I19: 2.6 | J19: 0 | K19: 0 | L19: 0 | M19: 0 | N19: 1.6 | O19: 1 | P19: 2.2 | Q19: 1.3 | R19: 2.5 | S19: 2.8 | T19: 4.7 | U19: 1.7 | V19: 12.8 | W19: 20.2 | X19: 29.9 | Y19: 51.2 | Z19: 87.9 | AA19: 120.6 | AB19: 9.3 | AC19: -0.46 | AD19: -0.08 | AE19: -0.07 | AF19: -0.07 | AG19: -0.71 | AH19: 1.94 | AI19: 0.67 | AJ19: 2.13 | AK19: -0.84 | AL19: 1.53 | AM19: -0.43 | AN19: 1.69 | AO19: -7.97 | AP19: 7.02 | AQ19: 5.75 | AR19: 2.41 | AS19: 3.48 | AT19: 5.68 | AU19: -14.95 | AV19: 7 | AW19: 0.1 | AX19: 0 | AY19: 0 | AZ19: 0 | BA19: 0 | BB19: 0.3 | BC19: 0.1 | BD19: 0.6 | BE19: 0.2 | BF19: 0.8 | BG19: 1 | BH19: 2.3 | BI19: 0.4 | BJ19: 8.1 | BK19: 13.7 | BL19: 21 | BM19: 14.4 | BN19: 2.4 | BO19: 2.2 | BP19: 2.2 | BQ19: 1.9 | BR19: 4.5 | BS19: 3.6 | BT19: 5.7 | BU19: 4.7 | BV19: 5.8 | BW19: 6.2 | BX19: 8.7 | BY19: 5 | BZ19: 19.2 | CA19: 28.7 | CB19: 41.4 | CC19: -0.85 | CD19: -0.31 | CE19: -0.1 | CF19: -0.15 | CG19: -0.59 | CH19: 1.6 | CI19: 0.46 | CJ19: 1.87 | CK19: -0.48 | CL19: 1.04 | CM19: 0.1 | CN19: 1.95 | CO19: -8.2 | CP19: 5 | CQ19: 7.55 | CR19: 3.16 | CS19: 6.79 | CT19: 5.39 | CU19: -17.13 | CV19: 0
A20: 00PK | B20: Caerphilly | C20: Caerphilly | D20: 7.11.20 | E20: 7.11.20 | F20: 7.11 | G20: 7 | H20: 698.7 | I20: 5.7 | J20: 0.2 | K20: 0.4 | L20: 0 | M20: 0.2 | N20: 0.7 | O20: 0.9 | P20: 1.1 | Q20: 0.9 | R20: 2.2 | S20: 2.1 | T20: 5.2 | U20: 5.8 | V20: 11.5 | W20: 16.8 | X20: 28.2 | Y20: 49.6 | Z20: 79.5 | AA20: 169.3 | AB20: 9.3 | AC20: 2.02 | AD20: 0.77 | AE20: 1.78 | AF20: -0.22 | AG20: -1.15 | AH20: 0.99 | AI20: 1.4 | AJ20: 0.42 | AK20: -4.9 | AL20: 3.09 | AM20: -6.05 | AN20: 7.5 | AO20: -2.51 | AP20: 14.54 | AQ20: 1.61 | AR20: 0.95 | AS20: 5.84 | AT20: 2.26 | AU20: 9.33 | AV20: 38 | AW20: 2.1 | AX20: 0 | AY20: 0 | AZ20: 0 | BA20: 0 | BB20: 0.2 | BC20: 0.3 | BD20: 0.4 | BE20: 0.3 | BF20: 1.2 | BG20: 1.2 | BH20: 3.5 | BI20: 3.9 | BJ20: 8.9 | BK20: 13.3 | BL20: 23 | BM20: 12.4 | BN20: 1.2 | BO20: 1.3 | BP20: 0.7 | BQ20: 1 | BR20: 1.9 | BS20: 2.2 | BT20: 2.4 | BU20: 2.2 | BV20: 3.7 | BW20: 3.6 | BX20: 7.4 | BY20: 8.2 | BZ20: 14.7 | CA20: 20.8 | CB20: 34.1 | CC20: 0.95 | CD20: 0.06 | CE20: 1.68 | CF20: -0.49 | CG20: -0.79 | CH20: 0.04 | CI20: 0.83 | CJ20: -0.37 | CK20: -3.66 | CL20: 1.54 | CM20: -4.41 | CN20: 8.24 | CO20: -3.21 | CP20: 8.27 | CQ20: 7.33 | CR20: 3.23 | CS20: 15.43 | CT20: 1.4 | CU20: 2.93 | CV20: 0
A21: 00PL | B21: Blaenau Gwent | C21: Blaenau Gwent | D21: 7.11.20 | E21: 7.11.20 | F21: 7.11 | G21: 7 | H21: 828.4 | I21: 7.7 | J21: 0.6 | K21: 0 | L21: 0 | M21: 0 | N21: 0.4 | O21: 0.9 | P21: 3 | Q21: 1.5 | R21: 2.3 | S21: 4.6 | T21: 3.4 | U21: 9.9 | V21: 13.3 | W21: 19.9 | X21: 40.5 | Y21: 46.3 | Z21: 97.6 | AA21: 181.6 | AB21: 11.7 | AC21: 1.53 | AD21: 0.91 | AE21: -0.07 | AF21: -0.08 | AG21: -0.83 | AH21: -0.28 | AI21: 0.55 | AJ21: 3.92 | AK21: -0.66 | AL21: 1.58 | AM21: 4.01 | AN21: -1.22 | AO21: 7.79 | AP21: 9.57 | AQ21: 7.01 | AR21: 19.61 | AS21: -1.22 | AT21: 13.97 | AU21: 9.55 | AV21: 75.64 | AW21: 1.6 | AX21: 0 | AY21: 0 | AZ21: 0 | BA21: 0 | BB21: 0 | BC21: 0.1 | BD21: 1.1 | BE21: 0.3 | BF21: 0.9 | BG21: 2.4 | BH21: 1.5 | BI21: 6.2 | BJ21: 8.9 | BK21: 14.2 | BL21: 31.2 | BM21: 22.6 | BN21: 3.2 | BO21: 2 | BP21: 2 | BQ21: 1.6 | BR21: 2.4 | BS21: 3.3 | BT21: 6.5 | BU21: 4.5 | BV21: 5.1 | BW21: 8 | BX21: 6.7 | BY21: 15.2 | BZ21: 19.1 | CA21: 26.9 | CB21: 51.9 | CC21: 1.14 | CD21: 0.65 | CE21: -0.11 | CF21: -0.17 | CG21: -0.69 | CH21: -0.68 | CI21: 0.32 | CJ21: 3.62 | CK21: -0.2 | CL21: 0.95 | CM21: 4.67 | CN21: -0.93 | CO21: 7.52 | CP21: 7.11 | CQ21: 9.43 | CR21: 20.57 | CS21: 2.92 | CT21: 13.61 | CU21: 6.87 | CV21: 0
A22: 00PM | B22: Torfaen | C22: Torfaen | D22: 7.11.20 | E22: 7.11.20 | F22: 7.11 | G22: 7 | H22: 765.3 | I22: 5.2 | J22: 0 | K22: 0 | L22: 0 | M22: 0.3 | N22: 0.7 | O22: 0.7 | P22: 1.2 | Q22: 0.8 | R22: 2 | S22: 3 | T22: 4.6 | U22: 7.6 | V22: 12 | W22: 15.7 | X22: 38.6 | Y22: 44.4 | Z22: 96.2 | AA22: 194 | AB22: 11.4 | AC22: 0.83 | AD22: -0.11 | AE22: -0.11 | AF22: -0.11 | AG22: -0.15 | AH22: 0.42 | AI22: 0.17 | AJ22: 0.39 | AK22: -2.43 | AL22: 0.74 | AM22: -0.18 | AN22: 2.26 | AO22: 3.72 | AP22: 8.9 | AQ22: -1.93 | AR22: 19.66 | AS22: -4.28 | AT22: 17.08 | AU22: 24.16 | AV22: 69 | AW22: 1.1 | AX22: 0 | AY22: 0 | AZ22: 0 | BA22: 0 | BB22: 0.1 | BC22: 0.1 | BD22: 0.2 | BE22: 0.1 | BF22: 0.7 | BG22: 1.4 | BH22: 2.6 | BI22: 4.7 | BJ22: 8.3 | BK22: 11.3 | BL22: 30.2 | BM22: 15.3 | BN22: 1.7 | BO22: 1.4 | BP22: 1.4 | BQ22: 1.8 | BR22: 2.5 | BS22: 2.6 | BT22: 3.5 | BU22: 3 | BV22: 4.3 | BW22: 5.5 | BX22: 7.6 | BY22: 11.6 | BZ22: 16.8 | CA22: 21.3 | CB22: 48.7 | CC22: 0.25 | CD22: -0.45 | CE22: -0.15 | CF22: -0.24 | CG22: 0.04 | CH22: -0.08 | CI22: -0.12 | CJ22: 0.02 | CK22: -1.87 | CL22: -0.01 | CM22: 0.65 | CN22: 2.66 | CO22: 3.36 | CP22: 5.73 | CQ22: 1.12 | CR22: 20.79 | CS22: 1.04 | CT22: 16.6 | CU22: 19.9 | CV22: 0
A23: 00PR | B23: Newport | C23: Newport | D23: 7.11.20 | E23: 7.11.20 | F23: 7.11 | G23: 7 | H23: 708.9 | I23: 4.1 | J23: 0.3 | K23: 0 | L23: 0 | M23: 0.2 | N23: 1.2 | O23: 1.5 | P23: 0.9 | Q23: 1.2 | R23: 2 | S23: 2.1 | T23: 4.1 | U23: 8.7 | V23: 12.1 | W23: 17.7 | X23: 25.6 | Y23: 47.3 | Z23: 81 | AA23: 172.9 | AB23: 9.7 | AC23: 0.33 | AD23: 0.8 | AE23: -0.18 | AF23: -0.19 | AG23: -0.82 | AH23: 3.23 | AI23: 3.84 | AJ23: -0.72 | AK23: -2.86 | AL23: 1.32 | AM23: -5.21 | AN23: 0.97 | AO23: 9.45 | AP23: 12.66 | AQ23: 4.47 | AR23: -6.13 | AS23: -0.02 | AT23: 4.1 | AU23: 13.37 | AV23: 38 | AW23: 1.1 | AX23: 0 | AY23: 0 | AZ23: 0 | BA23: 0 | BB23: 0.4 | BC23: 0.6 | BD23: 0.2 | BE23: 0.4 | BF23: 0.9 | BG23: 1 | BH23: 2.5 | BI23: 6 | BJ23: 8.9 | BK23: 13.6 | BL23: 20 | BM23: 10.5 | BN23: 1.4 | BO23: 0.8 | BP23: 0.8 | BQ23: 1.1 | BR23: 2.6 | BS23: 3.1 | BT23: 2.3 | BU23: 2.8 | BV23: 3.6 | BW23: 3.7 | BX23: 6.4 | BY23: 12.1 | BZ23: 16 | CA23: 22.7 | CB23: 32.5 | CC23: -0.65 | CD23: 0.19 | CE23: -0.26 | CF23: -0.42 | CG23: -0.52 | CH23: 2.36 | CI23: 3.34 | CJ23: -1.39 | CK23: -1.87 | CL23: 0.08 | CM23: -3.88 | CN23: 1.56 | CO23: 8.94 | CP23: 8.19 | CQ23: 8.63 | CR23: -4.47 | CS23: 8.15 | CT23: 3.38 | CU23: 6.93 | CV23: 0
A24: 00NJ | B24: Flintshire | C24: Flintshire | D24: 7.12.22 | E24: 7.12.22 | F24: 7.12 | G24: 7 | H24: 636.9 | I24: 6.6 | J24: 0.3 | K24: 0 | L24: 0 | M24: 0.4 | N24: 1.3 | O24: 0.7 | P24: 0.7 | Q24: 0.7 | R24: 2.1 | S24: 2.3 | T24: 3.2 | U24: 7.4 | V24: 7.7 | W24: 15.7 | X24: 23 | Y24: 50.9 | Z24: 79.7 | AA24: 148 | AB24: 9.3 | AC24: 4.67 | AD24: -0.04 | AE24: 0 | AF24: -0.32 | AG24: -0.31 | AH24: 2.07 | AI24: -0.26 | AJ24: -0.24 | AK24: -0.84 | AL24: 5.48 | AM24: 1.37 | AN24: 1.27 | AO24: 5.62 | AP24: -7.81 | AQ24: 10.43 | AR24: -9.16 | AS24: 32.2 | AT24: 16.79 | AU24: -3.51 | AV24: 57 | AW24: 2.4 | AX24: 0 | AY24: 0 | AZ24: 0 | BA24: 0.1 | BB24: 0.5 | BC24: 0.1 | BD24: 0.1 | BE24: 0.1 | BF24: 1.1 | BG24: 1.2 | BH24: 1.9 | BI24: 5.1 | BJ24: 5.5 | BK24: 12.3 | BL24: 18.2 | BM24: 14.4 | BN24: 1.5 | BO24: 0.9 | BP24: 0.8 | BQ24: 1.5 | BR24: 2.8 | BS24: 2 | BT24: 2.1 | BU24: 2 | BV24: 3.7 | BW24: 3.9 | BX24: 5.2 | BY24: 10.4 | BZ24: 10.5 | CA24: 19.7 | CB24: 28.7 | CC24: 1.66 | CD24: 0.22 | CE24: -0.25 | CF24: -0.41 | CG24: 0.52 | CH24: 2.66 | CI24: -0.41 | CJ24: -2.06 | CK24: -4.02 | CL24: 0.95 | CM24: -2.83 | CN24: -3.14 | CO24: 4.74 | CP24: -11.69 | CQ24: 1.81 | CR24: -14.55 | CS24: 17.55 | CT24: 1.63 | CU24: -20.24 | CV24: 0
A25: 00NL | B25: Wrexham Maelor | C25: Wrexham | D25: 7.12.22 | E25: 7.12.22 | F25: 7.12 | G25: 7 | H25: 664.8 | I25: 5.7 | J25: 0 | K25: 0 | L25: 0.3 | M25: 0.7 | N25: 0.2 | O25: 0.9 | P25: 0.9 | Q25: 1.7 | R25: 1.8 | S25: 1.8 | T25: 3.9 | U25: 6.8 | V25: 9.2 | W25: 14.3 | X25: 31.2 | Y25: 40.1 | Z25: 75.1 | AA25: 177.1 | AB25: 9.3 | AC25: 3.7 | AD25: -0.99 | AE25: 0 | AF25: 0.72 | AG25: 0.99 | AH25: -2.7 | AI25: 0.75 | AJ25: 0.73 | AK25: 3.27 | AL25: 3.27 | AM25: -1.14 | AN25: 3.97 | AO25: 2.53 | AP25: -0.27 | AQ25: 3.52 | AR25: 15.14 | AS25: 5.09 | AT25: 8.57 | AU25: 25.61 | AV25: 73 | AW25: 1.8 | AX25: 0 | AY25: 0 | AZ25: 0 | BA25: 0.1 | BB25: 0 | BC25: 0.2 | BD25: 0.3 | BE25: 0.7 | BF25: 0.8 | BG25: 0.8 | BH25: 2.3 | BI25: 4.5 | BJ25: 6.5 | BK25: 10.8 | BL25: 25 | BM25: 13.2 | BN25: 1 | BO25: 0.9 | BP25: 1.4 | BQ25: 2.1 | BR25: 1.3 | BS25: 2.3 | BT25: 2.4 | BU25: 3.4 | BV25: 3.5 | BW25: 3.5 | BX25: 6.2 | BY25: 9.8 | BZ25: 12.6 | CA25: 18.6 | CB25: 38.5 | CC25: 0.77 | CD25: -0.74 | CE25: -0.24 | CF25: 0.64 | CG25: 1.71 | CH25: -2.15 | CI25: 0.59 | CJ25: -1.11 | CK25: 0.19 | CL25: -0.71 | CM25: -4.8 | CN25: 0.32 | CO25: 1.74 | CP25: -3.43 | CQ25: -3.71 | CR25: 10.76 | CS25: -7.16 | CT25: -4.93 | CU25: 10.42 | CV25: 0
A26: 00PB | B26: Bridgend | C26: Bridgend | D26: 7.12.22 | E26: 7.12.22 | F26: 7.12 | G26: 7 | H26: 731.6 | I26: 1.2 | J26: 0 | K26: 0 | L26: 0.3 | M26: 0.7 | N26: 1.9 | O26: 0.5 | P26: 1.2 | Q26: 1.9 | R26: 1.2 | S26: 3.3 | T26: 1.7 | U26: 7.8 | V26: 10.7 | W26: 21.5 | X26: 31 | Y26: 42.4 | Z26: 87.1 | AA26: 191.4 | AB26: 10.6 | AC26: -0.22 | AD26: -0.91 | AE26: 0 | AF26: 0.72 | AG26: 0.84 | AH26: 4.41 | AI26: -1.22 | AJ26: 1.7 | AK26: 4.28 | AL26: 0.11 | AM26: 6.35 | AN26: -6.41 | AO26: 6.9 | AP26: 6.1 | AQ26: 31.57 | AR26: 15.84 | AS26: 10.37 | AT26: 26.06 | AU26: 41.17 | AV26: 148 | AW26: 0 | AX26: 0 | AY26: 0 | AZ26: 0 | BA26: 0.1 | BB26: 0.8 | BC26: 0.1 | BD26: 0.4 | BE26: 0.8 | BF26: 0.4 | BG26: 1.9 | BH26: 0.7 | BI26: 5.4 | BJ26: 7.8 | BK26: 17.2 | BL26: 25 | BM26: 6.7 | BN26: 1.1 | BO26: 0.9 | BP26: 1.4 | BQ26: 2 | BR26: 3.7 | BS26: 1.7 | BT26: 2.7 | BU26: 3.8 | BV26: 2.6 | BW26: 5.2 | BX26: 3.3 | BY26: 11 | BZ26: 14.2 | CA26: 26.6 | CB26: 38 | CC26: -2.96 | CD26: -0.68 | CE26: -0.23 | CF26: 0.63 | CG26: 1.62 | CH26: 4.95 | CI26: -1.38 | CJ26: -0.15 | CK26: 1.2 | CL26: -3.98 | CM26: 2.51 | CN26: -10.46 | CO26: 6.09 | CP26: 2.79 | CQ26: 24.35 | CR26: 11.07 | CS26: -2.79 | CT26: 12.06 | CU26: 25.42 | CV26: 0
A29: Best in class - now based on Top 5
A30: Code | B30: LAD | C30: LAD2 | D30: Subgroups | E30: Subgroups2 | F30: Groups | G30: Supergroups | H30: Males | I30: 00-01 | J30: 01-04 | K30: 05-09 | L30: 10-14 | M30: 15-19 | N30: 20-24 | O30: 25-29 | P30: 30-34 | Q30: 35-39 | R30: 40-44 | S30: 45-49 | T30: 50-54 | U30: 55-59 | V30: 60-64 | W30: 65-69 | X30: 70-74 | Y30: 75-79 | Z30: 80-84 | AA30: 85+ | AB30: total
A31: 00KF | B31: Southend-on-Sea | C31: Southend-on-Sea | D31: 1.1.1 | E31: 1.1.1 | F31: 1.1 | G31: 1 | H31: 603.9 | I31: 4.4 | J31: 0.1 | K31: 0.1 | L31: 0.1 | M31: 0.2 | N31: 0.3 | O31: 0.6 | P31: 1 | Q31: 1 | R31: 1.5 | S31: 2.7 | T31: 3.9 | U31: 7.3 | V31: 9.7 | W31: 14.7 | X31: 21.4 | Y31: 39 | Z31: 72.2 | AA31: 152 | AB31: 9.1
A32: 12UC | B32: East Cambridgeshire | C32: East Cambridgeshire | D32: 5.7.14 | E32: 5.7.14 | F32: 5.7 | G32: 5 | H32: 458.3 | I32: 2.7 | J32: 0.1 | K32: 0.2 | L32: 0.1 | M32: 0.3 | N32: 0.4 | O32: 0 | P32: 0.2 | Q32: 0.6 | R32: 1 | S32: 0.9 | T32: 2.3 | U32: 3.7 | V32: 6.4 | W32: 11.5 | X32: 17.2 | Y32: 31.8 | Z32: 59.8 | AA32: 137.1 | AB32: 8.6
A33: 19UC | B33: Christchurch | C33: Christchurch | D33: 6.10.17 | E33: 6.10.17 | F33: 6.1 | G33: 6 | H33: 501.9 | I33: 8.8 | J33: 0 | K33: 0.1 | L33: 0 | M33: 0.1 | N33: 0.1 | O33: 0.9 | P33: 0.8 | Q33: 1 | R33: 1.1 | S33: 1.2 | T33: 2.6 | U33: 4.1 | V33: 9.3 | W33: 12.7 | X33: 16.3 | Y33: 31.3 | Z33: 62.2 | AA33: 137.3 | AB33: 10.7
A34: 00EE | B34: Redcar and Cleveland | C34: Redcar and Cleveland | D34: 7.11.20 | E34: 7.11.20 | F34: 7.11 | G34: 7 | H34: 664.3 | I34: 3.8 | J34: 0.1 | K34: 0 | L34: 0 | M34: 0.4 | N34: 0.6 | O34: 0.7 | P34: 1 | Q34: 1.9 | R34: 1.7 | S34: 3 | T34: 3.9 | U34: 6.3 | V34: 8.9 | W34: 16.5 | X34: 27.9 | Y34: 47.4 | Z34: 78.1 | AA34: 160.7 | AB34: 10.2
A35: 95Q | B35: Banbridge | C35: Banbridge | D35: 7.12.23 | E35: 7.12.23 | F35: 7.12 | G35: 7 | H35: 583.5 | I35: 1.5 | J35: 0.3 | K35: 0 | L35: 0.1 | M35: 0.5 | N35: 0.9 | O35: 0.7 | P35: 0.8 | Q35: 0.9 | R35: 1.2 | S35: 2.1 | T35: 3 | U35: 6.2 | V35: 9.3 | W35: 13.4 | X35: 25.7 | Y35: 37.6 | Z35: 68.9 | AA35: 151.2 | AB35: 9
AC36: Excess deaths - based on Top 5 | AW36: Lower confidence intervals | BM36: Upper confidence intervals | CC36: Excess deaths - based on Wales
I37: 7 | J37: 8 | K37: 9 | L37: 10 | M37: 11 | N37: 12 | O37: 13 | P37: 14 | Q37: 15 | R37: 16 | S37: 17 | T37: 18 | U37: 19 | V37: 20 | W37: 21 | X37: 22 | Y37: 23 | Z37: 24 | AA37: 25 | AB37: 26 | AC37: 27 | AD37: 28 | AE37: 29 | AF37: 30 | AG37: 31 | AH37: 32 | AI37: 33 | AJ37: 34 | AK37: 35 | AL37: 36 | AM37: 37 | AN37: 38 | AO37: 39 | AP37: 40 | AQ37: 41 | AR37: 42 | AS37: 43 | AT37: 44 | AU37: 45 | AV37: 46 | AW37: 47 | AX37: 48 | AY37: 49 | AZ37: 50 | BA37: 51 | BB37: 52 | BC37: 53 | BD37: 54 | BE37: 55 | BF37: 56 | BG37: 57 | BH37: 58 | BI37: 59 | BJ37: 60 | BK37: 61 | BL37: 62 | BM37: 63 | BN37: 64 | BO37: 65 | BP37: 66 | BQ37: 67 | BR37: 68 | BS37: 69 | BT37: 70 | BU37: 71 | BV37: 72 | BW37: 73 | BX37: 74 | BY37: 75 | BZ37: 76 | CA37: 77 | CB37: 78 | CC37: 79 | CD37: 80 | CE37: 81 | CF37: 82 | CG37: 83 | CH37: 84 | CI37: 85 | CJ37: 86 | CK37: 87 | CL37: 88 | CM37: 89 | CN37: 90 | CO37: 91 | CP37: 92 | CQ37: 93 | CR37: 94 | CS37: 95 | CT37: 96 | CU37: 97 | CV37: 98
A38: Females | H38: Age­standardised mortality rate | I38: Age-specific rates
A39: Code | B39: LAD | C39: LAD2 | D39: Subgroups | E39: Subgroups2 | F39: Groups | G39: Supergroups | H39: Females | I39: 00-01 | J39: 01-04 | K39: 05-09 | L39: 10-14 | M39: 15-19 | N39: 20-24 | O39: 25-29 | P39: 30-34 | Q39: 35-39 | R39: 40-44 | S39: 45-49 | T39: 50-54 | U39: 55-59 | V39: 60-64 | W39: 65-69 | X39: 70-74 | Y39: 75-79 | Z39: 80-84 | AA39: 85+ | AB39: total | AC39: 00-01 | AD39: 01-04 | AE39: 05-09 | AF39: 10-14 | AG39: 15-19 | AH39: 20-24 | AI39: 25-29 | AJ39: 30-34 | AK39: 35-39 | AL39: 40-44 | AM39: 45-49 | AN39: 50-54 | AO39: 55-59 | AP39: 60-64 | AQ39: 65-69 | AR39: 70-74 | AS39: 75-79 | AT39: 80-84 | AU39: 85+ | AV39: total | AW39: 00-01 | AX39: 01-04 | AY39: 05-09 | AZ39: 10-14 | BA39: 15-19 | BB39: 20-24 | BC39: 25-29 | BD39: 30-34 | BE39: 35-39 | BF39: 40-44 | BG39: 45-49 | BH39: 50-54 | BI39: 55-59 | BJ39: 60-64 | BK39: 65-69 | BL39: 70-74 | BM39: 00-01 | BN39: 01-04 | BO39: 05-09 | BP39: 10-14 | BQ39: 15-19 | BR39: 20-24 | BS39: 25-29 | BT39: 30-34 | BU39: 35-39 | BV39: 40-44 | BW39: 45-49 | BX39: 50-54 | BY39: 55-59 | BZ39: 60-64 | CA39: 65-69 | CB39: 70-74 | CC39: 00-01 | CD39: 01-04 | CE39: 05-09 | CF39: 10-14 | CG39: 15-19 | CH39: 20-24 | CI39: 25-29 | CJ39: 30-34 | CK39: 35-39 | CL39: 40-44 | CM39: 45-49 | CN39: 50-54 | CO39: 55-59 | CP39: 60-64 | CQ39: 65-69 | CR39: 70-74 | CS39: 75-79 | CT39: 80-84 | CU39: 85+ | CV39: total
A40: 00PT | B40: Cardiff | C40: Cardiff | D40: 1.1.1 | E40: 1.1.1 | F40: 1.1 | G40: 1 | H40: 455.6 | I40: 2.95 | J40: 0.23 | K40: 0.11 | L40: 0 | M40: 0.16 | N40: 0.05 | O40: 0.2 | P40: 1.02 | Q40: 0.65 | R40: 0.73 | S40: 2.01 | T40: 2.46 | U40: 5.27 | V40: 6.13 | W40: 9.62 | X40: 20.01 | Y40: 25.14 | Z40: 51.82 | AA40: 134.72 | AB40: 7.67 | AC40: -1.79 | AD40: 0.23 | AE40: 0.62 | AF40: -0.35 | AG40: 1.14 | AH40: -1.64 | AI40: -0.68 | AJ40: 6.73 | AK40: 1.5 | AL40: -1.67 | AM40: 5.48 | AN40: 0.15 | AO40: 10.36 | AP40: -1.86 | AQ40: 1.51 | AR40: 27.52 | AS40: -26.32 | AT40: 3.01 | AU40: 14.68 | AV40: 39 | AW40: 1.2 | AX40: 0 | AY40: 0 | AZ40: 0 | BA40: 0 | BB40: 0 | BC40: 0 | BD40: 0.5 | BE40: 0.3 | BF40: 0.3 | BG40: 1.3 | BH40: 1.6 | BI40: 3.9 | BJ40: 4.6 | BK40: 7.5 | BL40: 16.5 | BM40: 6.1 | BN40: 0.8 | BO40: 0.6 | BP40: 0.4 | BQ40: 0.6 | BR40: 0.3 | BS40: 0.6 | BT40: 1.7 | BU40: 1.3 | BV40: 1.4 | BW40: 3 | BX40: 3.6 | BY40: 7 | BZ40: 8.1 | CA40: 12.2 | CB40: 24.1 | CC40: -1.05 | CD40: 0.87 | CE40: 0.19 | CF40: -0.74 | CG40: -0.45 | CH40: -5.55 | CI40: -2.76 | CJ40: 4.82 | CK40: -1.28 | CL40: -6 | CM40: 1.01 | CN40: -0.36 | CO40: 11.18 | CP40: -8.71 | CQ40: -6.94 | CR40: 9.7 | CS40: -27.71 | CT40: -20.29 | CU40: -53.54 | CV40: 0
A41: 00PD | B41: Vale of Glamorgan | C41: Vale of Glamorgan | D41: 5.7.12 | E41: 5.7.12 | F41: 5.7 | G41: 5 | H41: 445.4 | I41: 2.78 | J41: 0.69 | K41: 0 | L41: 0 | M41: 0 | N41: 0.94 | O41: 0.9 | P41: 0.55 | Q41: 1.56 | R41: 1.27 | S41: 1.66 | T41: 2.54 | U41: 3.47 | V41: 7.9 | W41: 7.12 | X41: 15.64 | Y41: 24.15 | Z41: 54.93 | AA41: 131.29 | AB41: 9.65 | AC41: -1.71 | AD41: 1.63 | AE41: 0 | AF41: -0.37 | AG41: -0.79 | AH41: 2.58 | AI41: 2.17 | AJ41: 0.81 | AK41: 4.5 | AL41: 4.53 | AM41: 4.24 | AN41: -1.6 | AO41: 4.5 | AP41: 20.72 | AQ41: 4.91 | AR41: 13.03 | AS41: 7.82 | AT41: 25.76 | AU41: 16.37 | AV41: 109 | AW41: 0.3 | AX41: 0.1 | AY41: 0 | AZ41: 0 | BA41: 0 | BB41: 0.2 | BC41: 0.2 | BD41: 0.1 | BE41: 0.6 | BF41: 0.5 | BG41: 0.7 | BH41: 1.3 | BI41: 1.9 | BJ41: 5.4 | BK41: 4.7 | BL41: 11.5 | BM41: 10 | BN41: 2.5 | BO41: 1 | BP41: 1 | BQ41: 0.9 | BR41: 2.7 | BS41: 2.6 | BT41: 2 | BU41: 3.4 | BV41: 2.8 | BW41: 3.3 | BX41: 4.4 | BY41: 5.7 | BZ41: 11.1 | CA41: 10.3 | CB41: 20.8 | CC41: -0.44 | CD41: 1.63 | CE41: -0.3 | CF41: -0.31 | CG41: -0.79 | CH41: 1.97 | CI41: 1.7 | CJ41: -0.3 | CK41: 3.05 | CL41: -0.03 | CM41: -1.25 | CN41: 0.2 | CO41: -2.35 | CP41: 2.93 | CQ41: -13.75 | CR41: -8 | CS41: -15.06 | CT41: -3.32 | CU41: -33.09 | CV41: 0
A42: 00PP | B42: Monmouth | C42: Monmouthshire | D42: 5.7.13 | E42: 5.7.13 | F42: 5.7 | G42: 5 | H42: 414.1 | I42: 7.13 | J42: 0 | K42: 0 | L42: 0 | M42: 0.36 | N42: 0.49 | O42: 0.54 | P42: 0.47 | Q42: 1.67 | R42: 1.47 | S42: 1.26 | T42: 1.18 | U42: 3.62 | V42: 5.08 | W42: 8.05 | X42: 14.64 | Y42: 26.93 | Z42: 54.07 | AA42: 118.63 | AB42: 10.08 | AC42: 0.83 | AD42: -0.24 | AE42: 0 | AF42: -0.26 | AG42: 0.44 | AH42: 0.74 | AI42: 0.54 | AJ42: 0.3 | AK42: 3.07 | AL42: 3.95 | AM42: 1.92 | AN42: -5.78 | AO42: 3.95 | AP42: 7.16 | AQ42: 6.78 | AR42: 7.99 | AS42: 12.12 | AT42: 18.79 | AU42: -9.9 | AV42: 52 | AW42: 1.5 | AX42: 0 | AY42: 0 | AZ42: 0 | BA42: 0 | BB42: 0 | BC42: 0 | BD42: 0 | BE42: 0.5 | BF42: 0.5 | BG42: 0.4 | BH42: 0.3 | BI42: 1.9 | BJ42: 3 | BK42: 5.2 | BL42: 10.2 | BM42: 20.8 | BN42: 2 | BO42: 1.6 | BP42: 1.4 | BQ42: 2 | BR42: 2.8 | BS42: 3 | BT42: 2.6 | BU42: 4.3 | BV42: 3.4 | BW42: 3 | BX42: 3 | BY42: 6.3 | BZ42: 8.1 | CA42: 11.9 | CB42: 20.4 | CC42: 1.57 | CD42: -0.24 | CE42: -0.2 | CF42: -0.22 | CG42: 0.45 | CH42: 0.35 | CI42: 0.28 | CJ42: -0.36 | CK42: 2.16 | CL42: 0.68 | CM42: -2.59 | CN42: -4.49 | CO42: -1.3 | CP42: -7.09 | CQ42: -7.94 | CR42: -8.73 | CS42: -6.98 | CT42: -3.92 | CU42: -50.54 | CV42: 0
A43: 00NN | B43: Powys | C43: Powys | D43: 6.10.17 | E43: 6.10.17 | F43: 6.10 | G43: 6 | H43: 422 | I43: 1.64 | J43: 0 | K43: 0 | L43: 0 | M43: 0 | N43: 1 | O43: 0.35 | P43: 1.02 | Q43: 0.3 | R43: 0.45 | S43: 1.99 | T43: 1.25 | U43: 4.57 | V43: 6.75 | W43: 9.23 | X43: 13.93 | Y43: 24.78 | Z43: 49.48 | AA43: 135.65 | AB43: 11.3 | AC43: 0.18 | AD43: -0.4 | AE43: -0.39 | AF43: 0 | AG43: -0.42 | AH43: 2.61 | AI43: 0.2 | AJ43: 1.51 | AK43: 0.23 | AL43: -0.3 | AM43: 4.01 | AN43: -2.9 | AO43: 6.93 | AP43: 8.44 | AQ43: 13.45 | AR43: 11.71 | AS43: 7.81 | AT43: 16.55 | AU43: 8.68 | AV43: 78 | AW43: 0 | AX43: 0 | AY43: 0 | AZ43: 0 | BA43: 0 | BB43: 0.2 | BC43: 0 | BD43: 0.2 | BE43: 0 | BF43: 0.1 | BG43: 1 | BH43: 0.5 | BI43: 2.9 | BJ43: 4.7 | BK43: 6.8 | BL43: 10.4 | BM43: 9.2 | BN43: 1.4 | BO43: 1.1 | BP43: 1 | BQ43: 1 | BR43: 2.9 | BS43: 2 | BT43: 3 | BU43: 1.7 | BV43: 1.6 | BW43: 3.7 | BX43: 2.7 | BY43: 6.9 | BZ43: 9.4 | CA43: 12.3 | CB43: 18.3 | CC43: -1.06 | CD43: -0.34 | CE43: -0.28 | CF43: -0.3 | CG43: -0.76 | CH43: 2.03 | CI43: -0.11 | CJ43: 1.13 | CK43: -1.56 | CL43: -3.65 | CM43: 0.33 | CN43: -6.02 | CO43: 2.66 | CP43: -2.35 | CQ43: -6.89 | CR43: -16 | CS43: -17.5 | CT43: -17.31 | CU43: -29.17 | CV43: 0
A44: 00NQ | B44: Ceredigion | C44: Ceredigion | D44: 6.10.17 | E44: 6.10.17 | F44: 6.10 | G44: 6 | H44: 389 | I44: 3.3 | J44: 0 | K44: 0 | L44: 0 | M44: 0 | N44: 0.23 | O44: 0 | P44: 0 | Q44: 0.61 | R44: 1.87 | S44: 1.24 | T44: 2.43 | U44: 2.02 | V44: 8 | W44: 6.1 | X44: 10.68 | Y44: 28.79 | Z44: 47.54 | AA44: 125.76 | AB44: 9.73 | AC44: 0.59 | AD44: -0.21 | AE44: -0.19 | AF44: 0 | AG44: -0.33 | AH44: 0.45 | AI44: -0.45 | AJ44: -0.82 | AK44: 0.63 | AL44: 2.89 | AM44: 0.12 | AN44: 1.43 | AO44: -2.74 | AP44: 7.56 | AQ44: -1.13 | AR44: -0.1 | AS44: 10.19 | AT44: 6.16 | AU44: -10.13 | AV44: 14 | AW44: 0.1 | AX44: 0 | AY44: 0 | AZ44: 0 | BA44: 0 | BB44: 0 | BC44: 0 | BD44: 0 | BE44: 0 | BF44: 0.5 | BG44: 0.3 | BH44: 0.9 | BI44: 0.7 | BJ44: 5 | BK44: 3.5 | BL44: 6.5 | BM44: 18.4 | BN44: 2.7 | BO44: 2.3 | BP44: 2.1 | BQ44: 1.2 | BR44: 1.3 | BS44: 2.3 | BT44: 2.3 | BU44: 3.4 | BV44: 4.8 | BW44: 3.6 | BX44: 5.3 | BY44: 4.7 | BZ44: 12.2 | CA44: 9.9 | CB44: 16.5 | CC44: -0.03 | CD44: -0.18 | CE44: -0.14 | CF44: -0.14 | CG44: -0.59 | CH44: -0.37 | CI44: -0.63 | CJ44: -1.03 | CK44: -0.25 | CL44: 1.27 | CM44: -1.65 | CN44: -0.18 | CO44: -4.93 | CP44: 2.1 | CQ44: -11.84 | CR44: -14.27 | CS44: -2.54 | CT44: -11.46 | CU44: -30.12 | CV44: 0
A45: 00NA | B45: Isle of Anglesey | C45: Isle of Anglesey | D45: 6.10.18 | E45: 6.10.18 | F45: 6.10 | G45: 6 | H45: 430.5 | I45: 0 | J45: 0 | K45: 0 | L45: 1.11 | M45: 0.55 | N45: 0 | O45: 0 | P45: 0.56 | Q45: 0.56 | R45: 1.71 | S45: 2.04 | T45: 2.07 | U45: 3.44 | V45: 8.3 | W45: 9.78 | X45: 15.7 | Y45: 22.54 | Z45: 45.63 | AA45: 131.31 | AB45: 10.95 | AC45: -0.55 | AD45: -0.23 | AE45: -0.21 | AF45: 2 | AG45: 0.8 | AH45: -0.24 | AI45: -0.51 | AJ45: 0.08 | AK45: 0.59 | AL45: 2.78 | AM45: 2.08 | AN45: 0.54 | AO45: 0.71 | AP45: 8.42 | AQ45: 8.64 | AR45: 9.81 | AS45: 0.43 | AT45: 3.78 | AU45: -1.83 | AV45: 37 | AW45: 0 | AX45: 0 | AY45: 0 | AZ45: 0.1 | BA45: 0 | BB45: 0 | BC45: 0 | BD45: 0 | BE45: 0 | BF45: 0.5 | BG45: 0.7 | BH45: 0.7 | BI45: 1.5 | BJ45: 5.2 | BK45: 6.4 | BL45: 10.7 | BM45: 9.1 | BN45: 2.4 | BO45: 2.2 | BP45: 4 | BQ45: 3.1 | BR45: 2 | BS45: 2 | BT45: 3.1 | BU45: 3.1 | BV45: 4.4 | BW45: 4.8 | BX45: 4.8 | BY45: 6.8 | BZ45: 12.6 | CA45: 14.3 | CB45: 22.3 | CC45: -1.37 | CD45: -0.19 | CE45: -0.15 | CF45: 1.85 | CG45: 0.64 | CH45: -0.59 | CI45: -0.71 | CJ45: -0.15 | CK45: -0.38 | CL45: 1.02 | CM45: 0.29 | CN45: -1.02 | CO45: -1.35 | CP45: 2.91 | CQ45: -2.22 | CR45: -5.13 | CS45: -12.57 | CT45: -13.97 | CU45: -21.28 | CV45: 0
A46: 00NC | B46: Gwynedd | C46: Gwynedd | D46: 6.10.18 | E46: 6.10.18 | F46: 6.10 | G46: 6 | H46: 488 | I46: 1.46 | J46: 0 | K46: 0 | L46: 0.32 | M46: 0.49 | N46: 0.2 | O46: 0.34 | P46: 2.04 | Q46: 0.32 | R46: 2.04 | S46: 1.21 | T46: 3.53 | U46: 4.56 | V46: 6.97 | W46: 9.75 | X46: 20.93 | Y46: 30.14 | Z46: 46.34 | AA46: 141.42 | AB46: 11.67 | AC46: 0.07 | AD46: -0.4 | AE46: -0.38 | AF46: 1 | AG46: 1.55 | AH46: 0.34 | AI46: 0.17 | AJ46: 4.5 | AK46: 0.28 | AL46: 5.96 | AM46: 0.07 | AN46: 6.67 | AO46: 5.34 | AP46: 7.43 | AQ46: 12.89 | AR46: 30.7 | AS46: 20.37 | AT46: 8.5 | AU46: 21.96 | AV46: 127 | AW46: 0 | AX46: 0 | AY46: 0 | AZ46: 0 | BA46: 0.1 | BB46: 0 | BC46: 0 | BD46: 0.8 | BE46: 0 | BF46: 0.9 | BG46: 0.4 | BH46: 1.9 | BI46: 2.7 | BJ46: 4.6 | BK46: 6.9 | BL46: 16.1 | BM46: 8.1 | BN46: 1.4 | BO46: 1.2 | BP46: 1.8 | BQ46: 1.8 | BR46: 1.1 | BS46: 1.9 | BT46: 4.5 | BU46: 1.8 | BV46: 4 | BW46: 2.8 | BX46: 5.9 | BY46: 7.3 | BZ46: 10.1 | CA46: 13.3 | CB46: 26.8 | CC46: -1.33 | CD46: -0.34 | CE46: -0.27 | CF46: 0.74 | CG46: 1.18 | CH46: -0.63 | CI46: -0.16 | CJ46: 4.12 | CK46: -1.41 | CL46: 3 | CM46: -2.95 | CN46: 4.1 | CO46: 2.04 | CP46: -0.92 | CQ46: -3.43 | CR46: 7.93 | CS46: -0.71 | CT46: -23.74 | CU46: -11.4 | CV46: 0
A47: 00NE | B47: Conwy | C47: Conwy | D47: 6.10.18 | E47: 6.10.18 | F47: 6.10 | G47: 6 | H47: 448.4 | I47: 3.57 | J47: 0 | K47: 0 | L47: 0 | M47: 0.32 | N47: 1.06 | O47: 0 | P47: 0 | Q47: 0.71 | R47: 0.77 | S47: 1.83 | T47: 2.59 | U47: 3.38 | V47: 8.26 | W47: 12.15 | X47: 15.11 | Y47: 22.24 | Z47: 47.92 | AA47: 143.78 | AB47: 13.36 | AC47: 1.24 | AD47: -0.35 | AE47: -0.32 | AF47: 0 | AG47: 0.65 | AH47: 2.63 | AI47: -0.76 | AJ47: -1.39 | AK47: 1.35 | AL47: 0.97 | AM47: 2.79 | AN47: 3.15 | AO47: 0.97 | AP47: 13.32 | AQ47: 23.6 | AR47: 15.07 | AS47: -0.1 | AT47: 13.49 | AU47: 33.12 | AV47: 109 | AW47: 0.4 | AX47: 0 | AY47: 0 | AZ47: 0 | BA47: 0 | BB47: 0.2 | BC47: 0 | BD47: 0 | BE47: 0.1 | BF47: 0.2 | BG47: 0.8 | BH47: 1.3 | BI47: 1.8 | BJ47: 5.8 | BK47: 9 | BL47: 11.3 | BM47: 12.9 | BN47: 1.6 | BO47: 1.4 | BP47: 1.2 | BQ47: 1.8 | BR47: 3.1 | BS47: 1.4 | BT47: 1.4 | BU47: 2.6 | BV47: 2.2 | BW47: 3.6 | BX47: 4.6 | BY47: 5.8 | BZ47: 11.5 | CA47: 16 | CB47: 19.8 | CC47: 0.1 | CD47: -0.3 | CE47: -0.23 | CF47: -0.25 | CG47: 0.37 | CH47: 2.09 | CI47: -1.06 | CJ47: -1.75 | CK47: -0.16 | CL47: -1.97 | CM47: -0.41 | CN47: 0.4 | CO47: -2.43 | CP47: 4.51 | CQ47: 6.47 | CR47: -10.97 | CS47: -25.01 | CT47: -22.35 | CU47: -6.61 | CV47: 0
A48: 00NG | B48: Denbighshire | C48: Denbighshire | D48: 6.10.18 | E48: 6.10.18 | F48: 6.10 | G48: 6 | H48: 547.7 | I48: 4.14 | J48: 0.93 | K48: 0 | L48: 0 | M48: 0 | N48: 0.8 | O48: 0.88 | P48: 0.86 | Q48: 1.13 | R48: 1.23 | S48: 2.83 | T48: 4.59 | U48: 3.94 | V48: 6.97 | W48: 13.99 | X48: 24.39 | Y48: 32.96 | Z48: 50.77 | AA48: 144.87 | AB48: 12.14 | AC48: 1.35 | AD48: 1.68 | AE48: -0.28 | AF48: 0 | AG48: -0.31 | AH48: 1.67 | AI48: 1.36 | AJ48: 0.81 | AK48: 2.39 | AL48: 2.31 | AM48: 5.79 | AN48: 8.96 | AO48: 2.46 | AP48: 6.37 | AQ48: 24.53 | AR48: 33.6 | AS48: 21.73 | AT48: 13.1 | AU48: 20.97 | AV48: 148 | AW48: 0.5 | AX48: 0.1 | AY48: 0 | AZ48: 0 | BA48: 0 | BB48: 0.1 | BC48: 0.1 | BD48: 0.1 | BE48: 0.2 | BF48: 0.3 | BG48: 1.4 | BH48: 2.6 | BI48: 2 | BJ48: 4.5 | BK48: 10.2 | BL48: 18.6 | BM48: 15 | BN48: 3.4 | BO48: 1.6 | BP48: 1.5 | BQ48: 1.3 | BR48: 2.9 | BS48: 3.2 | BT48: 3.1 | BU48: 3.3 | BV48: 3.2 | BW48: 5.2 | BX48: 7.6 | BY48: 6.9 | BZ48: 10.4 | CA48: 18.7 | CB48: 31.4 | CC48: 0.36 | CD48: 1.73 | CE48: -0.2 | CF48: -0.21 | CG48: -0.57 | CH48: 1.19 | CI48: 1.11 | CJ48: 0.51 | CK48: 0.97 | CL48: -0.14 | CM48: 3.21 | CN48: 6.84 | CO48: -0.24 | CP48: -0.79 | CQ48: 11.11 | CR48: 14.99 | CS48: 5.17 | CT48: -9.45 | CU48: -1.95 | CV48: 0
A49: 00NS | B49: Pembrokeshire | C49: Pembrokeshire | D49: 6.10.18 | E49: 6.10.18 | F49: 6.10 | G49: 6 | H49: 472 | I49: 1.41 | J49: 0 | K49: 0 | L49: 0 | M49: 0.83 | N49: 0.3 | O49: 0 | P49: 0 | Q49: 0.94 | R49: 2.23 | S49: 1.53 | T49: 1.62 | U49: 4.76 | V49: 7.09 | W49: 10.72 | X49: 17.61 | Y49: 30.1 | Z49: 53.16 | AA49: 144.41 | AB49: 11.64 | AC49: 0.04 | AD49: -0.4 | AE49: -0.39 | AF49: 0 | AG49: 2.6 | AH49: 0.57 | AI49: -0.82 | AJ49: -1.53 | AK49: 2.26 | AL49: 6.9 | AM49: 1.55 | AN49: -1 | AO49: 6.86 | AP49: 9.17 | AQ49: 18.76 | AR49: 23.04 | AS49: 21.84 | AT49: 22.12 | AU49: 28.29 | AV49: 140 | AW49: 0 | AX49: 0 | AY49: 0 | AZ49: 0 | BA49: 0.2 | BB49: 0 | BC49: 0 | BD49: 0 | BE49: 0.2 | BF49: 1 | BG49: 0.6 | BH49: 0.7 | BI49: 2.9 | BJ49: 4.9 | BK49: 7.9 | BL49: 13.4 | BM49: 7.8 | BN49: 1.4 | BO49: 1.1 | BP49: 1.1 | BQ49: 2.4 | BR49: 1.7 | BS49: 1.3 | BT49: 1.2 | BU49: 2.7 | BV49: 4.2 | BW49: 3.2 | BX49: 3.3 | BY49: 7.4 | BZ49: 9.9 | CA49: 14.2 | CB49: 22.7 | CC49: -1.41 | CD49: -0.35 | CE49: -0.28 | CF49: -0.28 | CG49: 2.28 | CH49: -0.06 | CI49: -1.14 | CJ49: -1.92 | CK49: 0.54 | CL49: 3.86 | CM49: -1.79 | CN49: -3.81 | CO49: 3.13 | CP49: -0.51 | CQ49: 0.48 | CR49: -2.31 | CS49: -0.89 | CT49: -7.3 | CU49: -3.82 | CV49: 0
A50: 00NU | B50: Carmarthenshire | C50: Carmarthenshire | D50: 6.10.18 | E50: 6.10.18 | F50: 6.10 | G50: 6 | H50: 481.3 | I50: 5.3 | J50: 0 | K50: 0 | L50: 0 | M50: 0.18 | N50: 0.19 | O50: 0 | P50: 0.4 | Q50: 0.41 | R50: 1.46 | S50: 1.6 | T50: 2.67 | U50: 3.63 | V50: 5.07 | W50: 10.01 | X50: 16.46 | Y50: 29.81 | Z50: 63.34 | AA50: 165.08 | AB50: 12.13 | AC50: 3.73 | AD50: -0.62 | AE50: -0.58 | AF50: 0 | AG50: 0.4 | AH50: 0.32 | AI50: -1.35 | AJ50: -0.58 | AK50: 0.87 | AL50: 5.8 | AM50: 2.81 | AN50: 5.53 | AO50: 3.19 | AP50: -0.34 | AQ50: 21.56 | AR50: 26.46 | AS50: 29.35 | AT50: 63.33 | AU50: 115.99 | AV50: 276 | AW50: 1.7 | AX50: 0 | AY50: 0 | AZ50: 0 | BA50: 0 | BB50: 0 | BC50: 0 | BD50: 0 | BE50: 0 | BF50: 0.7 | BG50: 0.8 | BH50: 1.6 | BI50: 2.3 | BJ50: 3.5 | BK50: 7.7 | BL50: 13 | BM50: 12.4 | BN50: 0.9 | BO50: 0.8 | BP50: 0.7 | BQ50: 1 | BR50: 1.1 | BS50: 0.8 | BT50: 1.4 | BU50: 1.5 | BV50: 2.8 | BW50: 2.9 | BX50: 4.2 | BY50: 5.5 | BZ50: 7.1 | CA50: 12.8 | CB50: 20.6 | CC50: 1.8 | CD50: -0.53 | CE50: -0.41 | CF50: -0.41 | CG50: -0.09 | CH50: -0.69 | CI50: -1.88 | CJ50: -1.23 | CK50: -1.76 | CL50: 1.16 | CM50: -2.21 | CN50: 1.16 | CO50: -2.42 | CP50: -13.88 | CQ50: -3.72 | CR50: -8.47 | CS50: -2.34 | CT50: 20.56 | CU50: 68.03 | CV50: 0
A51: 00NX | B51: Swansea | C51: Swansea | D51: 7.11.20 | E51: 7.11.20 | F51: 7.11 | G51: 7 | H51: 486 | I51: 4.5 | J51: 0 | K51: 0.5 | L51: 0 | M51: 0.13 | N51: 0.2 | O51: 0.68 | P51: 0.71 | Q51: 1.31 | R51: 1 | S51: 1.98 | T51: 2.8 | U51: 3.65 | V51: 7.36 | W51: 9.94 | X51: 19.54 | Y51: 32.78 | Z51: 54.56 | AA51: 136.25 | AB51: 10.2 | AC51: -0.38 | AD51: -0.3 | AE51: 3 | AF51: 0 | AG51: -0.44 | AH51: -1.48 | AI51: 1.55 | AJ51: 0.97 | AK51: 3.24 | AL51: -0.98 | AM51: 3.12 | AN51: 5.32 | AO51: -9.5 | AP51: 1.23 | AQ51: -3.58 | AR51: 7.99 | AS51: 15.29 | AT51: 0.88 | AU51: -19.27 | AV51: 7 | AW51: 1.7 | AX51: 0 | AY51: 0.1 | AZ51: 0 | BA51: 0 | BB51: 0 | BC51: 0.2 | BD51: 0.2 | BE51: 0.6 | BF51: 0.4 | BG51: 1.1 | BH51: 1.8 | BI51: 2.4 | BJ51: 5.5 | BK51: 7.7 | BL51: 16 | BM51: 9.8 | BN51: 0.7 | BO51: 1.5 | BP51: 0.6 | BQ51: 0.7 | BR51: 0.7 | BS51: 1.6 | BT51: 1.7 | BU51: 2.5 | BV51: 2 | BW51: 3.2 | BX51: 4.2 | BY51: 5.3 | BZ51: 9.6 | CA51: 12.6 | CB51: 23.6 | CC51: 1.48 | CD51: -0.64 | CE51: 2.48 | CF51: -0.52 | CG51: -0.5 | CH51: -1.21 | CI51: 2.13 | CJ51: 0.49 | CK51: 3.73 | CL51: -2.22 | CM51: 0.45 | CN51: 2.34 | CO51: -2.68 | CP51: 1.16 | CQ51: -4.7 | CR51: 6.81 | CS51: 11.35 | CT51: -7.73 | CU51: -38.62 | CV51: 0
A52: 00NZ | B52: Neath Port Talbot | C52: Neath Port Talbot | D52: 7.11.20 | E52: 7.11.20 | F52: 7.11 | G52: 7 | H52: 520.3 | I52: 1.39 | J52: 0 | K52: 0 | L52: 0 | M52: 0.24 | N52: 0.26 | O52: 0.47 | P52: 1.42 | Q52: 0.95 | R52: 1.66 | S52: 2.06 | T52: 2.16 | U52: 3.85 | V52: 8.67 | W52: 11.61 | X52: 16.28 | Y52: 37.15 | Z52: 60.83 | AA52: 156.67 | AB52: 11.59 | AC52: -2.44 | AD52: -0.18 | AE52: 0 | AF52: 0 | AG52: 0.22 | AH52: -0.37 | AI52: 0 | AJ52: 3.6 | AK52: 0.48 | AL52: 2.6 | AM52: 2.52 | AN52: 0.19 | AO52: -5.11 | AP52: 6.99 | AQ52: 4.98 | AR52: -5.95 | AS52: 20.54 | AT52: 14.65 | AU52: 38.11 | AV52: 81 | AW52: 0 | AX52: 0 | AY52: 0 | AZ52: 0 | BA52: 0 | BB52: 0 | BC52: 0.1 | BD52: 0.5 | BE52: 0.3 | BF52: 0.7 | BG52: 1 | BH52: 1.1 | BI52: 2.3 | BJ52: 6.2 | BK52: 8.6 | BL52: 12.2 | BM52: 7.7 | BN52: 1.2 | BO52: 1 | BP52: 1 | BQ52: 1.4 | BR52: 1.4 | BS52: 1.7 | BT52: 3.1 | BU52: 2.4 | BV52: 3.3 | BW52: 3.7 | BX52: 3.9 | BY52: 6.1 | BZ52: 11.8 | CA52: 15.3 | CB52: 21.2 | CC52: -1.44 | CD52: -0.39 | CE52: -0.32 | CF52: -0.31 | CG52: 0.18 | CH52: -0.26 | CI52: 0.33 | CJ52: 3.31 | CK52: 0.78 | CL52: 1.86 | CM52: 0.75 | CN52: -1.74 | CO52: -0.79 | CP52: 6.95 | CQ52: 4.28 | CR52: -6.67 | CS52: 18.3 | CT52: 9.49 | CU52: 26.12 | CV52: 0
A53: 00PF | B53: Rhondda Cynon Taff | C53: Rhondda Cynon Taff | D53: 7.11.20 | E53: 7.11.20 | F53: 7.11 | G53: 7 | H53: 533.6 | I53: 4.89 | J53: 0 | K53: 0 | L53: 0 | M53: 0.14 | N53: 0.37 | O53: 0.39 | P53: 0.41 | Q53: 0.72 | R53: 0.58 | S53: 1.88 | T53: 3.4 | U53: 4.7 | V53: 7.58 | W53: 11.16 | X53: 21.35 | Y53: 35.3 | Z53: 65.18 | AA53: 159.91 | AB53: 10.52 | AC53: 0.16 | AD53: -0.35 | AE53: 0 | AF53: 0 | AG53: -0.38 | AH53: 0.13 | AI53: -0.6 | AJ53: -1.18 | AK53: -0.85 | AL53: -4.61 | AM53: 2.45 | AN53: 10.14 | AO53: -1.71 | AP53: 2.89 | AQ53: 4.81 | AR53: 17 | AS53: 24.76 | AT53: 33.63 | AU53: 66.27 | AV53: 153 | AW53: 2 | AX53: 0 | AY53: 0 | AZ53: 0 | BA53: 0 | BB53: 0.1 | BC53: 0.1 | BD53: 0.1 | BE53: 0.2 | BF53: 0.2 | BG53: 1.1 | BH53: 2.2 | BI53: 3.2 | BJ53: 5.7 | BK53: 8.8 | BL53: 17.6 | BM53: 10.1 | BN53: 0.6 | BO53: 0.6 | BP53: 0.6 | BQ53: 0.8 | BR53: 1.1 | BS53: 1.1 | BT53: 1.2 | BU53: 1.7 | BV53: 1.4 | BW53: 3 | BX53: 4.9 | BY53: 6.6 | BZ53: 9.8 | CA53: 14 | CB53: 25.7 | CC53: 2.15 | CD53: -0.74 | CE53: -0.57 | CF53: -0.55 | CG53: -0.45 | CH53: 0.35 | CI53: 0 | CJ53: -1.69 | CK53: -0.35 | CL53: -5.93 | CM53: -0.37 | CN53: 7.13 | CO53: 4.78 | CP53: 2.82 | CQ53: 3.71 | CR53: 15.88 | CS53: 21.18 | CT53: 26.53 | CU53: 49.02 | CV53: 0
A54: 00PH | B54: Merthyr Tydfil | C54: Merthyr Tydfil | D54: 7.11.20 | E54: 7.11.20 | F54: 7.11 | G54: 7 | H54: 578.8 | I54: 2.69 | J54: 0 | K54: 0 | L54: 0.62 | M54: 0 | N54: 0 | O54: 0.46 | P54: 0.54 | Q54: 1.21 | R54: 1.43 | S54: 3.6 | T54: 2.29 | U54: 1.16 | V54: 7.42 | W54: 17.01 | X54: 25.26 | Y54: 38.61 | Z54: 72.59 | AA54: 165.87 | AB54: 11.1 | AC54: -0.78 | AD54: -0.08 | AE54: 0 | AF54: 1 | AG54: -0.35 | AH54: -0.68 | AI54: -0.02 | AJ54: -0.06 | AK54: 0.61 | AL54: 0.65 | AM54: 4.46 | AN54: 0.37 | AO54: -6.55 | AP54: 0.43 | AQ54: 10.42 | AR54: 9.09 | AS54: 9.58 | AT54: 14.59 | AU54: 20.59 | AV54: 63 | AW54: 0.1 | AX54: 0 | AY54: 0 | AZ54: 0 | BA54: 0 | BB54: 0 | BC54: 0 | BD54: 0 | BE54: 0.1 | BF54: 0.3 | BG54: 1.6 | BH54: 0.7 | BI54: 0.1 | BJ54: 4.1 | BK54: 11.2 | BL54: 17.3 | BM54: 15 | BN54: 2.6 | BO54: 2.4 | BP54: 3.5 | BQ54: 2 | BR54: 1.9 | BS54: 2.6 | BT54: 3 | BU54: 4.4 | BV54: 4.2 | BW54: 7.1 | BX54: 5.3 | BY54: 4.2 | BZ54: 12.4 | CA54: 24.8 | CB54: 35.7 | CC54: -0.26 | CD54: -0.18 | CE54: -0.13 | CF54: 0.86 | CG54: -0.37 | CH54: -0.62 | CI54: 0.15 | CJ54: -0.19 | CK54: 0.73 | CL54: 0.32 | CM54: 3.73 | CN54: -0.45 | CO54: -4.95 | CP54: 0.41 | CQ54: 10.16 | CR54: 8.82 | CS54: 8.7 | CT54: 12.76 | CU54: 16.52 | CV54: 0
A55: 00PK | B55: Caerphilly | C55: Caerphilly | D55: 7.11.20 | E55: 7.11.20 | F55: 7.11 | G55: 7 | H55: 515.9 | I55: 1.94 | J55: 0.23 | K55: 0 | L55: 0 | M55: 0.53 | N55: 0.93 | O55: 0 | P55: 0.35 | Q55: 0.19 | R55: 1.79 | S55: 1.68 | T55: 2.16 | U55: 3.88 | V55: 8.2 | W55: 12.28 | X55: 19.69 | Y55: 31.76 | Z55: 67.86 | AA55: 154.2 | AB55: 9.66 | AC55: -2.93 | AD55: 0.74 | AE55: 0 | AF55: 0 | AG55: 1.92 | AH55: 3.12 | AI55: -2.75 | AJ55: -1.29 | AK55: -3.54 | AL55: 4.48 | AM55: 0.56 | AN55: 0.27 | AO55: -5.99 | AP55: 5.77 | AQ55: 9.4 | AR55: 6.44 | AS55: 6.96 | AT55: 29.51 | AU55: 31.47 | AV55: 84 | AW55: 0.2 | AX55: 0 | AY55: 0 | AZ55: 0 | BA55: 0.1 | BB55: 0.3 | BC55: 0 | BD55: 0 | BE55: 0 | BF55: 0.9 | BG55: 0.8 | BH55: 1.2 | BI55: 2.4 | BJ55: 6 | BK55: 9.4 | BL55: 15.6 | BM55: 7 | BN55: 1.3 | BO55: 0.7 | BP55: 0.7 | BQ55: 1.5 | BR55: 2.2 | BS55: 0.6 | BT55: 1.3 | BU55: 1 | BV55: 3.1 | BW55: 3 | BX55: 3.7 | BY55: 5.9 | BZ55: 10.9 | CA55: 15.7 | CB55: 24.5 | CC55: -1.5 | CD55: 0.44 | CE55: -0.44 | CF55: -0.43 | CG55: 1.87 | CH55: 3.27 | CI55: -2.29 | CJ55: -1.69 | CK55: -3.15 | CL55: 3.44 | CM55: -1.6 | CN55: -2.01 | CO55: -0.77 | CP55: 5.71 | CQ55: 8.57 | CR55: 5.58 | CS55: 4.31 | CT55: 24.51 | CU55: 19.69 | CV55: 0
A56: 00PL | B56: Blaenau Gwent | C56: Blaenau Gwent | D56: 7.11.20 | E56: 7.11.20 | F56: 7.11 | G56: 7 | H56: 596.9 | I56: 8.11 | J56: 0 | K56: 0 | L56: 0 | M56: 0 | N56: 0 | O56: 0.88 | P56: 0.48 | Q56: 0.52 | R56: 1.15 | S56: 1.5 | T56: 4.48 | U56: 3.4 | V56: 12.14 | W56: 12.99 | X56: 21.75 | Y56: 38.03 | Z56: 78.69 | AA56: 168.86 | AB56: 11.91 | AC56: 1.23 | AD56: -0.09 | AE56: 0 | AF56: 0 | AG56: -0.43 | AH56: -0.82 | AI56: 0.93 | AJ56: -0.18 | AK56: -0.63 | AL56: 0.09 | AM56: -0.25 | AN56: 5.8 | AO56: -3.16 | AP56: 10.6 | AQ56: 5.28 | AR56: 5.91 | AS56: 11.32 | AT56: 22.29 | AU56: 29.57 | AV56: 87 | AW56: 1.7 | AX56: 0 | AY56: 0 | AZ56: 0 | BA56: 0 | BB56: 0 | BC56: 0.1 | BD56: 0 | BE56: 0 | BF56: 0.2 | BG56: 0.4 | BH56: 2.2 | BI56: 1.4 | BJ56: 7.9 | BK56: 8.6 | BL56: 15.2 | BM56: 23.7 | BN56: 2.4 | BO56: 2 | BP56: 1.9 | BQ56: 1.6 | BR56: 1.6 | BS56: 3.2 | BT56: 2.7 | BU56: 2.9 | BV56: 3.4 | BW56: 3.8 | BX56: 8 | BY56: 7 | BZ56: 17.8 | CA56: 18.9 | CB56: 30.3 | CC56: 1.75 | CD56: -0.2 | CE56: -0.16 | CF56: -0.16 | CG56: -0.45 | CH56: -0.75 | CI56: 1.11 | CJ56: -0.33 | CK56: -0.49 | CL56: -0.32 | CM56: -1.14 | CN56: 4.87 | CO56: -1.26 | CP56: 10.58 | CQ56: 4.95 | CR56: 5.56 | CS56: 10.21 | CT56: 20.19 | CU56: 24.35 | CV56: 0
A57: 00PM | B57: Torfaen | C57: Torfaen | D57: 7.11.20 | E57: 7.11.20 | F57: 7.11 | G57: 7 | H57: 519.2 | I57: 4.05 | J57: 0.47 | K57: 0 | L57: 0 | M57: 0 | N57: 0.36 | O57: 0.35 | P57: 0.38 | Q57: 0.38 | R57: 1.89 | S57: 3.18 | T57: 1.55 | U57: 3.83 | V57: 5.71 | W57: 9.86 | X57: 22.54 | Y57: 33.44 | Z57: 74.83 | AA57: 153.45 | AB57: 11.26 | AC57: -0.36 | AD57: 0.87 | AE57: 0 | AF57: 0 | AG57: -0.57 | AH57: 0.02 | AI57: -0.35 | AJ57: -0.52 | AK57: -1.21 | AL57: 2.45 | AM57: 5.51 | AN57: -1.83 | AO57: -3.19 | AP57: -4.4 | AQ57: -1.55 | AR57: 9.3 | AS57: 6.92 | AT57: 27.95 | AU57: 18.96 | AV57: 58 | AW57: 0.5 | AX57: 0 | AY57: 0 | AZ57: 0 | BA57: 0 | BB57: 0 | BC57: 0 | BD57: 0 | BE57: 0 | BF57: 0.7 | BG57: 1.6 | BH57: 0.5 | BI57: 1.9 | BJ57: 3.3 | BK57: 6.4 | BL57: 16.6 | BM57: 14.6 | BN57: 2.6 | BO57: 1.5 | BP57: 1.4 | BQ57: 1.2 | BR57: 2 | BS57: 1.9 | BT57: 2.1 | BU57: 2.1 | BV57: 4.1 | BW57: 5.7 | BX57: 3.6 | BY57: 6.9 | BZ57: 9.1 | CA57: 14.5 | CB57: 30 | CC57: 0.33 | CD57: 0.73 | CE57: -0.22 | CF57: -0.22 | CG57: -0.6 | CH57: 0.1 | CI57: -0.12 | CJ57: -0.7 | CK57: -1.02 | CL57: 1.96 | CM57: 4.37 | CN57: -3.05 | CO57: -0.54 | CP57: -4.43 | CQ57: -1.97 | CR57: 8.85 | CS57: 5.44 | CT57: 24.82 | CU57: 11.43 | CV57: 0
A58: 00PR | B58: Newport | C58: Newport | D58: 7.11.20 | E58: 7.11.20 | F58: 7.11 | G58: 7 | H58: 510 | I58: 1.07 | J58: 0 | K58: 0 | L58: 0.23 | M58: 0.21 | N58: 0 | O58: 0.81 | P58: 0.21 | Q58: 0.71 | R58: 1.71 | S58: 2.19 | T58: 2.84 | U58: 4.54 | V58: 7.42 | W58: 10.96 | X58: 20.52 | Y58: 32.97 | Z58: 66.5 | AA58: 143.78 | AB58: 9.75 | AC58: -3.47 | AD58: -0.23 | AE58: 0 | AF58: 1 | AG58: 0.09 | AH58: -1.81 | AI58: 1.68 | AJ58: -1.67 | AK58: -0.56 | AL58: 3.11 | AM58: 3.27 | AN58: 3.56 | AO58: -1.57 | AP58: 0.92 | AQ58: 1.92 | AR58: 7.61 | AS58: 8.72 | AT58: 23.97 | AU58: 5.77 | AV58: 52 | AW58: 0 | AX58: 0 | AY58: 0 | AZ58: 0 | BA58: 0 | BB58: 0 | BC58: 0.2 | BD58: 0 | BE58: 0.1 | BF58: 0.8 | BG58: 1.1 | BH58: 1.6 | BI58: 2.7 | BJ58: 5 | BK58: 7.9 | BL58: 15.8 | BM58: 6 | BN58: 1 | BO58: 0.9 | BP58: 1.3 | BQ58: 1.2 | BR58: 0.7 | BS58: 2.1 | BT58: 1.2 | BU58: 2.1 | BV58: 3.3 | BW58: 3.8 | BX58: 4.8 | BY58: 7.2 | BZ58: 10.6 | CA58: 14.9 | CB58: 26.2 | CC58: -2.17 | CD58: -0.49 | CE58: -0.37 | CF58: 0.63 | CG58: 0.05 | CH58: -1.67 | CI58: 2.07 | CJ58: -1.99 | CK58: -0.26 | CL58: 2.3 | CM58: 1.46 | CN58: 1.69 | CO58: 2.09 | CP58: 0.88 | CQ58: 1.31 | CR58: 6.94 | CS58: 6.59 | CT58: 19.45 | CU58: -4.85 | CV58: 0
A59: 00NJ | B59: Flintshire | C59: Flintshire | D59: 7.12.22 | E59: 7.12.22 | F59: 7.12 | G59: 7 | H59: 480.5 | I59: 2.54 | J59: 0.27 | K59: 0 | L59: 0.24 | M59: 0 | N59: 0.47 | O59: 0.47 | P59: 0.7 | Q59: 0.66 | R59: 1.37 | S59: 1.81 | T59: 1.52 | U59: 4.18 | V59: 7.02 | W59: 10.99 | X59: 13.97 | Y59: 30.8 | Z59: 57.96 | AA59: 158.59 | AB59: 9.56 | AC59: -0.4 | AD59: -0.14 | AE59: 0 | AF59: -0.1 | AG59: -0.63 | AH59: 1.37 | AI59: 1.57 | AJ59: 0.89 | AK59: -0.33 | AL59: 4.02 | AM59: 6.37 | AN59: -6.7 | AO59: 3.08 | AP59: 6.27 | AQ59: 12.01 | AR59: -4.31 | AS59: 13.59 | AT59: 7.51 | AU59: 45.87 | AV59: 90 | AW59: 0.3 | AX59: 0 | AY59: 0 | AZ59: 0 | BA59: 0 | BB59: 0.1 | BC59: 0.1 | BD59: 0.1 | BE59: 0.1 | BF59: 0.6 | BG59: 0.9 | BH59: 0.7 | BI59: 2.6 | BJ59: 4.9 | BK59: 8.2 | BL59: 10.4 | BM59: 9.2 | BN59: 1.5 | BO59: 0.9 | BP59: 1.3 | BQ59: 0.8 | BR59: 1.7 | BS59: 1.7 | BT59: 2 | BU59: 1.9 | BV59: 2.7 | BW59: 3.2 | BX59: 3 | BY59: 6.5 | BZ59: 9.7 | CA59: 14.4 | CB59: 18.4 | CC59: -0.67 | CD59: 0.53 | CE59: -0.37 | CF59: 0.64 | CG59: -0.89 | CH59: 0.64 | CI59: 0.32 | CJ59: 0.25 | CK59: -0.5 | CL59: 0.53 | CM59: -0.69 | CN59: -5.12 | CO59: 0.79 | CP59: -0.95 | CQ59: 1.83 | CR59: -15.5 | CS59: 1.06 | CT59: 2.72 | CU59: 26.72 | CV59: 0
A60: 00NL | B60: Wrexham Maelor | C60: Wrexham | D60: 7.12.22 | E60: 7.12.22 | F60: 7.12 | G60: 7 | H60: 471.6 | I60: 9.21 | J60: 0 | K60: 0 | L60: 0 | M60: 0 | N60: 0.49 | O60: 0 | P60: 0.24 | Q60: 0.98 | R60: 0.59 | S60: 1.61 | T60: 2.01 | U60: 3.29 | V60: 8.21 | W60: 12.96 | X60: 18.37 | Y60: 30.45 | Z60: 48.5 | AA60: 138.05 | AB60: 9.26 | AC60: 5.36 | AD60: -1.09 | AE60: 0 | AF60: -0.95 | AG60: -0.51 | AH60: 1.39 | AI60: -0.44 | AJ60: -1.05 | AK60: 1.03 | AL60: -0.43 | AM60: 4.23 | AN60: -3.51 | AO60: -1.06 | AP60: 10.14 | AQ60: 17.21 | AR60: 9.23 | AS60: 10.64 | AT60: -10.95 | AU60: 2.15 | AV60: 41 | AW60: 4 | AX60: 0 | AY60: 0 | AZ60: 0 | BA60: 0 | BB60: 0.1 | BC60: 0 | BD60: 0 | BE60: 0.3 | BF60: 0.1 | BG60: 0.7 | BH60: 0.9 | BI60: 1.8 | BJ60: 5.7 | BK60: 9.6 | BL60: 13.8 | BM60: 18.1 | BN60: 1 | BO60: 1 | BP60: 1 | BQ60: 1 | BR60: 1.8 | BS60: 0.8 | BT60: 1.3 | BU60: 2.5 | BV60: 1.7 | BW60: 3.2 | BX60: 3.8 | BY60: 5.5 | BZ60: 11.4 | CA60: 17.1 | CB60: 24 | CC60: 5.05 | CD60: -0.45 | CE60: -0.33 | CF60: -0.31 | CG60: -0.73 | CH60: 0.7 | CI60: -1.73 | CJ60: -1.68 | CK60: 0.87 | CL60: -3.43 | CM60: -1.52 | CN60: -2.17 | CO60: -3.09 | CP60: 4.3 | CQ60: 9.06 | CR60: 0.22 | CS60: 0.08 | CT60: -15.41 | CU60: -16.32 | CV60: 0
A61: 00PB | B61: Bridgend | C61: Bridgend | D61: 7.12.22 | E61: 7.12.22 | F61: 7.12 | G61: 7 | H61: 544.5 | I61: 1.19 | J61: 0 | K61: 0.81 | L61: 0.25 | M61: 0.25 | N61: 0.25 | O61: 1.23 | P61: 0.73 | Q61: 0.7 | R61: 1.71 | S61: 2.39 | T61: 2.83 | U61: 4.58 | V61: 5.96 | W61: 10.97 | X61: 19.72 | Y61: 37.34 | Z61: 54.27 | AA61: 175.17 | AB61: 11.05 | AC61: -1.56 | AD61: -0.92 | AE61: 3 | AF61: -0.03 | AG61: 0.45 | AH61: 0.41 | AI61: 4.59 | AJ61: 0.99 | AK61: -0.14 | AL61: 5.43 | AM61: 8.87 | AN61: 0.17 | AO61: 4.54 | AP61: 0.57 | AQ61: 10.36 | AR61: 15.23 | AS61: 31.46 | AT61: -0.01 | AU61: 77.79 | AV61: 161 | AW61: 0 | AX61: 0 | AY61: 0.2 | AZ61: 0 | BA61: 0 | BB61: 0 | BC61: 0.4 | BD61: 0.2 | BE61: 0.1 | BF61: 0.8 | BG61: 1.3 | BH61: 1.5 | BI61: 2.8 | BJ61: 3.9 | BK61: 8 | BL61: 15.3 | BM61: 6.6 | BN61: 1.2 | BO61: 2.4 | BP61: 1.4 | BQ61: 1.4 | BR61: 1.4 | BS61: 2.9 | BT61: 2.1 | BU61: 2 | BV61: 3.3 | BW61: 4.1 | BX61: 4.8 | BY61: 7.1 | BZ61: 8.7 | CA61: 14.6 | CB61: 25.1 | CC61: -1.85 | CD61: -0.38 | CE61: 2.68 | CF61: 0.67 | CG61: 0.21 | CH61: -0.28 | CI61: 3.4 | CJ61: 0.37 | CK61: -0.3 | CL61: 2.3 | CM61: 2.57 | CN61: 1.66 | CO61: 2.45 | CP61: -5.64 | CQ61: 1.5 | CR61: 4.76 | CS61: 18.91 | CT61: -4.77 | CU61: 59.43 | CV61: 0
A64: Best in class - now based on Top 5
A65: Code | B65: LAD | C65: LAD2 | D65: Subgroups | E65: Subgroups2 | F65: Groups | G65: Supergroups | H65: Females | I65: 00-01 | J65: 01-04 | K65: 05-09 | L65: 10-14 | M65: 15-19 | N65: 20-24 | O65: 25-29 | P65: 30-34 | Q65: 35-39 | R65: 40-44 | S65: 45-49 | T65: 50-54 | U65: 55-59 | V65: 60-64 | W65: 65-69 | X65: 70-74 | Y65: 75-79 | Z65: 80-84 | AA65: 85+ | AB65: total
A66: 18UC | B66: Exeter | C66: Exeter | D66: 1.1.1 | E66: 1.1.1 | F66: 1.1 | G66: 1 | H66: 434.5 | I66: 3.7 | J66: 0.2 | K66: 0 | L66: 0 | M66: 0.1 | N66: 0.1 | O66: 0.3 | P66: 0.5 | Q66: 0.5 | R66: 0.9 | S66: 1.5 | T66: 2.5 | U66: 4.1 | V66: 6.4 | W66: 9.4 | X66: 15.1 | Y66: 30.2 | Z66: 51.1 | AA66: 131.6 | AB66: 8.9
A67: 23UC | B67: Cotswold | C67: Cotswold | D67: 5.7.13 | E67: 5.7.13 | F67: 5.7 | G67: 5 | H67: 340.9 | I67: 5.2 | J67: 0.1 | K67: 0 | L67: 0.1 | M67: 0.2 | N67: 0.1 | O67: 0.3 | P67: 0.3 | Q67: 0.4 | R67: 0.3 | S67: 0.8 | T67: 2.9 | U67: 2.4 | V67: 2.9 | W67: 5.9 | X67: 11.3 | Y67: 20.9 | Z67: 41.8 | AA67: 124 | AB67: 9.7
A68: 19UG | B68: Purbeck | C68: Purbeck | D68: 6.10.17 | E68: 6.10.17 | F68: 6.1 | G68: 6 | H68: 360.3 | I68: 1.4 | J68: 0.2 | K68: 0.1 | L68: 0 | M68: 0.1 | N68: 0.1 | O68: 0.3 | P68: 0.5 | Q68: 0.2 | R68: 0.5 | S68: 1.2 | T68: 1.9 | U68: 3.1 | V68: 5.1 | W68: 6.5 | X68: 10.7 | Y68: 22.3 | Z68: 42.7 | AA68: 132.6 | AB68: 11.4
A69: 00CK | B69: North Tyneside | C69: North Tyneside | D69: 7.11.21 | E69: 7.11.21 | F69: 7.11 | G69: 7 | H69: 475.1 | I69: 4.8 | J69: 0.1 | K69: 0 | L69: 0 | M69: 0.2 | N69: 0.4 | O69: 0.5 | P69: 0.6 | Q69: 0.8 | R69: 1.1 | S69: 1.6 | T69: 2.1 | U69: 4.9 | V69: 7.2 | W69: 10.5 | X69: 18.1 | Y69: 29.6 | Z69: 54.3 | AA69: 141.1 | AB69: 10.7
A70: 95F | B70: Larne | C70: Larne | D70: 7.12.23 | E70: 7.12.23 | F70: 7.12 | G70: 7 | H70: 422.4 | I70: 3 | J70: 0.3 | K70: 0 | L70: 0.3 | M70: 0.1 | N70: 0.2 | O70: 0.1 | P70: 0.5 | Q70: 0.7 | R70: 0.7 | S70: 0.8 | T70: 2.8 | U70: 3.5 | V70: 5.8 | W70: 8.5 | X70: 15.2 | Y70: 25.8 | Z70: 54.3 | AA70: 137 | AB70: 9.4

Sheet EASR lookup (hidden)
A1: Highlighted yellow are the BIC for males and females - no longer needed
H3: Age­standardised mortality rate | N3: Calc sheet | P3: ONS EASR - EASR Calculator
A4: Code | B4: LAD | C4: LAD2 | D4: Subgroups | E4: Subgroups2 | F4: Groups | G4: Supergroups | H4: Males | I4: Females | J4: Males ldiff | K4: Males udiff | L4: Females ldiff | M4: Females udiff | N4: Males EASR | O4: Females EASR | P4: Males | Q4: Females
A5: 00KF | B5: Southend-on-Sea | C5: Southend-on-Sea | D5: 1.1.1 | E5: 1.1.1 | F5: 1.1 | G5: 1 | H5: 554.5 | I5: 442.9
A6: 21UC | B6: Eastbourne | C6: Eastbourne | D6: 1.1.1 | E6: 1.1.1 | F6: 1.1 | G6: 1 | H6: 610.1 | I6: 443.9
A7: 18UC | B7: Exeter | C7: Exeter | D7: 1.1.1 | E7: 1.1.1 | F7: 1.1 | G7: 1 | H7: 614.1 | I7: 421.2
A8: 33UG | B8: Norwich | C8: Norwich | D8: 1.1.1 | E8: 1.1.1 | F8: 1.1 | G8: 1 | H8: 614.7 | I8: 423.6
A9: 00HN | B9: Bournemouth | C9: Bournemouth | D9: 1.1.1 | E9: 1.1.1 | F9: 1.1 | G9: 1 | H9: 640.8 | I9: 464.9
A10: 00CG | B10: Sheffield | C10: Sheffield | D10: 1.1.1 | E10: 1.1.1 | F10: 1.1 | G10: 1 | H10: 641.1 | I10: 468
A11: 00MR | B11: Portsmouth | C11: Portsmouth | D11: 1.1.1 | E11: 1.1.1 | F11: 1.1 | G11: 1 | H11: 642.7 | I11: 487.6
A12: 32UD | B12: Lincoln | C12: Lincoln | D12: 1.1.1 | E12: 1.1.1 | F12: 1.1 | G12: 1 | H12: 658.4 | I12: 508.9
A13: 00HB | B13: Bristol | C13: Bristol | D13: 1.1.1 | E13: 1.1.1 | F13: 1.1 | G13: 1 | H13: 664.1 | I13: 439.5
A14: 00MS | B14: Southampton | C14: Southampton | D14: 1.1.1 | E14: 1.1.1 | F14: 1.1 | G14: 1 | H14: 671.2 | I14: 479
A15: 00ML | B15: Brighton and Hove | C15: Brighton and Hove | D15: 1.1.1 | E15: 1.1.1 | F15: 1.1 | G15: 1 | H15: 678.4 | I15: 448.1
A16: 45UH | B16: Worthing | C16: Worthing | D16: 1.1.1 | E16: 1.1.1 | F16: 1.1 | G16: 1 | H16: 678.7 | I16: 428
A17: 21UD | B17: Hastings | C17: Hastings | D17: 1.1.1 | E17: 1.1.1 | F17: 1.1 | G17: 1 | H17: 684.4 | I17: 517.3
A18: 00PT | B18: Cardiff | C18: Cardiff | D18: 1.1.1 | E18: 1.1.1 | F18: 1.1 | G18: 1 | H18: 690.4 | I18: 455.6 | J18: 37 | K18: 38.6 | L18: 26.7 | M18: 27.7 | N18: 690.1 | O18: 455.5 | P18: -0.3 | Q18: -0.1
A19: 00HG | B19: Plymouth | C19: Plymouth | D19: 1.1.1 | E19: 1.1.1 | F19: 1.1 | G19: 1 | H19: 690.8 | I19: 499.9
A20: 00DA | B20: Leeds | C20: Leeds | D20: 1.1.1 | E20: 1.1.1 | F20: 1.1 | G20: 1 | H20: 693.4 | I20: 486.6
A21: 00QP | B21: Edinburgh, City of | C21: Edinburgh, City of | D21: 1.1.1 | E21: 1.1.1 | F21: 1.1 | G21: 1 | H21: 703.2 | I21: 501.3
A22: 00CJ | B22: Newcastle upon Tyne | C22: Newcastle upon Tyne | D22: 1.1.1 | E22: 1.1.1 | F22: 1.1 | G22: 1 | H22: 715.5 | I22: 516.5
A23: 30UH | B23: Lancaster | C23: Lancaster | D23: 1.1.1 | E23: 1.1.1 | F23: 1.1 | G23: 1 | H23: 718.7 | I23: 474.5
A24: 00QA | B24: Aberdeen City | C24: Aberdeen City | D24: 1.1.1 | E24: 1.1.1 | F24: 1.1 | G24: 1 | H24: 751.6 | I24: 535.5
A25: 00BR | B25: Salford | C25: Salford | D25: 1.1.1 | E25: 1.1.1 | F25: 1.1 | G25: 1 | H25: 785.2 | I25: 574
A26: 00BY | B26: Liverpool | C26: Liverpool | D26: 1.1.1 | E26: 1.1.1 | F26: 1.1 | G26: 1 | H26: 791.7 | I26: 567.4
A27: 00QJ | B27: Dundee City | C27: Dundee City | D27: 1.1.1 | E27: 1.1.1 | F27: 1.1 | G27: 1 | H27: 866.3 | I27: 609.5
A28: 00QS | B28: Glasgow City | C28: Glasgow City | D28: 1.1.1 | E28: 1.1.1 | F28: 1.1 | G28: 1 | H28: 1016.6 | I28: 680.7
A29: 12UC | B29: East Cambridgeshire | C29: East Cambridgeshire | D29: 5.7.14 | E29: 5.7.14 | F29: 5.7 | G29: 5 | H29: 441.3 | I29: 345.5
A30: 34UG | B30: South Northamptonshire | C30: South Northamptonshire | D30: 5.7.14 | E30: 5.7.14 | F30: 5.7 | G30: 5 | H30: 452.7 | I30: 401.3
A31: 42UB | B31: Babergh | C31: Babergh | D31: 5.7.13 | E31: 5.7.13 | F31: 5.7 | G31: 5 | H31: 453.8 | I31: 387.4
A32: 42UE | B32: Mid Suffolk | C32: Mid Suffolk | D32: 5.7.14 | E32: 5.7.14 | F32: 5.7 | G32: 5 | H32: 467.5 | I32: 372.1
A33: 19UD | B33: East Dorset | C33: East Dorset | D33: 5.7.13 | E33: 5.7.13 | F33: 5.7 | G33: 5 | H33: 473.6 | I33: 330.8
A34: 18UD | B34: Mid Devon | C34: Mid Devon | D34: 5.7.13 | E34: 5.7.13 | F34: 5.7 | G34: 5 | H34: 490.5 | I34: 383.6
A35: 24UJ | B35: New Forest | C35: New Forest | D35: 5.7.13 | E35: 5.7.13 | F35: 5.7 | G35: 5 | H35: 494.8 | I35: 368.8
A36: 33UH | B36: South Norfolk | C36: South Norfolk | D36: 5.7.13 | E36: 5.7.13 | F36: 5.7 | G36: 5 | H36: 503.3 | I36: 363.7
A37: 00HA | B37: Bath and North East Somerset | C37: Bath and North East Somerset | D37: 5.7.12 | E37: 5.7.12 | F37: 5.7 | G37: 5 | H37: 505.6 | I37: 387.6
A38: 24UD | B38: Eastleigh | C38: Eastleigh | D38: 5.7.14 | E38: 5.7.14 | F38: 5.7 | G38: 5 | H38: 508.5 | I38: 370.7
A39: 29UB | B39: Ashford | C39: Ashford | D39: 5.7.14 | E39: 5.7.14 | F39: 5.7 | G39: 5 | H39: 510.2 | I39: 399.7
A40: 21UH | B40: Wealden | C40: Wealden | D40: 5.7.13 | E40: 5.7.13 | F40: 5.7 | G40: 5 | H40: 513.1 | I40: 379.8
A41: 42UG | B41: Suffolk Coastal | C41: Suffolk Coastal | D41: 5.7.13 | E41: 5.7.13 | F41: 5.7 | G41: 5 | H41: 514.3 | I41: 393.1
A42: 00HD | B42: South Gloucestershire | C42: South Gloucestershire | D42: 5.7.14 | E42: 5.7.14 | F42: 5.7 | G42: 5 | H42: 516.3 | I42: 386.7
A43: 40UD | B43: South Somerset | C43: South Somerset | D43: 5.7.13 | E43: 5.7.13 | F43: 5.7 | G43: 5 | H43: 517.9 | I43: 394.2
A44: 36UE | B44: Richmondshire | C44: Richmondshire | D44: 5.7.13 | E44: 5.7.13 | F44: 5.7 | G44: 5 | H44: 520.6 | I44: 436.6
A45: 17UF | B45: Derbyshire Dales | C45: Derbyshire Dales | D45: 5.7.13 | E45: 5.7.13 | F45: 5.7 | G45: 5 | H45: 522.3 | I45: 394
A46: 36UC | B46: Hambleton | C46: Hambleton | D46: 5.7.13 | E46: 5.7.13 | F46: 5.7 | G46: 5 | H46: 522.3 | I46: 367.4
A47: 31UB | B47: Blaby | C47: Blaby | D47: 5.7.14 | E47: 5.7.14 | F47: 5.7 | G47: 5 | H47: 522.9 | I47: 381.5
A48: 21UF | B48: Lewes | C48: Lewes | D48: 5.7.13 | E48: 5.7.13 | G48: 5 | H48: 524.1 | I48: 376.3
A49: 30UL | B49: Ribble Valley | C49: Ribble Valley | D49: 5.7.13 | E49: 5.7.13 | F49: 5.7 | G49: 5 | H49: 525.7 | I49: 405.3
A50: 31UG | B50: Melton | C50: Melton | D50: 5.7.14 | E50: 5.7.14 | F50: 5.7 | G50: 5 | H50: 526.6 | I50: 452.6
A51: 19UE | B51: North Dorset | C51: North Dorset | D51: 5.7.13 | E51: 5.7.13 | F51: 5.7 | G51: 5 | H51: 526.8 | I51: 358.7
A52: 42UF | B52: St. Edmundsbury | C52: St. Edmundsbury | D52: 5.7.14 | E52: 5.7.14 | F52: 5.7 | G52: 5 | H52: 527.3 | I52: 433.4
A53: 31UJ | B53: Oadby and Wigston | C53: Oadby and Wigston | D53: 5.7.12 | E53: 5.7.12 | F53: 5.7 | G53: 5 | H53: 530.4 | I53: 387.6
A54: 44UE | B54: Stratford-on-Avon | C54: Stratford-on-Avon | D54: 5.7.13 | E54: 5.7.13 | F54: 5.7 | G54: 5 | H54: 530.7 | I54: 375.5
A55: 38UF | B55: West Oxfordshire | C55: West Oxfordshire | D55: 5.7.14 | E55: 5.7.14 | F55: 5.7 | G55: 5 | H55: 532.4 | I55: 418.6
A56: 23UC | B56: Cotswold | C56: Cotswold | D56: 5.7.13 | E56: 5.7.13 | F56: 5.7 | G56: 5 | H56: 538.1 | I56: 328.4
A57: 00QN | B57: East Renfrewshire | C57: East Renfrewshire | D57: 5.7.12 | E57: 5.7.12 | F57: 5.7 | G57: 5 | H57: 540.4 | I57: 481.6
A58: 37UJ | B58: Rushcliffe | C58: Rushcliffe | D58: 5.7.12 | E58: 5.7.12 | F58: 5.7 | G58: 5 | H58: 541.2 | I58: 376.8
A59: 24UE | B59: Fareham | C59: Fareham | D59: 5.7.14 | E59: 5.7.14 | F59: 5.7 | G59: 5 | H59: 541.6 | I59: 394.7
A60: 12UE | B60: Huntingdonshire | C60: Huntingdonshire | D60: 5.7.14 | E60: 5.7.14 | F60: 5.7 | G60: 5 | H60: 542.5 | I60: 418.8
A61: 40UC | B61: Sedgemoor | C61: Sedgemoor | D61: 5.7.13 | E61: 5.7.13 | F61: 5.7 | G61: 5 | H61: 544.3 | I61: 407.6
A62: 47UF | B62: Wychavon | C62: Wychavon | D62: 5.7.13 | E62: 5.7.13 | F62: 5.7 | G62: 5 | H62: 544.9 | I62: 385.4
A63: 32UE | B63: North Kesteven | C63: North Kesteven | D63: 5.7.13 | E63: 5.7.13 | F63: 5.7 | G63: 5 | H63: 545.6 | I63: 455.6
A64: 40UB | B64: Mendip | C64: Mendip | D64: 5.7.13 | E64: 5.7.13 | F64: 5.7 | G64: 5 | H64: 547.5 | I64: 379.4
A65: 00HY | B65: Wiltshire | C65: Wiltshire | D65: 5.7.14 | E65: 5.7.14 | F65: 5.7 | G65: 5 | H65: 549.2 | I65: 414.2
A66: 33UC | B66: Broadland | C66: Broadland | D66: 5.7.13 | E66: 5.7.13 | F66: 5.7 | G66: 5 | H66: 550.7 | I66: 388.9
A67: 38UB | B67: Cherwell | C67: Cherwell | D67: 5.7.14 | E67: 5.7.14 | F67: 5.7 | G67: 5 | H67: 552.3 | I67: 436.2
A68: 40UE | B68: Taunton Deane | C68: Taunton Deane | D68: 5.7.13 | E68: 5.7.13 | F68: 5.7 | G68: 5 | H68: 553 | I68: 412.9
A69: 23UB | B69: Cheltenham | C69: Cheltenham | D69: 5.7.12 | E69: 5.7.12 | F69: 5.7 | G69: 5 | H69: 555 | I69: 415.6
A70: 29UH | B70: Maidstone | C70: Maidstone | D70: 5.7.14 | E70: 5.7.14 | F70: 5.7 | G70: 5 | H70: 557.6 | I70: 430.8
A71: 31UC | B71: Charnwood | C71: Charnwood | D71: 5.7.12 | E71: 5.7.12 | F71: 5.7 | G71: 5 | H71: 557.8 | I71: 450.9
A72: 23UG | B72: Tewkesbury | C72: Tewkesbury | D72: 5.7.13 | E72: 5.7.13 | F72: 5.7 | G72: 5 | H72: 559.1 | I72: 424.6
A73: 47UC | B73: Malvern Hills | C73: Malvern Hills | D73: 5.7.13 | E73: 5.7.13 | F73: 5.7 | G73: 5 | H73: 559.2 | I73: 434.9
A74: 37UE | B74: Gedling | C74: Gedling | D74: 5.7.12 | E74: 5.7.12 | F74: 5.7 | G74: 5 | H74: 560.3 | I74: 488.7
A75: 37UD | B75: Broxtowe | C75: Broxtowe | D75: 5.7.12 | E75: 5.7.12 | F75: 5.7 | G75: 5 | H75: 561.2 | I75: 419.7
A76: 41UG | B76: Stafford | C76: Stafford | D76: 5.7.13 | E76: 5.7.13 | F76: 5.7 | G76: 5 | H76: 562.6 | I76: 408.6
A77: 00HP | B77: Poole | C77: Poole | D77: 5.7.12 | E77: 5.7.12 | F77: 5.7 | G77: 5 | H77: 562.7 | I77: 410.1
A78: 00EQ | B78: Cheshire East | C78: Cheshire East | D78: 5.7.13 | E78: 5.7.13 | F78: 5.7 | G78: 5 | H78: 562.7 | I78: 438.8
A79: 22UK | B79: Maldon | C79: Maldon | D79: 5.7.14 | E79: 5.7.14 | F79: 5.7 | G79: 5 | H79: 563.9 | I79: 414.9
A80: 00KC | B80: Central Bedfordshire | C80: Central Bedfordshire | D80: 5.7.14 | E80: 5.7.14 | F80: 5.7 | G80: 5 | H80: 564.7 | I80: 414
A81: 33UB | B81: Breckland | C81: Breckland | D81: 5.7.13 | E81: 5.7.13 | F81: 5.7 | G81: 5 | H81: 566.7 | I81: 427.6
A82: 00QL | B82: East Dunbartonshire | C82: East Dunbartonshire | D82: 5.7.12 | E82: 5.7.12 | F82: 5.7 | G82: 5 | H82: 567 | I82: 415
A83: 00CT | B83: Solihull | C83: Solihull | D83: 5.7.12 | E83: 5.7.12 | F83: 5.7 | G83: 5 | H83: 567.9 | I83: 393.9
A84: 36UD | B84: Harrogate | C84: Harrogate | D84: 5.7.13 | E84: 5.7.13 | F84: 5.7 | G84: 5 | H84: 568 | I84: 415.1
A85: 31UD | B85: Harborough | C85: Harborough | D85: 5.7.14 | E85: 5.7.14 | F85: 5.7 | G85: 5 | H85: 568.5 | I85: 400.3
A86: 00FP | B86: Rutland | C86: Rutland | D86: 5.7.13 | E86: 5.7.13 | F86: 5.7 | G86: 5 | H86: 570 | I86: 355.6
A87: 29UC | B87: Canterbury | C87: Canterbury | D87: 5.7.12 | E87: 5.7.12 | F87: 5.7 | G87: 5 | H87: 572 | I87: 443.6
A88: 31UE | B88: Hinckley and Bosworth | C88: Hinckley and Bosworth | D88: 5.7.14 | E88: 5.7.14 | F88: 5.7 | G88: 5 | H88: 573.9 | I88: 419
A89: 30UN | B89: South Ribble | C89: South Ribble | D89: 5.7.14 | E89: 5.7.14 | F89: 5.7 | G89: 5 | H89: 574 | I89: 461.6
A90: 41UD | B90: Lichfield | C90: Lichfield | D90: 5.7.14 | E90: 5.7.14 | F90: 5.7 | G90: 5 | H90: 574.4 | I90: 418.6
A91: 00HC | B91: North Somerset | C91: North Somerset | D91: 5.7.13 | E91: 5.7.13 | F91: 5.7 | G91: 5 | H91: 575.1 | I91: 407.5
A92: 33UE | B92: Kings Lynn and West Norfolk | C92: Kings Lynn and West Norfolk | D92: 5.7.13 | E92: 5.7.13 | F92: 5.7 | G92: 5 | H92: 575.2 | I92: 407.5
A93: 00GA | B93: County of Herefordshire | C93: County of Herefordshire | D93: 5.7.13 | E93: 5.7.13 | F93: 5.7 | G93: 5 | H93: 575.4 | I93: 398.2
A94: 44UF | B94: Warwick | C94: Warwick | D94: 5.7.12 | E94: 5.7.12 | F94: 5.7 | G94: 5 | H94: 577.5 | I94: 388.6
A95: 45UB | B95: Adur | C95: Adur | D95: 5.7.12 | E95: 5.7.12 | F95: 5.7 | G95: 5 | H95: 579 | I95: 442.2
A96: 22UE | B96: Castle Point | C96: Castle Point | D96: 5.7.14 | E96: 5.7.14 | F96: 5.7 | G96: 5 | H96: 580.7 | I96: 486.7
A97: 34UD | B97: East Northamptonshire | C97: East Northamptonshire | D97: 5.7.14 | E97: 5.7.14 | F97: 5.7 | G97: 5 | H97: 580.7 | I97: 418.2
A98: 23UF | B98: Stroud | C98: Stroud | D98: 5.7.13 | E98: 5.7.13 | F98: 5.7 | G98: 5 | H98: 585 | I98: 448.6
A99: 00GG | B99: Shropshire | C99: Shropshire | D99: 5.7.13 | E99: 5.7.13 | F99: 5.7 | G99: 5 | H99: 586.3 | I99: 403.3
A100: 17UH | B100: High Peak | C100: High Peak | D100: 5.7.14 | E100: 5.7.14 | F100: 5.7 | G100: 5 | H100: 588.2 | I100: 454.5
A101: 00FB | B101: East Riding of Yorks | C101: East Riding of Yorks | D101: 5.7.13 | E101: 5.7.13 | F101: 5.7 | G101: 5 | H101: 588.6 | I101: 460
A102: 12UD | B102: Fenland | C102: Fenland | D102: 5.7.14 | E102: 5.7.14 | F102: 5.7 | G102: 5 | H102: 590.4 | I102: 461.1
A103: 32UF | B103: South Holland | C103: South Holland | D103: 5.7.13 | E103: 5.7.13 | F103: 5.7 | G103: 5 | H103: 591 | I103: 452.7
A104: 41UH | B104: Staffordshire Moorlands | C104: Staffordshire Moorlands | D104: 5.7.13 | E104: 5.7.13 | F104: 5.7 | G104: 5 | H104: 592 | I104: 436.4
A105: 00BS | B105: Stockport | C105: Stockport | D105: 5.7.12 | E105: 5.7.12 | F105: 5.7 | G105: 5 | H105: 594.6 | I105: 454.5
A106: 32UG | B106: South Kesteven | C106: South Kesteven | D106: 5.7.14 | E106: 5.7.14 | F106: 5.7 | G106: 5 | H106: 594.7 | I106: 417.4
A107: 00PP | B107: Monmouth | C107: Monmouthshire | D107: 5.7.13 | E107: 5.7.13 | F107: 5.7 | G107: 5 | H107: 594.8 | I107: 414.1 | J107: 56.5 | K107: 60.3 | L107: 42.9 | M107: 46 | N107: 595.1 | O107: 413.5 | P107: 0.3 | Q107: -0.6
A108: 32UH | B108: West Lindsey | C108: West Lindsey | D108: 5.7.13 | E108: 5.7.13 | F108: 5.7 | G108: 5 | H108: 595.5 | I108: 449.2
A109: 22UG | B109: Colchester | C109: Colchester | D109: 5.7.12 | E109: 5.7.12 | F109: 5.7 | G109: 5 | H109: 595.7 | I109: 417.8
A110: 30UE | B110: Chorley | C110: Chorley | D110: 5.7.14 | E110: 5.7.14 | F110: 5.7 | G110: 5 | H110: 597.5 | I110: 499.1
A111: 30UP | B111: West Lancashire | C111: West Lancashire | D111: 5.7.12 | E111: 5.7.12 | F111: 5.7 | G111: 5 | H111: 598.1 | I111: 435.4
A112: 95W | B112: North Down | C112: North Down | D112: 5.7.12 | E112: 5.7.12 | F112: 5.7 | G112: 5 | H112: 598.8 | I112: 415.6
A113: 26UL | B113: Welwyn Hatfield | C113: Welwyn Hatfield | D113: 5.7.12 | E113: 5.7.12 | F113: 5.7 | G113: 5 | H113: 600.4 | I113: 413
A114: 44UD | B114: Rugby | C114: Rugby | D114: 5.7.14 | E114: 5.7.14 | F114: 5.7 | G114: 5 | H114: 601.6 | I114: 411.9
A115: 00PD | B115: Vale of Glamorgan | C115: Vale of Glamorgan | D115: 5.7.12 | E115: 5.7.12 | F115: 5.7 | G115: 5 | H115: 602.2 | I115: 445.4 | J115: 50.1 | K115: 53.3 | L115: 38.9 | M115: 41.3 | N115: 602 | O115: 445.1 | P115: -0.2 | Q115: -0.3
A116: 00BU | B116: Trafford | C116: Trafford | D116: 5.7.12 | E116: 5.7.12 | F116: 5.7 | G116: 5 | H116: 606.2 | I116: 403.9
A117: 23UD | B117: Forest of Dean | C117: Forest of Dean | D117: 5.7.13 | E117: 5.7.13 | F117: 5.7 | G117: 5 | H117: 606.7 | I117: 400.9
A118: 41UF | B118: South Staffordshire | C118: South Staffordshire | D118: 5.7.14 | E118: 5.7.14 | F118: 5.7 | G118: 5 | H118: 610.7 | I118: 466.3
A119: 47UG | B119: Wyre Forest | C119: Wyre Forest | D119: 5.7.14 | E119: 5.7.14 | F119: 5.7 | G119: 5 | H119: 611 | I119: 432.2
A120: 37UG | B120: Newark and Sherwood | C120: Newark and Sherwood | D120: 5.7.13 | E120: 5.7.13 | F120: 5.7 | G120: 5 | H120: 611.6 | I120: 466.9
A121: 00FF | B121: York | C121: York | D121: 5.7.12 | E121: 5.7.12 | F121: 5.7 | G121: 5 | H121: 613.2 | I121: 425
A122: 00EM | B122: Northumberland | C122: Northumberland | D122: 5.7.13 | E122: 5.7.13 | F122: 5.7 | G122: 5 | H122: 615.1 | I122: 484.1
A123: 22UC | B123: Braintree | C123: Braintree | D123: 5.7.14 | E123: 5.7.14 | F123: 5.7 | G123: 5 | H123: 616.5 | I123: 458.6
A124: 17UK | B124: South Derbyshire | C124: South Derbyshire | D124: 5.7.14 | E124: 5.7.14 | F124: 5.7 | G124: 5 | H124: 618.5 | I124: 474.5
A125: 95Y | B125: Castlereagh | C125: Castlereagh | D125: 5.7.12 | E125: 5.7.12 | F125: 5.7 | G125: 5 | H125: 618.7 | I125: 414.3
A126: 34UE | B126: Kettering | C126: Kettering | D126: 5.7.14 | E126: 5.7.14 | F126: 5.7 | G126: 5 | H126: 624.9 | I126: 436.8
A127: 31UH | B127: North West Leicestershire | C127: North West Leicestershire | D127: 5.7.14 | E127: 5.7.14 | F127: 5.7 | G127: 5 | H127: 625 | I127: 454.4
A128: 34UC | B128: Daventry | C128: Daventry | D128: 5.7.14 | E128: 5.7.14 | F128: 5.7 | G128: 5 | H128: 627 | I128: 478.7
A129: 00EW | B129: Cheshire West and Chester | C129: Cheshire West and Chester | D129: 5.7.12 | E129: 5.7.12 | F129: 5.7 | G129: 5 | H129: 635.8 | I129: 461.8
A130: 36UH | B130: Selby | C130: Selby | D130: 5.7.14 | E130: 5.7.14 | F130: 5.7 | G130: 5 | H130: 641.8 | I130: 471.2
A131: 44UB | B131: North Warwickshire | C131: North Warwickshire | D131: 5.7.14 | E131: 5.7.14 | F131: 5.7 | G131: 5 | H131: 658.9 | I131: 439.2
A132: 47UB | B132: Bromsgrove | C132: Bromsgrove | D132: 5.7.14 | E132: 5.7.14 | F132: 5.7 | G132: 5 | H132: 662.2 | I132: 424.4
A133: 00EU | B133: Warrington | C133: Warrington | D133: 5.7.14 | E133: 5.7.14 | F133: 5.7 | G133: 5 | H133: 664.9 | I133: 484.9
A134: 32UB | B134: Boston | C134: Boston | D134: 5.7.13 | E134: 5.7.13 | F134: 5.7 | G134: 5 | H134: 666.6 | I134: 445.6
A135: 00BM | B135: Bury | C135: Bury | D135: 5.7.12 | E135: 5.7.12 | F135: 5.7 | G135: 5 | H135: 683.9 | I135: 553.8
A136: 00RG | B136: Stirling | C136: Stirling | D136: 5.7.12 | E136: 5.7.12 | F136: 5.7 | G136: 5 | H136: 711 | I136: 496.9
A137: 19UC | B137: Christchurch | C137: Christchurch | D137: 6.10.17 | E137: 6.10.17 | F137: 6.10 | G137: 6 | H137: 438.1 | I137: 330.7
A138: 19UG | B138: Purbeck | C138: Purbeck | D138: 6.10.17 | E138: 6.10.17 | F138: 6.10 | G138: 6 | H138: 494.2 | I138: 304.2
A139: 16UG | B139: South Lakeland | C139: South Lakeland | D139: 6.10.17 | E139: 6.10.17 | F139: 6.10 | G139: 6 | H139: 513.7 | I139: 409.2
A140: 36UB | B140: Craven | C140: Craven | D140: 6.10.17 | E140: 6.10.17 | F140: 6.10 | G140: 6 | H140: 514.8 | I140: 398.5
A141: 45UD | B141: Chichester | C141: Chichester | D141: 6.10.17 | E141: 6.10.17 | F141: 6.10 | G141: 6 | H141: 521.4 | I141: 377.6
A142: 18UG | B142: South Hams | C142: South Hams | D142: 6.10.17 | E142: 6.10.17 | F142: 6.10 | G142: 6 | H142: 538.6 | I142: 379.5
A143: 19UH | B143: West Dorset | C143: West Dorset | D143: 6.10.17 | E143: 6.10.17 | F143: 6.10 | G143: 6 | H143: 540.7 | I143: 381.5
A144: 16UF | B144: Eden | C144: Eden | D144: 6.10.17 | E144: 6.10.17 | F144: 6.10 | G144: 6 | H144: 543.3 | I144: 393.2
A145: 00NQ | B145: Ceredigion | C145: Ceredigion | D145: 6.10.17 | E145: 6.10.17 | F145: 6.10 | G145: 6 | H145: 547.7 | I145: 389 | J145: 60.3 | K145: 65.2 | L145: 44.9 | M145: 48.6 | N145: 548.1 | O145: 389.4 | P145: 0.4 | Q145: 0.4
A146: 18UB | B146: East Devon | C146: East Devon | D146: 6.10.17 | E146: 6.10.17 | F146: 6.10 | G146: 6 | H146: 558 | I146: 404
A147: 00NN | B147: Powys | C147: Powys | D147: 6.10.17 | E147: 6.10.17 | F147: 6.10 | G147: 6 | H147: 559 | I147: 422 | J147: 43.6 | K147: 46.3 | L147: 34.4 | M147: 36.3 | N147: 559.2 | O147: 421.7 | P147: 0.2 | Q147: -0.3
A148: 00RA | B148: Orkney Islands | C148: Orkney Islands | D148: 6.10.19 | E148: 6.10.19 | F148: 6.10 | G148: 6 | H148: 562.2 | I148: 505.2
A149: 18UK | B149: Torridge | C149: Torridge | D149: 6.10.17 | E149: 6.10.17 | F149: 6.10 | G149: 6 | H149: 573.2 | I149: 457
A150: 21UG | B150: Rother | C150: Rother | D150: 6.10.17 | E150: 6.10.17 | F150: 6.10 | G150: 6 | H150: 579.1 | I150: 393.4
A151: 00MW | B151: Isle of Wight | C151: Isle of Wight | D151: 6.10.18 | E151: 6.10.18 | F151: 6.10 | G151: 6 | H151: 587.1 | I151: 443.6
A152: 00NS | B152: Pembrokeshire | C152: Pembrokeshire | D152: 6.10.18 | E152: 6.10.18 | F152: 6.10 | G152: 6 | H152: 588.5 | I152: 472 | J152: 48.2 | K152: 51.1 | L152: 38.1 | M152: 40.1 | N152: 588.4 | O152: 471.9 | P152: -0.1 | Q152: -0.1
A153: 33UF | B153: North Norfolk | C153: North Norfolk | D153: 6.10.17 | E153: 6.10.17 | F153: 6.10 | G153: 6 | H153: 591.2 | I153: 383.7
A154: 40UF | B154: West Somerset | C154: West Somerset | D154: 6.10.17 | E154: 6.10.17 | F154: 6.10 | G154: 6 | H154: 601.1 | I154: 405.2
A155: 45UC | B155: Arun | C155: Arun | D155: 6.10.17 | E155: 6.10.17 | F155: 6.10 | G155: 6 | H155: 601.3 | I155: 430.5
A156: 29UL | B156: Shepway | C156: Shepway | D156: 6.10.18 | E156: 6.10.18 | F156: 6.10 | G156: 6 | H156: 601.3 | I156: 447.1
A157: 30UF | B157: Fylde | C157: Fylde | D157: 6.10.17 | E157: 6.10.17 | F157: 6.10 | G157: 6 | H157: 601.7 | I157: 469.1
A158: 00HE | B158: Cornwall, Isles of Scilly | C158: Cornwall, Isles of Scilly | D158: 6.10.18 | E158: 6.10.18 | F158: 6.10 | G158: 6 | H158: 603.4 | I158: 427.9
A159: 00QB | B159: Aberdeenshire | C159: Aberdeenshire | D159: 6.10.19 | E159: 6.10.19 | F159: 6.10 | G159: 6 | H159: 604.4 | I159: 495.6
A160: 00NC | B160: Gwynedd | C160: Gwynedd | D160: 6.10.18 | E160: 6.10.18 | F160: 6.10 | G160: 6 | H160: 605 | I160: 488 | J160: 49.8 | K160: 53 | L160: 41.2 | M160: 43.6 | N160: 604.9 | O160: 487.8 | P160: -0.1 | Q160: -0.2
A161: 36UF | B161: Ryedale | C161: Ryedale | D161: 6.10.17 | E161: 6.10.17 | F161: 6.10 | G161: 6 | H161: 606.5 | I161: 457.1
A162: 00NE | B162: Conwy | C162: Conwy | D162: 6.10.18 | E162: 6.10.18 | F162: 6.10 | G162: 6 | H162: 607.5 | I162: 448.4 | J162: 48.5 | K162: 51.3 | L162: 37.3 | M162: 39.3 | N162: 607.7 | O162: 448.4 | P162: 0.2 | Q162: 0
A163: 42UH | B163: Waveney | C163: Waveney | D163: 6.10.18 | E163: 6.10.18 | F163: 6.10 | G163: 6 | H163: 609.8 | I163: 437.7
A164: 18UE | B164: North Devon | C164: North Devon | D164: 6.10.17 | E164: 6.10.17 | F164: 6.10 | G164: 6 | H164: 610.4 | I164: 451.4
A165: 18UH | B165: Teignbridge | C165: Teignbridge | D165: 6.10.17 | E165: 6.10.17 | F165: 6.10 | G165: 6 | H165: 614.9 | I165: 417.1
A166: 00HH | B166: Torbay | C166: Torbay | D166: 6.10.18 | E166: 6.10.18 | F166: 6.10 | G166: 6 | H166: 615.1 | I166: 455.2
A167: 29UE | B167: Dover | C167: Dover | D167: 6.10.18 | E167: 6.10.18 | F167: 6.10 | G167: 6 | H167: 615.8 | I167: 466.8
A168: 00QE | B168: Scottish Borders | C168: Scottish Borders | D168: 6.10.19 | E168: 6.10.19 | F168: 6.10 | G168: 6 | H168: 625.2 | I168: 507.4
A169: 18UL | B169: West Devon | C169: West Devon | D169: 6.10.17 | E169: 6.10.17 | F169: 6.10 | G169: 6 | H169: 635 | I169: 377.8
A170: 00NA | B170: Isle of Anglesey | C170: Isle of Anglesey | D170: 6.10.18 | E170: 6.10.18 | F170: 6.10 | G170: 6 | H170: 636.6 | I170: 430.5 | J170: 66.6 | K170: 71.8 | L170: 48.4 | M170: 52.1 | N170: 636.8 | O170: 430.5 | P170: 0.2 | Q170: 0
A171: 00NU | B171: Carmarthenshire | C171: Carmarthenshire | D171: 6.10.18 | E171: 6.10.18 | F171: 6.10 | G171: 6 | H171: 639.2 | I171: 481.3 | J171: 41.2 | K171: 43.2 | L171: 31.4 | M171: 32.8 | N171: 639.2 | O171: 481.5 | P171: 0 | Q171: 0.2
A172: 16UB | B172: Allerdale | C172: Allerdale | D172: 6.10.18 | E172: 6.10.18 | F172: 6.10 | G172: 6 | H172: 639.3 | I172: 507.7
A173: 22UN | B173: Tendring | C173: Tendring | D173: 6.10.17 | E173: 6.10.17 | F173: 6.10 | G173: 6 | H173: 640.1 | I173: 500.9
A174: 36UG | B174: Scarborough | C174: Scarborough | D174: 6.10.18 | E174: 6.10.18 | F174: 6.10 | G174: 6 | H174: 650.2 | I174: 453.1
A175: 16UD | B175: Carlisle | C175: Carlisle | D175: 6.10.18 | E175: 6.10.18 | F175: 6.10 | G175: 6 | H175: 652.4 | I175: 502.7
A176: 00RB | B176: Perth & Kinross | C176: Perth & Kinross | D176: 6.10.19 | E176: 6.10.19 | F176: 6.10 | G176: 6 | H176: 652.4 | I176: 468.7
A177: 00QT | B177: Highland | C177: Highland | D177: 6.10.19 | E177: 6.10.19 | F177: 6.10 | G177: 6 | H177: 657.3 | I177: 460.9
A178: 19UJ | B178: Weymouth and Portland | C178: Weymouth and Portland | D178: 6.10.18 | E178: 6.10.18 | F178: 6.10 | G178: 6 | H178: 659.6 | I178: 446.6
A179: 00QC | B179: Angus | C179: Angus | D179: 6.10.19 | E179: 6.10.19 | F179: 6.10 | G179: 6 | H179: 661.4 | I179: 502.6
A180: 29UN | B180: Thanet | C180: Thanet | D180: 6.10.18 | E180: 6.10.18 | F180: 6.10 | G180: 6 | H180: 661.5 | I180: 479.1
A181: 33UD | B181: Great Yarmouth | C181: Great Yarmouth | D181: 6.10.18 | E181: 6.10.18 | F181: 6.10 | G181: 6 | H181: 670.7 | I181: 474.2
A182: 30UQ | B182: Wyre | C182: Wyre | D182: 6.10.17 | E182: 6.10.17 | F182: 6.10 | G182: 6 | H182: 680 | I182: 498.4
A183: 00NG | B183: Denbighshire | C183: Denbighshire | D183: 6.10.18 | E183: 6.10.18 | F183: 6.10 | G183: 6 | H183: 681.1 | I183: 547.7 | J183: 60 | K183: 64 | L183: 49.9 | M183: 53.1 | N183: 681.3 | O183: 548 | P183: 0.2 | Q183: 0.3
A184: 00QH | B184: Dumfries & Galloway | C184: Dumfries & Galloway | D184: 6.10.19 | E184: 6.10.19 | F184: 6.10 | G184: 6 | H184: 687.7 | I184: 505.9
A185: 32UC | B185: East Lindsey | C185: East Lindsey | D185: 6.10.17 | E185: 6.10.17 | F185: 6.10 | G185: 6 | H185: 691.5 | I185: 468
A186: 00QX | B186: Moray | C186: Moray | D186: 6.10.19 | E186: 6.10.19 | F186: 6.10 | G186: 6 | H186: 709 | I186: 531.2
A187: 00RD | B187: Shetland Islands | C187: Shetland Islands | D187: 6.10.19 | E187: 6.10.19 | F187: 6.10 | G187: 6 | H187: 714.8 | I187: 413
A188: 00QD | B188: Argyll & Bute | C188: Argyll & Bute | D188: 6.10.19 | E188: 6.10.19 | F188: 6.10 | G188: 6 | H188: 717.8 | I188: 533.3
A189: 00RJ | B189: Eilean Siar | C189: Eilean Siar | D189: 6.10.19 | E189: 6.10.19 | F189: 6.10 | G189: 6 | H189: 817.3 | I189: 532.7
A190: 00EY | B190: Blackpool | C190: Blackpool | D190: 6.10.18 | E190: 6.10.18 | F190: 6.10 | G190: 6 | H190: 879.3 | I190: 576.6
A191: 00EE | B191: Redcar and Cleveland | C191: Redcar and Cleveland | D191: 7.11.20 | E191: 7.11.20 | F191: 7.11 | G191: 7 | H191: 640.5 | I191: 490.5
A192: 00EH | B192: Darlington | C192: Darlington | D192: 7.11.20 | E192: 7.11.20 | F192: 7.11 | G192: 7 | H192: 659.9 | I192: 472.4
A193: 00QM | B193: East Lothian | C193: East Lothian | D193: 7.11.21 | E193: 7.11.21 | F193: 7.11 | G193: 7 | H193: 666.3 | I193: 517
A194: 00CB | B194: Wirral | C194: Wirral | D194: 7.11.20 | E194: 7.11.20 | F194: 7.11 | G194: 7 | H194: 670.9 | I194: 496.3
A195: 00CK | B195: North Tyneside | C195: North Tyneside | D195: 7.11.21 | E195: 7.11.21 | F195: 7.11 | G195: 7 | H195: 671.1 | I195: 462.6
A196: 00PH | B196: Merthyr Tydfil | C196: Merthyr Tydfil | D196: 7.11.20 | E196: 7.11.20 | F196: 7.11 | G196: 7 | H196: 673 | I196: 578.8 | J196: 79.9 | K196: 87.7 | L196: 65.3 | M196: 70.8 | N196: 673 | O196: 578.8 | P196: 0 | Q196: 0
A197: 00RE | B197: South Ayrshire | C197: South Ayrshire | D197: 7.11.21 | E197: 7.11.21 | F197: 7.11 | G197: 7 | H197: 677 | I197: 525.4
A198: 00CA | B198: Sefton | C198: Sefton | D198: 7.11.20 | E198: 7.11.20 | F198: 7.11 | G198: 7 | H198: 683.8 | I198: 483.8
A199: 16UC | B199: Barrow-in-Furness | C199: Barrow-in-Furness | D199: 7.11.20 | E199: 7.11.20 | F199: 7.11 | G199: 7 | H199: 686.6 | I199: 480.6
A200: 00EJ | B200: County Durham | C200: County Durham | D200: 7.11.20 | E200: 7.11.20 | F200: 7.11 | G200: 7 | H200: 694.8 | I200: 513.8
A201: 00EB | B201: Hartlepool | C201: Hartlepool | D201: 7.11.20 | E201: 7.11.20 | F201: 7.11 | G201: 7 | H201: 698.2 | I201: 513.6
... 72 more rows

Sheet Interpretation
A7: As an example, here is the age standardised rate chart for Powys males:
A33: This analysis indicates that the male, all ages, all causes, age standardised mortality rate is:
A35: · Towards the lower (better) end of its peer group (11th out of 54 LA’s)
A37: · Is statistically significantly lower than the all Wales rate (the bright red line)
A39: · Is marginally statistically significantly higher than the best five in peer group combined rate (the dull red line), which is the combined rate for the five LA’s with the lowest individual rates.
A41: To explain the differences between the Powys rate and the best five in peer group rate you should consider the age specific rates, as shown below.
A68: This analysis indicates that the male, age specific, all causes, crude mortality rates are:
A70: · Lower than, but not statistically significantly different to, the equivalent rates in the best five in peer group in 00-01, 25-29, 60-64 and 65-69 age groups (i.e. all those with negative excess deaths)
A72: · The same as the equivalent rates in the best five in peer group in 30-34 and 35-39 age groups (i.e. all those with zero excess deaths)
A74: · Higher than, but not statistically significantly different to, the equivalent rates in the best five in peer group in 01-04, 05-09, 15-19, 20-24, 40-44, 45-49, 50-54 and 55-59 age groups (i.e. all those with positive excess deaths and grey confidence intervals)
A76: · Higher than, and statistically significantly different to, the equivalent rates in the best five in peer group in 10-14 and 70-74 age groups (i.e. all those with positive excess deaths and red confidence intervals)
A80: The best five in peer group analysis provides a benchmark against the "best" though can seem somewhat alarming. To place the local age specific rates in a national context the final chart shows age and sex specific rates for Powys compared to all Wales.
A109: This analysis indicates that the male, age specific, all causes, crude mortality rates are:
A111: · Lower than, but not statistically significantly different to, or the same as the equivalent rates in Wales as a whole in all age groups except 60-64 and 65-69 (i.e. all those with negative or zero excess deaths and grey confidence intervals).
A113: · Lower than, and statistically significantly different to, the equivalent rates in the Wales as a whole in 60-64 and 65-69 age groups (i.e. all those with negative excess deaths and green confidence intervals).
A115: · Higher than, but not statistically significantly different to, the equivalent rates in the best five in peer group in 05-09, 10-14 & 50-54 (i.e. all those with positive excess deaths and grey confidence intervals)
A117: So what does this mean?
A119: This shows that for Powys to get closer to the male age standardised rate of the five best in class there would need to be a substantial reduction in the number of deaths occurring in the 70-74 age group, along with lesser but also important reductions in the number of deaths between 40 and 59.
A121: It also shows that compared to Wales as a whole, males age specific rates in Powys are lower or equivalent in all age groups, statistically significantly so in some of the older groups.
A123: What else should I consider?
A125: This is based on a single year only and if repeated for another year or an aggregated period the results would be different.
A127: The comparison is being made to the very “best” areas in the UK, therefore some degree of excess is expected, unless they are in the best five in their peer group.
A129: It is likely that at least part of any excesses in the older age groups may not be amenable to intervention, particularly if they are related to long term lifestyle or environment effects.
A131: Following on, targeting the age groups with the excess and the age groups before the excess, is likely to be the most effective strategy.
A133: An identically sized excess in either a younger or older age group will have a greater effect on the age standardised rate if it were in the younger age group.
